Workbook

Sheet Kastare
A1: Kod | B1: Namn | C1: Klubb | D1: Klass
A2: 1163 | B2: Tobias Vikström | C2: Växjö Hsk | D2: 4 | F2: Klass 1 | G2: =COUNTIF(D$2:D$1000,1) -> 15
A3: 1039 | B3: Bela Bodi | C3: Växjö Hsk | D3: 3 | F3: Klass 2 | G3: =COUNTIF(D$2:D$1000,2) -> 20
A4: 1026 | B4: Bengt Andersson | C4: Växjö Hsk | D4: 2 | F4: Klass 3 | G4: =COUNTIF(D$2:D$1000,3) -> 40
A5: 1183 | B5: Bertil Westergren | C5: Växjö Hsk | D5: 4 | F5: Klass 4 | G5: =COUNTIF(D$2:D$1000,4) -> 150
A6: 1018 | B6: Dan Hallstan | C6: Växjö Hsk | D6: 2 | F6: Minior | G6: =COUNTIF(D$2:D$1000,"m") -> 21
A7: 1056 | B7: Günther Iraschko | C7: Växjö Hsk | D7: 3
A8: 1007 | B8: Hathaichonlanne Phaengphui | C8: Växjö Hsk | D8: 1
A9: 1022 | B9: Kerstin Svensson | C9: Växjö Hsk | D9: 3
A10: 1042 | B10: Maire Johansson | C10: Växjö Hsk | D10: 2
A11: 1182 | B11: Maj-Britt Jarl | C11: Växjö Hsk | D11: 4
A12: 1001 | B12: Sandor Bodi | C12: Växjö Hsk | D12: 1
A13: 1002 | B13: Sandra Widlund | C13: Växjö Hsk | D13: 2
A14: 1058 | B14: Solveig Axelsson | C14: Växjö Hsk | D14: 4
A15: 1051 | B15: Thomas Dahl | C15: Växjö Hsk | D15: 3
A16: 1084 | B16: Tomas Lindedal | C16: Växjö Hsk | D16: 4
A17: 1010 | B17: Yamonlada Damnoenngam | C17: Växjö Hsk | D17: 1
A18: 1175 | B18: Albin Rydell | C18: VärendsMIN | D18: m
A19: 1177 | B19: Alex Rydell | C19: VärendsMIN | D19: m
A20: 1176 | B20: Elvin Rydell | C20: VärendsMIN | D20: m
A21: 1068 | B21: Anders Karlsson | C21: Värends Hsk | D21: 4
A22: 1122 | B22: Christer Brincner | C22: Värends Hsk | D22: 3
A23: 1072 | B23: Clara Larsson | C23: Värends Hsk | D23: 3
A24: 1079 | B24: Karin Gullbrand | C24: Värends Hsk | D24: 4
A25: 1012 | B25: Lasse Brincner | C25: Värends Hsk | D25: 2
A26: 1166 | B26: Martin Antic | C26: Värends Hsk | D26: 4
A27: 1114 | B27: Sandra Rydell | C27: Värends Hsk | D27: 4
A28: 1081 | B28: Thomas Marklund | C28: Värends Hsk | D28: 4
A29: 1139 | B29: Tommy Svensson | C29: Värends Hsk | D29: 4
A30: 1101 | B30: Ulrika Rydell | C30: Värends Hsk | D30: 4
A31: 1197 | B31: Björn Enström | C31: Viby HSK | D31: 4
A32: 1209 | B32: Mimmi Dahlman | C32: Viby HSK | D32: 4
A33: 1207 | B33: Rebecka Fresk | C33: Viby HSK | D33: 4
A34: 1208 | B34: Annelie Thörnqvist | C34: Vaxö Skola | D34: 4
A35: 1202 | B35: Linda Ewertzh | C35: Vaxö Skola | D35: 4
A36: 1199 | B36: Patrik Håkansson | C36: Vaxö Skola | D36: 4
A37: 1091 | B37: Andreas Gundersen | C37: Vaxholm Hsk | D37: 4
A38: 1033 | B38: Björn Gabrielsson | C38: Vaxholm Hsk | D38: 3
A39: 1126 | B39: Björn Hansson | C39: Vaxholm Hsk | D39: 4
A40: 1020 | B40: Björn Landberg | C40: Vaxholm Hsk | D40: 3
A41: 1153 | B41: Charlotte Jacobsson | C41: Vaxholm Hsk | D41: 4
A42: 1186 | B42: Christoffer Lindh | C42: Vaxholm Hsk | D42: 4
A43: 1127 | B43: Daniel Becker | C43: Vaxholm Hsk | D43: 4
A44: 1059 | B44: Erik Smiding | C44: Vaxholm Hsk | D44: 4
A45: 1102 | B45: Göran Örjebo | C45: Vaxholm Hsk | D45: 4
A46: 1113 | B46: Heidi Bühlmann | C46: Vaxholm Hsk | D46: 4
A47: 1130 | B47: Jimmy Carlsson | C47: Vaxholm Hsk | D47: 4
A48: 1119 | B48: Johan Ullgren | C48: Vaxholm Hsk | D48: 4
A49: 1029 | B49: Kristian Jältsäter | C49: Vaxholm Hsk | D49: 3
A50: 1090 | B50: Lotta Sundin | C50: Vaxholm Hsk | D50: 4
A51: 1106 | B51: Matthias Zetterlund | C51: Vaxholm Hsk | D51: 4
A52: 1181 | B52: Melker Gundersen | C52: Vaxholm Hsk | D52: m
A53: 1095 | B53: Mikael Klaving | C53: Vaxholm Hsk | D53: 4
A54: 1138 | B54: Pia Brovold | C54: Vaxholm Hsk | D54: 4
A55: 1189 | B55: Sabina Rydberg | C55: Vaxholm Hsk | D55: 4
A56: 1137 | B56: Thomas Diedrichs | C56: Vaxholm Hsk | D56: 4
A57: 1117 | B57: Victor Bengtsson | C57: Vaxholm Hsk | D57: 4
A58: 1180 | B58: Victor Fernandez | C58: Vaxholm Hsk | D58: m
A59: 1179 | B59: William Fernandez | C59: Vaxholm Hsk | D59: m
A60: 1191 | B60: Alice Jältsäter | C60: Vaxholm | D60: m
A61: 1174 | B61: Ebba Strömberg | C61: Vaxholm | D61: m
A62: 1203 | B62: Isabelle Åkesson | C62: Vaxholm | D62: 4
A63: 1195 | B63: Johanna Jacobsson | C63: Vaxholm | D63: 4
A64: 1196 | B64: Karen Jältsäter | C64: Vaxholm | D64: 4
A65: 1193 | B65: Majken Strömberg | C65: Vaxholm | D65: m
A66: 1206 | B66: Nils Brovold | C66: Vaxholm | D66: 4
A67: 1192 | B67: Sofia H | C67: Vaxholm | D67: m
A68: 1142 | B68: Peter Skörd | C68: Täby | D68: 4
A69: 1099 | B69: Anders Bergqvist | C69: Tingsryd Hsc | D69: 4
A70: 1155 | B70: Anne-Marie Larsson | C70: Tingsryd Hsc | D70: 4
A71: 1164 | B71: Christina Holmberg | C71: Tingsryd Hsc | D71: 4
A72: 1069 | B72: Gunnar Lundbeck | C72: Tingsryd Hsc | D72: 4
A73: 1077 | B73: Hasse Johansson | C73: Tingsryd Hsc | D73: 3
A74: 1040 | B74: Janne Johansson | C74: Tingsryd Hsc | D74: 3
A75: 1025 | B75: Johan Johansson | C75: Tingsryd Hsc | D75: 2
A76: 1073 | B76: Laila Johansson | C76: Tingsryd Hsc | D76: 4
A77: 1011 | B77: Lennart Karlsson | C77: Tingsryd Hsc | D77: 2
A78: 1036 | B78: Lisbeth Nygaard-Karlsson | C78: Tingsryd Hsc | D78: 2
A79: 1161 | B79: Robert Johansson | C79: Tingsryd Hsc | D79: 4
A80: 1141 | B80: Roland Sjöstrand | C80: Tingsryd Hsc | D80: 4
A81: 1064 | B81: Åke Bergqvist | C81: Tingsryd Hsc | D81: 3
A82: 1078 | B82: Billy Klarström | C82: Team Småland | D82: 4
A83: 1053 | B83: Jonas Klarström | C83: Team Småland | D83: 4
A84: 1038 | B84: Maria Andersson | C84: Team Småland | D84: 3
A85: 1158 | B85: Mikael Sellén | C85: Team Småland | D85: 4
A86: 1123 | B86: Mats Svensson | C86: Stadslaget | D86: 4
A87: 1149 | B87: Niclas Nyberg | C87: Stadslaget | D87: 4
A88: 1121 | B88: Tomas Röhl | C88: Stadslaget | D88: 4
A89: 1152 | B89: Åse Larsson | C89: Stadslaget | D89: 4
A90: 1118 | B90: Birgit Brown | C90: Sollentuna | D90: 4
A91: 1109 | B91: Scott Brown | C91: Sollentuna | D91: 4
A92: 1074 | B92: Anton Alexandersson | C92: Sibbamåla | D92: 3
A93: 1041 | B93: Carina Gneupel | C93: Sibbamåla | D93: 2
A94: 1075 | B94: Julius Gneupel | C94: Sibbamåla | D94: 4
A95: 1120 | B95: Linnea Gneupel | C95: Sibbamåla | D95: 4
A96: 1083 | B96: Magnus Israelsson | C96: Sibbamåla | D96: 3
A97: 1017 | B97: Matthias Gneupel | C97: Sibbamåla | D97: 1
A98: 1112 | B98: Mikael Grönskog | C98: Sibbamåla | D98: 4
A99: 1035 | B99: Sebastian Israelsson | C99: Sibbamåla | D99: 2
A100: 1009 | B100: Tobias Gneupel | C100: Sibbamåla | D100: 1
A101: 1151 | B101: Alexander Bergström | C101: PBHSPC | D101: 4
A102: 1148 | B102: Carl Sternås | C102: PBHSPC | D102: 4
A103: 1157 | B103: Pontus Karlsson | C103: PBHSPC | D103: 4
A104: 1154 | B104: Pontus Strandell | C104: PBHSPC | D104: 4
A105: 1140 | B105: Sonlard Berglund | C105: PBHSPC | D105: 4
A106: 1168 | B106: Fredrik Nilsson | C106: Linköping Hsk | D106: 4
A107: 1173 | B107: Christer Blomgren | C107: Lanternan | D107: 3
A108: 1085 | B108: Arne Blihd | C108: Lanternan | D108: 4
A109: 1027 | B109: Berndt Pettersson | C109: Lanternan | D109: 2
A110: 1124 | B110: Eva Åkesson | C110: Lanternan | D110: 4
A111: 1050 | B111: Gilbert Pettersson | C111: Lanternan | D111: 3
A112: 1034 | B112: Ingegerd Pettersson | C112: Lanternan | D112: 3
A113: 1088 | B113: Ingegärd Holmqvist | C113: Lanternan | D113: 4
A114: 1093 | B114: Irene Pettersson | C114: Lanternan | D114: 4
A115: 1063 | B115: Jan Petersson | C115: Lanternan | D115: 3
A116: 1135 | B116: Kent Svensson | C116: Lanternan | D116: 4
A117: 1096 | B117: Kjell Åkesson | C117: Lanternan | D117: 4
A118: 1031 | B118: Lars-Erik Ottosson | C118: Lanternan | D118: 3
A119: 1080 | B119: Lisbeth Blihd | C119: Lanternan | D119: 4
A120: 1111 | B120: Roland Andreasson | C120: Lanternan | D120: 4
A121: 1023 | B121: Ronny Lundberg | C121: Lanternan | D121: 2
A122: 1136 | B122: Susanne Simonsson | C122: Lanternan | D122: 4
A123: 1067 | B123: Alf Svensson | C123: Korpen Åseda | D123: 3
A124: 1185 | B124: Bo Trulsson | C124: Korpen Åseda | D124: 4
A125: 1184 | B125: Börje Carlsson | C125: Korpen Åseda | D125: 4
A126: 1024 | B126: Dan Madayang | C126: Korpen Åseda | D126: 2
A127: 1082 | B127: Emil Rehn | C127: Korpen Åseda | D127: 4
A128: 1131 | B128: Erik Isaksson | C128: Korpen Åseda | D128: 4
A129: 1065 | B129: Gebriela Kostantinos | C129: Korpen Åseda | D129: 2
A130: 1004 | B130: Gert Karlsson | C130: Korpen Åseda | D130: 1
A131: 1116 | B131: Joakim Strand | C131: Korpen Åseda | D131: 4
A132: 1003 | B132: Matz Karlsson | C132: Korpen Åseda | D132: 1
A133: 1013 | B133: Tomas Lindahl | C133: Korpen Åseda | D133: 1
A134: 1048 | B134: Bo Petersson | C134: Korpen Nybro | D134: 2
A135: 1028 | B135: Göran Olofsson | C135: Korpen Nybro | D135: 2
A136: 1129 | B136: Kjell Rydh | C136: Korpen Nybro | D136: 4
A137: 1110 | B137: Nisse Hansson | C137: Korpen Nybro | D137: 4
A138: 1162 | B138: Risato Maljanovski | C138: Korpen Nybro | D138: 4
A139: 1019 | B139: Stefan Olofsson | C139: Korpen Nybro | D139: 3
A140: 1100 | B140: Sune Olsson | C140: Korpen Nybro | D140: 3
A141: 1169 | B141: Sune Andersson | C141: Jämjö Hsk | D141: 4
A142: 1054 | B142: Astrid Martinez | C142: Jämjö Hsk | D142: 4
A143: 1061 | B143: Bernt Olsson | C143: Jämjö Hsk | D143: 3
A144: 1055 | B144: Daniel Mårtensson | C144: Jämjö Hsk | D144: 3
A145: 1057 | B145: Ewa Malmqvist | C145: Jämjö Hsk | D145: 2
A146: 1032 | B146: Göran Mårtensson | C146: Jämjö Hsk | D146: 3
A147: 1103 | B147: Hanna Karlberg | C147: Jämjö Hsk | D147: 4
A148: 1046 | B148: Hernan Hernandez | C148: Jämjö Hsk | D148: 3
A149: 1062 | B149: Inge Skoglöv | C149: Jämjö Hsk | D149: 3
A150: 1108 | B150: Keyri Hernandez | C150: Jämjö Hsk | D150: 4
A151: 1060 | B151: Lars Johannesson | C151: Jämjö Hsk | D151: 4
A152: 1097 | B152: Marcus Karlsson | C152: Jämjö Hsk | D152: 3
A153: 1086 | B153: Marianne Karlsson | C153: Jämjö Hsk | D153: 4
A154: 1030 | B154: Mathias Karlberg | C154: Jämjö Hsk | D154: 3
A155: 1070 | B155: Mats Mårtensson | C155: Jämjö Hsk | D155: 3
A156: 1178 | B156: Saga Karlberg | C156: Jämjö Hsk | D156: m
A157: 1144 | B157: Saga Karlberg | C157: Jämjö Hsk | D157: m
A158: 1115 | B158: Anders Johansson | C158: Dynapac Hsc | D158: 4
A159: 1014 | B159: Anitha Fabbeke | C159: Dynapac Hsc | D159: 1
A160: 1037 | B160: Bengt Fabbeke | C160: Dynapac Hsc | D160: 3
A161: 1167 | B161: Dennis Bern | C161: Dynapac Hsc | D161: 4
A162: 1045 | B162: Elin Olsson | C162: Dynapac Hsc | D162: 3
A163: 1047 | B163: Louise Tollstam | C163: Dynapac Hsc | D163: 3
A164: 1092 | B164: Lukas Bern | C164: Dynapac Hsc | D164: 3
A165: 1044 | B165: Mattias Olsson | C165: Dynapac Hsc | D165: 2
A166: 1105 | B166: Morgan Athle | C166: Dynapac Hsc | D166: 4
A167: 1021 | B167: Olle Ottosson | C167: Dynapac Hsc | D167: 1
A168: 1104 | B168: Per-Olof Johansson | C168: Dynapac Hsc | D168: 4
A169: 1134 | B169: Peter Edlund | C169: Dynapac Hsc | D169: 3
A170: 1008 | B170: Peter Olsson | C170: Dynapac Hsc | D170: 1
A171: 1052 | B171: Roy Dahlén | C171: Dynapac Hsc | D171: 2
A172: 1150 | B172: Salli Fransson | C172: Dynapac Hsc | D172: 4
A173: 1172 | B173: Stefan Tollstam | C173: Dynapac Hsc | D173: 3
A174: 1125 | B174: Danny Borgström | C174: Carlskrona Hsc | D174: 4
A175: 1005 | B175: Ingvar Eriksson | C175: Carlskrona Hsc | D175: 1
A176: 1016 | B176: Joel Sundahl | C176: Carlskrona Hsc | D176: 1
A177: 1000 | B177: Kent Sundahl | C177: Carlskrona Hsc | D177: 1
A178: 1071 | B178: Leif Sundahl | C178: Carlskrona Hsc | D178: 3
A179: 1006 | B179: Leo Andersson | C179: Carlskrona Hsc | D179: 1
A180: 1128 | B180: Mona Andersson | C180: Carlskrona Hsc | D180: 4
A181: 1015 | B181: Natalie Sundahl | C181: Carlskrona Hsc | D181: 2
A182: 1107 | B182: Tony Borgström | C182: Carlskrona Hsc | D182: 4
A183: 1156 | B183: Anders Möller | C183: Balders HSK | D183: 4
A184: 1145 | B184: Christoffer Lovén | C184: Balders HSK | D184: 4
A185: 1201 | B185: Fredrik Sandelius | C185: Balders HSK | D185: 3
A186: 1049 | B186: Henrik Fresk | C186: Balders HSK | D186: 4
A187: 1098 | B187: Janne Pettersson | C187: Balders Hsk | D187: 4
A188: 1165 | B188: Jarita Fredriksson Väre | C188: Balders Hsk | D188: 4
A189: 1170 | B189: Jean Fredriksson Väre | C189: Balders Hsk | D189: 4
A190: 1160 | B190: Johanna Hagerman | C190: Balders HSK | D190: 4
A191: 1133 | B191: Jonas Bergqvist | C191: Balders HSK | D191: 4
A192: 1076 | B192: Jonny Åberg | C192: Balders HSK | D192: 4
A193: 1089 | B193: Lars Eriksson | C193: Balders HSK | D193: 4
A194: 1146 | B194: Magnus Hagerman | C194: Balders HSK | D194: 4
A195: 1143 | B195: Malin Löwberg | C195: Balders Hsk | D195: 4
A196: 1171 | B196: Malira Eriksson | C196: Balders HSK | D196: 4
A197: 1066 | B197: Martin Anjou | C197: Balders HSK | D197: 4
A198: 1190 | B198: Martin Smeds | C198: Balders HSK | D198: 4
A199: 1087 | B199: Olle Lowen | C199: Balders HSK | D199: m
A200: 1194 | B200: Pascal Letter | C200: Balders HSK | D200: 3
... 101 more rows

Sheet Lag
A1: Kod | B1: Lag
A2: 100 | B2: Dynapac Hsc 1
A3: 101 | B3: Korpen Åseda 1
A4: 102 | B4: Carlskrona Hsc 1
A5: 103 | B5: Växjö Hsk 1
A6: 104 | B6: Sibbamåla if 1
A7: 105 | B7: Växjö Hsk 2
A8: 106 | B8: Tingsryd Hsc 1
A9: 107 | B9: Dynapac Hsc 2
A10: 108 | B10: Jämjö Hsk 2
A11: 109 | B11: Vaxholm Hsk 1
A12: 110 | B12: Sibbamåla if 2
A13: 111 | B13: Lanternan 1
A14: 112 | B14: Värends Hsk 1
A15: 113 | B15: Vaxholm Hsk 2
A16: 114 | B16: Korpen Nybro 1
A17: 115 | B17: Balders Hsk 1
A18: 116 | B18: Carlskrona Hsc 2
A19: 117 | B19: Lanternan 2
A20: 118 | B20: Jämjö Hsk 1
A21: 119 | B21: Växjö Hsk 3
A22: 120 | B22: Tingsryd Hsc 2
A23: 121 | B23: Balders Hsk 2
A24: 122 | B24: Stadslaget
A25: 123 | B25: Balders Hsk 3
A26: 124 | B26: Team Småland
A27: 125 | B27: Teachers Pets
A28: 126 | B28: PBHSPC
A29: 127 | B29: Jämjö Hsk 3
A30: 128 | B30: Lanternan 3
A31: 129 | B31: Korpen Åseda 2
A32: 130 | B32: JINK
A33: 131 | B33: Athleterna
A34: 132 | B34: Vaxö Skola
A35: 133 | B35: Viby HS
A36: 134 | B36: Balders Hsk 4
A37: 135 | B37: Balders Hsk 5
A38: 136 | B38: Värends Hsk 2
A39: 137 | B39: Belfrage Bygg
A40: 138 | B40: Vaxholm Hsk 3
A41: 139
A42: 140

Sheet Sortering
A1: Datum för
A2: uppdatering
A3: SLUTSTÄLLNING
A5: Tabeller som
A6: skall
A7: uppdateras
A8: Sverigeranking
A9: Miniorranking
A10: Lagranking
A11: Bonusjakten
A12: Klass 1
A13: Klass 2
A14: Klass 3
A15: Klass 4 | B15: x

Sheet Sverigeranking
B1: Svenska Hästskokastarförbundets Sverigeranking
B2: Säsong 2021 / 2022 | C2: SLUTSTÄLLNING | F2: Deltagare | I2: =COUNTIF(I4:I400,">0")+(Miniorranking!I2) -> 0 | J2: =COUNTIF(J4:J400,">0")+(Miniorranking!J2) -> 0 | K2: =COUNTIF(K4:K400,">0")+(Miniorranking!K2) -> 0 | L2: =COUNTIF(L4:L400,">0")+(Miniorranking!L2) -> 92 | M2: =COUNTIF(M4:M400,">0")+(Miniorranking!M2) -> 87 | N2: =COUNTIF(N4:N400,">0")+(Miniorranking!N2) -> 39 | O2: =COUNTIF(O4:O400,">0")+(Miniorranking!O2) -> 49 | P2: =COUNTIF(P4:P400,">0")+(Miniorranking!P2) -> 0 | Q2: =COUNTIF(Q4:Q400,">0")+(Miniorranking!Q2) -> 31 | R2: =COUNTIF(R4:R400,">0")+(Miniorranking!R2) -> 40 | S2: =COUNTIF(S4:S400,">0")+(Miniorranking!S2) -> 20 | T2: =COUNTIF(T4:T400,">0")+(Miniorranking!T2) -> 59 | U2: =COUNTIF(U4:U400,">0")+(Miniorranking!U2) -> 57 | V2: =COUNTIF(V4:V400,">0")+(Miniorranking!V2) -> 62 | W2: =COUNTIF(W4:W400,">0")+(Miniorranking!W2) -> 58 | X2: =COUNTIF(X4:X400,">0")+(Miniorranking!X2) -> 42 | Y2: =COUNTIF(Y4:Y400,">0")+(Miniorranking!Y2) -> 78 | Z2: =COUNTIF(Z4:Z400,">0")+(Miniorranking!Z2) -> 0 | AA2: =COUNTIF(AA4:AA400,">0")+(Miniorranking!AA2) -> 29 | AB2: =COUNTIF(AB4:AB400,">0")+(Miniorranking!AB2) -> 26 | AC2: =COUNTIF(AC4:AC400,">0")+(Miniorranking!AC2) -> 63 | AD2: =COUNTIF(AD4:AD400,">0")+(Miniorranking!AD2) -> 0
A3: Plac. | B3: Kastare | C3: Klubb | D3: Rankingpoäng | F3: Antal tävlingar | G3: Snitt per serie | I3: ='Jämjö Open'!$B$1 -> Jämjö Open | J3: ='Viby Open'!$B$1 -> Viby Open | K3: ='Björkenäs Open'!$B$1 -> Björkenäs Open | L3: ='SM ute Lö'!$B$1 -> SM ute Lö | M3: ='SM ute Sö'!$B$1 -> SM ute Sö | N3: ='Roslagen Open'!$B$1 -> Roslagen Open | O3: ='Vaxholm Open'!$B$1 -> Vaxholm Open | P3: ='Dynapac Open'!$B$1 -> Dynapac Open | Q3: ='SmålandsDM ute'!$B$1 -> SmålandsDM ute | R3: ='BlekingeDM ute'!$B$1 -> BlekingeDM ute | S3: ='StockholmsDM ute'!$B$1 -> StockholmsDM ute | T3: ='Åseda Open'!$B$1 -> Åseda Open | U3: =Höstskon!$B$1 -> Höstskon | V3: ='Carlskrona Cup'!$B$1 -> Carlskrona Cup | W3: ='Sibbamåla Open'!$B$1 -> Sibbamåla Open | X3: ='Vaxholm Indoor'!$B$1 -> Vaxholm Indoor | Y3: ='SM inne 2022'!$B$1 -> SM inne 2022 | Z3: ='SmålandsDM inne'!$B$1 -> SmålandsDM inne | AA3: ='BlekingeDM inne'!$B$1 -> BlekingeDM inne | AB3: ='StockholmsDM inne'!$B$1 -> StockholmsDM inne | AC3: =Värendspokalen!$B$1 -> Värendspokalen | AD3: ='Tingsryd Open'!$B$1 -> Tingsryd Open | AF3: Kod
A4: 1 | B4: Kent Sundahl | C4: Carlskrona Hsc | D4: =IF(B4="",0,IF($F4>0,LARGE($I4:$AD4,1),"")+IF($F4>0,LARGE($I4:$AD4,2),"")+IF($F4>0,LARGE($I4:$AD4,3),"")+IF($F4>0,LARGE($I4:$AD4,4),"")+IF($F4>0,LARGE($I4:$AD4,5),"")+IF($F4>0,LARGE($I4:$AD4,6),"")+IF($F4>0,LARGE($I4:$AD4,7),"")+IF($F4>0,LARGE($I4:$AD4,8),"")+IF($F4>0,LARGE($I4:$AD4,9),"")+IF($F4>0,LARGE($I4:$AD4,10),"")+IF($F4>0,LARGE($I4:$AD4,11),"")+IF($F4>0,LARGE($I4:$AD4,12),"")) -> 4013 | F4: =COUNTIF(I4:AD4,">0") -> 12 | G4: =IF(F4=0,"",SUM(D4)/(F4*2)) -> 167.2083333 | I4: =IF(AF4="","",SUMIF('Jämjö Open'!U$4:U$400,AF4,'Jämjö Open'!P$4:P$400)) -> 0 | J4: =IF(AF4="","",SUMIF('Viby Open'!U$4:U$400,AF4,'Viby Open'!P$4:P$400)) -> 0 | K4: =IF(AF4="","",SUMIF('Björkenäs Open'!U$4:U$400,AF4,'Björkenäs Open'!P$4:P$400)) -> 0 | L4: =IF(AF4="","",SUMIF('SM ute Lö'!U$4:U$400,AF4,'SM ute Lö'!P$4:P$400)) -> 238 | M4: =IF(AF4="","",SUMIF('SM ute Sö'!U$4:U$401,AF4,'SM ute Sö'!P$4:P$401)) -> 426 | N4: =IF(AF4="","",SUMIF('Roslagen Open'!U$4:U$400,AF4,'Roslagen Open'!P$4:P$400)) -> 330 | O4: =IF(AF4="","",SUMIF('Vaxholm Open'!U$4:U$400,AF4,'Vaxholm Open'!P$4:P$400)) -> 285 | P4: =IF(AF4="","",SUMIF('Dynapac Open'!U$4:U$400,AF4,'Dynapac Open'!P$4:P$400)) -> 0 | Q4: =IF(AF4="","",SUMIF('SmålandsDM ute'!U$4:U$400,AF4,'SmålandsDM ute'!P$4:P$400)) -> 0 | R4: =IF(AF4="","",SUMIF('BlekingeDM ute'!U$4:U$400,AF4,'BlekingeDM ute'!P$4:P$400)) -> 392 | S4: =IF(AF4="","",SUMIF('StockholmsDM ute'!U$4:U$400,AF4,'StockholmsDM ute'!P$4:P$400)) -> 0 | T4: =IF(AF4="","",SUMIF('Åseda Open'!U$4:U$406,AF4,'Åseda Open'!P$4:P$406)) -> 360 | U4: =IF(AF4="","",SUMIF(Höstskon!U$4:U$400,AF4,Höstskon!P$4:P$400)) -> 306 | V4: =IF(AF4="","",SUMIF('Carlskrona Cup'!U$4:U$400,AF4,'Carlskrona Cup'!P$4:P$400)) -> 388 | W4: =IF(AF4="","",SUMIF('Sibbamåla Open'!U$4:U$400,AF4,'Sibbamåla Open'!P$4:P$400)) -> 372 | X4: =IF(AF4="","",SUMIF('Vaxholm Indoor'!U$4:U$400,AF4,'Vaxholm Indoor'!P$4:P$400)) -> 240 | Y4: =IF(AF4="","",SUMIF('SM inne 2022'!U$4:U$400,AF4,'SM inne 2022'!P$4:P$400)) -> 346 | Z4: =IF(AF4="","",SUMIF('SmålandsDM inne'!U$4:U$400,AF4,'SmålandsDM inne'!P$4:P$400)) -> 0 | AA4: =IF(AF4="","",SUMIF('BlekingeDM inne'!U$4:U$400,AF4,'BlekingeDM inne'!P$4:P$400)) -> 0 | AB4: =IF(AF4="","",SUMIF('StockholmsDM inne'!U$4:U$400,AF4,'StockholmsDM inne'!P$4:P$400)) -> 0 | AC4: =IF(AF4="","",SUMIF(Värendspokalen!U$4:U$400,AF4,Värendspokalen!P$4:P$400)) -> 330 | AD4: =IF(AF4="","",SUMIF('Tingsryd Open'!U$4:U$400,AF4,'Tingsryd Open'!P$4:P$400)) -> 0 | AF4: =IF(B4="","",SUMIF(Kastare!B$2:B$2999,B4,Kastare!A$2:A$2999)) -> 1000
A5: =IF(B5="","",IF(D5<D4,ROW(2:2),A4)) -> 2 | B5: Sandor Bodi | C5: Växjö Hsk | D5: 3980 | F5: 11 | G5: 180.9090909 | I5: =IF(AF5="","",SUMIF('Jämjö Open'!U$4:U$400,AF5,'Jämjö Open'!P$4:P$400)) -> 0 | J5: =IF(AF5="","",SUMIF('Viby Open'!U$4:U$400,AF5,'Viby Open'!P$4:P$400)) -> 0 | K5: =IF(AF5="","",SUMIF('Björkenäs Open'!U$4:U$400,AF5,'Björkenäs Open'!P$4:P$400)) -> 0 | L5: =IF(AF5="","",SUMIF('SM ute Lö'!U$4:U$400,AF5,'SM ute Lö'!P$4:P$400)) -> 315 | M5: =IF(AF5="","",SUMIF('SM ute Sö'!U$4:U$401,AF5,'SM ute Sö'!P$4:P$401)) -> 409 | N5: =IF(AF5="","",SUMIF('Roslagen Open'!U$4:U$400,AF5,'Roslagen Open'!P$4:P$400)) -> 340 | O5: =IF(AF5="","",SUMIF('Vaxholm Open'!U$4:U$400,AF5,'Vaxholm Open'!P$4:P$400)) -> 383 | P5: =IF(AF5="","",SUMIF('Dynapac Open'!U$4:U$400,AF5,'Dynapac Open'!P$4:P$400)) -> 0 | Q5: =IF(AF5="","",SUMIF('SmålandsDM ute'!U$4:U$400,AF5,'SmålandsDM ute'!P$4:P$400)) -> 398 | R5: =IF(AF5="","",SUMIF('BlekingeDM ute'!U$4:U$400,AF5,'BlekingeDM ute'!P$4:P$400)) -> 0 | S5: =IF(AF5="","",SUMIF('StockholmsDM ute'!U$4:U$400,AF5,'StockholmsDM ute'!P$4:P$400)) -> 0 | T5: =IF(AF5="","",SUMIF('Åseda Open'!U$4:U$406,AF5,'Åseda Open'!P$4:P$406)) -> 381 | U5: =IF(AF5="","",SUMIF(Höstskon!U$4:U$400,AF5,Höstskon!P$4:P$400)) -> 305 | V5: =IF(AF5="","",SUMIF('Carlskrona Cup'!U$4:U$400,AF5,'Carlskrona Cup'!P$4:P$400)) -> 408 | W5: =IF(AF5="","",SUMIF('Sibbamåla Open'!U$4:U$400,AF5,'Sibbamåla Open'!P$4:P$400)) -> 352 | X5: =IF(AF5="","",SUMIF('Vaxholm Indoor'!U$4:U$400,AF5,'Vaxholm Indoor'!P$4:P$400)) -> 0 | Y5: =IF(AF5="","",SUMIF('SM inne 2022'!U$4:U$400,AF5,'SM inne 2022'!P$4:P$400)) -> 352 | Z5: =IF(AF5="","",SUMIF('SmålandsDM inne'!U$4:U$400,AF5,'SmålandsDM inne'!P$4:P$400)) -> 0 | AA5: =IF(AF5="","",SUMIF('BlekingeDM inne'!U$4:U$400,AF5,'BlekingeDM inne'!P$4:P$400)) -> 0 | AB5: =IF(AF5="","",SUMIF('StockholmsDM inne'!U$4:U$400,AF5,'StockholmsDM inne'!P$4:P$400)) -> 0 | AC5: =IF(AF5="","",SUMIF(Värendspokalen!U$4:U$400,AF5,Värendspokalen!P$4:P$400)) -> 337 | AD5: =IF(AF5="","",SUMIF('Tingsryd Open'!U$4:U$400,AF5,'Tingsryd Open'!P$4:P$400)) -> 0 | AF5: =IF(B5="","",SUMIF(Kastare!B$2:B$2999,B5,Kastare!A$2:A$2999)) -> 1001
A6: 3 | B6: Sandra Widlund | C6: Växjö Hsk | D6: 3287 | F6: 9 | G6: 182.6111111 | I6: =IF(AF6="","",SUMIF('Jämjö Open'!U$4:U$400,AF6,'Jämjö Open'!P$4:P$400)) -> 0 | J6: =IF(AF6="","",SUMIF('Viby Open'!U$4:U$400,AF6,'Viby Open'!P$4:P$400)) -> 0 | K6: =IF(AF6="","",SUMIF('Björkenäs Open'!U$4:U$400,AF6,'Björkenäs Open'!P$4:P$400)) -> 0 | L6: =IF(AF6="","",SUMIF('SM ute Lö'!U$4:U$400,AF6,'SM ute Lö'!P$4:P$400)) -> 355 | M6: =IF(AF6="","",SUMIF('SM ute Sö'!U$4:U$401,AF6,'SM ute Sö'!P$4:P$401)) -> 298 | N6: =IF(AF6="","",SUMIF('Roslagen Open'!U$4:U$400,AF6,'Roslagen Open'!P$4:P$400)) -> 0 | O6: =IF(AF6="","",SUMIF('Vaxholm Open'!U$4:U$400,AF6,'Vaxholm Open'!P$4:P$400)) -> 0 | P6: =IF(AF6="","",SUMIF('Dynapac Open'!U$4:U$400,AF6,'Dynapac Open'!P$4:P$400)) -> 0 | Q6: =IF(AF6="","",SUMIF('SmålandsDM ute'!U$4:U$400,AF6,'SmålandsDM ute'!P$4:P$400)) -> 389 | R6: =IF(AF6="","",SUMIF('BlekingeDM ute'!U$4:U$400,AF6,'BlekingeDM ute'!P$4:P$400)) -> 0 | S6: =IF(AF6="","",SUMIF('StockholmsDM ute'!U$4:U$400,AF6,'StockholmsDM ute'!P$4:P$400)) -> 0 | T6: =IF(AF6="","",SUMIF('Åseda Open'!U$4:U$406,AF6,'Åseda Open'!P$4:P$406)) -> 352 | U6: =IF(AF6="","",SUMIF(Höstskon!U$4:U$400,AF6,Höstskon!P$4:P$400)) -> 398 | V6: =IF(AF6="","",SUMIF('Carlskrona Cup'!U$4:U$400,AF6,'Carlskrona Cup'!P$4:P$400)) -> 413 | W6: =IF(AF6="","",SUMIF('Sibbamåla Open'!U$4:U$400,AF6,'Sibbamåla Open'!P$4:P$400)) -> 341 | X6: =IF(AF6="","",SUMIF('Vaxholm Indoor'!U$4:U$400,AF6,'Vaxholm Indoor'!P$4:P$400)) -> 0 | Y6: =IF(AF6="","",SUMIF('SM inne 2022'!U$4:U$400,AF6,'SM inne 2022'!P$4:P$400)) -> 356 | Z6: =IF(AF6="","",SUMIF('SmålandsDM inne'!U$4:U$400,AF6,'SmålandsDM inne'!P$4:P$400)) -> 0 | AA6: =IF(AF6="","",SUMIF('BlekingeDM inne'!U$4:U$400,AF6,'BlekingeDM inne'!P$4:P$400)) -> 0 | AB6: =IF(AF6="","",SUMIF('StockholmsDM inne'!U$4:U$400,AF6,'StockholmsDM inne'!P$4:P$400)) -> 0 | AC6: =IF(AF6="","",SUMIF(Värendspokalen!U$4:U$400,AF6,Värendspokalen!P$4:P$400)) -> 385 | AD6: =IF(AF6="","",SUMIF('Tingsryd Open'!U$4:U$400,AF6,'Tingsryd Open'!P$4:P$400)) -> 0 | AF6: =IF(B6="","",SUMIF(Kastare!B$2:B$2999,B6,Kastare!A$2:A$2999)) -> 1002
A7: 4 | B7: Ingvar Eriksson | C7: Carlskrona Hsc | D7: 3159 | F7: 10 | G7: 157.95 | I7: =IF(AF7="","",SUMIF('Jämjö Open'!U$4:U$400,AF7,'Jämjö Open'!P$4:P$400)) -> 0 | J7: =IF(AF7="","",SUMIF('Viby Open'!U$4:U$400,AF7,'Viby Open'!P$4:P$400)) -> 0 | K7: =IF(AF7="","",SUMIF('Björkenäs Open'!U$4:U$400,AF7,'Björkenäs Open'!P$4:P$400)) -> 0 | L7: =IF(AF7="","",SUMIF('SM ute Lö'!U$4:U$400,AF7,'SM ute Lö'!P$4:P$400)) -> 229 | M7: =IF(AF7="","",SUMIF('SM ute Sö'!U$4:U$401,AF7,'SM ute Sö'!P$4:P$401)) -> 342 | N7: =IF(AF7="","",SUMIF('Roslagen Open'!U$4:U$400,AF7,'Roslagen Open'!P$4:P$400)) -> 0 | O7: =IF(AF7="","",SUMIF('Vaxholm Open'!U$4:U$400,AF7,'Vaxholm Open'!P$4:P$400)) -> 0 | P7: =IF(AF7="","",SUMIF('Dynapac Open'!U$4:U$400,AF7,'Dynapac Open'!P$4:P$400)) -> 0 | Q7: =IF(AF7="","",SUMIF('SmålandsDM ute'!U$4:U$400,AF7,'SmålandsDM ute'!P$4:P$400)) -> 0 | R7: =IF(AF7="","",SUMIF('BlekingeDM ute'!U$4:U$400,AF7,'BlekingeDM ute'!P$4:P$400)) -> 297 | S7: =IF(AF7="","",SUMIF('StockholmsDM ute'!U$4:U$400,AF7,'StockholmsDM ute'!P$4:P$400)) -> 0 | T7: =IF(AF7="","",SUMIF('Åseda Open'!U$4:U$406,AF7,'Åseda Open'!P$4:P$406)) -> 289 | U7: =IF(AF7="","",SUMIF(Höstskon!U$4:U$400,AF7,Höstskon!P$4:P$400)) -> 241 | V7: =IF(AF7="","",SUMIF('Carlskrona Cup'!U$4:U$400,AF7,'Carlskrona Cup'!P$4:P$400)) -> 359 | W7: =IF(AF7="","",SUMIF('Sibbamåla Open'!U$4:U$400,AF7,'Sibbamåla Open'!P$4:P$400)) -> 393 | X7: =IF(AF7="","",SUMIF('Vaxholm Indoor'!U$4:U$400,AF7,'Vaxholm Indoor'!P$4:P$400)) -> 288 | Y7: =IF(AF7="","",SUMIF('SM inne 2022'!U$4:U$400,AF7,'SM inne 2022'!P$4:P$400)) -> 382 | Z7: =IF(AF7="","",SUMIF('SmålandsDM inne'!U$4:U$400,AF7,'SmålandsDM inne'!P$4:P$400)) -> 0 | AA7: =IF(AF7="","",SUMIF('BlekingeDM inne'!U$4:U$400,AF7,'BlekingeDM inne'!P$4:P$400)) -> 0 | AB7: =IF(AF7="","",SUMIF('StockholmsDM inne'!U$4:U$400,AF7,'StockholmsDM inne'!P$4:P$400)) -> 0 | AC7: =IF(AF7="","",SUMIF(Värendspokalen!U$4:U$400,AF7,Värendspokalen!P$4:P$400)) -> 339 | AD7: =IF(AF7="","",SUMIF('Tingsryd Open'!U$4:U$400,AF7,'Tingsryd Open'!P$4:P$400)) -> 0 | AF7: =IF(B7="","",SUMIF(Kastare!B$2:B$2999,B7,Kastare!A$2:A$2999)) -> 1005
A8: 5 | B8: Gert Karlsson | C8: Korpen Åseda | D8: 3142 | F8: 11 | G8: 142.8181818 | I8: =IF(AF8="","",SUMIF('Jämjö Open'!U$4:U$400,AF8,'Jämjö Open'!P$4:P$400)) -> 0 | J8: =IF(AF8="","",SUMIF('Viby Open'!U$4:U$400,AF8,'Viby Open'!P$4:P$400)) -> 0 | K8: =IF(AF8="","",SUMIF('Björkenäs Open'!U$4:U$400,AF8,'Björkenäs Open'!P$4:P$400)) -> 0 | L8: =IF(AF8="","",SUMIF('SM ute Lö'!U$4:U$400,AF8,'SM ute Lö'!P$4:P$400)) -> 290 | M8: =IF(AF8="","",SUMIF('SM ute Sö'!U$4:U$401,AF8,'SM ute Sö'!P$4:P$401)) -> 221 | N8: =IF(AF8="","",SUMIF('Roslagen Open'!U$4:U$400,AF8,'Roslagen Open'!P$4:P$400)) -> 218 | O8: =IF(AF8="","",SUMIF('Vaxholm Open'!U$4:U$400,AF8,'Vaxholm Open'!P$4:P$400)) -> 288 | P8: =IF(AF8="","",SUMIF('Dynapac Open'!U$4:U$400,AF8,'Dynapac Open'!P$4:P$400)) -> 0 | Q8: =IF(AF8="","",SUMIF('SmålandsDM ute'!U$4:U$400,AF8,'SmålandsDM ute'!P$4:P$400)) -> 222 | R8: =IF(AF8="","",SUMIF('BlekingeDM ute'!U$4:U$400,AF8,'BlekingeDM ute'!P$4:P$400)) -> 0 | S8: =IF(AF8="","",SUMIF('StockholmsDM ute'!U$4:U$400,AF8,'StockholmsDM ute'!P$4:P$400)) -> 0 | T8: =IF(AF8="","",SUMIF('Åseda Open'!U$4:U$406,AF8,'Åseda Open'!P$4:P$406)) -> 273 | U8: =IF(AF8="","",SUMIF(Höstskon!U$4:U$400,AF8,Höstskon!P$4:P$400)) -> 437 | V8: =IF(AF8="","",SUMIF('Carlskrona Cup'!U$4:U$400,AF8,'Carlskrona Cup'!P$4:P$400)) -> 361 | W8: =IF(AF8="","",SUMIF('Sibbamåla Open'!U$4:U$400,AF8,'Sibbamåla Open'!P$4:P$400)) -> 294 | X8: =IF(AF8="","",SUMIF('Vaxholm Indoor'!U$4:U$400,AF8,'Vaxholm Indoor'!P$4:P$400)) -> 0 | Y8: =IF(AF8="","",SUMIF('SM inne 2022'!U$4:U$400,AF8,'SM inne 2022'!P$4:P$400)) -> 270 | Z8: =IF(AF8="","",SUMIF('SmålandsDM inne'!U$4:U$400,AF8,'SmålandsDM inne'!P$4:P$400)) -> 0 | AA8: =IF(AF8="","",SUMIF('BlekingeDM inne'!U$4:U$400,AF8,'BlekingeDM inne'!P$4:P$400)) -> 0 | AB8: =IF(AF8="","",SUMIF('StockholmsDM inne'!U$4:U$400,AF8,'StockholmsDM inne'!P$4:P$400)) -> 0 | AC8: =IF(AF8="","",SUMIF(Värendspokalen!U$4:U$400,AF8,Värendspokalen!P$4:P$400)) -> 268 | AD8: =IF(AF8="","",SUMIF('Tingsryd Open'!U$4:U$400,AF8,'Tingsryd Open'!P$4:P$400)) -> 0 | AF8: =IF(B8="","",SUMIF(Kastare!B$2:B$2999,B8,Kastare!A$2:A$2999)) -> 1004
A9: 6 | B9: Peter Olsson | C9: Dynapac Hsc | D9: 3054 | F9: 10 | G9: 152.7 | I9: =IF(AF9="","",SUMIF('Jämjö Open'!U$4:U$400,AF9,'Jämjö Open'!P$4:P$400)) -> 0 | J9: =IF(AF9="","",SUMIF('Viby Open'!U$4:U$400,AF9,'Viby Open'!P$4:P$400)) -> 0 | K9: =IF(AF9="","",SUMIF('Björkenäs Open'!U$4:U$400,AF9,'Björkenäs Open'!P$4:P$400)) -> 0 | L9: =IF(AF9="","",SUMIF('SM ute Lö'!U$4:U$400,AF9,'SM ute Lö'!P$4:P$400)) -> 288 | M9: =IF(AF9="","",SUMIF('SM ute Sö'!U$4:U$401,AF9,'SM ute Sö'!P$4:P$401)) -> 103 | N9: =IF(AF9="","",SUMIF('Roslagen Open'!U$4:U$400,AF9,'Roslagen Open'!P$4:P$400)) -> 0 | O9: =IF(AF9="","",SUMIF('Vaxholm Open'!U$4:U$400,AF9,'Vaxholm Open'!P$4:P$400)) -> 0 | P9: =IF(AF9="","",SUMIF('Dynapac Open'!U$4:U$400,AF9,'Dynapac Open'!P$4:P$400)) -> 0 | Q9: =IF(AF9="","",SUMIF('SmålandsDM ute'!U$4:U$400,AF9,'SmålandsDM ute'!P$4:P$400)) -> 0 | R9: =IF(AF9="","",SUMIF('BlekingeDM ute'!U$4:U$400,AF9,'BlekingeDM ute'!P$4:P$400)) -> 347 | S9: =IF(AF9="","",SUMIF('StockholmsDM ute'!U$4:U$400,AF9,'StockholmsDM ute'!P$4:P$400)) -> 0 | T9: =IF(AF9="","",SUMIF('Åseda Open'!U$4:U$406,AF9,'Åseda Open'!P$4:P$406)) -> 379 | U9: =IF(AF9="","",SUMIF(Höstskon!U$4:U$400,AF9,Höstskon!P$4:P$400)) -> 339 | V9: =IF(AF9="","",SUMIF('Carlskrona Cup'!U$4:U$400,AF9,'Carlskrona Cup'!P$4:P$400)) -> 371 | W9: =IF(AF9="","",SUMIF('Sibbamåla Open'!U$4:U$400,AF9,'Sibbamåla Open'!P$4:P$400)) -> 428 | X9: =IF(AF9="","",SUMIF('Vaxholm Indoor'!U$4:U$400,AF9,'Vaxholm Indoor'!P$4:P$400)) -> 0 | Y9: =IF(AF9="","",SUMIF('SM inne 2022'!U$4:U$400,AF9,'SM inne 2022'!P$4:P$400)) -> 343 | Z9: =IF(AF9="","",SUMIF('SmålandsDM inne'!U$4:U$400,AF9,'SmålandsDM inne'!P$4:P$400)) -> 0 | AA9: =IF(AF9="","",SUMIF('BlekingeDM inne'!U$4:U$400,AF9,'BlekingeDM inne'!P$4:P$400)) -> 266 | AB9: =IF(AF9="","",SUMIF('StockholmsDM inne'!U$4:U$400,AF9,'StockholmsDM inne'!P$4:P$400)) -> 0 | AC9: =IF(AF9="","",SUMIF(Värendspokalen!U$4:U$400,AF9,Värendspokalen!P$4:P$400)) -> 190 | AD9: =IF(AF9="","",SUMIF('Tingsryd Open'!U$4:U$400,AF9,'Tingsryd Open'!P$4:P$400)) -> 0 | AF9: =IF(B9="","",SUMIF(Kastare!B$2:B$2999,B9,Kastare!A$2:A$2999)) -> 1008
A10: 7 | B10: Jean Fredriksson Väre | C10: Balders Hsk | D10: 2899 | F10: 9 | G10: 161.0555556 | I10: =IF(AF10="","",SUMIF('Jämjö Open'!U$4:U$400,AF10,'Jämjö Open'!P$4:P$400)) -> 0 | J10: =IF(AF10="","",SUMIF('Viby Open'!U$4:U$400,AF10,'Viby Open'!P$4:P$400)) -> 0 | K10: =IF(AF10="","",SUMIF('Björkenäs Open'!U$4:U$400,AF10,'Björkenäs Open'!P$4:P$400)) -> 0 | L10: =IF(AF10="","",SUMIF('SM ute Lö'!U$4:U$400,AF10,'SM ute Lö'!P$4:P$400)) -> 307 | M10: =IF(AF10="","",SUMIF('SM ute Sö'!U$4:U$401,AF10,'SM ute Sö'!P$4:P$401)) -> 362 | N10: =IF(AF10="","",SUMIF('Roslagen Open'!U$4:U$400,AF10,'Roslagen Open'!P$4:P$400)) -> 281 | O10: =IF(AF10="","",SUMIF('Vaxholm Open'!U$4:U$400,AF10,'Vaxholm Open'!P$4:P$400)) -> 316 | P10: =IF(AF10="","",SUMIF('Dynapac Open'!U$4:U$400,AF10,'Dynapac Open'!P$4:P$400)) -> 0 | Q10: =IF(AF10="","",SUMIF('SmålandsDM ute'!U$4:U$400,AF10,'SmålandsDM ute'!P$4:P$400)) -> 0 | R10: =IF(AF10="","",SUMIF('BlekingeDM ute'!U$4:U$400,AF10,'BlekingeDM ute'!P$4:P$400)) -> 0 | S10: =IF(AF10="","",SUMIF('StockholmsDM ute'!U$4:U$400,AF10,'StockholmsDM ute'!P$4:P$400)) -> 319 | T10: =IF(AF10="","",SUMIF('Åseda Open'!U$4:U$406,AF10,'Åseda Open'!P$4:P$406)) -> 0 | U10: =IF(AF10="","",SUMIF(Höstskon!U$4:U$400,AF10,Höstskon!P$4:P$400)) -> 0 | V10: =IF(AF10="","",SUMIF('Carlskrona Cup'!U$4:U$400,AF10,'Carlskrona Cup'!P$4:P$400)) -> 0 | W10: =IF(AF10="","",SUMIF('Sibbamåla Open'!U$4:U$400,AF10,'Sibbamåla Open'!P$4:P$400)) -> 0 | X10: =IF(AF10="","",SUMIF('Vaxholm Indoor'!U$4:U$400,AF10,'Vaxholm Indoor'!P$4:P$400)) -> 349 | Y10: =IF(AF10="","",SUMIF('SM inne 2022'!U$4:U$400,AF10,'SM inne 2022'!P$4:P$400)) -> 333 | Z10: =IF(AF10="","",SUMIF('SmålandsDM inne'!U$4:U$400,AF10,'SmålandsDM inne'!P$4:P$400)) -> 0 | AA10: =IF(AF10="","",SUMIF('BlekingeDM inne'!U$4:U$400,AF10,'BlekingeDM inne'!P$4:P$400)) -> 0 | AB10: =IF(AF10="","",SUMIF('StockholmsDM inne'!U$4:U$400,AF10,'StockholmsDM inne'!P$4:P$400)) -> 324 | AC10: =IF(AF10="","",SUMIF(Värendspokalen!U$4:U$400,AF10,Värendspokalen!P$4:P$400)) -> 308 | AD10: =IF(AF10="","",SUMIF('Tingsryd Open'!U$4:U$400,AF10,'Tingsryd Open'!P$4:P$400)) -> 0 | AF10: =IF(B10="","",SUMIF(Kastare!B$2:B$2999,B10,Kastare!A$2:A$2999)) -> 1170
A11: 8 | B11: Matz Karlsson | C11: Korpen Åseda | D11: 2837 | F11: 8 | G11: 177.3125 | I11: =IF(AF11="","",SUMIF('Jämjö Open'!U$4:U$400,AF11,'Jämjö Open'!P$4:P$400)) -> 0 | J11: =IF(AF11="","",SUMIF('Viby Open'!U$4:U$400,AF11,'Viby Open'!P$4:P$400)) -> 0 | K11: =IF(AF11="","",SUMIF('Björkenäs Open'!U$4:U$400,AF11,'Björkenäs Open'!P$4:P$400)) -> 0 | L11: =IF(AF11="","",SUMIF('SM ute Lö'!U$4:U$400,AF11,'SM ute Lö'!P$4:P$400)) -> 239 | M11: =IF(AF11="","",SUMIF('SM ute Sö'!U$4:U$401,AF11,'SM ute Sö'!P$4:P$401)) -> 278 | N11: =IF(AF11="","",SUMIF('Roslagen Open'!U$4:U$400,AF11,'Roslagen Open'!P$4:P$400)) -> 0 | O11: =IF(AF11="","",SUMIF('Vaxholm Open'!U$4:U$400,AF11,'Vaxholm Open'!P$4:P$400)) -> 0 | P11: =IF(AF11="","",SUMIF('Dynapac Open'!U$4:U$400,AF11,'Dynapac Open'!P$4:P$400)) -> 0 | Q11: =IF(AF11="","",SUMIF('SmålandsDM ute'!U$4:U$400,AF11,'SmålandsDM ute'!P$4:P$400)) -> 0 | R11: =IF(AF11="","",SUMIF('BlekingeDM ute'!U$4:U$400,AF11,'BlekingeDM ute'!P$4:P$400)) -> 0 | S11: =IF(AF11="","",SUMIF('StockholmsDM ute'!U$4:U$400,AF11,'StockholmsDM ute'!P$4:P$400)) -> 0 | T11: =IF(AF11="","",SUMIF('Åseda Open'!U$4:U$406,AF11,'Åseda Open'!P$4:P$406)) -> 349 | U11: =IF(AF11="","",SUMIF(Höstskon!U$4:U$400,AF11,Höstskon!P$4:P$400)) -> 468 | V11: =IF(AF11="","",SUMIF('Carlskrona Cup'!U$4:U$400,AF11,'Carlskrona Cup'!P$4:P$400)) -> 400 | W11: =IF(AF11="","",SUMIF('Sibbamåla Open'!U$4:U$400,AF11,'Sibbamåla Open'!P$4:P$400)) -> 349 | X11: =IF(AF11="","",SUMIF('Vaxholm Indoor'!U$4:U$400,AF11,'Vaxholm Indoor'!P$4:P$400)) -> 0 | Y11: =IF(AF11="","",SUMIF('SM inne 2022'!U$4:U$400,AF11,'SM inne 2022'!P$4:P$400)) -> 323 | Z11: =IF(AF11="","",SUMIF('SmålandsDM inne'!U$4:U$400,AF11,'SmålandsDM inne'!P$4:P$400)) -> 0 | AA11: =IF(AF11="","",SUMIF('BlekingeDM inne'!U$4:U$400,AF11,'BlekingeDM inne'!P$4:P$400)) -> 0 | AB11: =IF(AF11="","",SUMIF('StockholmsDM inne'!U$4:U$400,AF11,'StockholmsDM inne'!P$4:P$400)) -> 0 | AC11: =IF(AF11="","",SUMIF(Värendspokalen!U$4:U$400,AF11,Värendspokalen!P$4:P$400)) -> 431 | AD11: =IF(AF11="","",SUMIF('Tingsryd Open'!U$4:U$400,AF11,'Tingsryd Open'!P$4:P$400)) -> 0 | AF11: =IF(B11="","",SUMIF(Kastare!B$2:B$2999,B11,Kastare!A$2:A$2999)) -> 1003
A12: 9 | B12: Yamonlada Damnoenngam | C12: Växjö Hsk | D12: 2708 | F12: 9 | G12: 150.4444444 | I12: =IF(AF12="","",SUMIF('Jämjö Open'!U$4:U$400,AF12,'Jämjö Open'!P$4:P$400)) -> 0 | J12: =IF(AF12="","",SUMIF('Viby Open'!U$4:U$400,AF12,'Viby Open'!P$4:P$400)) -> 0 | K12: =IF(AF12="","",SUMIF('Björkenäs Open'!U$4:U$400,AF12,'Björkenäs Open'!P$4:P$400)) -> 0 | L12: =IF(AF12="","",SUMIF('SM ute Lö'!U$4:U$400,AF12,'SM ute Lö'!P$4:P$400)) -> 291 | M12: =IF(AF12="","",SUMIF('SM ute Sö'!U$4:U$401,AF12,'SM ute Sö'!P$4:P$401)) -> 334 | N12: =IF(AF12="","",SUMIF('Roslagen Open'!U$4:U$400,AF12,'Roslagen Open'!P$4:P$400)) -> 0 | O12: =IF(AF12="","",SUMIF('Vaxholm Open'!U$4:U$400,AF12,'Vaxholm Open'!P$4:P$400)) -> 0 | P12: =IF(AF12="","",SUMIF('Dynapac Open'!U$4:U$400,AF12,'Dynapac Open'!P$4:P$400)) -> 0 | Q12: =IF(AF12="","",SUMIF('SmålandsDM ute'!U$4:U$400,AF12,'SmålandsDM ute'!P$4:P$400)) -> 366 | R12: =IF(AF12="","",SUMIF('BlekingeDM ute'!U$4:U$400,AF12,'BlekingeDM ute'!P$4:P$400)) -> 0 | S12: =IF(AF12="","",SUMIF('StockholmsDM ute'!U$4:U$400,AF12,'StockholmsDM ute'!P$4:P$400)) -> 0 | T12: =IF(AF12="","",SUMIF('Åseda Open'!U$4:U$406,AF12,'Åseda Open'!P$4:P$406)) -> 367 | U12: =IF(AF12="","",SUMIF(Höstskon!U$4:U$400,AF12,Höstskon!P$4:P$400)) -> 390 | V12: =IF(AF12="","",SUMIF('Carlskrona Cup'!U$4:U$400,AF12,'Carlskrona Cup'!P$4:P$400)) -> 322 | W12: =IF(AF12="","",SUMIF('Sibbamåla Open'!U$4:U$400,AF12,'Sibbamåla Open'!P$4:P$400)) -> 163 | X12: =IF(AF12="","",SUMIF('Vaxholm Indoor'!U$4:U$400,AF12,'Vaxholm Indoor'!P$4:P$400)) -> 0 | Y12: =IF(AF12="","",SUMIF('SM inne 2022'!U$4:U$400,AF12,'SM inne 2022'!P$4:P$400)) -> 254 | Z12: =IF(AF12="","",SUMIF('SmålandsDM inne'!U$4:U$400,AF12,'SmålandsDM inne'!P$4:P$400)) -> 0 | AA12: =IF(AF12="","",SUMIF('BlekingeDM inne'!U$4:U$400,AF12,'BlekingeDM inne'!P$4:P$400)) -> 0 | AB12: =IF(AF12="","",SUMIF('StockholmsDM inne'!U$4:U$400,AF12,'StockholmsDM inne'!P$4:P$400)) -> 0 | AC12: =IF(AF12="","",SUMIF(Värendspokalen!U$4:U$400,AF12,Värendspokalen!P$4:P$400)) -> 221 | AD12: =IF(AF12="","",SUMIF('Tingsryd Open'!U$4:U$400,AF12,'Tingsryd Open'!P$4:P$400)) -> 0 | AF12: =IF(B12="","",SUMIF(Kastare!B$2:B$2999,B12,Kastare!A$2:A$2999)) -> 1010
A13: 10 | B13: Leo Andersson | C13: Carlskrona Hsc | D13: 2663 | F13: 10 | G13: 133.15 | I13: =IF(AF13="","",SUMIF('Jämjö Open'!U$4:U$400,AF13,'Jämjö Open'!P$4:P$400)) -> 0 | J13: =IF(AF13="","",SUMIF('Viby Open'!U$4:U$400,AF13,'Viby Open'!P$4:P$400)) -> 0 | K13: =IF(AF13="","",SUMIF('Björkenäs Open'!U$4:U$400,AF13,'Björkenäs Open'!P$4:P$400)) -> 0 | L13: =IF(AF13="","",SUMIF('SM ute Lö'!U$4:U$400,AF13,'SM ute Lö'!P$4:P$400)) -> 269 | M13: =IF(AF13="","",SUMIF('SM ute Sö'!U$4:U$401,AF13,'SM ute Sö'!P$4:P$401)) -> 264 | N13: =IF(AF13="","",SUMIF('Roslagen Open'!U$4:U$400,AF13,'Roslagen Open'!P$4:P$400)) -> 0 | O13: =IF(AF13="","",SUMIF('Vaxholm Open'!U$4:U$400,AF13,'Vaxholm Open'!P$4:P$400)) -> 0 | P13: =IF(AF13="","",SUMIF('Dynapac Open'!U$4:U$400,AF13,'Dynapac Open'!P$4:P$400)) -> 0 | Q13: =IF(AF13="","",SUMIF('SmålandsDM ute'!U$4:U$400,AF13,'SmålandsDM ute'!P$4:P$400)) -> 0 | R13: =IF(AF13="","",SUMIF('BlekingeDM ute'!U$4:U$400,AF13,'BlekingeDM ute'!P$4:P$400)) -> 181 | S13: =IF(AF13="","",SUMIF('StockholmsDM ute'!U$4:U$400,AF13,'StockholmsDM ute'!P$4:P$400)) -> 0 | T13: =IF(AF13="","",SUMIF('Åseda Open'!U$4:U$406,AF13,'Åseda Open'!P$4:P$406)) -> 307 | U13: =IF(AF13="","",SUMIF(Höstskon!U$4:U$400,AF13,Höstskon!P$4:P$400)) -> 249 | V13: =IF(AF13="","",SUMIF('Carlskrona Cup'!U$4:U$400,AF13,'Carlskrona Cup'!P$4:P$400)) -> 315 | W13: =IF(AF13="","",SUMIF('Sibbamåla Open'!U$4:U$400,AF13,'Sibbamåla Open'!P$4:P$400)) -> 178 | X13: =IF(AF13="","",SUMIF('Vaxholm Indoor'!U$4:U$400,AF13,'Vaxholm Indoor'!P$4:P$400)) -> 319 | Y13: =IF(AF13="","",SUMIF('SM inne 2022'!U$4:U$400,AF13,'SM inne 2022'!P$4:P$400)) -> 254 | Z13: =IF(AF13="","",SUMIF('SmålandsDM inne'!U$4:U$400,AF13,'SmålandsDM inne'!P$4:P$400)) -> 0 | AA13: =IF(AF13="","",SUMIF('BlekingeDM inne'!U$4:U$400,AF13,'BlekingeDM inne'!P$4:P$400)) -> 0 | AB13: =IF(AF13="","",SUMIF('StockholmsDM inne'!U$4:U$400,AF13,'StockholmsDM inne'!P$4:P$400)) -> 0 | AC13: =IF(AF13="","",SUMIF(Värendspokalen!U$4:U$400,AF13,Värendspokalen!P$4:P$400)) -> 327 | AD13: =IF(AF13="","",SUMIF('Tingsryd Open'!U$4:U$400,AF13,'Tingsryd Open'!P$4:P$400)) -> 0 | AF13: =IF(B13="","",SUMIF(Kastare!B$2:B$2999,B13,Kastare!A$2:A$2999)) -> 1006
A14: 11 | B14: Tobias Gneupel | C14: Sibbamåla IF | D14: 2628 | F14: 7 | G14: 187.7142857 | I14: =IF(AF14="","",SUMIF('Jämjö Open'!U$4:U$400,AF14,'Jämjö Open'!P$4:P$400)) -> 0 | J14: =IF(AF14="","",SUMIF('Viby Open'!U$4:U$400,AF14,'Viby Open'!P$4:P$400)) -> 0 | K14: =IF(AF14="","",SUMIF('Björkenäs Open'!U$4:U$400,AF14,'Björkenäs Open'!P$4:P$400)) -> 0 | L14: =IF(AF14="","",SUMIF('SM ute Lö'!U$4:U$400,AF14,'SM ute Lö'!P$4:P$400)) -> 377 | M14: =IF(AF14="","",SUMIF('SM ute Sö'!U$4:U$401,AF14,'SM ute Sö'!P$4:P$401)) -> 238 | N14: =IF(AF14="","",SUMIF('Roslagen Open'!U$4:U$400,AF14,'Roslagen Open'!P$4:P$400)) -> 0 | O14: =IF(AF14="","",SUMIF('Vaxholm Open'!U$4:U$400,AF14,'Vaxholm Open'!P$4:P$400)) -> 0 | P14: =IF(AF14="","",SUMIF('Dynapac Open'!U$4:U$400,AF14,'Dynapac Open'!P$4:P$400)) -> 0 | Q14: =IF(AF14="","",SUMIF('SmålandsDM ute'!U$4:U$400,AF14,'SmålandsDM ute'!P$4:P$400)) -> 0 | R14: =IF(AF14="","",SUMIF('BlekingeDM ute'!U$4:U$400,AF14,'BlekingeDM ute'!P$4:P$400)) -> 449 | S14: =IF(AF14="","",SUMIF('StockholmsDM ute'!U$4:U$400,AF14,'StockholmsDM ute'!P$4:P$400)) -> 0 | T14: =IF(AF14="","",SUMIF('Åseda Open'!U$4:U$406,AF14,'Åseda Open'!P$4:P$406)) -> 0 | U14: =IF(AF14="","",SUMIF(Höstskon!U$4:U$400,AF14,Höstskon!P$4:P$400)) -> 0 | V14: =IF(AF14="","",SUMIF('Carlskrona Cup'!U$4:U$400,AF14,'Carlskrona Cup'!P$4:P$400)) -> 385 | W14: =IF(AF14="","",SUMIF('Sibbamåla Open'!U$4:U$400,AF14,'Sibbamåla Open'!P$4:P$400)) -> 341 | X14: =IF(AF14="","",SUMIF('Vaxholm Indoor'!U$4:U$400,AF14,'Vaxholm Indoor'!P$4:P$400)) -> 0 | Y14: =IF(AF14="","",SUMIF('SM inne 2022'!U$4:U$400,AF14,'SM inne 2022'!P$4:P$400)) -> 380 | Z14: =IF(AF14="","",SUMIF('SmålandsDM inne'!U$4:U$400,AF14,'SmålandsDM inne'!P$4:P$400)) -> 0 | AA14: =IF(AF14="","",SUMIF('BlekingeDM inne'!U$4:U$400,AF14,'BlekingeDM inne'!P$4:P$400)) -> 458 | AB14: =IF(AF14="","",SUMIF('StockholmsDM inne'!U$4:U$400,AF14,'StockholmsDM inne'!P$4:P$400)) -> 0 | AC14: =IF(AF14="","",SUMIF(Värendspokalen!U$4:U$400,AF14,Värendspokalen!P$4:P$400)) -> 0 | AD14: =IF(AF14="","",SUMIF('Tingsryd Open'!U$4:U$400,AF14,'Tingsryd Open'!P$4:P$400)) -> 0 | AF14: =IF(B14="","",SUMIF(Kastare!B$2:B$2999,B14,Kastare!A$2:A$2999)) -> 1009
A15: 12 | B15: Lars-Erik Ottosson | C15: Lanternan B.c | D15: 2463 | F15: 10 | G15: 123.15 | I15: =IF(AF15="","",SUMIF('Jämjö Open'!U$4:U$400,AF15,'Jämjö Open'!P$4:P$400)) -> 0 | J15: =IF(AF15="","",SUMIF('Viby Open'!U$4:U$400,AF15,'Viby Open'!P$4:P$400)) -> 0 | K15: =IF(AF15="","",SUMIF('Björkenäs Open'!U$4:U$400,AF15,'Björkenäs Open'!P$4:P$400)) -> 0 | L15: =IF(AF15="","",SUMIF('SM ute Lö'!U$4:U$400,AF15,'SM ute Lö'!P$4:P$400)) -> 254 | M15: =IF(AF15="","",SUMIF('SM ute Sö'!U$4:U$401,AF15,'SM ute Sö'!P$4:P$401)) -> 220 | N15: =IF(AF15="","",SUMIF('Roslagen Open'!U$4:U$400,AF15,'Roslagen Open'!P$4:P$400)) -> 0 | O15: =IF(AF15="","",SUMIF('Vaxholm Open'!U$4:U$400,AF15,'Vaxholm Open'!P$4:P$400)) -> 0 | P15: =IF(AF15="","",SUMIF('Dynapac Open'!U$4:U$400,AF15,'Dynapac Open'!P$4:P$400)) -> 0 | Q15: =IF(AF15="","",SUMIF('SmålandsDM ute'!U$4:U$400,AF15,'SmålandsDM ute'!P$4:P$400)) -> 0 | R15: =IF(AF15="","",SUMIF('BlekingeDM ute'!U$4:U$400,AF15,'BlekingeDM ute'!P$4:P$400)) -> 216 | S15: =IF(AF15="","",SUMIF('StockholmsDM ute'!U$4:U$400,AF15,'StockholmsDM ute'!P$4:P$400)) -> 0 | T15: =IF(AF15="","",SUMIF('Åseda Open'!U$4:U$406,AF15,'Åseda Open'!P$4:P$406)) -> 239 | U15: =IF(AF15="","",SUMIF(Höstskon!U$4:U$400,AF15,Höstskon!P$4:P$400)) -> 280 | V15: =IF(AF15="","",SUMIF('Carlskrona Cup'!U$4:U$400,AF15,'Carlskrona Cup'!P$4:P$400)) -> 210 | W15: =IF(AF15="","",SUMIF('Sibbamåla Open'!U$4:U$400,AF15,'Sibbamåla Open'!P$4:P$400)) -> 262 | X15: =IF(AF15="","",SUMIF('Vaxholm Indoor'!U$4:U$400,AF15,'Vaxholm Indoor'!P$4:P$400)) -> 0 | Y15: =IF(AF15="","",SUMIF('SM inne 2022'!U$4:U$400,AF15,'SM inne 2022'!P$4:P$400)) -> 285 | Z15: =IF(AF15="","",SUMIF('SmålandsDM inne'!U$4:U$400,AF15,'SmålandsDM inne'!P$4:P$400)) -> 0 | AA15: =IF(AF15="","",SUMIF('BlekingeDM inne'!U$4:U$400,AF15,'BlekingeDM inne'!P$4:P$400)) -> 261 | AB15: =IF(AF15="","",SUMIF('StockholmsDM inne'!U$4:U$400,AF15,'StockholmsDM inne'!P$4:P$400)) -> 0 | AC15: =IF(AF15="","",SUMIF(Värendspokalen!U$4:U$400,AF15,Värendspokalen!P$4:P$400)) -> 236 | AD15: =IF(AF15="","",SUMIF('Tingsryd Open'!U$4:U$400,AF15,'Tingsryd Open'!P$4:P$400)) -> 0 | AF15: =IF(B15="","",SUMIF(Kastare!B$2:B$2999,B15,Kastare!A$2:A$2999)) -> 1031
A16: 13 | B16: Olle Ottosson | C16: Dynapac Hsc | D16: 2442 | F16: 9 | G16: 135.6666667 | I16: =IF(AF16="","",SUMIF('Jämjö Open'!U$4:U$400,AF16,'Jämjö Open'!P$4:P$400)) -> 0 | J16: =IF(AF16="","",SUMIF('Viby Open'!U$4:U$400,AF16,'Viby Open'!P$4:P$400)) -> 0 | K16: =IF(AF16="","",SUMIF('Björkenäs Open'!U$4:U$400,AF16,'Björkenäs Open'!P$4:P$400)) -> 0 | L16: =IF(AF16="","",SUMIF('SM ute Lö'!U$4:U$400,AF16,'SM ute Lö'!P$4:P$400)) -> 198 | M16: =IF(AF16="","",SUMIF('SM ute Sö'!U$4:U$401,AF16,'SM ute Sö'!P$4:P$401)) -> 215 | N16: =IF(AF16="","",SUMIF('Roslagen Open'!U$4:U$400,AF16,'Roslagen Open'!P$4:P$400)) -> 0 | O16: =IF(AF16="","",SUMIF('Vaxholm Open'!U$4:U$400,AF16,'Vaxholm Open'!P$4:P$400)) -> 0 | P16: =IF(AF16="","",SUMIF('Dynapac Open'!U$4:U$400,AF16,'Dynapac Open'!P$4:P$400)) -> 0 | Q16: =IF(AF16="","",SUMIF('SmålandsDM ute'!U$4:U$400,AF16,'SmålandsDM ute'!P$4:P$400)) -> 0 | R16: =IF(AF16="","",SUMIF('BlekingeDM ute'!U$4:U$400,AF16,'BlekingeDM ute'!P$4:P$400)) -> 204 | S16: =IF(AF16="","",SUMIF('StockholmsDM ute'!U$4:U$400,AF16,'StockholmsDM ute'!P$4:P$400)) -> 0 | T16: =IF(AF16="","",SUMIF('Åseda Open'!U$4:U$406,AF16,'Åseda Open'!P$4:P$406)) -> 188 | U16: =IF(AF16="","",SUMIF(Höstskon!U$4:U$400,AF16,Höstskon!P$4:P$400)) -> 301 | V16: =IF(AF16="","",SUMIF('Carlskrona Cup'!U$4:U$400,AF16,'Carlskrona Cup'!P$4:P$400)) -> 396 | W16: =IF(AF16="","",SUMIF('Sibbamåla Open'!U$4:U$400,AF16,'Sibbamåla Open'!P$4:P$400)) -> 274 | X16: =IF(AF16="","",SUMIF('Vaxholm Indoor'!U$4:U$400,AF16,'Vaxholm Indoor'!P$4:P$400)) -> 0 | Y16: =IF(AF16="","",SUMIF('SM inne 2022'!U$4:U$400,AF16,'SM inne 2022'!P$4:P$400)) -> 367 | Z16: =IF(AF16="","",SUMIF('SmålandsDM inne'!U$4:U$400,AF16,'SmålandsDM inne'!P$4:P$400)) -> 0 | AA16: =IF(AF16="","",SUMIF('BlekingeDM inne'!U$4:U$400,AF16,'BlekingeDM inne'!P$4:P$400)) -> 299 | AB16: =IF(AF16="","",SUMIF('StockholmsDM inne'!U$4:U$400,AF16,'StockholmsDM inne'!P$4:P$400)) -> 0 | AC16: =IF(AF16="","",SUMIF(Värendspokalen!U$4:U$400,AF16,Värendspokalen!P$4:P$400)) -> 0 | AD16: =IF(AF16="","",SUMIF('Tingsryd Open'!U$4:U$400,AF16,'Tingsryd Open'!P$4:P$400)) -> 0 | AF16: =IF(B16="","",SUMIF(Kastare!B$2:B$2999,B16,Kastare!A$2:A$2999)) -> 1021
A17: 14 | B17: Mattias Olsson | C17: Dynapac | D17: 2406 | F17: 8 | G17: 150.375 | I17: =IF(AF17="","",SUMIF('Jämjö Open'!U$4:U$400,AF17,'Jämjö Open'!P$4:P$400)) -> 0 | J17: =IF(AF17="","",SUMIF('Viby Open'!U$4:U$400,AF17,'Viby Open'!P$4:P$400)) -> 0 | K17: =IF(AF17="","",SUMIF('Björkenäs Open'!U$4:U$400,AF17,'Björkenäs Open'!P$4:P$400)) -> 0 | L17: =IF(AF17="","",SUMIF('SM ute Lö'!U$4:U$400,AF17,'SM ute Lö'!P$4:P$400)) -> 0 | M17: =IF(AF17="","",SUMIF('SM ute Sö'!U$4:U$401,AF17,'SM ute Sö'!P$4:P$401)) -> 0 | N17: =IF(AF17="","",SUMIF('Roslagen Open'!U$4:U$400,AF17,'Roslagen Open'!P$4:P$400)) -> 0 | O17: =IF(AF17="","",SUMIF('Vaxholm Open'!U$4:U$400,AF17,'Vaxholm Open'!P$4:P$400)) -> 0 | P17: =IF(AF17="","",SUMIF('Dynapac Open'!U$4:U$400,AF17,'Dynapac Open'!P$4:P$400)) -> 0 | Q17: =IF(AF17="","",SUMIF('SmålandsDM ute'!U$4:U$400,AF17,'SmålandsDM ute'!P$4:P$400)) -> 0 | R17: =IF(AF17="","",SUMIF('BlekingeDM ute'!U$4:U$400,AF17,'BlekingeDM ute'!P$4:P$400)) -> 376 | S17: =IF(AF17="","",SUMIF('StockholmsDM ute'!U$4:U$400,AF17,'StockholmsDM ute'!P$4:P$400)) -> 0 | T17: =IF(AF17="","",SUMIF('Åseda Open'!U$4:U$406,AF17,'Åseda Open'!P$4:P$406)) -> 330 | U17: =IF(AF17="","",SUMIF(Höstskon!U$4:U$400,AF17,Höstskon!P$4:P$400)) -> 285 | V17: =IF(AF17="","",SUMIF('Carlskrona Cup'!U$4:U$400,AF17,'Carlskrona Cup'!P$4:P$400)) -> 243 | W17: =IF(AF17="","",SUMIF('Sibbamåla Open'!U$4:U$400,AF17,'Sibbamåla Open'!P$4:P$400)) -> 258 | X17: =IF(AF17="","",SUMIF('Vaxholm Indoor'!U$4:U$400,AF17,'Vaxholm Indoor'!P$4:P$400)) -> 0 | Y17: =IF(AF17="","",SUMIF('SM inne 2022'!U$4:U$400,AF17,'SM inne 2022'!P$4:P$400)) -> 372 | Z17: =IF(AF17="","",SUMIF('SmålandsDM inne'!U$4:U$400,AF17,'SmålandsDM inne'!P$4:P$400)) -> 0 | AA17: =IF(AF17="","",SUMIF('BlekingeDM inne'!U$4:U$400,AF17,'BlekingeDM inne'!P$4:P$400)) -> 227 | AB17: =IF(AF17="","",SUMIF('StockholmsDM inne'!U$4:U$400,AF17,'StockholmsDM inne'!P$4:P$400)) -> 0 | AC17: =IF(AF17="","",SUMIF(Värendspokalen!U$4:U$400,AF17,Värendspokalen!P$4:P$400)) -> 315 | AD17: =IF(AF17="","",SUMIF('Tingsryd Open'!U$4:U$400,AF17,'Tingsryd Open'!P$4:P$400)) -> 0 | AF17: =IF(B17="","",SUMIF(Kastare!B$2:B$2999,B17,Kastare!A$2:A$2999)) -> 1044
A18: 15 | B18: Anitha Fabbeke | C18: Dynapac Hsc | D18: 2307 | F18: 9 | G18: 128.1666667 | I18: =IF(AF18="","",SUMIF('Jämjö Open'!U$4:U$400,AF18,'Jämjö Open'!P$4:P$400)) -> 0 | J18: =IF(AF18="","",SUMIF('Viby Open'!U$4:U$400,AF18,'Viby Open'!P$4:P$400)) -> 0 | K18: =IF(AF18="","",SUMIF('Björkenäs Open'!U$4:U$400,AF18,'Björkenäs Open'!P$4:P$400)) -> 0 | L18: =IF(AF18="","",SUMIF('SM ute Lö'!U$4:U$400,AF18,'SM ute Lö'!P$4:P$400)) -> 209 | M18: =IF(AF18="","",SUMIF('SM ute Sö'!U$4:U$401,AF18,'SM ute Sö'!P$4:P$401)) -> 276 | N18: =IF(AF18="","",SUMIF('Roslagen Open'!U$4:U$400,AF18,'Roslagen Open'!P$4:P$400)) -> 0 | O18: =IF(AF18="","",SUMIF('Vaxholm Open'!U$4:U$400,AF18,'Vaxholm Open'!P$4:P$400)) -> 0 | P18: =IF(AF18="","",SUMIF('Dynapac Open'!U$4:U$400,AF18,'Dynapac Open'!P$4:P$400)) -> 0 | Q18: =IF(AF18="","",SUMIF('SmålandsDM ute'!U$4:U$400,AF18,'SmålandsDM ute'!P$4:P$400)) -> 0 | R18: =IF(AF18="","",SUMIF('BlekingeDM ute'!U$4:U$400,AF18,'BlekingeDM ute'!P$4:P$400)) -> 282 | S18: =IF(AF18="","",SUMIF('StockholmsDM ute'!U$4:U$400,AF18,'StockholmsDM ute'!P$4:P$400)) -> 0 | T18: =IF(AF18="","",SUMIF('Åseda Open'!U$4:U$406,AF18,'Åseda Open'!P$4:P$406)) -> 209 | U18: =IF(AF18="","",SUMIF(Höstskon!U$4:U$400,AF18,Höstskon!P$4:P$400)) -> 283 | V18: =IF(AF18="","",SUMIF('Carlskrona Cup'!U$4:U$400,AF18,'Carlskrona Cup'!P$4:P$400)) -> 312 | W18: =IF(AF18="","",SUMIF('Sibbamåla Open'!U$4:U$400,AF18,'Sibbamåla Open'!P$4:P$400)) -> 222 | X18: =IF(AF18="","",SUMIF('Vaxholm Indoor'!U$4:U$400,AF18,'Vaxholm Indoor'!P$4:P$400)) -> 0 | Y18: =IF(AF18="","",SUMIF('SM inne 2022'!U$4:U$400,AF18,'SM inne 2022'!P$4:P$400)) -> 290 | Z18: =IF(AF18="","",SUMIF('SmålandsDM inne'!U$4:U$400,AF18,'SmålandsDM inne'!P$4:P$400)) -> 0 | AA18: =IF(AF18="","",SUMIF('BlekingeDM inne'!U$4:U$400,AF18,'BlekingeDM inne'!P$4:P$400)) -> 224 | AB18: =IF(AF18="","",SUMIF('StockholmsDM inne'!U$4:U$400,AF18,'StockholmsDM inne'!P$4:P$400)) -> 0 | AC18: =IF(AF18="","",SUMIF(Värendspokalen!U$4:U$400,AF18,Värendspokalen!P$4:P$400)) -> 0 | AD18: =IF(AF18="","",SUMIF('Tingsryd Open'!U$4:U$400,AF18,'Tingsryd Open'!P$4:P$400)) -> 0 | AF18: =IF(B18="","",SUMIF(Kastare!B$2:B$2999,B18,Kastare!A$2:A$2999)) -> 1014
A19: 16 | B19: Hathaichonlanne Phaengphui | C19: Växjö Hsk | D19: 2280 | F19: 9 | G19: 126.6666667 | I19: =IF(AF19="","",SUMIF('Jämjö Open'!U$4:U$400,AF19,'Jämjö Open'!P$4:P$400)) -> 0 | J19: =IF(AF19="","",SUMIF('Viby Open'!U$4:U$400,AF19,'Viby Open'!P$4:P$400)) -> 0 | K19: =IF(AF19="","",SUMIF('Björkenäs Open'!U$4:U$400,AF19,'Björkenäs Open'!P$4:P$400)) -> 0 | L19: =IF(AF19="","",SUMIF('SM ute Lö'!U$4:U$400,AF19,'SM ute Lö'!P$4:P$400)) -> 186 | M19: =IF(AF19="","",SUMIF('SM ute Sö'!U$4:U$401,AF19,'SM ute Sö'!P$4:P$401)) -> 254 | N19: =IF(AF19="","",SUMIF('Roslagen Open'!U$4:U$400,AF19,'Roslagen Open'!P$4:P$400)) -> 0 | O19: =IF(AF19="","",SUMIF('Vaxholm Open'!U$4:U$400,AF19,'Vaxholm Open'!P$4:P$400)) -> 0 | P19: =IF(AF19="","",SUMIF('Dynapac Open'!U$4:U$400,AF19,'Dynapac Open'!P$4:P$400)) -> 0 | Q19: =IF(AF19="","",SUMIF('SmålandsDM ute'!U$4:U$400,AF19,'SmålandsDM ute'!P$4:P$400)) -> 245 | R19: =IF(AF19="","",SUMIF('BlekingeDM ute'!U$4:U$400,AF19,'BlekingeDM ute'!P$4:P$400)) -> 0 | S19: =IF(AF19="","",SUMIF('StockholmsDM ute'!U$4:U$400,AF19,'StockholmsDM ute'!P$4:P$400)) -> 0 | T19: =IF(AF19="","",SUMIF('Åseda Open'!U$4:U$406,AF19,'Åseda Open'!P$4:P$406)) -> 231 | U19: =IF(AF19="","",SUMIF(Höstskon!U$4:U$400,AF19,Höstskon!P$4:P$400)) -> 310 | V19: =IF(AF19="","",SUMIF('Carlskrona Cup'!U$4:U$400,AF19,'Carlskrona Cup'!P$4:P$400)) -> 219 | W19: =IF(AF19="","",SUMIF('Sibbamåla Open'!U$4:U$400,AF19,'Sibbamåla Open'!P$4:P$400)) -> 255 | X19: =IF(AF19="","",SUMIF('Vaxholm Indoor'!U$4:U$400,AF19,'Vaxholm Indoor'!P$4:P$400)) -> 0 | Y19: =IF(AF19="","",SUMIF('SM inne 2022'!U$4:U$400,AF19,'SM inne 2022'!P$4:P$400)) -> 326 | Z19: =IF(AF19="","",SUMIF('SmålandsDM inne'!U$4:U$400,AF19,'SmålandsDM inne'!P$4:P$400)) -> 0 | AA19: =IF(AF19="","",SUMIF('BlekingeDM inne'!U$4:U$400,AF19,'BlekingeDM inne'!P$4:P$400)) -> 0 | AB19: =IF(AF19="","",SUMIF('StockholmsDM inne'!U$4:U$400,AF19,'StockholmsDM inne'!P$4:P$400)) -> 0 | AC19: =IF(AF19="","",SUMIF(Värendspokalen!U$4:U$400,AF19,Värendspokalen!P$4:P$400)) -> 254 | AD19: =IF(AF19="","",SUMIF('Tingsryd Open'!U$4:U$400,AF19,'Tingsryd Open'!P$4:P$400)) -> 0 | AF19: =IF(B19="","",SUMIF(Kastare!B$2:B$2999,B19,Kastare!A$2:A$2999)) -> 1007
A20: 17 | B20: Kristian Jältsäter | C20: Vaxholm Hsk | D20: 2250 | F20: 8 | G20: 140.625 | I20: =IF(AF20="","",SUMIF('Jämjö Open'!U$4:U$400,AF20,'Jämjö Open'!P$4:P$400)) -> 0 | J20: =IF(AF20="","",SUMIF('Viby Open'!U$4:U$400,AF20,'Viby Open'!P$4:P$400)) -> 0 | K20: =IF(AF20="","",SUMIF('Björkenäs Open'!U$4:U$400,AF20,'Björkenäs Open'!P$4:P$400)) -> 0 | L20: =IF(AF20="","",SUMIF('SM ute Lö'!U$4:U$400,AF20,'SM ute Lö'!P$4:P$400)) -> 209 | M20: =IF(AF20="","",SUMIF('SM ute Sö'!U$4:U$401,AF20,'SM ute Sö'!P$4:P$401)) -> 310 | N20: =IF(AF20="","",SUMIF('Roslagen Open'!U$4:U$400,AF20,'Roslagen Open'!P$4:P$400)) -> 224 | O20: =IF(AF20="","",SUMIF('Vaxholm Open'!U$4:U$400,AF20,'Vaxholm Open'!P$4:P$400)) -> 336 | P20: =IF(AF20="","",SUMIF('Dynapac Open'!U$4:U$400,AF20,'Dynapac Open'!P$4:P$400)) -> 0 | Q20: =IF(AF20="","",SUMIF('SmålandsDM ute'!U$4:U$400,AF20,'SmålandsDM ute'!P$4:P$400)) -> 0 | R20: =IF(AF20="","",SUMIF('BlekingeDM ute'!U$4:U$400,AF20,'BlekingeDM ute'!P$4:P$400)) -> 0 | S20: =IF(AF20="","",SUMIF('StockholmsDM ute'!U$4:U$400,AF20,'StockholmsDM ute'!P$4:P$400)) -> 310 | T20: =IF(AF20="","",SUMIF('Åseda Open'!U$4:U$406,AF20,'Åseda Open'!P$4:P$406)) -> 0 | U20: =IF(AF20="","",SUMIF(Höstskon!U$4:U$400,AF20,Höstskon!P$4:P$400)) -> 0 | V20: =IF(AF20="","",SUMIF('Carlskrona Cup'!U$4:U$400,AF20,'Carlskrona Cup'!P$4:P$400)) -> 0 | W20: =IF(AF20="","",SUMIF('Sibbamåla Open'!U$4:U$400,AF20,'Sibbamåla Open'!P$4:P$400)) -> 0 | X20: =IF(AF20="","",SUMIF('Vaxholm Indoor'!U$4:U$400,AF20,'Vaxholm Indoor'!P$4:P$400)) -> 278 | Y20: =IF(AF20="","",SUMIF('SM inne 2022'!U$4:U$400,AF20,'SM inne 2022'!P$4:P$400)) -> 285 | Z20: =IF(AF20="","",SUMIF('SmålandsDM inne'!U$4:U$400,AF20,'SmålandsDM inne'!P$4:P$400)) -> 0 | AA20: =IF(AF20="","",SUMIF('BlekingeDM inne'!U$4:U$400,AF20,'BlekingeDM inne'!P$4:P$400)) -> 0 | AB20: =IF(AF20="","",SUMIF('StockholmsDM inne'!U$4:U$400,AF20,'StockholmsDM inne'!P$4:P$400)) -> 298 | AC20: =IF(AF20="","",SUMIF(Värendspokalen!U$4:U$400,AF20,Värendspokalen!P$4:P$400)) -> 0 | AD20: =IF(AF20="","",SUMIF('Tingsryd Open'!U$4:U$400,AF20,'Tingsryd Open'!P$4:P$400)) -> 0 | AF20: =IF(B20="","",SUMIF(Kastare!B$2:B$2999,B20,Kastare!A$2:A$2999)) -> 1029
A21: 18 | B21: Magnus Israelsson | C21: Sibbamåla IF | D21: 2239 | F21: 8 | G21: 139.9375 | I21: =IF(AF21="","",SUMIF('Jämjö Open'!U$4:U$400,AF21,'Jämjö Open'!P$4:P$400)) -> 0 | J21: =IF(AF21="","",SUMIF('Viby Open'!U$4:U$400,AF21,'Viby Open'!P$4:P$400)) -> 0 | K21: =IF(AF21="","",SUMIF('Björkenäs Open'!U$4:U$400,AF21,'Björkenäs Open'!P$4:P$400)) -> 0 | L21: =IF(AF21="","",SUMIF('SM ute Lö'!U$4:U$400,AF21,'SM ute Lö'!P$4:P$400)) -> 230 | M21: =IF(AF21="","",SUMIF('SM ute Sö'!U$4:U$401,AF21,'SM ute Sö'!P$4:P$401)) -> 243 | N21: =IF(AF21="","",SUMIF('Roslagen Open'!U$4:U$400,AF21,'Roslagen Open'!P$4:P$400)) -> 0 | O21: =IF(AF21="","",SUMIF('Vaxholm Open'!U$4:U$400,AF21,'Vaxholm Open'!P$4:P$400)) -> 0 | P21: =IF(AF21="","",SUMIF('Dynapac Open'!U$4:U$400,AF21,'Dynapac Open'!P$4:P$400)) -> 0 | Q21: =IF(AF21="","",SUMIF('SmålandsDM ute'!U$4:U$400,AF21,'SmålandsDM ute'!P$4:P$400)) -> 0 | R21: =IF(AF21="","",SUMIF('BlekingeDM ute'!U$4:U$400,AF21,'BlekingeDM ute'!P$4:P$400)) -> 372 | S21: =IF(AF21="","",SUMIF('StockholmsDM ute'!U$4:U$400,AF21,'StockholmsDM ute'!P$4:P$400)) -> 0 | T21: =IF(AF21="","",SUMIF('Åseda Open'!U$4:U$406,AF21,'Åseda Open'!P$4:P$406)) -> 0 | U21: =IF(AF21="","",SUMIF(Höstskon!U$4:U$400,AF21,Höstskon!P$4:P$400)) -> 0 | V21: =IF(AF21="","",SUMIF('Carlskrona Cup'!U$4:U$400,AF21,'Carlskrona Cup'!P$4:P$400)) -> 380 | W21: =IF(AF21="","",SUMIF('Sibbamåla Open'!U$4:U$400,AF21,'Sibbamåla Open'!P$4:P$400)) -> 273 | X21: =IF(AF21="","",SUMIF('Vaxholm Indoor'!U$4:U$400,AF21,'Vaxholm Indoor'!P$4:P$400)) -> 0 | Y21: =IF(AF21="","",SUMIF('SM inne 2022'!U$4:U$400,AF21,'SM inne 2022'!P$4:P$400)) -> 319 | Z21: =IF(AF21="","",SUMIF('SmålandsDM inne'!U$4:U$400,AF21,'SmålandsDM inne'!P$4:P$400)) -> 0 | AA21: =IF(AF21="","",SUMIF('BlekingeDM inne'!U$4:U$400,AF21,'BlekingeDM inne'!P$4:P$400)) -> 243 | AB21: =IF(AF21="","",SUMIF('StockholmsDM inne'!U$4:U$400,AF21,'StockholmsDM inne'!P$4:P$400)) -> 0 | AC21: =IF(AF21="","",SUMIF(Värendspokalen!U$4:U$400,AF21,Värendspokalen!P$4:P$400)) -> 179 | AD21: =IF(AF21="","",SUMIF('Tingsryd Open'!U$4:U$400,AF21,'Tingsryd Open'!P$4:P$400)) -> 0 | AF21: =IF(B21="","",SUMIF(Kastare!B$2:B$2999,B21,Kastare!A$2:A$2999)) -> 1083
A22: 19 | B22: Stefan Olofsson | C22: Korpen Nybro | D22: 2182 | F22: 9 | G22: 121.2222222 | I22: =IF(AF22="","",SUMIF('Jämjö Open'!U$4:U$400,AF22,'Jämjö Open'!P$4:P$400)) -> 0 | J22: =IF(AF22="","",SUMIF('Viby Open'!U$4:U$400,AF22,'Viby Open'!P$4:P$400)) -> 0 | K22: =IF(AF22="","",SUMIF('Björkenäs Open'!U$4:U$400,AF22,'Björkenäs Open'!P$4:P$400)) -> 0 | L22: =IF(AF22="","",SUMIF('SM ute Lö'!U$4:U$400,AF22,'SM ute Lö'!P$4:P$400)) -> 175 | M22: =IF(AF22="","",SUMIF('SM ute Sö'!U$4:U$401,AF22,'SM ute Sö'!P$4:P$401)) -> 184 | N22: =IF(AF22="","",SUMIF('Roslagen Open'!U$4:U$400,AF22,'Roslagen Open'!P$4:P$400)) -> 0 | O22: =IF(AF22="","",SUMIF('Vaxholm Open'!U$4:U$400,AF22,'Vaxholm Open'!P$4:P$400)) -> 0 | P22: =IF(AF22="","",SUMIF('Dynapac Open'!U$4:U$400,AF22,'Dynapac Open'!P$4:P$400)) -> 0 | Q22: =IF(AF22="","",SUMIF('SmålandsDM ute'!U$4:U$400,AF22,'SmålandsDM ute'!P$4:P$400)) -> 256 | R22: =IF(AF22="","",SUMIF('BlekingeDM ute'!U$4:U$400,AF22,'BlekingeDM ute'!P$4:P$400)) -> 0 | S22: =IF(AF22="","",SUMIF('StockholmsDM ute'!U$4:U$400,AF22,'StockholmsDM ute'!P$4:P$400)) -> 0 | T22: =IF(AF22="","",SUMIF('Åseda Open'!U$4:U$406,AF22,'Åseda Open'!P$4:P$406)) -> 255 | U22: =IF(AF22="","",SUMIF(Höstskon!U$4:U$400,AF22,Höstskon!P$4:P$400)) -> 300 | V22: =IF(AF22="","",SUMIF('Carlskrona Cup'!U$4:U$400,AF22,'Carlskrona Cup'!P$4:P$400)) -> 298 | W22: =IF(AF22="","",SUMIF('Sibbamåla Open'!U$4:U$400,AF22,'Sibbamåla Open'!P$4:P$400)) -> 243 | X22: =IF(AF22="","",SUMIF('Vaxholm Indoor'!U$4:U$400,AF22,'Vaxholm Indoor'!P$4:P$400)) -> 0 | Y22: =IF(AF22="","",SUMIF('SM inne 2022'!U$4:U$400,AF22,'SM inne 2022'!P$4:P$400)) -> 198 | Z22: =IF(AF22="","",SUMIF('SmålandsDM inne'!U$4:U$400,AF22,'SmålandsDM inne'!P$4:P$400)) -> 0 | AA22: =IF(AF22="","",SUMIF('BlekingeDM inne'!U$4:U$400,AF22,'BlekingeDM inne'!P$4:P$400)) -> 0 | AB22: =IF(AF22="","",SUMIF('StockholmsDM inne'!U$4:U$400,AF22,'StockholmsDM inne'!P$4:P$400)) -> 0 | AC22: =IF(AF22="","",SUMIF(Värendspokalen!U$4:U$400,AF22,Värendspokalen!P$4:P$400)) -> 273 | AD22: =IF(AF22="","",SUMIF('Tingsryd Open'!U$4:U$400,AF22,'Tingsryd Open'!P$4:P$400)) -> 0 | AF22: =IF(B22="","",SUMIF(Kastare!B$2:B$2999,B22,Kastare!A$2:A$2999)) -> 1019
A23: 20 | B23: Göran Mårtensson | C23: Jämjö Hsk | D23: 2142 | F23: 9 | G23: 119 | I23: =IF(AF23="","",SUMIF('Jämjö Open'!U$4:U$400,AF23,'Jämjö Open'!P$4:P$400)) -> 0 | J23: =IF(AF23="","",SUMIF('Viby Open'!U$4:U$400,AF23,'Viby Open'!P$4:P$400)) -> 0 | K23: =IF(AF23="","",SUMIF('Björkenäs Open'!U$4:U$400,AF23,'Björkenäs Open'!P$4:P$400)) -> 0 | L23: =IF(AF23="","",SUMIF('SM ute Lö'!U$4:U$400,AF23,'SM ute Lö'!P$4:P$400)) -> 169 | M23: =IF(AF23="","",SUMIF('SM ute Sö'!U$4:U$401,AF23,'SM ute Sö'!P$4:P$401)) -> 173 | N23: =IF(AF23="","",SUMIF('Roslagen Open'!U$4:U$400,AF23,'Roslagen Open'!P$4:P$400)) -> 0 | O23: =IF(AF23="","",SUMIF('Vaxholm Open'!U$4:U$400,AF23,'Vaxholm Open'!P$4:P$400)) -> 0 | P23: =IF(AF23="","",SUMIF('Dynapac Open'!U$4:U$400,AF23,'Dynapac Open'!P$4:P$400)) -> 0 | Q23: =IF(AF23="","",SUMIF('SmålandsDM ute'!U$4:U$400,AF23,'SmålandsDM ute'!P$4:P$400)) -> 0 | R23: =IF(AF23="","",SUMIF('BlekingeDM ute'!U$4:U$400,AF23,'BlekingeDM ute'!P$4:P$400)) -> 317 | S23: =IF(AF23="","",SUMIF('StockholmsDM ute'!U$4:U$400,AF23,'StockholmsDM ute'!P$4:P$400)) -> 0 | T23: =IF(AF23="","",SUMIF('Åseda Open'!U$4:U$406,AF23,'Åseda Open'!P$4:P$406)) -> 204 | U23: =IF(AF23="","",SUMIF(Höstskon!U$4:U$400,AF23,Höstskon!P$4:P$400)) -> 345 | V23: =IF(AF23="","",SUMIF('Carlskrona Cup'!U$4:U$400,AF23,'Carlskrona Cup'!P$4:P$400)) -> 196 | W23: =IF(AF23="","",SUMIF('Sibbamåla Open'!U$4:U$400,AF23,'Sibbamåla Open'!P$4:P$400)) -> 195 | X23: =IF(AF23="","",SUMIF('Vaxholm Indoor'!U$4:U$400,AF23,'Vaxholm Indoor'!P$4:P$400)) -> 0 | Y23: =IF(AF23="","",SUMIF('SM inne 2022'!U$4:U$400,AF23,'SM inne 2022'!P$4:P$400)) -> 167 | Z23: =IF(AF23="","",SUMIF('SmålandsDM inne'!U$4:U$400,AF23,'SmålandsDM inne'!P$4:P$400)) -> 0 | AA23: =IF(AF23="","",SUMIF('BlekingeDM inne'!U$4:U$400,AF23,'BlekingeDM inne'!P$4:P$400)) -> 0 | AB23: =IF(AF23="","",SUMIF('StockholmsDM inne'!U$4:U$400,AF23,'StockholmsDM inne'!P$4:P$400)) -> 0 | AC23: =IF(AF23="","",SUMIF(Värendspokalen!U$4:U$400,AF23,Värendspokalen!P$4:P$400)) -> 376 | AD23: =IF(AF23="","",SUMIF('Tingsryd Open'!U$4:U$400,AF23,'Tingsryd Open'!P$4:P$400)) -> 0 | AF23: =IF(B23="","",SUMIF(Kastare!B$2:B$2999,B23,Kastare!A$2:A$2999)) -> 1032
A24: 21 | B24: Joel Sundahl | C24: Carlskrona Hsc | D24: 2139 | F24: 10 | G24: 106.95 | I24: =IF(AF24="","",SUMIF('Jämjö Open'!U$4:U$400,AF24,'Jämjö Open'!P$4:P$400)) -> 0 | J24: =IF(AF24="","",SUMIF('Viby Open'!U$4:U$400,AF24,'Viby Open'!P$4:P$400)) -> 0 | K24: =IF(AF24="","",SUMIF('Björkenäs Open'!U$4:U$400,AF24,'Björkenäs Open'!P$4:P$400)) -> 0 | L24: =IF(AF24="","",SUMIF('SM ute Lö'!U$4:U$400,AF24,'SM ute Lö'!P$4:P$400)) -> 230 | M24: =IF(AF24="","",SUMIF('SM ute Sö'!U$4:U$401,AF24,'SM ute Sö'!P$4:P$401)) -> 260 | N24: =IF(AF24="","",SUMIF('Roslagen Open'!U$4:U$400,AF24,'Roslagen Open'!P$4:P$400)) -> 198 | O24: =IF(AF24="","",SUMIF('Vaxholm Open'!U$4:U$400,AF24,'Vaxholm Open'!P$4:P$400)) -> 240 | P24: =IF(AF24="","",SUMIF('Dynapac Open'!U$4:U$400,AF24,'Dynapac Open'!P$4:P$400)) -> 0 | Q24: =IF(AF24="","",SUMIF('SmålandsDM ute'!U$4:U$400,AF24,'SmålandsDM ute'!P$4:P$400)) -> 0 | R24: =IF(AF24="","",SUMIF('BlekingeDM ute'!U$4:U$400,AF24,'BlekingeDM ute'!P$4:P$400)) -> 201 | S24: =IF(AF24="","",SUMIF('StockholmsDM ute'!U$4:U$400,AF24,'StockholmsDM ute'!P$4:P$400)) -> 0 | T24: =IF(AF24="","",SUMIF('Åseda Open'!U$4:U$406,AF24,'Åseda Open'!P$4:P$406)) -> 234 | U24: =IF(AF24="","",SUMIF(Höstskon!U$4:U$400,AF24,Höstskon!P$4:P$400)) -> 0 | V24: =IF(AF24="","",SUMIF('Carlskrona Cup'!U$4:U$400,AF24,'Carlskrona Cup'!P$4:P$400)) -> 172 | W24: =IF(AF24="","",SUMIF('Sibbamåla Open'!U$4:U$400,AF24,'Sibbamåla Open'!P$4:P$400)) -> 101 | X24: =IF(AF24="","",SUMIF('Vaxholm Indoor'!U$4:U$400,AF24,'Vaxholm Indoor'!P$4:P$400)) -> 271 | Y24: =IF(AF24="","",SUMIF('SM inne 2022'!U$4:U$400,AF24,'SM inne 2022'!P$4:P$400)) -> 232 | Z24: =IF(AF24="","",SUMIF('SmålandsDM inne'!U$4:U$400,AF24,'SmålandsDM inne'!P$4:P$400)) -> 0 | AA24: =IF(AF24="","",SUMIF('BlekingeDM inne'!U$4:U$400,AF24,'BlekingeDM inne'!P$4:P$400)) -> 0 | AB24: =IF(AF24="","",SUMIF('StockholmsDM inne'!U$4:U$400,AF24,'StockholmsDM inne'!P$4:P$400)) -> 0 | AC24: =IF(AF24="","",SUMIF(Värendspokalen!U$4:U$400,AF24,Värendspokalen!P$4:P$400)) -> 0 | AD24: =IF(AF24="","",SUMIF('Tingsryd Open'!U$4:U$400,AF24,'Tingsryd Open'!P$4:P$400)) -> 0 | AF24: =IF(B24="","",SUMIF(Kastare!B$2:B$2999,B24,Kastare!A$2:A$2999)) -> 1016
A25: 22 | B25: Berndt Pettersson | C25: Lanternan B.c | D25: 2118 | F25: 10 | G25: 105.9 | I25: =IF(AF25="","",SUMIF('Jämjö Open'!U$4:U$400,AF25,'Jämjö Open'!P$4:P$400)) -> 0 | J25: =IF(AF25="","",SUMIF('Viby Open'!U$4:U$400,AF25,'Viby Open'!P$4:P$400)) -> 0 | K25: =IF(AF25="","",SUMIF('Björkenäs Open'!U$4:U$400,AF25,'Björkenäs Open'!P$4:P$400)) -> 0 | L25: =IF(AF25="","",SUMIF('SM ute Lö'!U$4:U$400,AF25,'SM ute Lö'!P$4:P$400)) -> 224 | M25: =IF(AF25="","",SUMIF('SM ute Sö'!U$4:U$401,AF25,'SM ute Sö'!P$4:P$401)) -> 175 | N25: =IF(AF25="","",SUMIF('Roslagen Open'!U$4:U$400,AF25,'Roslagen Open'!P$4:P$400)) -> 0 | O25: =IF(AF25="","",SUMIF('Vaxholm Open'!U$4:U$400,AF25,'Vaxholm Open'!P$4:P$400)) -> 0 | P25: =IF(AF25="","",SUMIF('Dynapac Open'!U$4:U$400,AF25,'Dynapac Open'!P$4:P$400)) -> 0 | Q25: =IF(AF25="","",SUMIF('SmålandsDM ute'!U$4:U$400,AF25,'SmålandsDM ute'!P$4:P$400)) -> 0 | R25: =IF(AF25="","",SUMIF('BlekingeDM ute'!U$4:U$400,AF25,'BlekingeDM ute'!P$4:P$400)) -> 261 | S25: =IF(AF25="","",SUMIF('StockholmsDM ute'!U$4:U$400,AF25,'StockholmsDM ute'!P$4:P$400)) -> 0 | T25: =IF(AF25="","",SUMIF('Åseda Open'!U$4:U$406,AF25,'Åseda Open'!P$4:P$406)) -> 228 | U25: =IF(AF25="","",SUMIF(Höstskon!U$4:U$400,AF25,Höstskon!P$4:P$400)) -> 196 | V25: =IF(AF25="","",SUMIF('Carlskrona Cup'!U$4:U$400,AF25,'Carlskrona Cup'!P$4:P$400)) -> 222 | W25: =IF(AF25="","",SUMIF('Sibbamåla Open'!U$4:U$400,AF25,'Sibbamåla Open'!P$4:P$400)) -> 201 | X25: =IF(AF25="","",SUMIF('Vaxholm Indoor'!U$4:U$400,AF25,'Vaxholm Indoor'!P$4:P$400)) -> 0 | Y25: =IF(AF25="","",SUMIF('SM inne 2022'!U$4:U$400,AF25,'SM inne 2022'!P$4:P$400)) -> 221 | Z25: =IF(AF25="","",SUMIF('SmålandsDM inne'!U$4:U$400,AF25,'SmålandsDM inne'!P$4:P$400)) -> 0 | AA25: =IF(AF25="","",SUMIF('BlekingeDM inne'!U$4:U$400,AF25,'BlekingeDM inne'!P$4:P$400)) -> 144 | AB25: =IF(AF25="","",SUMIF('StockholmsDM inne'!U$4:U$400,AF25,'StockholmsDM inne'!P$4:P$400)) -> 0 | AC25: =IF(AF25="","",SUMIF(Värendspokalen!U$4:U$400,AF25,Värendspokalen!P$4:P$400)) -> 246 | AD25: =IF(AF25="","",SUMIF('Tingsryd Open'!U$4:U$400,AF25,'Tingsryd Open'!P$4:P$400)) -> 0 | AF25: =IF(B25="","",SUMIF(Kastare!B$2:B$2999,B25,Kastare!A$2:A$2999)) -> 1027
A26: 23 | B26: Bengt Fabbeke | C26: Dynapac Hsc | D26: 2113 | F26: 10 | G26: 105.65 | I26: =IF(AF26="","",SUMIF('Jämjö Open'!U$4:U$400,AF26,'Jämjö Open'!P$4:P$400)) -> 0 | J26: =IF(AF26="","",SUMIF('Viby Open'!U$4:U$400,AF26,'Viby Open'!P$4:P$400)) -> 0 | K26: =IF(AF26="","",SUMIF('Björkenäs Open'!U$4:U$400,AF26,'Björkenäs Open'!P$4:P$400)) -> 0 | L26: =IF(AF26="","",SUMIF('SM ute Lö'!U$4:U$400,AF26,'SM ute Lö'!P$4:P$400)) -> 189 | M26: =IF(AF26="","",SUMIF('SM ute Sö'!U$4:U$401,AF26,'SM ute Sö'!P$4:P$401)) -> 141 | N26: =IF(AF26="","",SUMIF('Roslagen Open'!U$4:U$400,AF26,'Roslagen Open'!P$4:P$400)) -> 0 | O26: =IF(AF26="","",SUMIF('Vaxholm Open'!U$4:U$400,AF26,'Vaxholm Open'!P$4:P$400)) -> 0 | P26: =IF(AF26="","",SUMIF('Dynapac Open'!U$4:U$400,AF26,'Dynapac Open'!P$4:P$400)) -> 0 | Q26: =IF(AF26="","",SUMIF('SmålandsDM ute'!U$4:U$400,AF26,'SmålandsDM ute'!P$4:P$400)) -> 0 | R26: =IF(AF26="","",SUMIF('BlekingeDM ute'!U$4:U$400,AF26,'BlekingeDM ute'!P$4:P$400)) -> 255 | S26: =IF(AF26="","",SUMIF('StockholmsDM ute'!U$4:U$400,AF26,'StockholmsDM ute'!P$4:P$400)) -> 0 | T26: =IF(AF26="","",SUMIF('Åseda Open'!U$4:U$406,AF26,'Åseda Open'!P$4:P$406)) -> 179 | U26: =IF(AF26="","",SUMIF(Höstskon!U$4:U$400,AF26,Höstskon!P$4:P$400)) -> 280 | V26: =IF(AF26="","",SUMIF('Carlskrona Cup'!U$4:U$400,AF26,'Carlskrona Cup'!P$4:P$400)) -> 184 | W26: =IF(AF26="","",SUMIF('Sibbamåla Open'!U$4:U$400,AF26,'Sibbamåla Open'!P$4:P$400)) -> 220 | X26: =IF(AF26="","",SUMIF('Vaxholm Indoor'!U$4:U$400,AF26,'Vaxholm Indoor'!P$4:P$400)) -> 0 | Y26: =IF(AF26="","",SUMIF('SM inne 2022'!U$4:U$400,AF26,'SM inne 2022'!P$4:P$400)) -> 187 | Z26: =IF(AF26="","",SUMIF('SmålandsDM inne'!U$4:U$400,AF26,'SmålandsDM inne'!P$4:P$400)) -> 0 | AA26: =IF(AF26="","",SUMIF('BlekingeDM inne'!U$4:U$400,AF26,'BlekingeDM inne'!P$4:P$400)) -> 215 | AB26: =IF(AF26="","",SUMIF('StockholmsDM inne'!U$4:U$400,AF26,'StockholmsDM inne'!P$4:P$400)) -> 0 | AC26: =IF(AF26="","",SUMIF(Värendspokalen!U$4:U$400,AF26,Värendspokalen!P$4:P$400)) -> 263 | AD26: =IF(AF26="","",SUMIF('Tingsryd Open'!U$4:U$400,AF26,'Tingsryd Open'!P$4:P$400)) -> 0 | AF26: =IF(B26="","",SUMIF(Kastare!B$2:B$2999,B26,Kastare!A$2:A$2999)) -> 1037
A27: 24 | B27: Gilbert Pettersson | C27: Lanternan | D27: 2040 | F27: 7 | G27: 145.7142857 | I27: =IF(AF27="","",SUMIF('Jämjö Open'!U$4:U$400,AF27,'Jämjö Open'!P$4:P$400)) -> 0 | J27: =IF(AF27="","",SUMIF('Viby Open'!U$4:U$400,AF27,'Viby Open'!P$4:P$400)) -> 0 | K27: =IF(AF27="","",SUMIF('Björkenäs Open'!U$4:U$400,AF27,'Björkenäs Open'!P$4:P$400)) -> 0 | L27: =IF(AF27="","",SUMIF('SM ute Lö'!U$4:U$400,AF27,'SM ute Lö'!P$4:P$400)) -> 0 | M27: =IF(AF27="","",SUMIF('SM ute Sö'!U$4:U$401,AF27,'SM ute Sö'!P$4:P$401)) -> 0 | N27: =IF(AF27="","",SUMIF('Roslagen Open'!U$4:U$400,AF27,'Roslagen Open'!P$4:P$400)) -> 0 | O27: =IF(AF27="","",SUMIF('Vaxholm Open'!U$4:U$400,AF27,'Vaxholm Open'!P$4:P$400)) -> 0 | P27: =IF(AF27="","",SUMIF('Dynapac Open'!U$4:U$400,AF27,'Dynapac Open'!P$4:P$400)) -> 0 | Q27: =IF(AF27="","",SUMIF('SmålandsDM ute'!U$4:U$400,AF27,'SmålandsDM ute'!P$4:P$400)) -> 0 | R27: =IF(AF27="","",SUMIF('BlekingeDM ute'!U$4:U$400,AF27,'BlekingeDM ute'!P$4:P$400)) -> 0 | S27: =IF(AF27="","",SUMIF('StockholmsDM ute'!U$4:U$400,AF27,'StockholmsDM ute'!P$4:P$400)) -> 0 | T27: =IF(AF27="","",SUMIF('Åseda Open'!U$4:U$406,AF27,'Åseda Open'!P$4:P$406)) -> 272 | U27: =IF(AF27="","",SUMIF(Höstskon!U$4:U$400,AF27,Höstskon!P$4:P$400)) -> 351 | V27: =IF(AF27="","",SUMIF('Carlskrona Cup'!U$4:U$400,AF27,'Carlskrona Cup'!P$4:P$400)) -> 269 | W27: =IF(AF27="","",SUMIF('Sibbamåla Open'!U$4:U$400,AF27,'Sibbamåla Open'!P$4:P$400)) -> 387 | X27: =IF(AF27="","",SUMIF('Vaxholm Indoor'!U$4:U$400,AF27,'Vaxholm Indoor'!P$4:P$400)) -> 0 | Y27: =IF(AF27="","",SUMIF('SM inne 2022'!U$4:U$400,AF27,'SM inne 2022'!P$4:P$400)) -> 319 | Z27: =IF(AF27="","",SUMIF('SmålandsDM inne'!U$4:U$400,AF27,'SmålandsDM inne'!P$4:P$400)) -> 0 | AA27: =IF(AF27="","",SUMIF('BlekingeDM inne'!U$4:U$400,AF27,'BlekingeDM inne'!P$4:P$400)) -> 157 | AB27: =IF(AF27="","",SUMIF('StockholmsDM inne'!U$4:U$400,AF27,'StockholmsDM inne'!P$4:P$400)) -> 0 | AC27: =IF(AF27="","",SUMIF(Värendspokalen!U$4:U$400,AF27,Värendspokalen!P$4:P$400)) -> 285 | AD27: =IF(AF27="","",SUMIF('Tingsryd Open'!U$4:U$400,AF27,'Tingsryd Open'!P$4:P$400)) -> 0 | AF27: =IF(B27="","",SUMIF(Kastare!B$2:B$2999,B27,Kastare!A$2:A$2999)) -> 1050
A28: 25 | B28: Ronny Lundberg | C28: Lanternan B.c | D28: 1993 | F28: 9 | G28: 110.7222222 | I28: =IF(AF28="","",SUMIF('Jämjö Open'!U$4:U$400,AF28,'Jämjö Open'!P$4:P$400)) -> 0 | J28: =IF(AF28="","",SUMIF('Viby Open'!U$4:U$400,AF28,'Viby Open'!P$4:P$400)) -> 0 | K28: =IF(AF28="","",SUMIF('Björkenäs Open'!U$4:U$400,AF28,'Björkenäs Open'!P$4:P$400)) -> 0 | L28: =IF(AF28="","",SUMIF('SM ute Lö'!U$4:U$400,AF28,'SM ute Lö'!P$4:P$400)) -> 200 | M28: =IF(AF28="","",SUMIF('SM ute Sö'!U$4:U$401,AF28,'SM ute Sö'!P$4:P$401)) -> 216 | N28: =IF(AF28="","",SUMIF('Roslagen Open'!U$4:U$400,AF28,'Roslagen Open'!P$4:P$400)) -> 0 | O28: =IF(AF28="","",SUMIF('Vaxholm Open'!U$4:U$400,AF28,'Vaxholm Open'!P$4:P$400)) -> 0 | P28: =IF(AF28="","",SUMIF('Dynapac Open'!U$4:U$400,AF28,'Dynapac Open'!P$4:P$400)) -> 0 | Q28: =IF(AF28="","",SUMIF('SmålandsDM ute'!U$4:U$400,AF28,'SmålandsDM ute'!P$4:P$400)) -> 0 | R28: =IF(AF28="","",SUMIF('BlekingeDM ute'!U$4:U$400,AF28,'BlekingeDM ute'!P$4:P$400)) -> 266 | S28: =IF(AF28="","",SUMIF('StockholmsDM ute'!U$4:U$400,AF28,'StockholmsDM ute'!P$4:P$400)) -> 0 | T28: =IF(AF28="","",SUMIF('Åseda Open'!U$4:U$406,AF28,'Åseda Open'!P$4:P$406)) -> 314 | U28: =IF(AF28="","",SUMIF(Höstskon!U$4:U$400,AF28,Höstskon!P$4:P$400)) -> 203 | V28: =IF(AF28="","",SUMIF('Carlskrona Cup'!U$4:U$400,AF28,'Carlskrona Cup'!P$4:P$400)) -> 220 | W28: =IF(AF28="","",SUMIF('Sibbamåla Open'!U$4:U$400,AF28,'Sibbamåla Open'!P$4:P$400)) -> 157 | X28: =IF(AF28="","",SUMIF('Vaxholm Indoor'!U$4:U$400,AF28,'Vaxholm Indoor'!P$4:P$400)) -> 0 | Y28: =IF(AF28="","",SUMIF('SM inne 2022'!U$4:U$400,AF28,'SM inne 2022'!P$4:P$400)) -> 0 | Z28: =IF(AF28="","",SUMIF('SmålandsDM inne'!U$4:U$400,AF28,'SmålandsDM inne'!P$4:P$400)) -> 0 | AA28: =IF(AF28="","",SUMIF('BlekingeDM inne'!U$4:U$400,AF28,'BlekingeDM inne'!P$4:P$400)) -> 214 | AB28: =IF(AF28="","",SUMIF('StockholmsDM inne'!U$4:U$400,AF28,'StockholmsDM inne'!P$4:P$400)) -> 0 | AC28: =IF(AF28="","",SUMIF(Värendspokalen!U$4:U$400,AF28,Värendspokalen!P$4:P$400)) -> 203 | AD28: =IF(AF28="","",SUMIF('Tingsryd Open'!U$4:U$400,AF28,'Tingsryd Open'!P$4:P$400)) -> 0 | AF28: =IF(B28="","",SUMIF(Kastare!B$2:B$2999,B28,Kastare!A$2:A$2999)) -> 1023
A29: 26 | B29: Inge Skoglöv | C29: Jämjö Hsk | D29: 1950 | F29: 8 | G29: 121.875 | I29: =IF(AF29="","",SUMIF('Jämjö Open'!U$4:U$400,AF29,'Jämjö Open'!P$4:P$400)) -> 0 | J29: =IF(AF29="","",SUMIF('Viby Open'!U$4:U$400,AF29,'Viby Open'!P$4:P$400)) -> 0 | K29: =IF(AF29="","",SUMIF('Björkenäs Open'!U$4:U$400,AF29,'Björkenäs Open'!P$4:P$400)) -> 0 | L29: =IF(AF29="","",SUMIF('SM ute Lö'!U$4:U$400,AF29,'SM ute Lö'!P$4:P$400)) -> 294 | M29: =IF(AF29="","",SUMIF('SM ute Sö'!U$4:U$401,AF29,'SM ute Sö'!P$4:P$401)) -> 189 | N29: =IF(AF29="","",SUMIF('Roslagen Open'!U$4:U$400,AF29,'Roslagen Open'!P$4:P$400)) -> 0 | O29: =IF(AF29="","",SUMIF('Vaxholm Open'!U$4:U$400,AF29,'Vaxholm Open'!P$4:P$400)) -> 0 | P29: =IF(AF29="","",SUMIF('Dynapac Open'!U$4:U$400,AF29,'Dynapac Open'!P$4:P$400)) -> 0 | Q29: =IF(AF29="","",SUMIF('SmålandsDM ute'!U$4:U$400,AF29,'SmålandsDM ute'!P$4:P$400)) -> 0 | R29: =IF(AF29="","",SUMIF('BlekingeDM ute'!U$4:U$400,AF29,'BlekingeDM ute'!P$4:P$400)) -> 224 | S29: =IF(AF29="","",SUMIF('StockholmsDM ute'!U$4:U$400,AF29,'StockholmsDM ute'!P$4:P$400)) -> 0 | T29: =IF(AF29="","",SUMIF('Åseda Open'!U$4:U$406,AF29,'Åseda Open'!P$4:P$406)) -> 257 | U29: =IF(AF29="","",SUMIF(Höstskon!U$4:U$400,AF29,Höstskon!P$4:P$400)) -> 272 | V29: =IF(AF29="","",SUMIF('Carlskrona Cup'!U$4:U$400,AF29,'Carlskrona Cup'!P$4:P$400)) -> 0 | W29: =IF(AF29="","",SUMIF('Sibbamåla Open'!U$4:U$400,AF29,'Sibbamåla Open'!P$4:P$400)) -> 0 | X29: =IF(AF29="","",SUMIF('Vaxholm Indoor'!U$4:U$400,AF29,'Vaxholm Indoor'!P$4:P$400)) -> 0 | Y29: =IF(AF29="","",SUMIF('SM inne 2022'!U$4:U$400,AF29,'SM inne 2022'!P$4:P$400)) -> 222 | Z29: =IF(AF29="","",SUMIF('SmålandsDM inne'!U$4:U$400,AF29,'SmålandsDM inne'!P$4:P$400)) -> 0 | AA29: =IF(AF29="","",SUMIF('BlekingeDM inne'!U$4:U$400,AF29,'BlekingeDM inne'!P$4:P$400)) -> 255 | AB29: =IF(AF29="","",SUMIF('StockholmsDM inne'!U$4:U$400,AF29,'StockholmsDM inne'!P$4:P$400)) -> 0 | AC29: =IF(AF29="","",SUMIF(Värendspokalen!U$4:U$400,AF29,Värendspokalen!P$4:P$400)) -> 237 | AD29: =IF(AF29="","",SUMIF('Tingsryd Open'!U$4:U$400,AF29,'Tingsryd Open'!P$4:P$400)) -> 0 | AF29: =IF(B29="","",SUMIF(Kastare!B$2:B$2999,B29,Kastare!A$2:A$2999)) -> 1062
A30: 27 | B30: Ewa Malmqvist | C30: Jämjö Hsk | D30: 1885 | F30: 9 | G30: 104.7222222 | I30: =IF(AF30="","",SUMIF('Jämjö Open'!U$4:U$400,AF30,'Jämjö Open'!P$4:P$400)) -> 0 | J30: =IF(AF30="","",SUMIF('Viby Open'!U$4:U$400,AF30,'Viby Open'!P$4:P$400)) -> 0 | K30: =IF(AF30="","",SUMIF('Björkenäs Open'!U$4:U$400,AF30,'Björkenäs Open'!P$4:P$400)) -> 0 | L30: =IF(AF30="","",SUMIF('SM ute Lö'!U$4:U$400,AF30,'SM ute Lö'!P$4:P$400)) -> 256 | M30: =IF(AF30="","",SUMIF('SM ute Sö'!U$4:U$401,AF30,'SM ute Sö'!P$4:P$401)) -> 226 | N30: =IF(AF30="","",SUMIF('Roslagen Open'!U$4:U$400,AF30,'Roslagen Open'!P$4:P$400)) -> 0 | O30: =IF(AF30="","",SUMIF('Vaxholm Open'!U$4:U$400,AF30,'Vaxholm Open'!P$4:P$400)) -> 0 | P30: =IF(AF30="","",SUMIF('Dynapac Open'!U$4:U$400,AF30,'Dynapac Open'!P$4:P$400)) -> 0 | Q30: =IF(AF30="","",SUMIF('SmålandsDM ute'!U$4:U$400,AF30,'SmålandsDM ute'!P$4:P$400)) -> 0 | R30: =IF(AF30="","",SUMIF('BlekingeDM ute'!U$4:U$400,AF30,'BlekingeDM ute'!P$4:P$400)) -> 197 | S30: =IF(AF30="","",SUMIF('StockholmsDM ute'!U$4:U$400,AF30,'StockholmsDM ute'!P$4:P$400)) -> 0 | T30: =IF(AF30="","",SUMIF('Åseda Open'!U$4:U$406,AF30,'Åseda Open'!P$4:P$406)) -> 226 | U30: =IF(AF30="","",SUMIF(Höstskon!U$4:U$400,AF30,Höstskon!P$4:P$400)) -> 200 | V30: =IF(AF30="","",SUMIF('Carlskrona Cup'!U$4:U$400,AF30,'Carlskrona Cup'!P$4:P$400)) -> 208 | W30: =IF(AF30="","",SUMIF('Sibbamåla Open'!U$4:U$400,AF30,'Sibbamåla Open'!P$4:P$400)) -> 0 | X30: =IF(AF30="","",SUMIF('Vaxholm Indoor'!U$4:U$400,AF30,'Vaxholm Indoor'!P$4:P$400)) -> 0 | Y30: =IF(AF30="","",SUMIF('SM inne 2022'!U$4:U$400,AF30,'SM inne 2022'!P$4:P$400)) -> 188 | Z30: =IF(AF30="","",SUMIF('SmålandsDM inne'!U$4:U$400,AF30,'SmålandsDM inne'!P$4:P$400)) -> 0 | AA30: =IF(AF30="","",SUMIF('BlekingeDM inne'!U$4:U$400,AF30,'BlekingeDM inne'!P$4:P$400)) -> 226 | AB30: =IF(AF30="","",SUMIF('StockholmsDM inne'!U$4:U$400,AF30,'StockholmsDM inne'!P$4:P$400)) -> 0 | AC30: =IF(AF30="","",SUMIF(Värendspokalen!U$4:U$400,AF30,Värendspokalen!P$4:P$400)) -> 158 | AD30: =IF(AF30="","",SUMIF('Tingsryd Open'!U$4:U$400,AF30,'Tingsryd Open'!P$4:P$400)) -> 0 | AF30: =IF(B30="","",SUMIF(Kastare!B$2:B$2999,B30,Kastare!A$2:A$2999)) -> 1057
A31: 28 | B31: Johan Johansson | C31: Tingsryd Hsc | D31: 1882 | F31: 7 | G31: 134.4285714 | I31: =IF(AF31="","",SUMIF('Jämjö Open'!U$4:U$400,AF31,'Jämjö Open'!P$4:P$400)) -> 0 | J31: =IF(AF31="","",SUMIF('Viby Open'!U$4:U$400,AF31,'Viby Open'!P$4:P$400)) -> 0 | K31: =IF(AF31="","",SUMIF('Björkenäs Open'!U$4:U$400,AF31,'Björkenäs Open'!P$4:P$400)) -> 0 | L31: =IF(AF31="","",SUMIF('SM ute Lö'!U$4:U$400,AF31,'SM ute Lö'!P$4:P$400)) -> 223 | M31: =IF(AF31="","",SUMIF('SM ute Sö'!U$4:U$401,AF31,'SM ute Sö'!P$4:P$401)) -> 251 | N31: =IF(AF31="","",SUMIF('Roslagen Open'!U$4:U$400,AF31,'Roslagen Open'!P$4:P$400)) -> 0 | O31: =IF(AF31="","",SUMIF('Vaxholm Open'!U$4:U$400,AF31,'Vaxholm Open'!P$4:P$400)) -> 0 | P31: =IF(AF31="","",SUMIF('Dynapac Open'!U$4:U$400,AF31,'Dynapac Open'!P$4:P$400)) -> 0 | Q31: =IF(AF31="","",SUMIF('SmålandsDM ute'!U$4:U$400,AF31,'SmålandsDM ute'!P$4:P$400)) -> 232 | R31: =IF(AF31="","",SUMIF('BlekingeDM ute'!U$4:U$400,AF31,'BlekingeDM ute'!P$4:P$400)) -> 0 | S31: =IF(AF31="","",SUMIF('StockholmsDM ute'!U$4:U$400,AF31,'StockholmsDM ute'!P$4:P$400)) -> 0 | T31: =IF(AF31="","",SUMIF('Åseda Open'!U$4:U$406,AF31,'Åseda Open'!P$4:P$406)) -> 0 | U31: =IF(AF31="","",SUMIF(Höstskon!U$4:U$400,AF31,Höstskon!P$4:P$400)) -> 234 | V31: =IF(AF31="","",SUMIF('Carlskrona Cup'!U$4:U$400,AF31,'Carlskrona Cup'!P$4:P$400)) -> 274 | W31: =IF(AF31="","",SUMIF('Sibbamåla Open'!U$4:U$400,AF31,'Sibbamåla Open'!P$4:P$400)) -> 0 | X31: =IF(AF31="","",SUMIF('Vaxholm Indoor'!U$4:U$400,AF31,'Vaxholm Indoor'!P$4:P$400)) -> 0 | Y31: =IF(AF31="","",SUMIF('SM inne 2022'!U$4:U$400,AF31,'SM inne 2022'!P$4:P$400)) -> 307 | Z31: =IF(AF31="","",SUMIF('SmålandsDM inne'!U$4:U$400,AF31,'SmålandsDM inne'!P$4:P$400)) -> 0 | AA31: =IF(AF31="","",SUMIF('BlekingeDM inne'!U$4:U$400,AF31,'BlekingeDM inne'!P$4:P$400)) -> 0 | AB31: =IF(AF31="","",SUMIF('StockholmsDM inne'!U$4:U$400,AF31,'StockholmsDM inne'!P$4:P$400)) -> 0 | AC31: =IF(AF31="","",SUMIF(Värendspokalen!U$4:U$400,AF31,Värendspokalen!P$4:P$400)) -> 361 | AD31: =IF(AF31="","",SUMIF('Tingsryd Open'!U$4:U$400,AF31,'Tingsryd Open'!P$4:P$400)) -> 0 | AF31: =IF(B31="","",SUMIF(Kastare!B$2:B$2999,B31,Kastare!A$2:A$2999)) -> 1025
A32: 29 | B32: Kerstin Svensson | C32: Växjö Hsk | D32: 1804 | F32: 9 | G32: 100.2222222 | I32: =IF(AF32="","",SUMIF('Jämjö Open'!U$4:U$400,AF32,'Jämjö Open'!P$4:P$400)) -> 0 | J32: =IF(AF32="","",SUMIF('Viby Open'!U$4:U$400,AF32,'Viby Open'!P$4:P$400)) -> 0 | K32: =IF(AF32="","",SUMIF('Björkenäs Open'!U$4:U$400,AF32,'Björkenäs Open'!P$4:P$400)) -> 0 | L32: =IF(AF32="","",SUMIF('SM ute Lö'!U$4:U$400,AF32,'SM ute Lö'!P$4:P$400)) -> 281 | M32: =IF(AF32="","",SUMIF('SM ute Sö'!U$4:U$401,AF32,'SM ute Sö'!P$4:P$401)) -> 212 | N32: =IF(AF32="","",SUMIF('Roslagen Open'!U$4:U$400,AF32,'Roslagen Open'!P$4:P$400)) -> 0 | O32: =IF(AF32="","",SUMIF('Vaxholm Open'!U$4:U$400,AF32,'Vaxholm Open'!P$4:P$400)) -> 0 | P32: =IF(AF32="","",SUMIF('Dynapac Open'!U$4:U$400,AF32,'Dynapac Open'!P$4:P$400)) -> 0 | Q32: =IF(AF32="","",SUMIF('SmålandsDM ute'!U$4:U$400,AF32,'SmålandsDM ute'!P$4:P$400)) -> 188 | R32: =IF(AF32="","",SUMIF('BlekingeDM ute'!U$4:U$400,AF32,'BlekingeDM ute'!P$4:P$400)) -> 0 | S32: =IF(AF32="","",SUMIF('StockholmsDM ute'!U$4:U$400,AF32,'StockholmsDM ute'!P$4:P$400)) -> 0 | T32: =IF(AF32="","",SUMIF('Åseda Open'!U$4:U$406,AF32,'Åseda Open'!P$4:P$406)) -> 196 | U32: =IF(AF32="","",SUMIF(Höstskon!U$4:U$400,AF32,Höstskon!P$4:P$400)) -> 208 | V32: =IF(AF32="","",SUMIF('Carlskrona Cup'!U$4:U$400,AF32,'Carlskrona Cup'!P$4:P$400)) -> 167 | W32: =IF(AF32="","",SUMIF('Sibbamåla Open'!U$4:U$400,AF32,'Sibbamåla Open'!P$4:P$400)) -> 156 | X32: =IF(AF32="","",SUMIF('Vaxholm Indoor'!U$4:U$400,AF32,'Vaxholm Indoor'!P$4:P$400)) -> 0 | Y32: =IF(AF32="","",SUMIF('SM inne 2022'!U$4:U$400,AF32,'SM inne 2022'!P$4:P$400)) -> 169 | Z32: =IF(AF32="","",SUMIF('SmålandsDM inne'!U$4:U$400,AF32,'SmålandsDM inne'!P$4:P$400)) -> 0 | AA32: =IF(AF32="","",SUMIF('BlekingeDM inne'!U$4:U$400,AF32,'BlekingeDM inne'!P$4:P$400)) -> 0 | AB32: =IF(AF32="","",SUMIF('StockholmsDM inne'!U$4:U$400,AF32,'StockholmsDM inne'!P$4:P$400)) -> 0 | AC32: =IF(AF32="","",SUMIF(Värendspokalen!U$4:U$400,AF32,Värendspokalen!P$4:P$400)) -> 227 | AD32: =IF(AF32="","",SUMIF('Tingsryd Open'!U$4:U$400,AF32,'Tingsryd Open'!P$4:P$400)) -> 0 | AF32: =IF(B32="","",SUMIF(Kastare!B$2:B$2999,B32,Kastare!A$2:A$2999)) -> 1022
A33: 30 | B33: Lasse Brincner | C33: Värends Hsk | D33: 1798 | F33: 11 | G33: 81.72727273 | I33: =IF(AF33="","",SUMIF('Jämjö Open'!U$4:U$400,AF33,'Jämjö Open'!P$4:P$400)) -> 0 | J33: =IF(AF33="","",SUMIF('Viby Open'!U$4:U$400,AF33,'Viby Open'!P$4:P$400)) -> 0 | K33: =IF(AF33="","",SUMIF('Björkenäs Open'!U$4:U$400,AF33,'Björkenäs Open'!P$4:P$400)) -> 0 | L33: =IF(AF33="","",SUMIF('SM ute Lö'!U$4:U$400,AF33,'SM ute Lö'!P$4:P$400)) -> 172 | M33: =IF(AF33="","",SUMIF('SM ute Sö'!U$4:U$401,AF33,'SM ute Sö'!P$4:P$401)) -> 172 | N33: =IF(AF33="","",SUMIF('Roslagen Open'!U$4:U$400,AF33,'Roslagen Open'!P$4:P$400)) -> 147 | O33: =IF(AF33="","",SUMIF('Vaxholm Open'!U$4:U$400,AF33,'Vaxholm Open'!P$4:P$400)) -> 154 | P33: =IF(AF33="","",SUMIF('Dynapac Open'!U$4:U$400,AF33,'Dynapac Open'!P$4:P$400)) -> 0 | Q33: =IF(AF33="","",SUMIF('SmålandsDM ute'!U$4:U$400,AF33,'SmålandsDM ute'!P$4:P$400)) -> 111 | R33: =IF(AF33="","",SUMIF('BlekingeDM ute'!U$4:U$400,AF33,'BlekingeDM ute'!P$4:P$400)) -> 0 | S33: =IF(AF33="","",SUMIF('StockholmsDM ute'!U$4:U$400,AF33,'StockholmsDM ute'!P$4:P$400)) -> 0 | T33: =IF(AF33="","",SUMIF('Åseda Open'!U$4:U$406,AF33,'Åseda Open'!P$4:P$406)) -> 193 | U33: =IF(AF33="","",SUMIF(Höstskon!U$4:U$400,AF33,Höstskon!P$4:P$400)) -> 187 | V33: =IF(AF33="","",SUMIF('Carlskrona Cup'!U$4:U$400,AF33,'Carlskrona Cup'!P$4:P$400)) -> 213 | W33: =IF(AF33="","",SUMIF('Sibbamåla Open'!U$4:U$400,AF33,'Sibbamåla Open'!P$4:P$400)) -> 169 | X33: =IF(AF33="","",SUMIF('Vaxholm Indoor'!U$4:U$400,AF33,'Vaxholm Indoor'!P$4:P$400)) -> 0 | Y33: =IF(AF33="","",SUMIF('SM inne 2022'!U$4:U$400,AF33,'SM inne 2022'!P$4:P$400)) -> 138 | Z33: =IF(AF33="","",SUMIF('SmålandsDM inne'!U$4:U$400,AF33,'SmålandsDM inne'!P$4:P$400)) -> 0 | AA33: =IF(AF33="","",SUMIF('BlekingeDM inne'!U$4:U$400,AF33,'BlekingeDM inne'!P$4:P$400)) -> 0 | AB33: =IF(AF33="","",SUMIF('StockholmsDM inne'!U$4:U$400,AF33,'StockholmsDM inne'!P$4:P$400)) -> 0 | AC33: =IF(AF33="","",SUMIF(Värendspokalen!U$4:U$400,AF33,Värendspokalen!P$4:P$400)) -> 142 | AD33: =IF(AF33="","",SUMIF('Tingsryd Open'!U$4:U$400,AF33,'Tingsryd Open'!P$4:P$400)) -> 0 | AF33: =IF(B33="","",SUMIF(Kastare!B$2:B$2999,B33,Kastare!A$2:A$2999)) -> 1012
A34: 31 | B34: Björn Landberg | C34: Vaxholm Hsk | D34: 1761 | F34: 8 | G34: 110.0625 | I34: =IF(AF34="","",SUMIF('Jämjö Open'!U$4:U$400,AF34,'Jämjö Open'!P$4:P$400)) -> 0 | J34: =IF(AF34="","",SUMIF('Viby Open'!U$4:U$400,AF34,'Viby Open'!P$4:P$400)) -> 0 | K34: =IF(AF34="","",SUMIF('Björkenäs Open'!U$4:U$400,AF34,'Björkenäs Open'!P$4:P$400)) -> 0 | L34: =IF(AF34="","",SUMIF('SM ute Lö'!U$4:U$400,AF34,'SM ute Lö'!P$4:P$400)) -> 203 | M34: =IF(AF34="","",SUMIF('SM ute Sö'!U$4:U$401,AF34,'SM ute Sö'!P$4:P$401)) -> 300 | N34: =IF(AF34="","",SUMIF('Roslagen Open'!U$4:U$400,AF34,'Roslagen Open'!P$4:P$400)) -> 278 | O34: =IF(AF34="","",SUMIF('Vaxholm Open'!U$4:U$400,AF34,'Vaxholm Open'!P$4:P$400)) -> 214 | P34: =IF(AF34="","",SUMIF('Dynapac Open'!U$4:U$400,AF34,'Dynapac Open'!P$4:P$400)) -> 0 | Q34: =IF(AF34="","",SUMIF('SmålandsDM ute'!U$4:U$400,AF34,'SmålandsDM ute'!P$4:P$400)) -> 0 | R34: =IF(AF34="","",SUMIF('BlekingeDM ute'!U$4:U$400,AF34,'BlekingeDM ute'!P$4:P$400)) -> 0 | S34: =IF(AF34="","",SUMIF('StockholmsDM ute'!U$4:U$400,AF34,'StockholmsDM ute'!P$4:P$400)) -> 204 | T34: =IF(AF34="","",SUMIF('Åseda Open'!U$4:U$406,AF34,'Åseda Open'!P$4:P$406)) -> 0 | U34: =IF(AF34="","",SUMIF(Höstskon!U$4:U$400,AF34,Höstskon!P$4:P$400)) -> 0 | V34: =IF(AF34="","",SUMIF('Carlskrona Cup'!U$4:U$400,AF34,'Carlskrona Cup'!P$4:P$400)) -> 0 | W34: =IF(AF34="","",SUMIF('Sibbamåla Open'!U$4:U$400,AF34,'Sibbamåla Open'!P$4:P$400)) -> 0 | X34: =IF(AF34="","",SUMIF('Vaxholm Indoor'!U$4:U$400,AF34,'Vaxholm Indoor'!P$4:P$400)) -> 123 | Y34: =IF(AF34="","",SUMIF('SM inne 2022'!U$4:U$400,AF34,'SM inne 2022'!P$4:P$400)) -> 324 | Z34: =IF(AF34="","",SUMIF('SmålandsDM inne'!U$4:U$400,AF34,'SmålandsDM inne'!P$4:P$400)) -> 0 | AA34: =IF(AF34="","",SUMIF('BlekingeDM inne'!U$4:U$400,AF34,'BlekingeDM inne'!P$4:P$400)) -> 0 | AB34: =IF(AF34="","",SUMIF('StockholmsDM inne'!U$4:U$400,AF34,'StockholmsDM inne'!P$4:P$400)) -> 115 | AC34: =IF(AF34="","",SUMIF(Värendspokalen!U$4:U$400,AF34,Värendspokalen!P$4:P$400)) -> 0 | AD34: =IF(AF34="","",SUMIF('Tingsryd Open'!U$4:U$400,AF34,'Tingsryd Open'!P$4:P$400)) -> 0 | AF34: =IF(B34="","",SUMIF(Kastare!B$2:B$2999,B34,Kastare!A$2:A$2999)) -> 1020
A35: 32 | B35: Dan Hallstan | C35: Växjö Hsk | D35: 1753 | F35: 9 | G35: 97.38888889 | I35: =IF(AF35="","",SUMIF('Jämjö Open'!U$4:U$400,AF35,'Jämjö Open'!P$4:P$400)) -> 0 | J35: =IF(AF35="","",SUMIF('Viby Open'!U$4:U$400,AF35,'Viby Open'!P$4:P$400)) -> 0 | K35: =IF(AF35="","",SUMIF('Björkenäs Open'!U$4:U$400,AF35,'Björkenäs Open'!P$4:P$400)) -> 0 | L35: =IF(AF35="","",SUMIF('SM ute Lö'!U$4:U$400,AF35,'SM ute Lö'!P$4:P$400)) -> 143 | M35: =IF(AF35="","",SUMIF('SM ute Sö'!U$4:U$401,AF35,'SM ute Sö'!P$4:P$401)) -> 224 | N35: =IF(AF35="","",SUMIF('Roslagen Open'!U$4:U$400,AF35,'Roslagen Open'!P$4:P$400)) -> 0 | O35: =IF(AF35="","",SUMIF('Vaxholm Open'!U$4:U$400,AF35,'Vaxholm Open'!P$4:P$400)) -> 0 | P35: =IF(AF35="","",SUMIF('Dynapac Open'!U$4:U$400,AF35,'Dynapac Open'!P$4:P$400)) -> 0 | Q35: =IF(AF35="","",SUMIF('SmålandsDM ute'!U$4:U$400,AF35,'SmålandsDM ute'!P$4:P$400)) -> 250 | R35: =IF(AF35="","",SUMIF('BlekingeDM ute'!U$4:U$400,AF35,'BlekingeDM ute'!P$4:P$400)) -> 0 | S35: =IF(AF35="","",SUMIF('StockholmsDM ute'!U$4:U$400,AF35,'StockholmsDM ute'!P$4:P$400)) -> 0 | T35: =IF(AF35="","",SUMIF('Åseda Open'!U$4:U$406,AF35,'Åseda Open'!P$4:P$406)) -> 199 | U35: =IF(AF35="","",SUMIF(Höstskon!U$4:U$400,AF35,Höstskon!P$4:P$400)) -> 167 | V35: =IF(AF35="","",SUMIF('Carlskrona Cup'!U$4:U$400,AF35,'Carlskrona Cup'!P$4:P$400)) -> 170 | W35: =IF(AF35="","",SUMIF('Sibbamåla Open'!U$4:U$400,AF35,'Sibbamåla Open'!P$4:P$400)) -> 222 | X35: =IF(AF35="","",SUMIF('Vaxholm Indoor'!U$4:U$400,AF35,'Vaxholm Indoor'!P$4:P$400)) -> 0 | Y35: =IF(AF35="","",SUMIF('SM inne 2022'!U$4:U$400,AF35,'SM inne 2022'!P$4:P$400)) -> 185 | Z35: =IF(AF35="","",SUMIF('SmålandsDM inne'!U$4:U$400,AF35,'SmålandsDM inne'!P$4:P$400)) -> 0 | AA35: =IF(AF35="","",SUMIF('BlekingeDM inne'!U$4:U$400,AF35,'BlekingeDM inne'!P$4:P$400)) -> 0 | AB35: =IF(AF35="","",SUMIF('StockholmsDM inne'!U$4:U$400,AF35,'StockholmsDM inne'!P$4:P$400)) -> 0 | AC35: =IF(AF35="","",SUMIF(Värendspokalen!U$4:U$400,AF35,Värendspokalen!P$4:P$400)) -> 193 | AD35: =IF(AF35="","",SUMIF('Tingsryd Open'!U$4:U$400,AF35,'Tingsryd Open'!P$4:P$400)) -> 0 | AF35: =IF(B35="","",SUMIF(Kastare!B$2:B$2999,B35,Kastare!A$2:A$2999)) -> 1018
A36: 33 | B36: Leif Sundahl | C36: Carlskrona Hsc | D36: 1745 | F36: 9 | G36: 96.94444444 | I36: =IF(AF36="","",SUMIF('Jämjö Open'!U$4:U$400,AF36,'Jämjö Open'!P$4:P$400)) -> 0 | J36: =IF(AF36="","",SUMIF('Viby Open'!U$4:U$400,AF36,'Viby Open'!P$4:P$400)) -> 0 | K36: =IF(AF36="","",SUMIF('Björkenäs Open'!U$4:U$400,AF36,'Björkenäs Open'!P$4:P$400)) -> 0 | L36: =IF(AF36="","",SUMIF('SM ute Lö'!U$4:U$400,AF36,'SM ute Lö'!P$4:P$400)) -> 198 | M36: =IF(AF36="","",SUMIF('SM ute Sö'!U$4:U$401,AF36,'SM ute Sö'!P$4:P$401)) -> 0 | N36: =IF(AF36="","",SUMIF('Roslagen Open'!U$4:U$400,AF36,'Roslagen Open'!P$4:P$400)) -> 0 | O36: =IF(AF36="","",SUMIF('Vaxholm Open'!U$4:U$400,AF36,'Vaxholm Open'!P$4:P$400)) -> 0 | P36: =IF(AF36="","",SUMIF('Dynapac Open'!U$4:U$400,AF36,'Dynapac Open'!P$4:P$400)) -> 0 | Q36: =IF(AF36="","",SUMIF('SmålandsDM ute'!U$4:U$400,AF36,'SmålandsDM ute'!P$4:P$400)) -> 0 | R36: =IF(AF36="","",SUMIF('BlekingeDM ute'!U$4:U$400,AF36,'BlekingeDM ute'!P$4:P$400)) -> 283 | S36: =IF(AF36="","",SUMIF('StockholmsDM ute'!U$4:U$400,AF36,'StockholmsDM ute'!P$4:P$400)) -> 0 | T36: =IF(AF36="","",SUMIF('Åseda Open'!U$4:U$406,AF36,'Åseda Open'!P$4:P$406)) -> 254 | U36: =IF(AF36="","",SUMIF(Höstskon!U$4:U$400,AF36,Höstskon!P$4:P$400)) -> 318 | V36: =IF(AF36="","",SUMIF('Carlskrona Cup'!U$4:U$400,AF36,'Carlskrona Cup'!P$4:P$400)) -> 185 | W36: =IF(AF36="","",SUMIF('Sibbamåla Open'!U$4:U$400,AF36,'Sibbamåla Open'!P$4:P$400)) -> 96 | X36: =IF(AF36="","",SUMIF('Vaxholm Indoor'!U$4:U$400,AF36,'Vaxholm Indoor'!P$4:P$400)) -> 83 | Y36: =IF(AF36="","",SUMIF('SM inne 2022'!U$4:U$400,AF36,'SM inne 2022'!P$4:P$400)) -> 204 | Z36: =IF(AF36="","",SUMIF('SmålandsDM inne'!U$4:U$400,AF36,'SmålandsDM inne'!P$4:P$400)) -> 0 | AA36: =IF(AF36="","",SUMIF('BlekingeDM inne'!U$4:U$400,AF36,'BlekingeDM inne'!P$4:P$400)) -> 0 | AB36: =IF(AF36="","",SUMIF('StockholmsDM inne'!U$4:U$400,AF36,'StockholmsDM inne'!P$4:P$400)) -> 0 | AC36: =IF(AF36="","",SUMIF(Värendspokalen!U$4:U$400,AF36,Värendspokalen!P$4:P$400)) -> 124 | AD36: =IF(AF36="","",SUMIF('Tingsryd Open'!U$4:U$400,AF36,'Tingsryd Open'!P$4:P$400)) -> 0 | AF36: =IF(B36="","",SUMIF(Kastare!B$2:B$2999,B36,Kastare!A$2:A$2999)) -> 1071
A37: 34 | B37: Matthias Gneupel | C37: Sibbamåla IF | D37: 1707 | F37: 7 | G37: 121.9285714 | I37: =IF(AF37="","",SUMIF('Jämjö Open'!U$4:U$400,AF37,'Jämjö Open'!P$4:P$400)) -> 0 | J37: =IF(AF37="","",SUMIF('Viby Open'!U$4:U$400,AF37,'Viby Open'!P$4:P$400)) -> 0 | K37: =IF(AF37="","",SUMIF('Björkenäs Open'!U$4:U$400,AF37,'Björkenäs Open'!P$4:P$400)) -> 0 | L37: =IF(AF37="","",SUMIF('SM ute Lö'!U$4:U$400,AF37,'SM ute Lö'!P$4:P$400)) -> 205 | M37: =IF(AF37="","",SUMIF('SM ute Sö'!U$4:U$401,AF37,'SM ute Sö'!P$4:P$401)) -> 220 | N37: =IF(AF37="","",SUMIF('Roslagen Open'!U$4:U$400,AF37,'Roslagen Open'!P$4:P$400)) -> 0 | O37: =IF(AF37="","",SUMIF('Vaxholm Open'!U$4:U$400,AF37,'Vaxholm Open'!P$4:P$400)) -> 0 | P37: =IF(AF37="","",SUMIF('Dynapac Open'!U$4:U$400,AF37,'Dynapac Open'!P$4:P$400)) -> 0 | Q37: =IF(AF37="","",SUMIF('SmålandsDM ute'!U$4:U$400,AF37,'SmålandsDM ute'!P$4:P$400)) -> 0 | R37: =IF(AF37="","",SUMIF('BlekingeDM ute'!U$4:U$400,AF37,'BlekingeDM ute'!P$4:P$400)) -> 321 | S37: =IF(AF37="","",SUMIF('StockholmsDM ute'!U$4:U$400,AF37,'StockholmsDM ute'!P$4:P$400)) -> 0 | T37: =IF(AF37="","",SUMIF('Åseda Open'!U$4:U$406,AF37,'Åseda Open'!P$4:P$406)) -> 0 | U37: =IF(AF37="","",SUMIF(Höstskon!U$4:U$400,AF37,Höstskon!P$4:P$400)) -> 0 | V37: =IF(AF37="","",SUMIF('Carlskrona Cup'!U$4:U$400,AF37,'Carlskrona Cup'!P$4:P$400)) -> 300 | W37: =IF(AF37="","",SUMIF('Sibbamåla Open'!U$4:U$400,AF37,'Sibbamåla Open'!P$4:P$400)) -> 189 | X37: =IF(AF37="","",SUMIF('Vaxholm Indoor'!U$4:U$400,AF37,'Vaxholm Indoor'!P$4:P$400)) -> 0 | Y37: =IF(AF37="","",SUMIF('SM inne 2022'!U$4:U$400,AF37,'SM inne 2022'!P$4:P$400)) -> 225 | Z37: =IF(AF37="","",SUMIF('SmålandsDM inne'!U$4:U$400,AF37,'SmålandsDM inne'!P$4:P$400)) -> 0 | AA37: =IF(AF37="","",SUMIF('BlekingeDM inne'!U$4:U$400,AF37,'BlekingeDM inne'!P$4:P$400)) -> 247 | AB37: =IF(AF37="","",SUMIF('StockholmsDM inne'!U$4:U$400,AF37,'StockholmsDM inne'!P$4:P$400)) -> 0 | AC37: =IF(AF37="","",SUMIF(Värendspokalen!U$4:U$400,AF37,Värendspokalen!P$4:P$400)) -> 0 | AD37: =IF(AF37="","",SUMIF('Tingsryd Open'!U$4:U$400,AF37,'Tingsryd Open'!P$4:P$400)) -> 0 | AF37: =IF(B37="","",SUMIF(Kastare!B$2:B$2999,B37,Kastare!A$2:A$2999)) -> 1017
A38: 35 | B38: Elin Olsson | C38: Dynapac Hsc | D38: 1690 | F38: 8 | G38: 105.625 | I38: =IF(AF38="","",SUMIF('Jämjö Open'!U$4:U$400,AF38,'Jämjö Open'!P$4:P$400)) -> 0 | J38: =IF(AF38="","",SUMIF('Viby Open'!U$4:U$400,AF38,'Viby Open'!P$4:P$400)) -> 0 | K38: =IF(AF38="","",SUMIF('Björkenäs Open'!U$4:U$400,AF38,'Björkenäs Open'!P$4:P$400)) -> 0 | L38: =IF(AF38="","",SUMIF('SM ute Lö'!U$4:U$400,AF38,'SM ute Lö'!P$4:P$400)) -> 303 | M38: =IF(AF38="","",SUMIF('SM ute Sö'!U$4:U$401,AF38,'SM ute Sö'!P$4:P$401)) -> 283 | N38: =IF(AF38="","",SUMIF('Roslagen Open'!U$4:U$400,AF38,'Roslagen Open'!P$4:P$400)) -> 0 | O38: =IF(AF38="","",SUMIF('Vaxholm Open'!U$4:U$400,AF38,'Vaxholm Open'!P$4:P$400)) -> 0 | P38: =IF(AF38="","",SUMIF('Dynapac Open'!U$4:U$400,AF38,'Dynapac Open'!P$4:P$400)) -> 0 | Q38: =IF(AF38="","",SUMIF('SmålandsDM ute'!U$4:U$400,AF38,'SmålandsDM ute'!P$4:P$400)) -> 0 | R38: =IF(AF38="","",SUMIF('BlekingeDM ute'!U$4:U$400,AF38,'BlekingeDM ute'!P$4:P$400)) -> 165 | S38: =IF(AF38="","",SUMIF('StockholmsDM ute'!U$4:U$400,AF38,'StockholmsDM ute'!P$4:P$400)) -> 0 | T38: =IF(AF38="","",SUMIF('Åseda Open'!U$4:U$406,AF38,'Åseda Open'!P$4:P$406)) -> 208 | U38: =IF(AF38="","",SUMIF(Höstskon!U$4:U$400,AF38,Höstskon!P$4:P$400)) -> 193 | V38: =IF(AF38="","",SUMIF('Carlskrona Cup'!U$4:U$400,AF38,'Carlskrona Cup'!P$4:P$400)) -> 201 | W38: =IF(AF38="","",SUMIF('Sibbamåla Open'!U$4:U$400,AF38,'Sibbamåla Open'!P$4:P$400)) -> 156 | X38: =IF(AF38="","",SUMIF('Vaxholm Indoor'!U$4:U$400,AF38,'Vaxholm Indoor'!P$4:P$400)) -> 0 | Y38: =IF(AF38="","",SUMIF('SM inne 2022'!U$4:U$400,AF38,'SM inne 2022'!P$4:P$400)) -> 0 | Z38: =IF(AF38="","",SUMIF('SmålandsDM inne'!U$4:U$400,AF38,'SmålandsDM inne'!P$4:P$400)) -> 0 | AA38: =IF(AF38="","",SUMIF('BlekingeDM inne'!U$4:U$400,AF38,'BlekingeDM inne'!P$4:P$400)) -> 181 | AB38: =IF(AF38="","",SUMIF('StockholmsDM inne'!U$4:U$400,AF38,'StockholmsDM inne'!P$4:P$400)) -> 0 | AC38: =IF(AF38="","",SUMIF(Värendspokalen!U$4:U$400,AF38,Värendspokalen!P$4:P$400)) -> 0 | AD38: =IF(AF38="","",SUMIF('Tingsryd Open'!U$4:U$400,AF38,'Tingsryd Open'!P$4:P$400)) -> 0 | AF38: =IF(B38="","",SUMIF(Kastare!B$2:B$2999,B38,Kastare!A$2:A$2999)) -> 1045
A39: 36 | B39: Alf Svensson | C39: Korpen Åseda | D39: 1648 | F39: 9 | G39: 91.55555556 | I39: =IF(AF39="","",SUMIF('Jämjö Open'!U$4:U$400,AF39,'Jämjö Open'!P$4:P$400)) -> 0 | J39: =IF(AF39="","",SUMIF('Viby Open'!U$4:U$400,AF39,'Viby Open'!P$4:P$400)) -> 0 | K39: =IF(AF39="","",SUMIF('Björkenäs Open'!U$4:U$400,AF39,'Björkenäs Open'!P$4:P$400)) -> 0 | L39: =IF(AF39="","",SUMIF('SM ute Lö'!U$4:U$400,AF39,'SM ute Lö'!P$4:P$400)) -> 210 | M39: =IF(AF39="","",SUMIF('SM ute Sö'!U$4:U$401,AF39,'SM ute Sö'!P$4:P$401)) -> 283 | N39: =IF(AF39="","",SUMIF('Roslagen Open'!U$4:U$400,AF39,'Roslagen Open'!P$4:P$400)) -> 0 | O39: =IF(AF39="","",SUMIF('Vaxholm Open'!U$4:U$400,AF39,'Vaxholm Open'!P$4:P$400)) -> 0 | P39: =IF(AF39="","",SUMIF('Dynapac Open'!U$4:U$400,AF39,'Dynapac Open'!P$4:P$400)) -> 0 | Q39: =IF(AF39="","",SUMIF('SmålandsDM ute'!U$4:U$400,AF39,'SmålandsDM ute'!P$4:P$400)) -> 137 | R39: =IF(AF39="","",SUMIF('BlekingeDM ute'!U$4:U$400,AF39,'BlekingeDM ute'!P$4:P$400)) -> 0 | S39: =IF(AF39="","",SUMIF('StockholmsDM ute'!U$4:U$400,AF39,'StockholmsDM ute'!P$4:P$400)) -> 0 | T39: =IF(AF39="","",SUMIF('Åseda Open'!U$4:U$406,AF39,'Åseda Open'!P$4:P$406)) -> 195 | U39: =IF(AF39="","",SUMIF(Höstskon!U$4:U$400,AF39,Höstskon!P$4:P$400)) -> 142 | V39: =IF(AF39="","",SUMIF('Carlskrona Cup'!U$4:U$400,AF39,'Carlskrona Cup'!P$4:P$400)) -> 215 | W39: =IF(AF39="","",SUMIF('Sibbamåla Open'!U$4:U$400,AF39,'Sibbamåla Open'!P$4:P$400)) -> 198 | X39: =IF(AF39="","",SUMIF('Vaxholm Indoor'!U$4:U$400,AF39,'Vaxholm Indoor'!P$4:P$400)) -> 0 | Y39: =IF(AF39="","",SUMIF('SM inne 2022'!U$4:U$400,AF39,'SM inne 2022'!P$4:P$400)) -> 152 | Z39: =IF(AF39="","",SUMIF('SmålandsDM inne'!U$4:U$400,AF39,'SmålandsDM inne'!P$4:P$400)) -> 0 | AA39: =IF(AF39="","",SUMIF('BlekingeDM inne'!U$4:U$400,AF39,'BlekingeDM inne'!P$4:P$400)) -> 0 | AB39: =IF(AF39="","",SUMIF('StockholmsDM inne'!U$4:U$400,AF39,'StockholmsDM inne'!P$4:P$400)) -> 0 | AC39: =IF(AF39="","",SUMIF(Värendspokalen!U$4:U$400,AF39,Värendspokalen!P$4:P$400)) -> 116 | AD39: =IF(AF39="","",SUMIF('Tingsryd Open'!U$4:U$400,AF39,'Tingsryd Open'!P$4:P$400)) -> 0 | AF39: =IF(B39="","",SUMIF(Kastare!B$2:B$2999,B39,Kastare!A$2:A$2999)) -> 1067
A40: 37 | B40: Bernt Olsson | C40: Jämjö Hsk | D40: 1622 | F40: 9 | G40: 90.11111111 | I40: =IF(AF40="","",SUMIF('Jämjö Open'!U$4:U$400,AF40,'Jämjö Open'!P$4:P$400)) -> 0 | J40: =IF(AF40="","",SUMIF('Viby Open'!U$4:U$400,AF40,'Viby Open'!P$4:P$400)) -> 0 | K40: =IF(AF40="","",SUMIF('Björkenäs Open'!U$4:U$400,AF40,'Björkenäs Open'!P$4:P$400)) -> 0 | L40: =IF(AF40="","",SUMIF('SM ute Lö'!U$4:U$400,AF40,'SM ute Lö'!P$4:P$400)) -> 168 | M40: =IF(AF40="","",SUMIF('SM ute Sö'!U$4:U$401,AF40,'SM ute Sö'!P$4:P$401)) -> 158 | N40: =IF(AF40="","",SUMIF('Roslagen Open'!U$4:U$400,AF40,'Roslagen Open'!P$4:P$400)) -> 0 | O40: =IF(AF40="","",SUMIF('Vaxholm Open'!U$4:U$400,AF40,'Vaxholm Open'!P$4:P$400)) -> 0 | P40: =IF(AF40="","",SUMIF('Dynapac Open'!U$4:U$400,AF40,'Dynapac Open'!P$4:P$400)) -> 0 | Q40: =IF(AF40="","",SUMIF('SmålandsDM ute'!U$4:U$400,AF40,'SmålandsDM ute'!P$4:P$400)) -> 0 | R40: =IF(AF40="","",SUMIF('BlekingeDM ute'!U$4:U$400,AF40,'BlekingeDM ute'!P$4:P$400)) -> 123 | S40: =IF(AF40="","",SUMIF('StockholmsDM ute'!U$4:U$400,AF40,'StockholmsDM ute'!P$4:P$400)) -> 0 | T40: =IF(AF40="","",SUMIF('Åseda Open'!U$4:U$406,AF40,'Åseda Open'!P$4:P$406)) -> 296 | U40: =IF(AF40="","",SUMIF(Höstskon!U$4:U$400,AF40,Höstskon!P$4:P$400)) -> 209 | V40: =IF(AF40="","",SUMIF('Carlskrona Cup'!U$4:U$400,AF40,'Carlskrona Cup'!P$4:P$400)) -> 134 | W40: =IF(AF40="","",SUMIF('Sibbamåla Open'!U$4:U$400,AF40,'Sibbamåla Open'!P$4:P$400)) -> 0 | X40: =IF(AF40="","",SUMIF('Vaxholm Indoor'!U$4:U$400,AF40,'Vaxholm Indoor'!P$4:P$400)) -> 0 | Y40: =IF(AF40="","",SUMIF('SM inne 2022'!U$4:U$400,AF40,'SM inne 2022'!P$4:P$400)) -> 165 | Z40: =IF(AF40="","",SUMIF('SmålandsDM inne'!U$4:U$400,AF40,'SmålandsDM inne'!P$4:P$400)) -> 0 | AA40: =IF(AF40="","",SUMIF('BlekingeDM inne'!U$4:U$400,AF40,'BlekingeDM inne'!P$4:P$400)) -> 223 | AB40: =IF(AF40="","",SUMIF('StockholmsDM inne'!U$4:U$400,AF40,'StockholmsDM inne'!P$4:P$400)) -> 0 | AC40: =IF(AF40="","",SUMIF(Värendspokalen!U$4:U$400,AF40,Värendspokalen!P$4:P$400)) -> 146 | AD40: =IF(AF40="","",SUMIF('Tingsryd Open'!U$4:U$400,AF40,'Tingsryd Open'!P$4:P$400)) -> 0 | AF40: =IF(B40="","",SUMIF(Kastare!B$2:B$2999,B40,Kastare!A$2:A$2999)) -> 1061
A41: 38 | B41: Daniel Mårtensson | C41: Jämjö Hsk | D41: 1582 | F41: 9 | G41: 87.88888889 | I41: =IF(AF41="","",SUMIF('Jämjö Open'!U$4:U$400,AF41,'Jämjö Open'!P$4:P$400)) -> 0 | J41: =IF(AF41="","",SUMIF('Viby Open'!U$4:U$400,AF41,'Viby Open'!P$4:P$400)) -> 0 | K41: =IF(AF41="","",SUMIF('Björkenäs Open'!U$4:U$400,AF41,'Björkenäs Open'!P$4:P$400)) -> 0 | L41: =IF(AF41="","",SUMIF('SM ute Lö'!U$4:U$400,AF41,'SM ute Lö'!P$4:P$400)) -> 181 | M41: =IF(AF41="","",SUMIF('SM ute Sö'!U$4:U$401,AF41,'SM ute Sö'!P$4:P$401)) -> 115 | N41: =IF(AF41="","",SUMIF('Roslagen Open'!U$4:U$400,AF41,'Roslagen Open'!P$4:P$400)) -> 0 | O41: =IF(AF41="","",SUMIF('Vaxholm Open'!U$4:U$400,AF41,'Vaxholm Open'!P$4:P$400)) -> 0 | P41: =IF(AF41="","",SUMIF('Dynapac Open'!U$4:U$400,AF41,'Dynapac Open'!P$4:P$400)) -> 0 | Q41: =IF(AF41="","",SUMIF('SmålandsDM ute'!U$4:U$400,AF41,'SmålandsDM ute'!P$4:P$400)) -> 0 | R41: =IF(AF41="","",SUMIF('BlekingeDM ute'!U$4:U$400,AF41,'BlekingeDM ute'!P$4:P$400)) -> 198 | S41: =IF(AF41="","",SUMIF('StockholmsDM ute'!U$4:U$400,AF41,'StockholmsDM ute'!P$4:P$400)) -> 0 | T41: =IF(AF41="","",SUMIF('Åseda Open'!U$4:U$406,AF41,'Åseda Open'!P$4:P$406)) -> 201 | U41: =IF(AF41="","",SUMIF(Höstskon!U$4:U$400,AF41,Höstskon!P$4:P$400)) -> 188 | V41: =IF(AF41="","",SUMIF('Carlskrona Cup'!U$4:U$400,AF41,'Carlskrona Cup'!P$4:P$400)) -> 157 | W41: =IF(AF41="","",SUMIF('Sibbamåla Open'!U$4:U$400,AF41,'Sibbamåla Open'!P$4:P$400)) -> 187 | X41: =IF(AF41="","",SUMIF('Vaxholm Indoor'!U$4:U$400,AF41,'Vaxholm Indoor'!P$4:P$400)) -> 0 | Y41: =IF(AF41="","",SUMIF('SM inne 2022'!U$4:U$400,AF41,'SM inne 2022'!P$4:P$400)) -> 0 | Z41: =IF(AF41="","",SUMIF('SmålandsDM inne'!U$4:U$400,AF41,'SmålandsDM inne'!P$4:P$400)) -> 0 | AA41: =IF(AF41="","",SUMIF('BlekingeDM inne'!U$4:U$400,AF41,'BlekingeDM inne'!P$4:P$400)) -> 205 | AB41: =IF(AF41="","",SUMIF('StockholmsDM inne'!U$4:U$400,AF41,'StockholmsDM inne'!P$4:P$400)) -> 0 | AC41: =IF(AF41="","",SUMIF(Värendspokalen!U$4:U$400,AF41,Värendspokalen!P$4:P$400)) -> 150 | AD41: =IF(AF41="","",SUMIF('Tingsryd Open'!U$4:U$400,AF41,'Tingsryd Open'!P$4:P$400)) -> 0 | AF41: =IF(B41="","",SUMIF(Kastare!B$2:B$2999,B41,Kastare!A$2:A$2999)) -> 1055
A42: 39 | B42: Clara Larsson | C42: Värends Hsk | D42: 1578 | F42: 8 | G42: 98.625 | I42: =IF(AF42="","",SUMIF('Jämjö Open'!U$4:U$400,AF42,'Jämjö Open'!P$4:P$400)) -> 0 | J42: =IF(AF42="","",SUMIF('Viby Open'!U$4:U$400,AF42,'Viby Open'!P$4:P$400)) -> 0 | K42: =IF(AF42="","",SUMIF('Björkenäs Open'!U$4:U$400,AF42,'Björkenäs Open'!P$4:P$400)) -> 0 | L42: =IF(AF42="","",SUMIF('SM ute Lö'!U$4:U$400,AF42,'SM ute Lö'!P$4:P$400)) -> 208 | M42: =IF(AF42="","",SUMIF('SM ute Sö'!U$4:U$401,AF42,'SM ute Sö'!P$4:P$401)) -> 234 | N42: =IF(AF42="","",SUMIF('Roslagen Open'!U$4:U$400,AF42,'Roslagen Open'!P$4:P$400)) -> 0 | O42: =IF(AF42="","",SUMIF('Vaxholm Open'!U$4:U$400,AF42,'Vaxholm Open'!P$4:P$400)) -> 0 | P42: =IF(AF42="","",SUMIF('Dynapac Open'!U$4:U$400,AF42,'Dynapac Open'!P$4:P$400)) -> 0 | Q42: =IF(AF42="","",SUMIF('SmålandsDM ute'!U$4:U$400,AF42,'SmålandsDM ute'!P$4:P$400)) -> 110 | R42: =IF(AF42="","",SUMIF('BlekingeDM ute'!U$4:U$400,AF42,'BlekingeDM ute'!P$4:P$400)) -> 0 | S42: =IF(AF42="","",SUMIF('StockholmsDM ute'!U$4:U$400,AF42,'StockholmsDM ute'!P$4:P$400)) -> 0 | T42: =IF(AF42="","",SUMIF('Åseda Open'!U$4:U$406,AF42,'Åseda Open'!P$4:P$406)) -> 206 | U42: =IF(AF42="","",SUMIF(Höstskon!U$4:U$400,AF42,Höstskon!P$4:P$400)) -> 192 | V42: =IF(AF42="","",SUMIF('Carlskrona Cup'!U$4:U$400,AF42,'Carlskrona Cup'!P$4:P$400)) -> 223 | W42: =IF(AF42="","",SUMIF('Sibbamåla Open'!U$4:U$400,AF42,'Sibbamåla Open'!P$4:P$400)) -> 197 | X42: =IF(AF42="","",SUMIF('Vaxholm Indoor'!U$4:U$400,AF42,'Vaxholm Indoor'!P$4:P$400)) -> 0 | Y42: =IF(AF42="","",SUMIF('SM inne 2022'!U$4:U$400,AF42,'SM inne 2022'!P$4:P$400)) -> 0 | Z42: =IF(AF42="","",SUMIF('SmålandsDM inne'!U$4:U$400,AF42,'SmålandsDM inne'!P$4:P$400)) -> 0 | AA42: =IF(AF42="","",SUMIF('BlekingeDM inne'!U$4:U$400,AF42,'BlekingeDM inne'!P$4:P$400)) -> 0 | AB42: =IF(AF42="","",SUMIF('StockholmsDM inne'!U$4:U$400,AF42,'StockholmsDM inne'!P$4:P$400)) -> 0 | AC42: =IF(AF42="","",SUMIF(Värendspokalen!U$4:U$400,AF42,Värendspokalen!P$4:P$400)) -> 208 | AD42: =IF(AF42="","",SUMIF('Tingsryd Open'!U$4:U$400,AF42,'Tingsryd Open'!P$4:P$400)) -> 0 | AF42: =IF(B42="","",SUMIF(Kastare!B$2:B$2999,B42,Kastare!A$2:A$2999)) -> 1072
A43: 40 | B43: Natalie Sundahl | C43: Carlskrona Hsc | D43: 1556 | F43: 8 | G43: 97.25 | I43: =IF(AF43="","",SUMIF('Jämjö Open'!U$4:U$400,AF43,'Jämjö Open'!P$4:P$400)) -> 0 | J43: =IF(AF43="","",SUMIF('Viby Open'!U$4:U$400,AF43,'Viby Open'!P$4:P$400)) -> 0 | K43: =IF(AF43="","",SUMIF('Björkenäs Open'!U$4:U$400,AF43,'Björkenäs Open'!P$4:P$400)) -> 0 | L43: =IF(AF43="","",SUMIF('SM ute Lö'!U$4:U$400,AF43,'SM ute Lö'!P$4:P$400)) -> 175 | M43: =IF(AF43="","",SUMIF('SM ute Sö'!U$4:U$401,AF43,'SM ute Sö'!P$4:P$401)) -> 198 | N43: =IF(AF43="","",SUMIF('Roslagen Open'!U$4:U$400,AF43,'Roslagen Open'!P$4:P$400)) -> 162 | O43: =IF(AF43="","",SUMIF('Vaxholm Open'!U$4:U$400,AF43,'Vaxholm Open'!P$4:P$400)) -> 191 | P43: =IF(AF43="","",SUMIF('Dynapac Open'!U$4:U$400,AF43,'Dynapac Open'!P$4:P$400)) -> 0 | Q43: =IF(AF43="","",SUMIF('SmålandsDM ute'!U$4:U$400,AF43,'SmålandsDM ute'!P$4:P$400)) -> 0 | R43: =IF(AF43="","",SUMIF('BlekingeDM ute'!U$4:U$400,AF43,'BlekingeDM ute'!P$4:P$400)) -> 201 | S43: =IF(AF43="","",SUMIF('StockholmsDM ute'!U$4:U$400,AF43,'StockholmsDM ute'!P$4:P$400)) -> 0 | T43: =IF(AF43="","",SUMIF('Åseda Open'!U$4:U$406,AF43,'Åseda Open'!P$4:P$406)) -> 0 | U43: =IF(AF43="","",SUMIF(Höstskon!U$4:U$400,AF43,Höstskon!P$4:P$400)) -> 0 | V43: =IF(AF43="","",SUMIF('Carlskrona Cup'!U$4:U$400,AF43,'Carlskrona Cup'!P$4:P$400)) -> 0 | W43: =IF(AF43="","",SUMIF('Sibbamåla Open'!U$4:U$400,AF43,'Sibbamåla Open'!P$4:P$400)) -> 140 | X43: =IF(AF43="","",SUMIF('Vaxholm Indoor'!U$4:U$400,AF43,'Vaxholm Indoor'!P$4:P$400)) -> 258 | Y43: =IF(AF43="","",SUMIF('SM inne 2022'!U$4:U$400,AF43,'SM inne 2022'!P$4:P$400)) -> 231 | Z43: =IF(AF43="","",SUMIF('SmålandsDM inne'!U$4:U$400,AF43,'SmålandsDM inne'!P$4:P$400)) -> 0 | AA43: =IF(AF43="","",SUMIF('BlekingeDM inne'!U$4:U$400,AF43,'BlekingeDM inne'!P$4:P$400)) -> 0 | AB43: =IF(AF43="","",SUMIF('StockholmsDM inne'!U$4:U$400,AF43,'StockholmsDM inne'!P$4:P$400)) -> 0 | AC43: =IF(AF43="","",SUMIF(Värendspokalen!U$4:U$400,AF43,Värendspokalen!P$4:P$400)) -> 0 | AD43: =IF(AF43="","",SUMIF('Tingsryd Open'!U$4:U$400,AF43,'Tingsryd Open'!P$4:P$400)) -> 0 | AF43: =IF(B43="","",SUMIF(Kastare!B$2:B$2999,B43,Kastare!A$2:A$2999)) -> 1015
A44: 41 | B44: Louise Tollstam | C44: Dynapac Hsc | D44: 1540 | F44: 7 | G44: 110 | I44: =IF(AF44="","",SUMIF('Jämjö Open'!U$4:U$400,AF44,'Jämjö Open'!P$4:P$400)) -> 0 | J44: =IF(AF44="","",SUMIF('Viby Open'!U$4:U$400,AF44,'Viby Open'!P$4:P$400)) -> 0 | K44: =IF(AF44="","",SUMIF('Björkenäs Open'!U$4:U$400,AF44,'Björkenäs Open'!P$4:P$400)) -> 0 | L44: =IF(AF44="","",SUMIF('SM ute Lö'!U$4:U$400,AF44,'SM ute Lö'!P$4:P$400)) -> 250 | M44: =IF(AF44="","",SUMIF('SM ute Sö'!U$4:U$401,AF44,'SM ute Sö'!P$4:P$401)) -> 210 | N44: =IF(AF44="","",SUMIF('Roslagen Open'!U$4:U$400,AF44,'Roslagen Open'!P$4:P$400)) -> 0 | O44: =IF(AF44="","",SUMIF('Vaxholm Open'!U$4:U$400,AF44,'Vaxholm Open'!P$4:P$400)) -> 0 | P44: =IF(AF44="","",SUMIF('Dynapac Open'!U$4:U$400,AF44,'Dynapac Open'!P$4:P$400)) -> 0 | Q44: =IF(AF44="","",SUMIF('SmålandsDM ute'!U$4:U$400,AF44,'SmålandsDM ute'!P$4:P$400)) -> 0 | R44: =IF(AF44="","",SUMIF('BlekingeDM ute'!U$4:U$400,AF44,'BlekingeDM ute'!P$4:P$400)) -> 198 | S44: =IF(AF44="","",SUMIF('StockholmsDM ute'!U$4:U$400,AF44,'StockholmsDM ute'!P$4:P$400)) -> 0 | T44: =IF(AF44="","",SUMIF('Åseda Open'!U$4:U$406,AF44,'Åseda Open'!P$4:P$406)) -> 0 | U44: =IF(AF44="","",SUMIF(Höstskon!U$4:U$400,AF44,Höstskon!P$4:P$400)) -> 0 | V44: =IF(AF44="","",SUMIF('Carlskrona Cup'!U$4:U$400,AF44,'Carlskrona Cup'!P$4:P$400)) -> 221 | W44: =IF(AF44="","",SUMIF('Sibbamåla Open'!U$4:U$400,AF44,'Sibbamåla Open'!P$4:P$400)) -> 210 | X44: =IF(AF44="","",SUMIF('Vaxholm Indoor'!U$4:U$400,AF44,'Vaxholm Indoor'!P$4:P$400)) -> 0 | Y44: =IF(AF44="","",SUMIF('SM inne 2022'!U$4:U$400,AF44,'SM inne 2022'!P$4:P$400)) -> 224 | Z44: =IF(AF44="","",SUMIF('SmålandsDM inne'!U$4:U$400,AF44,'SmålandsDM inne'!P$4:P$400)) -> 0 | AA44: =IF(AF44="","",SUMIF('BlekingeDM inne'!U$4:U$400,AF44,'BlekingeDM inne'!P$4:P$400)) -> 227 | AB44: =IF(AF44="","",SUMIF('StockholmsDM inne'!U$4:U$400,AF44,'StockholmsDM inne'!P$4:P$400)) -> 0 | AC44: =IF(AF44="","",SUMIF(Värendspokalen!U$4:U$400,AF44,Värendspokalen!P$4:P$400)) -> 0 | AD44: =IF(AF44="","",SUMIF('Tingsryd Open'!U$4:U$400,AF44,'Tingsryd Open'!P$4:P$400)) -> 0 | AF44: =IF(B44="","",SUMIF(Kastare!B$2:B$2999,B44,Kastare!A$2:A$2999)) -> 1047
A45: 42 | B45: Roy Dahlén | C45: Dynapac Hsc | D45: 1535 | F45: 8 | G45: 95.9375 | I45: =IF(AF45="","",SUMIF('Jämjö Open'!U$4:U$400,AF45,'Jämjö Open'!P$4:P$400)) -> 0 | J45: =IF(AF45="","",SUMIF('Viby Open'!U$4:U$400,AF45,'Viby Open'!P$4:P$400)) -> 0 | K45: =IF(AF45="","",SUMIF('Björkenäs Open'!U$4:U$400,AF45,'Björkenäs Open'!P$4:P$400)) -> 0 | L45: =IF(AF45="","",SUMIF('SM ute Lö'!U$4:U$400,AF45,'SM ute Lö'!P$4:P$400)) -> 198 | M45: =IF(AF45="","",SUMIF('SM ute Sö'!U$4:U$401,AF45,'SM ute Sö'!P$4:P$401)) -> 156 | N45: =IF(AF45="","",SUMIF('Roslagen Open'!U$4:U$400,AF45,'Roslagen Open'!P$4:P$400)) -> 0 | O45: =IF(AF45="","",SUMIF('Vaxholm Open'!U$4:U$400,AF45,'Vaxholm Open'!P$4:P$400)) -> 0 | P45: =IF(AF45="","",SUMIF('Dynapac Open'!U$4:U$400,AF45,'Dynapac Open'!P$4:P$400)) -> 0 | Q45: =IF(AF45="","",SUMIF('SmålandsDM ute'!U$4:U$400,AF45,'SmålandsDM ute'!P$4:P$400)) -> 0 | R45: =IF(AF45="","",SUMIF('BlekingeDM ute'!U$4:U$400,AF45,'BlekingeDM ute'!P$4:P$400)) -> 266 | S45: =IF(AF45="","",SUMIF('StockholmsDM ute'!U$4:U$400,AF45,'StockholmsDM ute'!P$4:P$400)) -> 0 | T45: =IF(AF45="","",SUMIF('Åseda Open'!U$4:U$406,AF45,'Åseda Open'!P$4:P$406)) -> 0 | U45: =IF(AF45="","",SUMIF(Höstskon!U$4:U$400,AF45,Höstskon!P$4:P$400)) -> 144 | V45: =IF(AF45="","",SUMIF('Carlskrona Cup'!U$4:U$400,AF45,'Carlskrona Cup'!P$4:P$400)) -> 228 | W45: =IF(AF45="","",SUMIF('Sibbamåla Open'!U$4:U$400,AF45,'Sibbamåla Open'!P$4:P$400)) -> 0 | X45: =IF(AF45="","",SUMIF('Vaxholm Indoor'!U$4:U$400,AF45,'Vaxholm Indoor'!P$4:P$400)) -> 0 | Y45: =IF(AF45="","",SUMIF('SM inne 2022'!U$4:U$400,AF45,'SM inne 2022'!P$4:P$400)) -> 181 | Z45: =IF(AF45="","",SUMIF('SmålandsDM inne'!U$4:U$400,AF45,'SmålandsDM inne'!P$4:P$400)) -> 0 | AA45: =IF(AF45="","",SUMIF('BlekingeDM inne'!U$4:U$400,AF45,'BlekingeDM inne'!P$4:P$400)) -> 217 | AB45: =IF(AF45="","",SUMIF('StockholmsDM inne'!U$4:U$400,AF45,'StockholmsDM inne'!P$4:P$400)) -> 0 | AC45: =IF(AF45="","",SUMIF(Värendspokalen!U$4:U$400,AF45,Värendspokalen!P$4:P$400)) -> 145 | AD45: =IF(AF45="","",SUMIF('Tingsryd Open'!U$4:U$400,AF45,'Tingsryd Open'!P$4:P$400)) -> 0 | AF45: =IF(B45="","",SUMIF(Kastare!B$2:B$2999,B45,Kastare!A$2:A$2999)) -> 1052
A46: 43 | B46: Carina Gneupel | C46: Sibbamåla IF | D46: 1519 | F46: 8 | G46: 94.9375 | I46: =IF(AF46="","",SUMIF('Jämjö Open'!U$4:U$400,AF46,'Jämjö Open'!P$4:P$400)) -> 0 | J46: =IF(AF46="","",SUMIF('Viby Open'!U$4:U$400,AF46,'Viby Open'!P$4:P$400)) -> 0 | K46: =IF(AF46="","",SUMIF('Björkenäs Open'!U$4:U$400,AF46,'Björkenäs Open'!P$4:P$400)) -> 0 | L46: =IF(AF46="","",SUMIF('SM ute Lö'!U$4:U$400,AF46,'SM ute Lö'!P$4:P$400)) -> 210 | M46: =IF(AF46="","",SUMIF('SM ute Sö'!U$4:U$401,AF46,'SM ute Sö'!P$4:P$401)) -> 149 | N46: =IF(AF46="","",SUMIF('Roslagen Open'!U$4:U$400,AF46,'Roslagen Open'!P$4:P$400)) -> 0 | O46: =IF(AF46="","",SUMIF('Vaxholm Open'!U$4:U$400,AF46,'Vaxholm Open'!P$4:P$400)) -> 0 | P46: =IF(AF46="","",SUMIF('Dynapac Open'!U$4:U$400,AF46,'Dynapac Open'!P$4:P$400)) -> 0 | Q46: =IF(AF46="","",SUMIF('SmålandsDM ute'!U$4:U$400,AF46,'SmålandsDM ute'!P$4:P$400)) -> 0 | R46: =IF(AF46="","",SUMIF('BlekingeDM ute'!U$4:U$400,AF46,'BlekingeDM ute'!P$4:P$400)) -> 163 | S46: =IF(AF46="","",SUMIF('StockholmsDM ute'!U$4:U$400,AF46,'StockholmsDM ute'!P$4:P$400)) -> 0 | T46: =IF(AF46="","",SUMIF('Åseda Open'!U$4:U$406,AF46,'Åseda Open'!P$4:P$406)) -> 0 | U46: =IF(AF46="","",SUMIF(Höstskon!U$4:U$400,AF46,Höstskon!P$4:P$400)) -> 0 | V46: =IF(AF46="","",SUMIF('Carlskrona Cup'!U$4:U$400,AF46,'Carlskrona Cup'!P$4:P$400)) -> 188 | W46: =IF(AF46="","",SUMIF('Sibbamåla Open'!U$4:U$400,AF46,'Sibbamåla Open'!P$4:P$400)) -> 185 | X46: =IF(AF46="","",SUMIF('Vaxholm Indoor'!U$4:U$400,AF46,'Vaxholm Indoor'!P$4:P$400)) -> 0 | Y46: =IF(AF46="","",SUMIF('SM inne 2022'!U$4:U$400,AF46,'SM inne 2022'!P$4:P$400)) -> 175 | Z46: =IF(AF46="","",SUMIF('SmålandsDM inne'!U$4:U$400,AF46,'SmålandsDM inne'!P$4:P$400)) -> 0 | AA46: =IF(AF46="","",SUMIF('BlekingeDM inne'!U$4:U$400,AF46,'BlekingeDM inne'!P$4:P$400)) -> 195 | AB46: =IF(AF46="","",SUMIF('StockholmsDM inne'!U$4:U$400,AF46,'StockholmsDM inne'!P$4:P$400)) -> 0 | AC46: =IF(AF46="","",SUMIF(Värendspokalen!U$4:U$400,AF46,Värendspokalen!P$4:P$400)) -> 254 | AD46: =IF(AF46="","",SUMIF('Tingsryd Open'!U$4:U$400,AF46,'Tingsryd Open'!P$4:P$400)) -> 0 | AF46: =IF(B46="","",SUMIF(Kastare!B$2:B$2999,B46,Kastare!A$2:A$2999)) -> 1041
A47: 44 | B47: Jarita Fredriksson Väre | C47: Balders Hsk | D47: 1497 | F47: 9 | G47: 83.16666667 | I47: =IF(AF47="","",SUMIF('Jämjö Open'!U$4:U$400,AF47,'Jämjö Open'!P$4:P$400)) -> 0 | J47: =IF(AF47="","",SUMIF('Viby Open'!U$4:U$400,AF47,'Viby Open'!P$4:P$400)) -> 0 | K47: =IF(AF47="","",SUMIF('Björkenäs Open'!U$4:U$400,AF47,'Björkenäs Open'!P$4:P$400)) -> 0 | L47: =IF(AF47="","",SUMIF('SM ute Lö'!U$4:U$400,AF47,'SM ute Lö'!P$4:P$400)) -> 134 | M47: =IF(AF47="","",SUMIF('SM ute Sö'!U$4:U$401,AF47,'SM ute Sö'!P$4:P$401)) -> 205 | N47: =IF(AF47="","",SUMIF('Roslagen Open'!U$4:U$400,AF47,'Roslagen Open'!P$4:P$400)) -> 168 | O47: =IF(AF47="","",SUMIF('Vaxholm Open'!U$4:U$400,AF47,'Vaxholm Open'!P$4:P$400)) -> 190 | P47: =IF(AF47="","",SUMIF('Dynapac Open'!U$4:U$400,AF47,'Dynapac Open'!P$4:P$400)) -> 0 | Q47: =IF(AF47="","",SUMIF('SmålandsDM ute'!U$4:U$400,AF47,'SmålandsDM ute'!P$4:P$400)) -> 0 | R47: =IF(AF47="","",SUMIF('BlekingeDM ute'!U$4:U$400,AF47,'BlekingeDM ute'!P$4:P$400)) -> 0 | S47: =IF(AF47="","",SUMIF('StockholmsDM ute'!U$4:U$400,AF47,'StockholmsDM ute'!P$4:P$400)) -> 179 | T47: =IF(AF47="","",SUMIF('Åseda Open'!U$4:U$406,AF47,'Åseda Open'!P$4:P$406)) -> 0 | U47: =IF(AF47="","",SUMIF(Höstskon!U$4:U$400,AF47,Höstskon!P$4:P$400)) -> 0 | V47: =IF(AF47="","",SUMIF('Carlskrona Cup'!U$4:U$400,AF47,'Carlskrona Cup'!P$4:P$400)) -> 0 | W47: =IF(AF47="","",SUMIF('Sibbamåla Open'!U$4:U$400,AF47,'Sibbamåla Open'!P$4:P$400)) -> 0 | X47: =IF(AF47="","",SUMIF('Vaxholm Indoor'!U$4:U$400,AF47,'Vaxholm Indoor'!P$4:P$400)) -> 112 | Y47: =IF(AF47="","",SUMIF('SM inne 2022'!U$4:U$400,AF47,'SM inne 2022'!P$4:P$400)) -> 191 | Z47: =IF(AF47="","",SUMIF('SmålandsDM inne'!U$4:U$400,AF47,'SmålandsDM inne'!P$4:P$400)) -> 0 | AA47: =IF(AF47="","",SUMIF('BlekingeDM inne'!U$4:U$400,AF47,'BlekingeDM inne'!P$4:P$400)) -> 0 | AB47: =IF(AF47="","",SUMIF('StockholmsDM inne'!U$4:U$400,AF47,'StockholmsDM inne'!P$4:P$400)) -> 150 | AC47: =IF(AF47="","",SUMIF(Värendspokalen!U$4:U$400,AF47,Värendspokalen!P$4:P$400)) -> 168 | AD47: =IF(AF47="","",SUMIF('Tingsryd Open'!U$4:U$400,AF47,'Tingsryd Open'!P$4:P$400)) -> 0 | AF47: =IF(B47="","",SUMIF(Kastare!B$2:B$2999,B47,Kastare!A$2:A$2999)) -> 1165
A48: 45 | B48: Janne Pettersson | C48: Balders Hsk | D48: 1458 | F48: 7 | G48: 104.1428571 | I48: =IF(AF48="","",SUMIF('Jämjö Open'!U$4:U$400,AF48,'Jämjö Open'!P$4:P$400)) -> 0 | J48: =IF(AF48="","",SUMIF('Viby Open'!U$4:U$400,AF48,'Viby Open'!P$4:P$400)) -> 0 | K48: =IF(AF48="","",SUMIF('Björkenäs Open'!U$4:U$400,AF48,'Björkenäs Open'!P$4:P$400)) -> 0 | L48: =IF(AF48="","",SUMIF('SM ute Lö'!U$4:U$400,AF48,'SM ute Lö'!P$4:P$400)) -> 193 | M48: =IF(AF48="","",SUMIF('SM ute Sö'!U$4:U$401,AF48,'SM ute Sö'!P$4:P$401)) -> 237 | N48: =IF(AF48="","",SUMIF('Roslagen Open'!U$4:U$400,AF48,'Roslagen Open'!P$4:P$400)) -> 162 | O48: =IF(AF48="","",SUMIF('Vaxholm Open'!U$4:U$400,AF48,'Vaxholm Open'!P$4:P$400)) -> 205 | P48: =IF(AF48="","",SUMIF('Dynapac Open'!U$4:U$400,AF48,'Dynapac Open'!P$4:P$400)) -> 0 | Q48: =IF(AF48="","",SUMIF('SmålandsDM ute'!U$4:U$400,AF48,'SmålandsDM ute'!P$4:P$400)) -> 0 | R48: =IF(AF48="","",SUMIF('BlekingeDM ute'!U$4:U$400,AF48,'BlekingeDM ute'!P$4:P$400)) -> 0 | S48: =IF(AF48="","",SUMIF('StockholmsDM ute'!U$4:U$400,AF48,'StockholmsDM ute'!P$4:P$400)) -> 170 | T48: =IF(AF48="","",SUMIF('Åseda Open'!U$4:U$406,AF48,'Åseda Open'!P$4:P$406)) -> 0 | U48: =IF(AF48="","",SUMIF(Höstskon!U$4:U$400,AF48,Höstskon!P$4:P$400)) -> 0 | V48: =IF(AF48="","",SUMIF('Carlskrona Cup'!U$4:U$400,AF48,'Carlskrona Cup'!P$4:P$400)) -> 0 | W48: =IF(AF48="","",SUMIF('Sibbamåla Open'!U$4:U$400,AF48,'Sibbamåla Open'!P$4:P$400)) -> 0 | X48: =IF(AF48="","",SUMIF('Vaxholm Indoor'!U$4:U$400,AF48,'Vaxholm Indoor'!P$4:P$400)) -> 275 | Y48: =IF(AF48="","",SUMIF('SM inne 2022'!U$4:U$400,AF48,'SM inne 2022'!P$4:P$400)) -> 0 | Z48: =IF(AF48="","",SUMIF('SmålandsDM inne'!U$4:U$400,AF48,'SmålandsDM inne'!P$4:P$400)) -> 0 | AA48: =IF(AF48="","",SUMIF('BlekingeDM inne'!U$4:U$400,AF48,'BlekingeDM inne'!P$4:P$400)) -> 0 | AB48: =IF(AF48="","",SUMIF('StockholmsDM inne'!U$4:U$400,AF48,'StockholmsDM inne'!P$4:P$400)) -> 216 | AC48: =IF(AF48="","",SUMIF(Värendspokalen!U$4:U$400,AF48,Värendspokalen!P$4:P$400)) -> 0 | AD48: =IF(AF48="","",SUMIF('Tingsryd Open'!U$4:U$400,AF48,'Tingsryd Open'!P$4:P$400)) -> 0 | AF48: =IF(B48="","",SUMIF(Kastare!B$2:B$2999,B48,Kastare!A$2:A$2999)) -> 1098
A49: 46 | B49: Göran Olofsson | C49: Korpen Nybro | D49: 1455 | F49: 8 | G49: 90.9375 | I49: =IF(AF49="","",SUMIF('Jämjö Open'!U$4:U$400,AF49,'Jämjö Open'!P$4:P$400)) -> 0 | J49: =IF(AF49="","",SUMIF('Viby Open'!U$4:U$400,AF49,'Viby Open'!P$4:P$400)) -> 0 | K49: =IF(AF49="","",SUMIF('Björkenäs Open'!U$4:U$400,AF49,'Björkenäs Open'!P$4:P$400)) -> 0 | L49: =IF(AF49="","",SUMIF('SM ute Lö'!U$4:U$400,AF49,'SM ute Lö'!P$4:P$400)) -> 101 | M49: =IF(AF49="","",SUMIF('SM ute Sö'!U$4:U$401,AF49,'SM ute Sö'!P$4:P$401)) -> 230 | N49: =IF(AF49="","",SUMIF('Roslagen Open'!U$4:U$400,AF49,'Roslagen Open'!P$4:P$400)) -> 0 | O49: =IF(AF49="","",SUMIF('Vaxholm Open'!U$4:U$400,AF49,'Vaxholm Open'!P$4:P$400)) -> 0 | P49: =IF(AF49="","",SUMIF('Dynapac Open'!U$4:U$400,AF49,'Dynapac Open'!P$4:P$400)) -> 0 | Q49: =IF(AF49="","",SUMIF('SmålandsDM ute'!U$4:U$400,AF49,'SmålandsDM ute'!P$4:P$400)) -> 143 | R49: =IF(AF49="","",SUMIF('BlekingeDM ute'!U$4:U$400,AF49,'BlekingeDM ute'!P$4:P$400)) -> 0 | S49: =IF(AF49="","",SUMIF('StockholmsDM ute'!U$4:U$400,AF49,'StockholmsDM ute'!P$4:P$400)) -> 0 | T49: =IF(AF49="","",SUMIF('Åseda Open'!U$4:U$406,AF49,'Åseda Open'!P$4:P$406)) -> 178 | U49: =IF(AF49="","",SUMIF(Höstskon!U$4:U$400,AF49,Höstskon!P$4:P$400)) -> 236 | V49: =IF(AF49="","",SUMIF('Carlskrona Cup'!U$4:U$400,AF49,'Carlskrona Cup'!P$4:P$400)) -> 148 | W49: =IF(AF49="","",SUMIF('Sibbamåla Open'!U$4:U$400,AF49,'Sibbamåla Open'!P$4:P$400)) -> 242 | X49: =IF(AF49="","",SUMIF('Vaxholm Indoor'!U$4:U$400,AF49,'Vaxholm Indoor'!P$4:P$400)) -> 0 | Y49: =IF(AF49="","",SUMIF('SM inne 2022'!U$4:U$400,AF49,'SM inne 2022'!P$4:P$400)) -> 177 | Z49: =IF(AF49="","",SUMIF('SmålandsDM inne'!U$4:U$400,AF49,'SmålandsDM inne'!P$4:P$400)) -> 0 | AA49: =IF(AF49="","",SUMIF('BlekingeDM inne'!U$4:U$400,AF49,'BlekingeDM inne'!P$4:P$400)) -> 0 | AB49: =IF(AF49="","",SUMIF('StockholmsDM inne'!U$4:U$400,AF49,'StockholmsDM inne'!P$4:P$400)) -> 0 | AC49: =IF(AF49="","",SUMIF(Värendspokalen!U$4:U$400,AF49,Värendspokalen!P$4:P$400)) -> 0 | AD49: =IF(AF49="","",SUMIF('Tingsryd Open'!U$4:U$400,AF49,'Tingsryd Open'!P$4:P$400)) -> 0 | AF49: =IF(B49="","",SUMIF(Kastare!B$2:B$2999,B49,Kastare!A$2:A$2999)) -> 1028
A50: 47 | B50: Bela Bodi | C50: Växjö Hsk | D50: 1427 | F50: 9 | G50: 79.27777778 | I50: =IF(AF50="","",SUMIF('Jämjö Open'!U$4:U$400,AF50,'Jämjö Open'!P$4:P$400)) -> 0 | J50: =IF(AF50="","",SUMIF('Viby Open'!U$4:U$400,AF50,'Viby Open'!P$4:P$400)) -> 0 | K50: =IF(AF50="","",SUMIF('Björkenäs Open'!U$4:U$400,AF50,'Björkenäs Open'!P$4:P$400)) -> 0 | L50: =IF(AF50="","",SUMIF('SM ute Lö'!U$4:U$400,AF50,'SM ute Lö'!P$4:P$400)) -> 135 | M50: =IF(AF50="","",SUMIF('SM ute Sö'!U$4:U$401,AF50,'SM ute Sö'!P$4:P$401)) -> 130 | N50: =IF(AF50="","",SUMIF('Roslagen Open'!U$4:U$400,AF50,'Roslagen Open'!P$4:P$400)) -> 142 | O50: =IF(AF50="","",SUMIF('Vaxholm Open'!U$4:U$400,AF50,'Vaxholm Open'!P$4:P$400)) -> 133 | P50: =IF(AF50="","",SUMIF('Dynapac Open'!U$4:U$400,AF50,'Dynapac Open'!P$4:P$400)) -> 0 | Q50: =IF(AF50="","",SUMIF('SmålandsDM ute'!U$4:U$400,AF50,'SmålandsDM ute'!P$4:P$400)) -> 180 | R50: =IF(AF50="","",SUMIF('BlekingeDM ute'!U$4:U$400,AF50,'BlekingeDM ute'!P$4:P$400)) -> 0 | S50: =IF(AF50="","",SUMIF('StockholmsDM ute'!U$4:U$400,AF50,'StockholmsDM ute'!P$4:P$400)) -> 0 | T50: =IF(AF50="","",SUMIF('Åseda Open'!U$4:U$406,AF50,'Åseda Open'!P$4:P$406)) -> 180 | U50: =IF(AF50="","",SUMIF(Höstskon!U$4:U$400,AF50,Höstskon!P$4:P$400)) -> 0 | V50: =IF(AF50="","",SUMIF('Carlskrona Cup'!U$4:U$400,AF50,'Carlskrona Cup'!P$4:P$400)) -> 206 | W50: =IF(AF50="","",SUMIF('Sibbamåla Open'!U$4:U$400,AF50,'Sibbamåla Open'!P$4:P$400)) -> 0 | X50: =IF(AF50="","",SUMIF('Vaxholm Indoor'!U$4:U$400,AF50,'Vaxholm Indoor'!P$4:P$400)) -> 0 | Y50: =IF(AF50="","",SUMIF('SM inne 2022'!U$4:U$400,AF50,'SM inne 2022'!P$4:P$400)) -> 172 | Z50: =IF(AF50="","",SUMIF('SmålandsDM inne'!U$4:U$400,AF50,'SmålandsDM inne'!P$4:P$400)) -> 0 | AA50: =IF(AF50="","",SUMIF('BlekingeDM inne'!U$4:U$400,AF50,'BlekingeDM inne'!P$4:P$400)) -> 0 | AB50: =IF(AF50="","",SUMIF('StockholmsDM inne'!U$4:U$400,AF50,'StockholmsDM inne'!P$4:P$400)) -> 0 | AC50: =IF(AF50="","",SUMIF(Värendspokalen!U$4:U$400,AF50,Värendspokalen!P$4:P$400)) -> 149 | AD50: =IF(AF50="","",SUMIF('Tingsryd Open'!U$4:U$400,AF50,'Tingsryd Open'!P$4:P$400)) -> 0 | AF50: =IF(B50="","",SUMIF(Kastare!B$2:B$2999,B50,Kastare!A$2:A$2999)) -> 1039
A51: 48 | B51: Maire Johansson | C51: Växjö Hsk | D51: 1421 | F51: 7 | G51: 101.5 | I51: =IF(AF51="","",SUMIF('Jämjö Open'!U$4:U$400,AF51,'Jämjö Open'!P$4:P$400)) -> 0 | J51: =IF(AF51="","",SUMIF('Viby Open'!U$4:U$400,AF51,'Viby Open'!P$4:P$400)) -> 0 | K51: =IF(AF51="","",SUMIF('Björkenäs Open'!U$4:U$400,AF51,'Björkenäs Open'!P$4:P$400)) -> 0 | L51: =IF(AF51="","",SUMIF('SM ute Lö'!U$4:U$400,AF51,'SM ute Lö'!P$4:P$400)) -> 240 | M51: =IF(AF51="","",SUMIF('SM ute Sö'!U$4:U$401,AF51,'SM ute Sö'!P$4:P$401)) -> 112 | N51: =IF(AF51="","",SUMIF('Roslagen Open'!U$4:U$400,AF51,'Roslagen Open'!P$4:P$400)) -> 0 | O51: =IF(AF51="","",SUMIF('Vaxholm Open'!U$4:U$400,AF51,'Vaxholm Open'!P$4:P$400)) -> 0 | P51: =IF(AF51="","",SUMIF('Dynapac Open'!U$4:U$400,AF51,'Dynapac Open'!P$4:P$400)) -> 0 | Q51: =IF(AF51="","",SUMIF('SmålandsDM ute'!U$4:U$400,AF51,'SmålandsDM ute'!P$4:P$400)) -> 160 | R51: =IF(AF51="","",SUMIF('BlekingeDM ute'!U$4:U$400,AF51,'BlekingeDM ute'!P$4:P$400)) -> 0 | S51: =IF(AF51="","",SUMIF('StockholmsDM ute'!U$4:U$400,AF51,'StockholmsDM ute'!P$4:P$400)) -> 0 | T51: =IF(AF51="","",SUMIF('Åseda Open'!U$4:U$406,AF51,'Åseda Open'!P$4:P$406)) -> 192 | U51: =IF(AF51="","",SUMIF(Höstskon!U$4:U$400,AF51,Höstskon!P$4:P$400)) -> 265 | V51: =IF(AF51="","",SUMIF('Carlskrona Cup'!U$4:U$400,AF51,'Carlskrona Cup'!P$4:P$400)) -> 192 | W51: =IF(AF51="","",SUMIF('Sibbamåla Open'!U$4:U$400,AF51,'Sibbamåla Open'!P$4:P$400)) -> 0 | X51: =IF(AF51="","",SUMIF('Vaxholm Indoor'!U$4:U$400,AF51,'Vaxholm Indoor'!P$4:P$400)) -> 0 | Y51: =IF(AF51="","",SUMIF('SM inne 2022'!U$4:U$400,AF51,'SM inne 2022'!P$4:P$400)) -> 0 | Z51: =IF(AF51="","",SUMIF('SmålandsDM inne'!U$4:U$400,AF51,'SmålandsDM inne'!P$4:P$400)) -> 0 | AA51: =IF(AF51="","",SUMIF('BlekingeDM inne'!U$4:U$400,AF51,'BlekingeDM inne'!P$4:P$400)) -> 0 | AB51: =IF(AF51="","",SUMIF('StockholmsDM inne'!U$4:U$400,AF51,'StockholmsDM inne'!P$4:P$400)) -> 0 | AC51: =IF(AF51="","",SUMIF(Värendspokalen!U$4:U$400,AF51,Värendspokalen!P$4:P$400)) -> 260 | AD51: =IF(AF51="","",SUMIF('Tingsryd Open'!U$4:U$400,AF51,'Tingsryd Open'!P$4:P$400)) -> 0 | AF51: =IF(B51="","",SUMIF(Kastare!B$2:B$2999,B51,Kastare!A$2:A$2999)) -> 1042
A52: 49 | B52: Jonny Åberg | C52: Balders Hsk | D52: 1370 | F52: 8 | G52: 85.625 | I52: =IF(AF52="","",SUMIF('Jämjö Open'!U$4:U$400,AF52,'Jämjö Open'!P$4:P$400)) -> 0 | J52: =IF(AF52="","",SUMIF('Viby Open'!U$4:U$400,AF52,'Viby Open'!P$4:P$400)) -> 0 | K52: =IF(AF52="","",SUMIF('Björkenäs Open'!U$4:U$400,AF52,'Björkenäs Open'!P$4:P$400)) -> 0 | L52: =IF(AF52="","",SUMIF('SM ute Lö'!U$4:U$400,AF52,'SM ute Lö'!P$4:P$400)) -> 163 | M52: =IF(AF52="","",SUMIF('SM ute Sö'!U$4:U$401,AF52,'SM ute Sö'!P$4:P$401)) -> 227 | N52: =IF(AF52="","",SUMIF('Roslagen Open'!U$4:U$400,AF52,'Roslagen Open'!P$4:P$400)) -> 149 | O52: =IF(AF52="","",SUMIF('Vaxholm Open'!U$4:U$400,AF52,'Vaxholm Open'!P$4:P$400)) -> 153 | P52: =IF(AF52="","",SUMIF('Dynapac Open'!U$4:U$400,AF52,'Dynapac Open'!P$4:P$400)) -> 0 | Q52: =IF(AF52="","",SUMIF('SmålandsDM ute'!U$4:U$400,AF52,'SmålandsDM ute'!P$4:P$400)) -> 0 | R52: =IF(AF52="","",SUMIF('BlekingeDM ute'!U$4:U$400,AF52,'BlekingeDM ute'!P$4:P$400)) -> 0 | S52: =IF(AF52="","",SUMIF('StockholmsDM ute'!U$4:U$400,AF52,'StockholmsDM ute'!P$4:P$400)) -> 157 | T52: =IF(AF52="","",SUMIF('Åseda Open'!U$4:U$406,AF52,'Åseda Open'!P$4:P$406)) -> 0 | U52: =IF(AF52="","",SUMIF(Höstskon!U$4:U$400,AF52,Höstskon!P$4:P$400)) -> 0 | V52: =IF(AF52="","",SUMIF('Carlskrona Cup'!U$4:U$400,AF52,'Carlskrona Cup'!P$4:P$400)) -> 0 | W52: =IF(AF52="","",SUMIF('Sibbamåla Open'!U$4:U$400,AF52,'Sibbamåla Open'!P$4:P$400)) -> 0 | X52: =IF(AF52="","",SUMIF('Vaxholm Indoor'!U$4:U$400,AF52,'Vaxholm Indoor'!P$4:P$400)) -> 149 | Y52: =IF(AF52="","",SUMIF('SM inne 2022'!U$4:U$400,AF52,'SM inne 2022'!P$4:P$400)) -> 223 | Z52: =IF(AF52="","",SUMIF('SmålandsDM inne'!U$4:U$400,AF52,'SmålandsDM inne'!P$4:P$400)) -> 0 | AA52: =IF(AF52="","",SUMIF('BlekingeDM inne'!U$4:U$400,AF52,'BlekingeDM inne'!P$4:P$400)) -> 0 | AB52: =IF(AF52="","",SUMIF('StockholmsDM inne'!U$4:U$400,AF52,'StockholmsDM inne'!P$4:P$400)) -> 149 | AC52: =IF(AF52="","",SUMIF(Värendspokalen!U$4:U$400,AF52,Värendspokalen!P$4:P$400)) -> 0 | AD52: =IF(AF52="","",SUMIF('Tingsryd Open'!U$4:U$400,AF52,'Tingsryd Open'!P$4:P$400)) -> 0 | AF52: =IF(B52="","",SUMIF(Kastare!B$2:B$2999,B52,Kastare!A$2:A$2999)) -> 1076
A53: 50 | B53: Lennart Karlsson | C53: Tingsryd Hsc | D53: 1282 | F53: 5 | G53: 128.2 | I53: =IF(AF53="","",SUMIF('Jämjö Open'!U$4:U$400,AF53,'Jämjö Open'!P$4:P$400)) -> 0 | J53: =IF(AF53="","",SUMIF('Viby Open'!U$4:U$400,AF53,'Viby Open'!P$4:P$400)) -> 0 | K53: =IF(AF53="","",SUMIF('Björkenäs Open'!U$4:U$400,AF53,'Björkenäs Open'!P$4:P$400)) -> 0 | L53: =IF(AF53="","",SUMIF('SM ute Lö'!U$4:U$400,AF53,'SM ute Lö'!P$4:P$400)) -> 247 | M53: =IF(AF53="","",SUMIF('SM ute Sö'!U$4:U$401,AF53,'SM ute Sö'!P$4:P$401)) -> 269 | N53: =IF(AF53="","",SUMIF('Roslagen Open'!U$4:U$400,AF53,'Roslagen Open'!P$4:P$400)) -> 0 | O53: =IF(AF53="","",SUMIF('Vaxholm Open'!U$4:U$400,AF53,'Vaxholm Open'!P$4:P$400)) -> 0 | P53: =IF(AF53="","",SUMIF('Dynapac Open'!U$4:U$400,AF53,'Dynapac Open'!P$4:P$400)) -> 0 | Q53: =IF(AF53="","",SUMIF('SmålandsDM ute'!U$4:U$400,AF53,'SmålandsDM ute'!P$4:P$400)) -> 179 | R53: =IF(AF53="","",SUMIF('BlekingeDM ute'!U$4:U$400,AF53,'BlekingeDM ute'!P$4:P$400)) -> 0 | S53: =IF(AF53="","",SUMIF('StockholmsDM ute'!U$4:U$400,AF53,'StockholmsDM ute'!P$4:P$400)) -> 0 | T53: =IF(AF53="","",SUMIF('Åseda Open'!U$4:U$406,AF53,'Åseda Open'!P$4:P$406)) -> 0 | U53: =IF(AF53="","",SUMIF(Höstskon!U$4:U$400,AF53,Höstskon!P$4:P$400)) -> 0 | V53: =IF(AF53="","",SUMIF('Carlskrona Cup'!U$4:U$400,AF53,'Carlskrona Cup'!P$4:P$400)) -> 0 | W53: =IF(AF53="","",SUMIF('Sibbamåla Open'!U$4:U$400,AF53,'Sibbamåla Open'!P$4:P$400)) -> 0 | X53: =IF(AF53="","",SUMIF('Vaxholm Indoor'!U$4:U$400,AF53,'Vaxholm Indoor'!P$4:P$400)) -> 0 | Y53: =IF(AF53="","",SUMIF('SM inne 2022'!U$4:U$400,AF53,'SM inne 2022'!P$4:P$400)) -> 264 | Z53: =IF(AF53="","",SUMIF('SmålandsDM inne'!U$4:U$400,AF53,'SmålandsDM inne'!P$4:P$400)) -> 0 | AA53: =IF(AF53="","",SUMIF('BlekingeDM inne'!U$4:U$400,AF53,'BlekingeDM inne'!P$4:P$400)) -> 0 | AB53: =IF(AF53="","",SUMIF('StockholmsDM inne'!U$4:U$400,AF53,'StockholmsDM inne'!P$4:P$400)) -> 0 | AC53: =IF(AF53="","",SUMIF(Värendspokalen!U$4:U$400,AF53,Värendspokalen!P$4:P$400)) -> 323 | AD53: =IF(AF53="","",SUMIF('Tingsryd Open'!U$4:U$400,AF53,'Tingsryd Open'!P$4:P$400)) -> 0 | AF53: =IF(B53="","",SUMIF(Kastare!B$2:B$2999,B53,Kastare!A$2:A$2999)) -> 1011
A54: 51 | B54: Pascal Letter | C54: Balders Hsk | D54: 1279 | F54: 6 | G54: 106.5833333 | I54: =IF(AF54="","",SUMIF('Jämjö Open'!U$4:U$400,AF54,'Jämjö Open'!P$4:P$400)) -> 0 | J54: =IF(AF54="","",SUMIF('Viby Open'!U$4:U$400,AF54,'Viby Open'!P$4:P$400)) -> 0 | K54: =IF(AF54="","",SUMIF('Björkenäs Open'!U$4:U$400,AF54,'Björkenäs Open'!P$4:P$400)) -> 0 | L54: =IF(AF54="","",SUMIF('SM ute Lö'!U$4:U$400,AF54,'SM ute Lö'!P$4:P$400)) -> 193 | M54: =IF(AF54="","",SUMIF('SM ute Sö'!U$4:U$401,AF54,'SM ute Sö'!P$4:P$401)) -> 307 | N54: =IF(AF54="","",SUMIF('Roslagen Open'!U$4:U$400,AF54,'Roslagen Open'!P$4:P$400)) -> 223 | O54: =IF(AF54="","",SUMIF('Vaxholm Open'!U$4:U$400,AF54,'Vaxholm Open'!P$4:P$400)) -> 209 | P54: =IF(AF54="","",SUMIF('Dynapac Open'!U$4:U$400,AF54,'Dynapac Open'!P$4:P$400)) -> 0 | Q54: =IF(AF54="","",SUMIF('SmålandsDM ute'!U$4:U$400,AF54,'SmålandsDM ute'!P$4:P$400)) -> 0 | R54: =IF(AF54="","",SUMIF('BlekingeDM ute'!U$4:U$400,AF54,'BlekingeDM ute'!P$4:P$400)) -> 0 | S54: =IF(AF54="","",SUMIF('StockholmsDM ute'!U$4:U$400,AF54,'StockholmsDM ute'!P$4:P$400)) -> 175 | T54: =IF(AF54="","",SUMIF('Åseda Open'!U$4:U$406,AF54,'Åseda Open'!P$4:P$406)) -> 0 | U54: =IF(AF54="","",SUMIF(Höstskon!U$4:U$400,AF54,Höstskon!P$4:P$400)) -> 0 | V54: =IF(AF54="","",SUMIF('Carlskrona Cup'!U$4:U$400,AF54,'Carlskrona Cup'!P$4:P$400)) -> 0 | W54: =IF(AF54="","",SUMIF('Sibbamåla Open'!U$4:U$400,AF54,'Sibbamåla Open'!P$4:P$400)) -> 0 | X54: =IF(AF54="","",SUMIF('Vaxholm Indoor'!U$4:U$400,AF54,'Vaxholm Indoor'!P$4:P$400)) -> 0 | Y54: =IF(AF54="","",SUMIF('SM inne 2022'!U$4:U$400,AF54,'SM inne 2022'!P$4:P$400)) -> 172 | Z54: =IF(AF54="","",SUMIF('SmålandsDM inne'!U$4:U$400,AF54,'SmålandsDM inne'!P$4:P$400)) -> 0 | AA54: =IF(AF54="","",SUMIF('BlekingeDM inne'!U$4:U$400,AF54,'BlekingeDM inne'!P$4:P$400)) -> 0 | AB54: =IF(AF54="","",SUMIF('StockholmsDM inne'!U$4:U$400,AF54,'StockholmsDM inne'!P$4:P$400)) -> 0 | AC54: =IF(AF54="","",SUMIF(Värendspokalen!U$4:U$400,AF54,Värendspokalen!P$4:P$400)) -> 0 | AD54: =IF(AF54="","",SUMIF('Tingsryd Open'!U$4:U$400,AF54,'Tingsryd Open'!P$4:P$400)) -> 0 | AF54: =IF(B54="","",SUMIF(Kastare!B$2:B$2999,B54,Kastare!A$2:A$2999)) -> 1194
A55: 52 | B55: Irene Pettersson | C55: Lanternan B.c | D55: 1278 | F55: 6 | G55: 106.5 | I55: =IF(AF55="","",SUMIF('Jämjö Open'!U$4:U$400,AF55,'Jämjö Open'!P$4:P$400)) -> 0 | J55: =IF(AF55="","",SUMIF('Viby Open'!U$4:U$400,AF55,'Viby Open'!P$4:P$400)) -> 0 | K55: =IF(AF55="","",SUMIF('Björkenäs Open'!U$4:U$400,AF55,'Björkenäs Open'!P$4:P$400)) -> 0 | L55: =IF(AF55="","",SUMIF('SM ute Lö'!U$4:U$400,AF55,'SM ute Lö'!P$4:P$400)) -> 221 | M55: =IF(AF55="","",SUMIF('SM ute Sö'!U$4:U$401,AF55,'SM ute Sö'!P$4:P$401)) -> 169 | N55: =IF(AF55="","",SUMIF('Roslagen Open'!U$4:U$400,AF55,'Roslagen Open'!P$4:P$400)) -> 0 | O55: =IF(AF55="","",SUMIF('Vaxholm Open'!U$4:U$400,AF55,'Vaxholm Open'!P$4:P$400)) -> 0 | P55: =IF(AF55="","",SUMIF('Dynapac Open'!U$4:U$400,AF55,'Dynapac Open'!P$4:P$400)) -> 0 | Q55: =IF(AF55="","",SUMIF('SmålandsDM ute'!U$4:U$400,AF55,'SmålandsDM ute'!P$4:P$400)) -> 0 | R55: =IF(AF55="","",SUMIF('BlekingeDM ute'!U$4:U$400,AF55,'BlekingeDM ute'!P$4:P$400)) -> 173 | S55: =IF(AF55="","",SUMIF('StockholmsDM ute'!U$4:U$400,AF55,'StockholmsDM ute'!P$4:P$400)) -> 0 | T55: =IF(AF55="","",SUMIF('Åseda Open'!U$4:U$406,AF55,'Åseda Open'!P$4:P$406)) -> 0 | U55: =IF(AF55="","",SUMIF(Höstskon!U$4:U$400,AF55,Höstskon!P$4:P$400)) -> 0 | V55: =IF(AF55="","",SUMIF('Carlskrona Cup'!U$4:U$400,AF55,'Carlskrona Cup'!P$4:P$400)) -> 381 | W55: =IF(AF55="","",SUMIF('Sibbamåla Open'!U$4:U$400,AF55,'Sibbamåla Open'!P$4:P$400)) -> 193 | X55: =IF(AF55="","",SUMIF('Vaxholm Indoor'!U$4:U$400,AF55,'Vaxholm Indoor'!P$4:P$400)) -> 0 | Y55: =IF(AF55="","",SUMIF('SM inne 2022'!U$4:U$400,AF55,'SM inne 2022'!P$4:P$400)) -> 0 | Z55: =IF(AF55="","",SUMIF('SmålandsDM inne'!U$4:U$400,AF55,'SmålandsDM inne'!P$4:P$400)) -> 0 | AA55: =IF(AF55="","",SUMIF('BlekingeDM inne'!U$4:U$400,AF55,'BlekingeDM inne'!P$4:P$400)) -> 141 | AB55: =IF(AF55="","",SUMIF('StockholmsDM inne'!U$4:U$400,AF55,'StockholmsDM inne'!P$4:P$400)) -> 0 | AC55: =IF(AF55="","",SUMIF(Värendspokalen!U$4:U$400,AF55,Värendspokalen!P$4:P$400)) -> 0 | AD55: =IF(AF55="","",SUMIF('Tingsryd Open'!U$4:U$400,AF55,'Tingsryd Open'!P$4:P$400)) -> 0 | AF55: =IF(B55="","",SUMIF(Kastare!B$2:B$2999,B55,Kastare!A$2:A$2999)) -> 1093
A56: 53 | B56: Åke Bergqvist | C56: Tingsryd Hsc | D56: 1248 | F56: 6 | G56: 104 | I56: =IF(AF56="","",SUMIF('Jämjö Open'!U$4:U$400,AF56,'Jämjö Open'!P$4:P$400)) -> 0 | J56: =IF(AF56="","",SUMIF('Viby Open'!U$4:U$400,AF56,'Viby Open'!P$4:P$400)) -> 0 | K56: =IF(AF56="","",SUMIF('Björkenäs Open'!U$4:U$400,AF56,'Björkenäs Open'!P$4:P$400)) -> 0 | L56: =IF(AF56="","",SUMIF('SM ute Lö'!U$4:U$400,AF56,'SM ute Lö'!P$4:P$400)) -> 218 | M56: =IF(AF56="","",SUMIF('SM ute Sö'!U$4:U$401,AF56,'SM ute Sö'!P$4:P$401)) -> 203 | N56: =IF(AF56="","",SUMIF('Roslagen Open'!U$4:U$400,AF56,'Roslagen Open'!P$4:P$400)) -> 0 | O56: =IF(AF56="","",SUMIF('Vaxholm Open'!U$4:U$400,AF56,'Vaxholm Open'!P$4:P$400)) -> 0 | P56: =IF(AF56="","",SUMIF('Dynapac Open'!U$4:U$400,AF56,'Dynapac Open'!P$4:P$400)) -> 0 | Q56: =IF(AF56="","",SUMIF('SmålandsDM ute'!U$4:U$400,AF56,'SmålandsDM ute'!P$4:P$400)) -> 187 | R56: =IF(AF56="","",SUMIF('BlekingeDM ute'!U$4:U$400,AF56,'BlekingeDM ute'!P$4:P$400)) -> 0 | S56: =IF(AF56="","",SUMIF('StockholmsDM ute'!U$4:U$400,AF56,'StockholmsDM ute'!P$4:P$400)) -> 0 | T56: =IF(AF56="","",SUMIF('Åseda Open'!U$4:U$406,AF56,'Åseda Open'!P$4:P$406)) -> 0 | U56: =IF(AF56="","",SUMIF(Höstskon!U$4:U$400,AF56,Höstskon!P$4:P$400)) -> 192 | V56: =IF(AF56="","",SUMIF('Carlskrona Cup'!U$4:U$400,AF56,'Carlskrona Cup'!P$4:P$400)) -> 0 | W56: =IF(AF56="","",SUMIF('Sibbamåla Open'!U$4:U$400,AF56,'Sibbamåla Open'!P$4:P$400)) -> 0 | X56: =IF(AF56="","",SUMIF('Vaxholm Indoor'!U$4:U$400,AF56,'Vaxholm Indoor'!P$4:P$400)) -> 0 | Y56: =IF(AF56="","",SUMIF('SM inne 2022'!U$4:U$400,AF56,'SM inne 2022'!P$4:P$400)) -> 232 | Z56: =IF(AF56="","",SUMIF('SmålandsDM inne'!U$4:U$400,AF56,'SmålandsDM inne'!P$4:P$400)) -> 0 | AA56: =IF(AF56="","",SUMIF('BlekingeDM inne'!U$4:U$400,AF56,'BlekingeDM inne'!P$4:P$400)) -> 0 | AB56: =IF(AF56="","",SUMIF('StockholmsDM inne'!U$4:U$400,AF56,'StockholmsDM inne'!P$4:P$400)) -> 0 | AC56: =IF(AF56="","",SUMIF(Värendspokalen!U$4:U$400,AF56,Värendspokalen!P$4:P$400)) -> 216 | AD56: =IF(AF56="","",SUMIF('Tingsryd Open'!U$4:U$400,AF56,'Tingsryd Open'!P$4:P$400)) -> 0 | AF56: =IF(B56="","",SUMIF(Kastare!B$2:B$2999,B56,Kastare!A$2:A$2999)) -> 1064
A57: 54 | B57: Tomas Lindahl | C57: Korpen Åseda | D57: 1237 | F57: 6 | G57: 103.0833333 | I57: =IF(AF57="","",SUMIF('Jämjö Open'!U$4:U$400,AF57,'Jämjö Open'!P$4:P$400)) -> 0 | J57: =IF(AF57="","",SUMIF('Viby Open'!U$4:U$400,AF57,'Viby Open'!P$4:P$400)) -> 0 | K57: =IF(AF57="","",SUMIF('Björkenäs Open'!U$4:U$400,AF57,'Björkenäs Open'!P$4:P$400)) -> 0 | L57: =IF(AF57="","",SUMIF('SM ute Lö'!U$4:U$400,AF57,'SM ute Lö'!P$4:P$400)) -> 193 | M57: =IF(AF57="","",SUMIF('SM ute Sö'!U$4:U$401,AF57,'SM ute Sö'!P$4:P$401)) -> 187 | N57: =IF(AF57="","",SUMIF('Roslagen Open'!U$4:U$400,AF57,'Roslagen Open'!P$4:P$400)) -> 0 | O57: =IF(AF57="","",SUMIF('Vaxholm Open'!U$4:U$400,AF57,'Vaxholm Open'!P$4:P$400)) -> 0 | P57: =IF(AF57="","",SUMIF('Dynapac Open'!U$4:U$400,AF57,'Dynapac Open'!P$4:P$400)) -> 0 | Q57: =IF(AF57="","",SUMIF('SmålandsDM ute'!U$4:U$400,AF57,'SmålandsDM ute'!P$4:P$400)) -> 189 | R57: =IF(AF57="","",SUMIF('BlekingeDM ute'!U$4:U$400,AF57,'BlekingeDM ute'!P$4:P$400)) -> 0 | S57: =IF(AF57="","",SUMIF('StockholmsDM ute'!U$4:U$400,AF57,'StockholmsDM ute'!P$4:P$400)) -> 0 | T57: =IF(AF57="","",SUMIF('Åseda Open'!U$4:U$406,AF57,'Åseda Open'!P$4:P$406)) -> 232 | U57: =IF(AF57="","",SUMIF(Höstskon!U$4:U$400,AF57,Höstskon!P$4:P$400)) -> 0 | V57: =IF(AF57="","",SUMIF('Carlskrona Cup'!U$4:U$400,AF57,'Carlskrona Cup'!P$4:P$400)) -> 224 | W57: =IF(AF57="","",SUMIF('Sibbamåla Open'!U$4:U$400,AF57,'Sibbamåla Open'!P$4:P$400)) -> 0 | X57: =IF(AF57="","",SUMIF('Vaxholm Indoor'!U$4:U$400,AF57,'Vaxholm Indoor'!P$4:P$400)) -> 0 | Y57: =IF(AF57="","",SUMIF('SM inne 2022'!U$4:U$400,AF57,'SM inne 2022'!P$4:P$400)) -> 212 | Z57: =IF(AF57="","",SUMIF('SmålandsDM inne'!U$4:U$400,AF57,'SmålandsDM inne'!P$4:P$400)) -> 0 | AA57: =IF(AF57="","",SUMIF('BlekingeDM inne'!U$4:U$400,AF57,'BlekingeDM inne'!P$4:P$400)) -> 0 | AB57: =IF(AF57="","",SUMIF('StockholmsDM inne'!U$4:U$400,AF57,'StockholmsDM inne'!P$4:P$400)) -> 0 | AC57: =IF(AF57="","",SUMIF(Värendspokalen!U$4:U$400,AF57,Värendspokalen!P$4:P$400)) -> 0 | AD57: =IF(AF57="","",SUMIF('Tingsryd Open'!U$4:U$400,AF57,'Tingsryd Open'!P$4:P$400)) -> 0 | AF57: =IF(B57="","",SUMIF(Kastare!B$2:B$2999,B57,Kastare!A$2:A$2999)) -> 1013
A58: 55 | B58: Solveig Axelsson | C58: Växjö Hsk | D58: 1192 | F58: 9 | G58: 66.22222222 | I58: =IF(AF58="","",SUMIF('Jämjö Open'!U$4:U$400,AF58,'Jämjö Open'!P$4:P$400)) -> 0 | J58: =IF(AF58="","",SUMIF('Viby Open'!U$4:U$400,AF58,'Viby Open'!P$4:P$400)) -> 0 | K58: =IF(AF58="","",SUMIF('Björkenäs Open'!U$4:U$400,AF58,'Björkenäs Open'!P$4:P$400)) -> 0 | L58: =IF(AF58="","",SUMIF('SM ute Lö'!U$4:U$400,AF58,'SM ute Lö'!P$4:P$400)) -> 130 | M58: =IF(AF58="","",SUMIF('SM ute Sö'!U$4:U$401,AF58,'SM ute Sö'!P$4:P$401)) -> 133 | N58: =IF(AF58="","",SUMIF('Roslagen Open'!U$4:U$400,AF58,'Roslagen Open'!P$4:P$400)) -> 0 | O58: =IF(AF58="","",SUMIF('Vaxholm Open'!U$4:U$400,AF58,'Vaxholm Open'!P$4:P$400)) -> 0 | P58: =IF(AF58="","",SUMIF('Dynapac Open'!U$4:U$400,AF58,'Dynapac Open'!P$4:P$400)) -> 0 | Q58: =IF(AF58="","",SUMIF('SmålandsDM ute'!U$4:U$400,AF58,'SmålandsDM ute'!P$4:P$400)) -> 75 | R58: =IF(AF58="","",SUMIF('BlekingeDM ute'!U$4:U$400,AF58,'BlekingeDM ute'!P$4:P$400)) -> 0 | S58: =IF(AF58="","",SUMIF('StockholmsDM ute'!U$4:U$400,AF58,'StockholmsDM ute'!P$4:P$400)) -> 0 | T58: =IF(AF58="","",SUMIF('Åseda Open'!U$4:U$406,AF58,'Åseda Open'!P$4:P$406)) -> 130 | U58: =IF(AF58="","",SUMIF(Höstskon!U$4:U$400,AF58,Höstskon!P$4:P$400)) -> 125 | V58: =IF(AF58="","",SUMIF('Carlskrona Cup'!U$4:U$400,AF58,'Carlskrona Cup'!P$4:P$400)) -> 140 | W58: =IF(AF58="","",SUMIF('Sibbamåla Open'!U$4:U$400,AF58,'Sibbamåla Open'!P$4:P$400)) -> 203 | X58: =IF(AF58="","",SUMIF('Vaxholm Indoor'!U$4:U$400,AF58,'Vaxholm Indoor'!P$4:P$400)) -> 0 | Y58: =IF(AF58="","",SUMIF('SM inne 2022'!U$4:U$400,AF58,'SM inne 2022'!P$4:P$400)) -> 200 | Z58: =IF(AF58="","",SUMIF('SmålandsDM inne'!U$4:U$400,AF58,'SmålandsDM inne'!P$4:P$400)) -> 0 | AA58: =IF(AF58="","",SUMIF('BlekingeDM inne'!U$4:U$400,AF58,'BlekingeDM inne'!P$4:P$400)) -> 0 | AB58: =IF(AF58="","",SUMIF('StockholmsDM inne'!U$4:U$400,AF58,'StockholmsDM inne'!P$4:P$400)) -> 0 | AC58: =IF(AF58="","",SUMIF(Värendspokalen!U$4:U$400,AF58,Värendspokalen!P$4:P$400)) -> 56 | AD58: =IF(AF58="","",SUMIF('Tingsryd Open'!U$4:U$400,AF58,'Tingsryd Open'!P$4:P$400)) -> 0 | AF58: =IF(B58="","",SUMIF(Kastare!B$2:B$2999,B58,Kastare!A$2:A$2999)) -> 1058
A59: 56 | B59: Ingegerd Pettersson | C59: Lanternan B.c | D59: 1179 | F59: 8 | G59: 73.6875 | I59: =IF(AF59="","",SUMIF('Jämjö Open'!U$4:U$400,AF59,'Jämjö Open'!P$4:P$400)) -> 0 | J59: =IF(AF59="","",SUMIF('Viby Open'!U$4:U$400,AF59,'Viby Open'!P$4:P$400)) -> 0 | K59: =IF(AF59="","",SUMIF('Björkenäs Open'!U$4:U$400,AF59,'Björkenäs Open'!P$4:P$400)) -> 0 | L59: =IF(AF59="","",SUMIF('SM ute Lö'!U$4:U$400,AF59,'SM ute Lö'!P$4:P$400)) -> 170 | M59: =IF(AF59="","",SUMIF('SM ute Sö'!U$4:U$401,AF59,'SM ute Sö'!P$4:P$401)) -> 87 | N59: =IF(AF59="","",SUMIF('Roslagen Open'!U$4:U$400,AF59,'Roslagen Open'!P$4:P$400)) -> 0 | O59: =IF(AF59="","",SUMIF('Vaxholm Open'!U$4:U$400,AF59,'Vaxholm Open'!P$4:P$400)) -> 0 | P59: =IF(AF59="","",SUMIF('Dynapac Open'!U$4:U$400,AF59,'Dynapac Open'!P$4:P$400)) -> 0 | Q59: =IF(AF59="","",SUMIF('SmålandsDM ute'!U$4:U$400,AF59,'SmålandsDM ute'!P$4:P$400)) -> 0 | R59: =IF(AF59="","",SUMIF('BlekingeDM ute'!U$4:U$400,AF59,'BlekingeDM ute'!P$4:P$400)) -> 188 | S59: =IF(AF59="","",SUMIF('StockholmsDM ute'!U$4:U$400,AF59,'StockholmsDM ute'!P$4:P$400)) -> 0 | T59: =IF(AF59="","",SUMIF('Åseda Open'!U$4:U$406,AF59,'Åseda Open'!P$4:P$406)) -> 201 | U59: =IF(AF59="","",SUMIF(Höstskon!U$4:U$400,AF59,Höstskon!P$4:P$400)) -> 0 | V59: =IF(AF59="","",SUMIF('Carlskrona Cup'!U$4:U$400,AF59,'Carlskrona Cup'!P$4:P$400)) -> 122 | W59: =IF(AF59="","",SUMIF('Sibbamåla Open'!U$4:U$400,AF59,'Sibbamåla Open'!P$4:P$400)) -> 176 | X59: =IF(AF59="","",SUMIF('Vaxholm Indoor'!U$4:U$400,AF59,'Vaxholm Indoor'!P$4:P$400)) -> 0 | Y59: =IF(AF59="","",SUMIF('SM inne 2022'!U$4:U$400,AF59,'SM inne 2022'!P$4:P$400)) -> 106 | Z59: =IF(AF59="","",SUMIF('SmålandsDM inne'!U$4:U$400,AF59,'SmålandsDM inne'!P$4:P$400)) -> 0 | AA59: =IF(AF59="","",SUMIF('BlekingeDM inne'!U$4:U$400,AF59,'BlekingeDM inne'!P$4:P$400)) -> 129 | AB59: =IF(AF59="","",SUMIF('StockholmsDM inne'!U$4:U$400,AF59,'StockholmsDM inne'!P$4:P$400)) -> 0 | AC59: =IF(AF59="","",SUMIF(Värendspokalen!U$4:U$400,AF59,Värendspokalen!P$4:P$400)) -> 0 | AD59: =IF(AF59="","",SUMIF('Tingsryd Open'!U$4:U$400,AF59,'Tingsryd Open'!P$4:P$400)) -> 0 | AF59: =IF(B59="","",SUMIF(Kastare!B$2:B$2999,B59,Kastare!A$2:A$2999)) -> 1034
A60: 57 | B60: Thomas Dahl | C60: Växjö Hsk | D60: 1134 | F60: 9 | G60: 63 | I60: =IF(AF60="","",SUMIF('Jämjö Open'!U$4:U$400,AF60,'Jämjö Open'!P$4:P$400)) -> 0 | J60: =IF(AF60="","",SUMIF('Viby Open'!U$4:U$400,AF60,'Viby Open'!P$4:P$400)) -> 0 | K60: =IF(AF60="","",SUMIF('Björkenäs Open'!U$4:U$400,AF60,'Björkenäs Open'!P$4:P$400)) -> 0 | L60: =IF(AF60="","",SUMIF('SM ute Lö'!U$4:U$400,AF60,'SM ute Lö'!P$4:P$400)) -> 120 | M60: =IF(AF60="","",SUMIF('SM ute Sö'!U$4:U$401,AF60,'SM ute Sö'!P$4:P$401)) -> 106 | N60: =IF(AF60="","",SUMIF('Roslagen Open'!U$4:U$400,AF60,'Roslagen Open'!P$4:P$400)) -> 0 | O60: =IF(AF60="","",SUMIF('Vaxholm Open'!U$4:U$400,AF60,'Vaxholm Open'!P$4:P$400)) -> 0 | P60: =IF(AF60="","",SUMIF('Dynapac Open'!U$4:U$400,AF60,'Dynapac Open'!P$4:P$400)) -> 0 | Q60: =IF(AF60="","",SUMIF('SmålandsDM ute'!U$4:U$400,AF60,'SmålandsDM ute'!P$4:P$400)) -> 63 | R60: =IF(AF60="","",SUMIF('BlekingeDM ute'!U$4:U$400,AF60,'BlekingeDM ute'!P$4:P$400)) -> 0 | S60: =IF(AF60="","",SUMIF('StockholmsDM ute'!U$4:U$400,AF60,'StockholmsDM ute'!P$4:P$400)) -> 0 | T60: =IF(AF60="","",SUMIF('Åseda Open'!U$4:U$406,AF60,'Åseda Open'!P$4:P$406)) -> 147 | U60: =IF(AF60="","",SUMIF(Höstskon!U$4:U$400,AF60,Höstskon!P$4:P$400)) -> 152 | V60: =IF(AF60="","",SUMIF('Carlskrona Cup'!U$4:U$400,AF60,'Carlskrona Cup'!P$4:P$400)) -> 161 | W60: =IF(AF60="","",SUMIF('Sibbamåla Open'!U$4:U$400,AF60,'Sibbamåla Open'!P$4:P$400)) -> 161 | X60: =IF(AF60="","",SUMIF('Vaxholm Indoor'!U$4:U$400,AF60,'Vaxholm Indoor'!P$4:P$400)) -> 0 | Y60: =IF(AF60="","",SUMIF('SM inne 2022'!U$4:U$400,AF60,'SM inne 2022'!P$4:P$400)) -> 108 | Z60: =IF(AF60="","",SUMIF('SmålandsDM inne'!U$4:U$400,AF60,'SmålandsDM inne'!P$4:P$400)) -> 0 | AA60: =IF(AF60="","",SUMIF('BlekingeDM inne'!U$4:U$400,AF60,'BlekingeDM inne'!P$4:P$400)) -> 0 | AB60: =IF(AF60="","",SUMIF('StockholmsDM inne'!U$4:U$400,AF60,'StockholmsDM inne'!P$4:P$400)) -> 0 | AC60: =IF(AF60="","",SUMIF(Värendspokalen!U$4:U$400,AF60,Värendspokalen!P$4:P$400)) -> 116 | AD60: =IF(AF60="","",SUMIF('Tingsryd Open'!U$4:U$400,AF60,'Tingsryd Open'!P$4:P$400)) -> 0 | AF60: =IF(B60="","",SUMIF(Kastare!B$2:B$2999,B60,Kastare!A$2:A$2999)) -> 1051
A61: 58 | B61: Ulrika Rydell | C61: Värends Hsk | D61: 1116 | F61: 6 | G61: 93 | I61: =IF(AF61="","",SUMIF('Jämjö Open'!U$4:U$400,AF61,'Jämjö Open'!P$4:P$400)) -> 0 | J61: =IF(AF61="","",SUMIF('Viby Open'!U$4:U$400,AF61,'Viby Open'!P$4:P$400)) -> 0 | K61: =IF(AF61="","",SUMIF('Björkenäs Open'!U$4:U$400,AF61,'Björkenäs Open'!P$4:P$400)) -> 0 | L61: =IF(AF61="","",SUMIF('SM ute Lö'!U$4:U$400,AF61,'SM ute Lö'!P$4:P$400)) -> 217 | M61: =IF(AF61="","",SUMIF('SM ute Sö'!U$4:U$401,AF61,'SM ute Sö'!P$4:P$401)) -> 165 | N61: =IF(AF61="","",SUMIF('Roslagen Open'!U$4:U$400,AF61,'Roslagen Open'!P$4:P$400)) -> 0 | O61: =IF(AF61="","",SUMIF('Vaxholm Open'!U$4:U$400,AF61,'Vaxholm Open'!P$4:P$400)) -> 0 | P61: =IF(AF61="","",SUMIF('Dynapac Open'!U$4:U$400,AF61,'Dynapac Open'!P$4:P$400)) -> 0 | Q61: =IF(AF61="","",SUMIF('SmålandsDM ute'!U$4:U$400,AF61,'SmålandsDM ute'!P$4:P$400)) -> 170 | R61: =IF(AF61="","",SUMIF('BlekingeDM ute'!U$4:U$400,AF61,'BlekingeDM ute'!P$4:P$400)) -> 0 | S61: =IF(AF61="","",SUMIF('StockholmsDM ute'!U$4:U$400,AF61,'StockholmsDM ute'!P$4:P$400)) -> 0 | T61: =IF(AF61="","",SUMIF('Åseda Open'!U$4:U$406,AF61,'Åseda Open'!P$4:P$406)) -> 0 | U61: =IF(AF61="","",SUMIF(Höstskon!U$4:U$400,AF61,Höstskon!P$4:P$400)) -> 245 | V61: =IF(AF61="","",SUMIF('Carlskrona Cup'!U$4:U$400,AF61,'Carlskrona Cup'!P$4:P$400)) -> 0 | W61: =IF(AF61="","",SUMIF('Sibbamåla Open'!U$4:U$400,AF61,'Sibbamåla Open'!P$4:P$400)) -> 124 | X61: =IF(AF61="","",SUMIF('Vaxholm Indoor'!U$4:U$400,AF61,'Vaxholm Indoor'!P$4:P$400)) -> 0 | Y61: =IF(AF61="","",SUMIF('SM inne 2022'!U$4:U$400,AF61,'SM inne 2022'!P$4:P$400)) -> 0 | Z61: =IF(AF61="","",SUMIF('SmålandsDM inne'!U$4:U$400,AF61,'SmålandsDM inne'!P$4:P$400)) -> 0 | AA61: =IF(AF61="","",SUMIF('BlekingeDM inne'!U$4:U$400,AF61,'BlekingeDM inne'!P$4:P$400)) -> 0 | AB61: =IF(AF61="","",SUMIF('StockholmsDM inne'!U$4:U$400,AF61,'StockholmsDM inne'!P$4:P$400)) -> 0 | AC61: =IF(AF61="","",SUMIF(Värendspokalen!U$4:U$400,AF61,Värendspokalen!P$4:P$400)) -> 195 | AD61: =IF(AF61="","",SUMIF('Tingsryd Open'!U$4:U$400,AF61,'Tingsryd Open'!P$4:P$400)) -> 0 | AF61: =IF(B61="","",SUMIF(Kastare!B$2:B$2999,B61,Kastare!A$2:A$2999)) -> 1101
A62: 59 | B62: Sune Olsson | C62: Korpen Nybro | D62: 1109 | F62: 5 | G62: 110.9 | I62: =IF(AF62="","",SUMIF('Jämjö Open'!U$4:U$400,AF62,'Jämjö Open'!P$4:P$400)) -> 0 | J62: =IF(AF62="","",SUMIF('Viby Open'!U$4:U$400,AF62,'Viby Open'!P$4:P$400)) -> 0 | K62: =IF(AF62="","",SUMIF('Björkenäs Open'!U$4:U$400,AF62,'Björkenäs Open'!P$4:P$400)) -> 0 | L62: =IF(AF62="","",SUMIF('SM ute Lö'!U$4:U$400,AF62,'SM ute Lö'!P$4:P$400)) -> 191 | M62: =IF(AF62="","",SUMIF('SM ute Sö'!U$4:U$401,AF62,'SM ute Sö'!P$4:P$401)) -> 272 | N62: =IF(AF62="","",SUMIF('Roslagen Open'!U$4:U$400,AF62,'Roslagen Open'!P$4:P$400)) -> 0 | O62: =IF(AF62="","",SUMIF('Vaxholm Open'!U$4:U$400,AF62,'Vaxholm Open'!P$4:P$400)) -> 0 | P62: =IF(AF62="","",SUMIF('Dynapac Open'!U$4:U$400,AF62,'Dynapac Open'!P$4:P$400)) -> 0 | Q62: =IF(AF62="","",SUMIF('SmålandsDM ute'!U$4:U$400,AF62,'SmålandsDM ute'!P$4:P$400)) -> 0 | R62: =IF(AF62="","",SUMIF('BlekingeDM ute'!U$4:U$400,AF62,'BlekingeDM ute'!P$4:P$400)) -> 0 | S62: =IF(AF62="","",SUMIF('StockholmsDM ute'!U$4:U$400,AF62,'StockholmsDM ute'!P$4:P$400)) -> 0 | T62: =IF(AF62="","",SUMIF('Åseda Open'!U$4:U$406,AF62,'Åseda Open'!P$4:P$406)) -> 203 | U62: =IF(AF62="","",SUMIF(Höstskon!U$4:U$400,AF62,Höstskon!P$4:P$400)) -> 219 | V62: =IF(AF62="","",SUMIF('Carlskrona Cup'!U$4:U$400,AF62,'Carlskrona Cup'!P$4:P$400)) -> 0 | W62: =IF(AF62="","",SUMIF('Sibbamåla Open'!U$4:U$400,AF62,'Sibbamåla Open'!P$4:P$400)) -> 0 | X62: =IF(AF62="","",SUMIF('Vaxholm Indoor'!U$4:U$400,AF62,'Vaxholm Indoor'!P$4:P$400)) -> 0 | Y62: =IF(AF62="","",SUMIF('SM inne 2022'!U$4:U$400,AF62,'SM inne 2022'!P$4:P$400)) -> 224 | Z62: =IF(AF62="","",SUMIF('SmålandsDM inne'!U$4:U$400,AF62,'SmålandsDM inne'!P$4:P$400)) -> 0 | AA62: =IF(AF62="","",SUMIF('BlekingeDM inne'!U$4:U$400,AF62,'BlekingeDM inne'!P$4:P$400)) -> 0 | AB62: =IF(AF62="","",SUMIF('StockholmsDM inne'!U$4:U$400,AF62,'StockholmsDM inne'!P$4:P$400)) -> 0 | AC62: =IF(AF62="","",SUMIF(Värendspokalen!U$4:U$400,AF62,Värendspokalen!P$4:P$400)) -> 0 | AD62: =IF(AF62="","",SUMIF('Tingsryd Open'!U$4:U$400,AF62,'Tingsryd Open'!P$4:P$400)) -> 0 | AF62: =IF(B62="","",SUMIF(Kastare!B$2:B$2999,B62,Kastare!A$2:A$2999)) -> 1100
A63: 60 | B63: Bengt Andersson | C63: Växjö Hsk | D63: 1074 | F63: 5 | G63: 107.4 | I63: =IF(AF63="","",SUMIF('Jämjö Open'!U$4:U$400,AF63,'Jämjö Open'!P$4:P$400)) -> 0 | J63: =IF(AF63="","",SUMIF('Viby Open'!U$4:U$400,AF63,'Viby Open'!P$4:P$400)) -> 0 | K63: =IF(AF63="","",SUMIF('Björkenäs Open'!U$4:U$400,AF63,'Björkenäs Open'!P$4:P$400)) -> 0 | L63: =IF(AF63="","",SUMIF('SM ute Lö'!U$4:U$400,AF63,'SM ute Lö'!P$4:P$400)) -> 286 | M63: =IF(AF63="","",SUMIF('SM ute Sö'!U$4:U$401,AF63,'SM ute Sö'!P$4:P$401)) -> 190 | N63: =IF(AF63="","",SUMIF('Roslagen Open'!U$4:U$400,AF63,'Roslagen Open'!P$4:P$400)) -> 0 | O63: =IF(AF63="","",SUMIF('Vaxholm Open'!U$4:U$400,AF63,'Vaxholm Open'!P$4:P$400)) -> 0 | P63: =IF(AF63="","",SUMIF('Dynapac Open'!U$4:U$400,AF63,'Dynapac Open'!P$4:P$400)) -> 0 | Q63: =IF(AF63="","",SUMIF('SmålandsDM ute'!U$4:U$400,AF63,'SmålandsDM ute'!P$4:P$400)) -> 0 | R63: =IF(AF63="","",SUMIF('BlekingeDM ute'!U$4:U$400,AF63,'BlekingeDM ute'!P$4:P$400)) -> 0 | S63: =IF(AF63="","",SUMIF('StockholmsDM ute'!U$4:U$400,AF63,'StockholmsDM ute'!P$4:P$400)) -> 0 | T63: =IF(AF63="","",SUMIF('Åseda Open'!U$4:U$406,AF63,'Åseda Open'!P$4:P$406)) -> 0 | U63: =IF(AF63="","",SUMIF(Höstskon!U$4:U$400,AF63,Höstskon!P$4:P$400)) -> 233 | V63: =IF(AF63="","",SUMIF('Carlskrona Cup'!U$4:U$400,AF63,'Carlskrona Cup'!P$4:P$400)) -> 153 | W63: =IF(AF63="","",SUMIF('Sibbamåla Open'!U$4:U$400,AF63,'Sibbamåla Open'!P$4:P$400)) -> 0 | X63: =IF(AF63="","",SUMIF('Vaxholm Indoor'!U$4:U$400,AF63,'Vaxholm Indoor'!P$4:P$400)) -> 0 | Y63: =IF(AF63="","",SUMIF('SM inne 2022'!U$4:U$400,AF63,'SM inne 2022'!P$4:P$400)) -> 212 | Z63: =IF(AF63="","",SUMIF('SmålandsDM inne'!U$4:U$400,AF63,'SmålandsDM inne'!P$4:P$400)) -> 0 | AA63: =IF(AF63="","",SUMIF('BlekingeDM inne'!U$4:U$400,AF63,'BlekingeDM inne'!P$4:P$400)) -> 0 | AB63: =IF(AF63="","",SUMIF('StockholmsDM inne'!U$4:U$400,AF63,'StockholmsDM inne'!P$4:P$400)) -> 0 | AC63: =IF(AF63="","",SUMIF(Värendspokalen!U$4:U$400,AF63,Värendspokalen!P$4:P$400)) -> 0 | AD63: =IF(AF63="","",SUMIF('Tingsryd Open'!U$4:U$400,AF63,'Tingsryd Open'!P$4:P$400)) -> 0 | AF63: =IF(B63="","",SUMIF(Kastare!B$2:B$2999,B63,Kastare!A$2:A$2999)) -> 1026
A64: 61 | B64: Dan Madayang | C64: Korpen Åseda | D64: 1051 | F64: 5 | G64: 105.1 | I64: =IF(AF64="","",SUMIF('Jämjö Open'!U$4:U$400,AF64,'Jämjö Open'!P$4:P$400)) -> 0 | J64: =IF(AF64="","",SUMIF('Viby Open'!U$4:U$400,AF64,'Viby Open'!P$4:P$400)) -> 0 | K64: =IF(AF64="","",SUMIF('Björkenäs Open'!U$4:U$400,AF64,'Björkenäs Open'!P$4:P$400)) -> 0 | L64: =IF(AF64="","",SUMIF('SM ute Lö'!U$4:U$400,AF64,'SM ute Lö'!P$4:P$400)) -> 183 | M64: =IF(AF64="","",SUMIF('SM ute Sö'!U$4:U$401,AF64,'SM ute Sö'!P$4:P$401)) -> 247 | N64: =IF(AF64="","",SUMIF('Roslagen Open'!U$4:U$400,AF64,'Roslagen Open'!P$4:P$400)) -> 0 | O64: =IF(AF64="","",SUMIF('Vaxholm Open'!U$4:U$400,AF64,'Vaxholm Open'!P$4:P$400)) -> 0 | P64: =IF(AF64="","",SUMIF('Dynapac Open'!U$4:U$400,AF64,'Dynapac Open'!P$4:P$400)) -> 0 | Q64: =IF(AF64="","",SUMIF('SmålandsDM ute'!U$4:U$400,AF64,'SmålandsDM ute'!P$4:P$400)) -> 203 | R64: =IF(AF64="","",SUMIF('BlekingeDM ute'!U$4:U$400,AF64,'BlekingeDM ute'!P$4:P$400)) -> 0 | S64: =IF(AF64="","",SUMIF('StockholmsDM ute'!U$4:U$400,AF64,'StockholmsDM ute'!P$4:P$400)) -> 0 | T64: =IF(AF64="","",SUMIF('Åseda Open'!U$4:U$406,AF64,'Åseda Open'!P$4:P$406)) -> 211 | U64: =IF(AF64="","",SUMIF(Höstskon!U$4:U$400,AF64,Höstskon!P$4:P$400)) -> 207 | V64: =IF(AF64="","",SUMIF('Carlskrona Cup'!U$4:U$400,AF64,'Carlskrona Cup'!P$4:P$400)) -> 0 | W64: =IF(AF64="","",SUMIF('Sibbamåla Open'!U$4:U$400,AF64,'Sibbamåla Open'!P$4:P$400)) -> 0 | X64: =IF(AF64="","",SUMIF('Vaxholm Indoor'!U$4:U$400,AF64,'Vaxholm Indoor'!P$4:P$400)) -> 0 | Y64: =IF(AF64="","",SUMIF('SM inne 2022'!U$4:U$400,AF64,'SM inne 2022'!P$4:P$400)) -> 0 | Z64: =IF(AF64="","",SUMIF('SmålandsDM inne'!U$4:U$400,AF64,'SmålandsDM inne'!P$4:P$400)) -> 0 | AA64: =IF(AF64="","",SUMIF('BlekingeDM inne'!U$4:U$400,AF64,'BlekingeDM inne'!P$4:P$400)) -> 0 | AB64: =IF(AF64="","",SUMIF('StockholmsDM inne'!U$4:U$400,AF64,'StockholmsDM inne'!P$4:P$400)) -> 0 | AC64: =IF(AF64="","",SUMIF(Värendspokalen!U$4:U$400,AF64,Värendspokalen!P$4:P$400)) -> 0 | AD64: =IF(AF64="","",SUMIF('Tingsryd Open'!U$4:U$400,AF64,'Tingsryd Open'!P$4:P$400)) -> 0 | AF64: =IF(B64="","",SUMIF(Kastare!B$2:B$2999,B64,Kastare!A$2:A$2999)) -> 1024
A65: 62 | B65: Janne Johansson | C65: Tingsryd | D65: 1006 | F65: 4 | G65: 125.75 | I65: =IF(AF65="","",SUMIF('Jämjö Open'!U$4:U$400,AF65,'Jämjö Open'!P$4:P$400)) -> 0 | J65: =IF(AF65="","",SUMIF('Viby Open'!U$4:U$400,AF65,'Viby Open'!P$4:P$400)) -> 0 | K65: =IF(AF65="","",SUMIF('Björkenäs Open'!U$4:U$400,AF65,'Björkenäs Open'!P$4:P$400)) -> 0 | L65: =IF(AF65="","",SUMIF('SM ute Lö'!U$4:U$400,AF65,'SM ute Lö'!P$4:P$400)) -> 0 | M65: =IF(AF65="","",SUMIF('SM ute Sö'!U$4:U$401,AF65,'SM ute Sö'!P$4:P$401)) -> 0 | N65: =IF(AF65="","",SUMIF('Roslagen Open'!U$4:U$400,AF65,'Roslagen Open'!P$4:P$400)) -> 0 | O65: =IF(AF65="","",SUMIF('Vaxholm Open'!U$4:U$400,AF65,'Vaxholm Open'!P$4:P$400)) -> 0 | P65: =IF(AF65="","",SUMIF('Dynapac Open'!U$4:U$400,AF65,'Dynapac Open'!P$4:P$400)) -> 0 | Q65: =IF(AF65="","",SUMIF('SmålandsDM ute'!U$4:U$400,AF65,'SmålandsDM ute'!P$4:P$400)) -> 254 | R65: =IF(AF65="","",SUMIF('BlekingeDM ute'!U$4:U$400,AF65,'BlekingeDM ute'!P$4:P$400)) -> 0 | S65: =IF(AF65="","",SUMIF('StockholmsDM ute'!U$4:U$400,AF65,'StockholmsDM ute'!P$4:P$400)) -> 0 | T65: =IF(AF65="","",SUMIF('Åseda Open'!U$4:U$406,AF65,'Åseda Open'!P$4:P$406)) -> 286 | U65: =IF(AF65="","",SUMIF(Höstskon!U$4:U$400,AF65,Höstskon!P$4:P$400)) -> 256 | V65: =IF(AF65="","",SUMIF('Carlskrona Cup'!U$4:U$400,AF65,'Carlskrona Cup'!P$4:P$400)) -> 210 | W65: =IF(AF65="","",SUMIF('Sibbamåla Open'!U$4:U$400,AF65,'Sibbamåla Open'!P$4:P$400)) -> 0 | X65: =IF(AF65="","",SUMIF('Vaxholm Indoor'!U$4:U$400,AF65,'Vaxholm Indoor'!P$4:P$400)) -> 0 | Y65: =IF(AF65="","",SUMIF('SM inne 2022'!U$4:U$400,AF65,'SM inne 2022'!P$4:P$400)) -> 0 | Z65: =IF(AF65="","",SUMIF('SmålandsDM inne'!U$4:U$400,AF65,'SmålandsDM inne'!P$4:P$400)) -> 0 | AA65: =IF(AF65="","",SUMIF('BlekingeDM inne'!U$4:U$400,AF65,'BlekingeDM inne'!P$4:P$400)) -> 0 | AB65: =IF(AF65="","",SUMIF('StockholmsDM inne'!U$4:U$400,AF65,'StockholmsDM inne'!P$4:P$400)) -> 0 | AC65: =IF(AF65="","",SUMIF(Värendspokalen!U$4:U$400,AF65,Värendspokalen!P$4:P$400)) -> 0 | AD65: =IF(AF65="","",SUMIF('Tingsryd Open'!U$4:U$400,AF65,'Tingsryd Open'!P$4:P$400)) -> 0 | AF65: =IF(B65="","",SUMIF(Kastare!B$2:B$2999,B65,Kastare!A$2:A$2999)) -> 1040
A66: 63 | B66: Björn Gabrielsson | C66: Vaxholm Hsk | D66: 989 | F66: 4 | G66: 123.625 | I66: =IF(AF66="","",SUMIF('Jämjö Open'!U$4:U$400,AF66,'Jämjö Open'!P$4:P$400)) -> 0 | J66: =IF(AF66="","",SUMIF('Viby Open'!U$4:U$400,AF66,'Viby Open'!P$4:P$400)) -> 0 | K66: =IF(AF66="","",SUMIF('Björkenäs Open'!U$4:U$400,AF66,'Björkenäs Open'!P$4:P$400)) -> 0 | L66: =IF(AF66="","",SUMIF('SM ute Lö'!U$4:U$400,AF66,'SM ute Lö'!P$4:P$400)) -> 0 | M66: =IF(AF66="","",SUMIF('SM ute Sö'!U$4:U$401,AF66,'SM ute Sö'!P$4:P$401)) -> 0 | N66: =IF(AF66="","",SUMIF('Roslagen Open'!U$4:U$400,AF66,'Roslagen Open'!P$4:P$400)) -> 0 | O66: =IF(AF66="","",SUMIF('Vaxholm Open'!U$4:U$400,AF66,'Vaxholm Open'!P$4:P$400)) -> 0 | P66: =IF(AF66="","",SUMIF('Dynapac Open'!U$4:U$400,AF66,'Dynapac Open'!P$4:P$400)) -> 0 | Q66: =IF(AF66="","",SUMIF('SmålandsDM ute'!U$4:U$400,AF66,'SmålandsDM ute'!P$4:P$400)) -> 0 | R66: =IF(AF66="","",SUMIF('BlekingeDM ute'!U$4:U$400,AF66,'BlekingeDM ute'!P$4:P$400)) -> 0 | S66: =IF(AF66="","",SUMIF('StockholmsDM ute'!U$4:U$400,AF66,'StockholmsDM ute'!P$4:P$400)) -> 179 | T66: =IF(AF66="","",SUMIF('Åseda Open'!U$4:U$406,AF66,'Åseda Open'!P$4:P$406)) -> 0 | U66: =IF(AF66="","",SUMIF(Höstskon!U$4:U$400,AF66,Höstskon!P$4:P$400)) -> 0 | V66: =IF(AF66="","",SUMIF('Carlskrona Cup'!U$4:U$400,AF66,'Carlskrona Cup'!P$4:P$400)) -> 0 | W66: =IF(AF66="","",SUMIF('Sibbamåla Open'!U$4:U$400,AF66,'Sibbamåla Open'!P$4:P$400)) -> 0 | X66: =IF(AF66="","",SUMIF('Vaxholm Indoor'!U$4:U$400,AF66,'Vaxholm Indoor'!P$4:P$400)) -> 183 | Y66: =IF(AF66="","",SUMIF('SM inne 2022'!U$4:U$400,AF66,'SM inne 2022'!P$4:P$400)) -> 283 | Z66: =IF(AF66="","",SUMIF('SmålandsDM inne'!U$4:U$400,AF66,'SmålandsDM inne'!P$4:P$400)) -> 0 | AA66: =IF(AF66="","",SUMIF('BlekingeDM inne'!U$4:U$400,AF66,'BlekingeDM inne'!P$4:P$400)) -> 0 | AB66: =IF(AF66="","",SUMIF('StockholmsDM inne'!U$4:U$400,AF66,'StockholmsDM inne'!P$4:P$400)) -> 344 | AC66: =IF(AF66="","",SUMIF(Värendspokalen!U$4:U$400,AF66,Värendspokalen!P$4:P$400)) -> 0 | AD66: =IF(AF66="","",SUMIF('Tingsryd Open'!U$4:U$400,AF66,'Tingsryd Open'!P$4:P$400)) -> 0 | AF66: =IF(B66="","",SUMIF(Kastare!B$2:B$2999,B66,Kastare!A$2:A$2999)) -> 1033
A67: 64 | B67: Maria Andersson | C67: Team Småland Hsk | D67: 955 | F67: 6 | G67: 79.58333333 | I67: =IF(AF67="","",SUMIF('Jämjö Open'!U$4:U$400,AF67,'Jämjö Open'!P$4:P$400)) -> 0 | J67: =IF(AF67="","",SUMIF('Viby Open'!U$4:U$400,AF67,'Viby Open'!P$4:P$400)) -> 0 | K67: =IF(AF67="","",SUMIF('Björkenäs Open'!U$4:U$400,AF67,'Björkenäs Open'!P$4:P$400)) -> 0 | L67: =IF(AF67="","",SUMIF('SM ute Lö'!U$4:U$400,AF67,'SM ute Lö'!P$4:P$400)) -> 151 | M67: =IF(AF67="","",SUMIF('SM ute Sö'!U$4:U$401,AF67,'SM ute Sö'!P$4:P$401)) -> 189 | N67: =IF(AF67="","",SUMIF('Roslagen Open'!U$4:U$400,AF67,'Roslagen Open'!P$4:P$400)) -> 0 | O67: =IF(AF67="","",SUMIF('Vaxholm Open'!U$4:U$400,AF67,'Vaxholm Open'!P$4:P$400)) -> 0 | P67: =IF(AF67="","",SUMIF('Dynapac Open'!U$4:U$400,AF67,'Dynapac Open'!P$4:P$400)) -> 0 | Q67: =IF(AF67="","",SUMIF('SmålandsDM ute'!U$4:U$400,AF67,'SmålandsDM ute'!P$4:P$400)) -> 0 | R67: =IF(AF67="","",SUMIF('BlekingeDM ute'!U$4:U$400,AF67,'BlekingeDM ute'!P$4:P$400)) -> 0 | S67: =IF(AF67="","",SUMIF('StockholmsDM ute'!U$4:U$400,AF67,'StockholmsDM ute'!P$4:P$400)) -> 0 | T67: =IF(AF67="","",SUMIF('Åseda Open'!U$4:U$406,AF67,'Åseda Open'!P$4:P$406)) -> 177 | U67: =IF(AF67="","",SUMIF(Höstskon!U$4:U$400,AF67,Höstskon!P$4:P$400)) -> 161 | V67: =IF(AF67="","",SUMIF('Carlskrona Cup'!U$4:U$400,AF67,'Carlskrona Cup'!P$4:P$400)) -> 0 | W67: =IF(AF67="","",SUMIF('Sibbamåla Open'!U$4:U$400,AF67,'Sibbamåla Open'!P$4:P$400)) -> 0 | X67: =IF(AF67="","",SUMIF('Vaxholm Indoor'!U$4:U$400,AF67,'Vaxholm Indoor'!P$4:P$400)) -> 0 | Y67: =IF(AF67="","",SUMIF('SM inne 2022'!U$4:U$400,AF67,'SM inne 2022'!P$4:P$400)) -> 163 | Z67: =IF(AF67="","",SUMIF('SmålandsDM inne'!U$4:U$400,AF67,'SmålandsDM inne'!P$4:P$400)) -> 0 | AA67: =IF(AF67="","",SUMIF('BlekingeDM inne'!U$4:U$400,AF67,'BlekingeDM inne'!P$4:P$400)) -> 0 | AB67: =IF(AF67="","",SUMIF('StockholmsDM inne'!U$4:U$400,AF67,'StockholmsDM inne'!P$4:P$400)) -> 0 | AC67: =IF(AF67="","",SUMIF(Värendspokalen!U$4:U$400,AF67,Värendspokalen!P$4:P$400)) -> 114 | AD67: =IF(AF67="","",SUMIF('Tingsryd Open'!U$4:U$400,AF67,'Tingsryd Open'!P$4:P$400)) -> 0 | AF67: =IF(B67="","",SUMIF(Kastare!B$2:B$2999,B67,Kastare!A$2:A$2999)) -> 1038
A68: 65 | B68: Lukas Bern | C68: Dynapac | D68: =IF(B68="",0,IF($F68>0,LARGE($I68:$AD68,1),"")+IF($F68>0,LARGE($I68:$AD68,2),"")+IF($F68>0,LARGE($I68:$AD68,3),"")+IF($F68>0,LARGE($I68:$AD68,4),"")+IF($F68>0,LARGE($I68:$AD68,5),"")+IF($F68>0,LARGE($I68:$AD68,6),"")+IF($F68>0,LARGE($I68:$AD68,7),"")+IF($F68>0,LARGE($I68:$AD68,8),"")+IF($F68>0,LARGE($I68:$AD68,9),"")+IF($F68>0,LARGE($I68:$AD68,10),"")+IF($F68>0,LARGE($I68:$AD68,11),"")+IF($F68>0,LARGE($I68:$AD68,12),"")) -> 952 | F68: =COUNTIF(I68:AD68,">0") -> 5 | G68: =IF(F68=0,"",SUM(D68)/(F68*2)) -> 95.2 | I68: =IF(AF68="","",SUMIF('Jämjö Open'!U$4:U$400,AF68,'Jämjö Open'!P$4:P$400)) -> 0 | J68: =IF(AF68="","",SUMIF('Viby Open'!U$4:U$400,AF68,'Viby Open'!P$4:P$400)) -> 0 | K68: =IF(AF68="","",SUMIF('Björkenäs Open'!U$4:U$400,AF68,'Björkenäs Open'!P$4:P$400)) -> 0 | L68: =IF(AF68="","",SUMIF('SM ute Lö'!U$4:U$400,AF68,'SM ute Lö'!P$4:P$400)) -> 0 | M68: =IF(AF68="","",SUMIF('SM ute Sö'!U$4:U$401,AF68,'SM ute Sö'!P$4:P$401)) -> 144 | N68: =IF(AF68="","",SUMIF('Roslagen Open'!U$4:U$400,AF68,'Roslagen Open'!P$4:P$400)) -> 0 | O68: =IF(AF68="","",SUMIF('Vaxholm Open'!U$4:U$400,AF68,'Vaxholm Open'!P$4:P$400)) -> 0 | P68: =IF(AF68="","",SUMIF('Dynapac Open'!U$4:U$400,AF68,'Dynapac Open'!P$4:P$400)) -> 0 | Q68: =IF(AF68="","",SUMIF('SmålandsDM ute'!U$4:U$400,AF68,'SmålandsDM ute'!P$4:P$400)) -> 0 | R68: =IF(AF68="","",SUMIF('BlekingeDM ute'!U$4:U$400,AF68,'BlekingeDM ute'!P$4:P$400)) -> 0 | S68: =IF(AF68="","",SUMIF('StockholmsDM ute'!U$4:U$400,AF68,'StockholmsDM ute'!P$4:P$400)) -> 0 | T68: =IF(AF68="","",SUMIF('Åseda Open'!U$4:U$406,AF68,'Åseda Open'!P$4:P$406)) -> 247 | U68: =IF(AF68="","",SUMIF(Höstskon!U$4:U$400,AF68,Höstskon!P$4:P$400)) -> 250 | V68: =IF(AF68="","",SUMIF('Carlskrona Cup'!U$4:U$400,AF68,'Carlskrona Cup'!P$4:P$400)) -> 174 | W68: =IF(AF68="","",SUMIF('Sibbamåla Open'!U$4:U$400,AF68,'Sibbamåla Open'!P$4:P$400)) -> 137 | X68: =IF(AF68="","",SUMIF('Vaxholm Indoor'!U$4:U$400,AF68,'Vaxholm Indoor'!P$4:P$400)) -> 0 | Y68: =IF(AF68="","",SUMIF('SM inne 2022'!U$4:U$400,AF68,'SM inne 2022'!P$4:P$400)) -> 0 | Z68: =IF(AF68="","",SUMIF('SmålandsDM inne'!U$4:U$400,AF68,'SmålandsDM inne'!P$4:P$400)) -> 0 | AA68: =IF(AF68="","",SUMIF('BlekingeDM inne'!U$4:U$400,AF68,'BlekingeDM inne'!P$4:P$400)) -> 0 | AB68: =IF(AF68="","",SUMIF('StockholmsDM inne'!U$4:U$400,AF68,'StockholmsDM inne'!P$4:P$400)) -> 0 | AC68: =IF(AF68="","",SUMIF(Värendspokalen!U$4:U$400,AF68,Värendspokalen!P$4:P$400)) -> 0 | AD68: =IF(AF68="","",SUMIF('Tingsryd Open'!U$4:U$400,AF68,'Tingsryd Open'!P$4:P$400)) -> 0 | AF68: =IF(B68="","",SUMIF(Kastare!B$2:B$2999,B68,Kastare!A$2:A$2999)) -> 1092
A69: =IF(B69="","",IF(D69<D68,ROW(66:66),A68)) -> 66 | B69: Morgan Athle | C69: Dynapac Hsc | D69: 919 | F69: 6 | G69: 76.58333333 | I69: =IF(AF69="","",SUMIF('Jämjö Open'!U$4:U$400,AF69,'Jämjö Open'!P$4:P$400)) -> 0 | J69: =IF(AF69="","",SUMIF('Viby Open'!U$4:U$400,AF69,'Viby Open'!P$4:P$400)) -> 0 | K69: =IF(AF69="","",SUMIF('Björkenäs Open'!U$4:U$400,AF69,'Björkenäs Open'!P$4:P$400)) -> 0 | L69: =IF(AF69="","",SUMIF('SM ute Lö'!U$4:U$400,AF69,'SM ute Lö'!P$4:P$400)) -> 122 | M69: =IF(AF69="","",SUMIF('SM ute Sö'!U$4:U$401,AF69,'SM ute Sö'!P$4:P$401)) -> 106 | N69: =IF(AF69="","",SUMIF('Roslagen Open'!U$4:U$400,AF69,'Roslagen Open'!P$4:P$400)) -> 0 | O69: =IF(AF69="","",SUMIF('Vaxholm Open'!U$4:U$400,AF69,'Vaxholm Open'!P$4:P$400)) -> 188 | P69: =IF(AF69="","",SUMIF('Dynapac Open'!U$4:U$400,AF69,'Dynapac Open'!P$4:P$400)) -> 0 | Q69: =IF(AF69="","",SUMIF('SmålandsDM ute'!U$4:U$400,AF69,'SmålandsDM ute'!P$4:P$400)) -> 0 | R69: =IF(AF69="","",SUMIF('BlekingeDM ute'!U$4:U$400,AF69,'BlekingeDM ute'!P$4:P$400)) -> 189 | S69: =IF(AF69="","",SUMIF('StockholmsDM ute'!U$4:U$400,AF69,'StockholmsDM ute'!P$4:P$400)) -> 0 | T69: =IF(AF69="","",SUMIF('Åseda Open'!U$4:U$406,AF69,'Åseda Open'!P$4:P$406)) -> 0 | U69: =IF(AF69="","",SUMIF(Höstskon!U$4:U$400,AF69,Höstskon!P$4:P$400)) -> 0 | V69: =IF(AF69="","",SUMIF('Carlskrona Cup'!U$4:U$400,AF69,'Carlskrona Cup'!P$4:P$400)) -> 0 | W69: =IF(AF69="","",SUMIF('Sibbamåla Open'!U$4:U$400,AF69,'Sibbamåla Open'!P$4:P$400)) -> 0 | X69: =IF(AF69="","",SUMIF('Vaxholm Indoor'!U$4:U$400,AF69,'Vaxholm Indoor'!P$4:P$400)) -> 0 | Y69: =IF(AF69="","",SUMIF('SM inne 2022'!U$4:U$400,AF69,'SM inne 2022'!P$4:P$400)) -> 174 | Z69: =IF(AF69="","",SUMIF('SmålandsDM inne'!U$4:U$400,AF69,'SmålandsDM inne'!P$4:P$400)) -> 0 | AA69: =IF(AF69="","",SUMIF('BlekingeDM inne'!U$4:U$400,AF69,'BlekingeDM inne'!P$4:P$400)) -> 140 | AB69: =IF(AF69="","",SUMIF('StockholmsDM inne'!U$4:U$400,AF69,'StockholmsDM inne'!P$4:P$400)) -> 0 | AC69: =IF(AF69="","",SUMIF(Värendspokalen!U$4:U$400,AF69,Värendspokalen!P$4:P$400)) -> 0 | AD69: =IF(AF69="","",SUMIF('Tingsryd Open'!U$4:U$400,AF69,'Tingsryd Open'!P$4:P$400)) -> 0 | AF69: =IF(B69="","",SUMIF(Kastare!B$2:B$2999,B69,Kastare!A$2:A$2999)) -> 1105
A70: 67 | B70: Erik Smiding | C70: Vaxholm Hsk | D70: 917 | F70: 5 | G70: 91.7 | I70: =IF(AF70="","",SUMIF('Jämjö Open'!U$4:U$400,AF70,'Jämjö Open'!P$4:P$400)) -> 0 | J70: =IF(AF70="","",SUMIF('Viby Open'!U$4:U$400,AF70,'Viby Open'!P$4:P$400)) -> 0 | K70: =IF(AF70="","",SUMIF('Björkenäs Open'!U$4:U$400,AF70,'Björkenäs Open'!P$4:P$400)) -> 0 | L70: =IF(AF70="","",SUMIF('SM ute Lö'!U$4:U$400,AF70,'SM ute Lö'!P$4:P$400)) -> 176 | M70: =IF(AF70="","",SUMIF('SM ute Sö'!U$4:U$401,AF70,'SM ute Sö'!P$4:P$401)) -> 153 | N70: =IF(AF70="","",SUMIF('Roslagen Open'!U$4:U$400,AF70,'Roslagen Open'!P$4:P$400)) -> 182 | O70: =IF(AF70="","",SUMIF('Vaxholm Open'!U$4:U$400,AF70,'Vaxholm Open'!P$4:P$400)) -> 211 | P70: =IF(AF70="","",SUMIF('Dynapac Open'!U$4:U$400,AF70,'Dynapac Open'!P$4:P$400)) -> 0 | Q70: =IF(AF70="","",SUMIF('SmålandsDM ute'!U$4:U$400,AF70,'SmålandsDM ute'!P$4:P$400)) -> 0 | R70: =IF(AF70="","",SUMIF('BlekingeDM ute'!U$4:U$400,AF70,'BlekingeDM ute'!P$4:P$400)) -> 0 | S70: =IF(AF70="","",SUMIF('StockholmsDM ute'!U$4:U$400,AF70,'StockholmsDM ute'!P$4:P$400)) -> 195 | T70: =IF(AF70="","",SUMIF('Åseda Open'!U$4:U$406,AF70,'Åseda Open'!P$4:P$406)) -> 0 | U70: =IF(AF70="","",SUMIF(Höstskon!U$4:U$400,AF70,Höstskon!P$4:P$400)) -> 0 | V70: =IF(AF70="","",SUMIF('Carlskrona Cup'!U$4:U$400,AF70,'Carlskrona Cup'!P$4:P$400)) -> 0 | W70: =IF(AF70="","",SUMIF('Sibbamåla Open'!U$4:U$400,AF70,'Sibbamåla Open'!P$4:P$400)) -> 0 | X70: =IF(AF70="","",SUMIF('Vaxholm Indoor'!U$4:U$400,AF70,'Vaxholm Indoor'!P$4:P$400)) -> 0 | Y70: =IF(AF70="","",SUMIF('SM inne 2022'!U$4:U$400,AF70,'SM inne 2022'!P$4:P$400)) -> 0 | Z70: =IF(AF70="","",SUMIF('SmålandsDM inne'!U$4:U$400,AF70,'SmålandsDM inne'!P$4:P$400)) -> 0 | AA70: =IF(AF70="","",SUMIF('BlekingeDM inne'!U$4:U$400,AF70,'BlekingeDM inne'!P$4:P$400)) -> 0 | AB70: =IF(AF70="","",SUMIF('StockholmsDM inne'!U$4:U$400,AF70,'StockholmsDM inne'!P$4:P$400)) -> 0 | AC70: =IF(AF70="","",SUMIF(Värendspokalen!U$4:U$400,AF70,Värendspokalen!P$4:P$400)) -> 0 | AD70: =IF(AF70="","",SUMIF('Tingsryd Open'!U$4:U$400,AF70,'Tingsryd Open'!P$4:P$400)) -> 0 | AF70: =IF(B70="","",SUMIF(Kastare!B$2:B$2999,B70,Kastare!A$2:A$2999)) -> 1059
A71: 68 | B71: Risato Maljanovski | C71: Korpen Nybro | D71: 916 | F71: 4 | G71: 114.5 | I71: =IF(AF71="","",SUMIF('Jämjö Open'!U$4:U$400,AF71,'Jämjö Open'!P$4:P$400)) -> 0 | J71: =IF(AF71="","",SUMIF('Viby Open'!U$4:U$400,AF71,'Viby Open'!P$4:P$400)) -> 0 | K71: =IF(AF71="","",SUMIF('Björkenäs Open'!U$4:U$400,AF71,'Björkenäs Open'!P$4:P$400)) -> 0 | L71: =IF(AF71="","",SUMIF('SM ute Lö'!U$4:U$400,AF71,'SM ute Lö'!P$4:P$400)) -> 232 | M71: =IF(AF71="","",SUMIF('SM ute Sö'!U$4:U$401,AF71,'SM ute Sö'!P$4:P$401)) -> 340 | N71: =IF(AF71="","",SUMIF('Roslagen Open'!U$4:U$400,AF71,'Roslagen Open'!P$4:P$400)) -> 0 | O71: =IF(AF71="","",SUMIF('Vaxholm Open'!U$4:U$400,AF71,'Vaxholm Open'!P$4:P$400)) -> 0 | P71: =IF(AF71="","",SUMIF('Dynapac Open'!U$4:U$400,AF71,'Dynapac Open'!P$4:P$400)) -> 0 | Q71: =IF(AF71="","",SUMIF('SmålandsDM ute'!U$4:U$400,AF71,'SmålandsDM ute'!P$4:P$400)) -> 0 | R71: =IF(AF71="","",SUMIF('BlekingeDM ute'!U$4:U$400,AF71,'BlekingeDM ute'!P$4:P$400)) -> 0 | S71: =IF(AF71="","",SUMIF('StockholmsDM ute'!U$4:U$400,AF71,'StockholmsDM ute'!P$4:P$400)) -> 0 | T71: =IF(AF71="","",SUMIF('Åseda Open'!U$4:U$406,AF71,'Åseda Open'!P$4:P$406)) -> 0 | U71: =IF(AF71="","",SUMIF(Höstskon!U$4:U$400,AF71,Höstskon!P$4:P$400)) -> 0 | V71: =IF(AF71="","",SUMIF('Carlskrona Cup'!U$4:U$400,AF71,'Carlskrona Cup'!P$4:P$400)) -> 0 | W71: =IF(AF71="","",SUMIF('Sibbamåla Open'!U$4:U$400,AF71,'Sibbamåla Open'!P$4:P$400)) -> 129 | X71: =IF(AF71="","",SUMIF('Vaxholm Indoor'!U$4:U$400,AF71,'Vaxholm Indoor'!P$4:P$400)) -> 0 | Y71: =IF(AF71="","",SUMIF('SM inne 2022'!U$4:U$400,AF71,'SM inne 2022'!P$4:P$400)) -> 215 | Z71: =IF(AF71="","",SUMIF('SmålandsDM inne'!U$4:U$400,AF71,'SmålandsDM inne'!P$4:P$400)) -> 0 | AA71: =IF(AF71="","",SUMIF('BlekingeDM inne'!U$4:U$400,AF71,'BlekingeDM inne'!P$4:P$400)) -> 0 | AB71: =IF(AF71="","",SUMIF('StockholmsDM inne'!U$4:U$400,AF71,'StockholmsDM inne'!P$4:P$400)) -> 0 | AC71: =IF(AF71="","",SUMIF(Värendspokalen!U$4:U$400,AF71,Värendspokalen!P$4:P$400)) -> 0 | AD71: =IF(AF71="","",SUMIF('Tingsryd Open'!U$4:U$400,AF71,'Tingsryd Open'!P$4:P$400)) -> 0 | AF71: =IF(B71="","",SUMIF(Kastare!B$2:B$2999,B71,Kastare!A$2:A$2999)) -> 1162
A72: 69 | B72: Hernan Hernandez | C72: Jämjö Hsk | D72: 912 | F72: 6 | G72: 76 | I72: =IF(AF72="","",SUMIF('Jämjö Open'!U$4:U$400,AF72,'Jämjö Open'!P$4:P$400)) -> 0 | J72: =IF(AF72="","",SUMIF('Viby Open'!U$4:U$400,AF72,'Viby Open'!P$4:P$400)) -> 0 | K72: =IF(AF72="","",SUMIF('Björkenäs Open'!U$4:U$400,AF72,'Björkenäs Open'!P$4:P$400)) -> 0 | L72: =IF(AF72="","",SUMIF('SM ute Lö'!U$4:U$400,AF72,'SM ute Lö'!P$4:P$400)) -> 149 | M72: =IF(AF72="","",SUMIF('SM ute Sö'!U$4:U$401,AF72,'SM ute Sö'!P$4:P$401)) -> 148 | N72: =IF(AF72="","",SUMIF('Roslagen Open'!U$4:U$400,AF72,'Roslagen Open'!P$4:P$400)) -> 0 | O72: =IF(AF72="","",SUMIF('Vaxholm Open'!U$4:U$400,AF72,'Vaxholm Open'!P$4:P$400)) -> 0 | P72: =IF(AF72="","",SUMIF('Dynapac Open'!U$4:U$400,AF72,'Dynapac Open'!P$4:P$400)) -> 0 | Q72: =IF(AF72="","",SUMIF('SmålandsDM ute'!U$4:U$400,AF72,'SmålandsDM ute'!P$4:P$400)) -> 0 | R72: =IF(AF72="","",SUMIF('BlekingeDM ute'!U$4:U$400,AF72,'BlekingeDM ute'!P$4:P$400)) -> 123 | S72: =IF(AF72="","",SUMIF('StockholmsDM ute'!U$4:U$400,AF72,'StockholmsDM ute'!P$4:P$400)) -> 0 | T72: =IF(AF72="","",SUMIF('Åseda Open'!U$4:U$406,AF72,'Åseda Open'!P$4:P$406)) -> 0 | U72: =IF(AF72="","",SUMIF(Höstskon!U$4:U$400,AF72,Höstskon!P$4:P$400)) -> 239 | V72: =IF(AF72="","",SUMIF('Carlskrona Cup'!U$4:U$400,AF72,'Carlskrona Cup'!P$4:P$400)) -> 86 | W72: =IF(AF72="","",SUMIF('Sibbamåla Open'!U$4:U$400,AF72,'Sibbamåla Open'!P$4:P$400)) -> 0 | X72: =IF(AF72="","",SUMIF('Vaxholm Indoor'!U$4:U$400,AF72,'Vaxholm Indoor'!P$4:P$400)) -> 0 | Y72: =IF(AF72="","",SUMIF('SM inne 2022'!U$4:U$400,AF72,'SM inne 2022'!P$4:P$400)) -> 0 | Z72: =IF(AF72="","",SUMIF('SmålandsDM inne'!U$4:U$400,AF72,'SmålandsDM inne'!P$4:P$400)) -> 0 | AA72: =IF(AF72="","",SUMIF('BlekingeDM inne'!U$4:U$400,AF72,'BlekingeDM inne'!P$4:P$400)) -> 167 | AB72: =IF(AF72="","",SUMIF('StockholmsDM inne'!U$4:U$400,AF72,'StockholmsDM inne'!P$4:P$400)) -> 0 | AC72: =IF(AF72="","",SUMIF(Värendspokalen!U$4:U$400,AF72,Värendspokalen!P$4:P$400)) -> 0 | AD72: =IF(AF72="","",SUMIF('Tingsryd Open'!U$4:U$400,AF72,'Tingsryd Open'!P$4:P$400)) -> 0 | AF72: =IF(B72="","",SUMIF(Kastare!B$2:B$2999,B72,Kastare!A$2:A$2999)) -> 1046
A73: 70 | B73: Gebriela Kostantinos | C73: Korpen Åseda | D73: 893 | F73: 3 | G73: 148.8333333 | I73: =IF(AF73="","",SUMIF('Jämjö Open'!U$4:U$400,AF73,'Jämjö Open'!P$4:P$400)) -> 0 | J73: =IF(AF73="","",SUMIF('Viby Open'!U$4:U$400,AF73,'Viby Open'!P$4:P$400)) -> 0 | K73: =IF(AF73="","",SUMIF('Björkenäs Open'!U$4:U$400,AF73,'Björkenäs Open'!P$4:P$400)) -> 0 | L73: =IF(AF73="","",SUMIF('SM ute Lö'!U$4:U$400,AF73,'SM ute Lö'!P$4:P$400)) -> 0 | M73: =IF(AF73="","",SUMIF('SM ute Sö'!U$4:U$401,AF73,'SM ute Sö'!P$4:P$401)) -> 0 | N73: =IF(AF73="","",SUMIF('Roslagen Open'!U$4:U$400,AF73,'Roslagen Open'!P$4:P$400)) -> 0 | O73: =IF(AF73="","",SUMIF('Vaxholm Open'!U$4:U$400,AF73,'Vaxholm Open'!P$4:P$400)) -> 0 | P73: =IF(AF73="","",SUMIF('Dynapac Open'!U$4:U$400,AF73,'Dynapac Open'!P$4:P$400)) -> 0 | Q73: =IF(AF73="","",SUMIF('SmålandsDM ute'!U$4:U$400,AF73,'SmålandsDM ute'!P$4:P$400)) -> 0 | R73: =IF(AF73="","",SUMIF('BlekingeDM ute'!U$4:U$400,AF73,'BlekingeDM ute'!P$4:P$400)) -> 0 | S73: =IF(AF73="","",SUMIF('StockholmsDM ute'!U$4:U$400,AF73,'StockholmsDM ute'!P$4:P$400)) -> 0 | T73: =IF(AF73="","",SUMIF('Åseda Open'!U$4:U$406,AF73,'Åseda Open'!P$4:P$406)) -> 0 | U73: =IF(AF73="","",SUMIF(Höstskon!U$4:U$400,AF73,Höstskon!P$4:P$400)) -> 0 | V73: =IF(AF73="","",SUMIF('Carlskrona Cup'!U$4:U$400,AF73,'Carlskrona Cup'!P$4:P$400)) -> 0 | W73: =IF(AF73="","",SUMIF('Sibbamåla Open'!U$4:U$400,AF73,'Sibbamåla Open'!P$4:P$400)) -> 256 | X73: =IF(AF73="","",SUMIF('Vaxholm Indoor'!U$4:U$400,AF73,'Vaxholm Indoor'!P$4:P$400)) -> 0 | Y73: =IF(AF73="","",SUMIF('SM inne 2022'!U$4:U$400,AF73,'SM inne 2022'!P$4:P$400)) -> 326 | Z73: =IF(AF73="","",SUMIF('SmålandsDM inne'!U$4:U$400,AF73,'SmålandsDM inne'!P$4:P$400)) -> 0 | AA73: =IF(AF73="","",SUMIF('BlekingeDM inne'!U$4:U$400,AF73,'BlekingeDM inne'!P$4:P$400)) -> 0 | AB73: =IF(AF73="","",SUMIF('StockholmsDM inne'!U$4:U$400,AF73,'StockholmsDM inne'!P$4:P$400)) -> 0 | AC73: =IF(AF73="","",SUMIF(Värendspokalen!U$4:U$400,AF73,Värendspokalen!P$4:P$400)) -> 311 | AD73: =IF(AF73="","",SUMIF('Tingsryd Open'!U$4:U$400,AF73,'Tingsryd Open'!P$4:P$400)) -> 0 | AF73: =IF(B73="","",SUMIF(Kastare!B$2:B$2999,B73,Kastare!A$2:A$2999)) -> 1065
A74: 71 | B74: Sebastian Israelsson | C74: Sibbamåla IF | D74: 848 | F74: 4 | G74: 106 | I74: =IF(AF74="","",SUMIF('Jämjö Open'!U$4:U$400,AF74,'Jämjö Open'!P$4:P$400)) -> 0 | J74: =IF(AF74="","",SUMIF('Viby Open'!U$4:U$400,AF74,'Viby Open'!P$4:P$400)) -> 0 | K74: =IF(AF74="","",SUMIF('Björkenäs Open'!U$4:U$400,AF74,'Björkenäs Open'!P$4:P$400)) -> 0 | L74: =IF(AF74="","",SUMIF('SM ute Lö'!U$4:U$400,AF74,'SM ute Lö'!P$4:P$400)) -> 233 | M74: =IF(AF74="","",SUMIF('SM ute Sö'!U$4:U$401,AF74,'SM ute Sö'!P$4:P$401)) -> 0 | N74: =IF(AF74="","",SUMIF('Roslagen Open'!U$4:U$400,AF74,'Roslagen Open'!P$4:P$400)) -> 0 | O74: =IF(AF74="","",SUMIF('Vaxholm Open'!U$4:U$400,AF74,'Vaxholm Open'!P$4:P$400)) -> 0 | P74: =IF(AF74="","",SUMIF('Dynapac Open'!U$4:U$400,AF74,'Dynapac Open'!P$4:P$400)) -> 0 | Q74: =IF(AF74="","",SUMIF('SmålandsDM ute'!U$4:U$400,AF74,'SmålandsDM ute'!P$4:P$400)) -> 0 | R74: =IF(AF74="","",SUMIF('BlekingeDM ute'!U$4:U$400,AF74,'BlekingeDM ute'!P$4:P$400)) -> 0 | S74: =IF(AF74="","",SUMIF('StockholmsDM ute'!U$4:U$400,AF74,'StockholmsDM ute'!P$4:P$400)) -> 0 | T74: =IF(AF74="","",SUMIF('Åseda Open'!U$4:U$406,AF74,'Åseda Open'!P$4:P$406)) -> 0 | U74: =IF(AF74="","",SUMIF(Höstskon!U$4:U$400,AF74,Höstskon!P$4:P$400)) -> 0 | V74: =IF(AF74="","",SUMIF('Carlskrona Cup'!U$4:U$400,AF74,'Carlskrona Cup'!P$4:P$400)) -> 229 | W74: =IF(AF74="","",SUMIF('Sibbamåla Open'!U$4:U$400,AF74,'Sibbamåla Open'!P$4:P$400)) -> 177 | X74: =IF(AF74="","",SUMIF('Vaxholm Indoor'!U$4:U$400,AF74,'Vaxholm Indoor'!P$4:P$400)) -> 0 | Y74: =IF(AF74="","",SUMIF('SM inne 2022'!U$4:U$400,AF74,'SM inne 2022'!P$4:P$400)) -> 209 | Z74: =IF(AF74="","",SUMIF('SmålandsDM inne'!U$4:U$400,AF74,'SmålandsDM inne'!P$4:P$400)) -> 0 | AA74: =IF(AF74="","",SUMIF('BlekingeDM inne'!U$4:U$400,AF74,'BlekingeDM inne'!P$4:P$400)) -> 0 | AB74: =IF(AF74="","",SUMIF('StockholmsDM inne'!U$4:U$400,AF74,'StockholmsDM inne'!P$4:P$400)) -> 0 | AC74: =IF(AF74="","",SUMIF(Värendspokalen!U$4:U$400,AF74,Värendspokalen!P$4:P$400)) -> 0 | AD74: =IF(AF74="","",SUMIF('Tingsryd Open'!U$4:U$400,AF74,'Tingsryd Open'!P$4:P$400)) -> 0 | AF74: =IF(B74="","",SUMIF(Kastare!B$2:B$2999,B74,Kastare!A$2:A$2999)) -> 1035
A75: 72 | B75: Markus Peterson | C75: Balders HSK | D75: 831 | F75: 4 | G75: 103.875 | I75: =IF(AF75="","",SUMIF('Jämjö Open'!U$4:U$400,AF75,'Jämjö Open'!P$4:P$400)) -> 0 | J75: =IF(AF75="","",SUMIF('Viby Open'!U$4:U$400,AF75,'Viby Open'!P$4:P$400)) -> 0 | K75: =IF(AF75="","",SUMIF('Björkenäs Open'!U$4:U$400,AF75,'Björkenäs Open'!P$4:P$400)) -> 0 | L75: =IF(AF75="","",SUMIF('SM ute Lö'!U$4:U$400,AF75,'SM ute Lö'!P$4:P$400)) -> 0 | M75: =IF(AF75="","",SUMIF('SM ute Sö'!U$4:U$401,AF75,'SM ute Sö'!P$4:P$401)) -> 0 | N75: =IF(AF75="","",SUMIF('Roslagen Open'!U$4:U$400,AF75,'Roslagen Open'!P$4:P$400)) -> 200 | O75: =IF(AF75="","",SUMIF('Vaxholm Open'!U$4:U$400,AF75,'Vaxholm Open'!P$4:P$400)) -> 0 | P75: =IF(AF75="","",SUMIF('Dynapac Open'!U$4:U$400,AF75,'Dynapac Open'!P$4:P$400)) -> 0 | Q75: =IF(AF75="","",SUMIF('SmålandsDM ute'!U$4:U$400,AF75,'SmålandsDM ute'!P$4:P$400)) -> 0 | R75: =IF(AF75="","",SUMIF('BlekingeDM ute'!U$4:U$400,AF75,'BlekingeDM ute'!P$4:P$400)) -> 0 | S75: =IF(AF75="","",SUMIF('StockholmsDM ute'!U$4:U$400,AF75,'StockholmsDM ute'!P$4:P$400)) -> 0 | T75: =IF(AF75="","",SUMIF('Åseda Open'!U$4:U$406,AF75,'Åseda Open'!P$4:P$406)) -> 0 | U75: =IF(AF75="","",SUMIF(Höstskon!U$4:U$400,AF75,Höstskon!P$4:P$400)) -> 0 | V75: =IF(AF75="","",SUMIF('Carlskrona Cup'!U$4:U$400,AF75,'Carlskrona Cup'!P$4:P$400)) -> 0 | W75: =IF(AF75="","",SUMIF('Sibbamåla Open'!U$4:U$400,AF75,'Sibbamåla Open'!P$4:P$400)) -> 0 | X75: =IF(AF75="","",SUMIF('Vaxholm Indoor'!U$4:U$400,AF75,'Vaxholm Indoor'!P$4:P$400)) -> 200 | Y75: =IF(AF75="","",SUMIF('SM inne 2022'!U$4:U$400,AF75,'SM inne 2022'!P$4:P$400)) -> 249 | Z75: =IF(AF75="","",SUMIF('SmålandsDM inne'!U$4:U$400,AF75,'SmålandsDM inne'!P$4:P$400)) -> 0 | AA75: =IF(AF75="","",SUMIF('BlekingeDM inne'!U$4:U$400,AF75,'BlekingeDM inne'!P$4:P$400)) -> 0 | AB75: =IF(AF75="","",SUMIF('StockholmsDM inne'!U$4:U$400,AF75,'StockholmsDM inne'!P$4:P$400)) -> 182 | AC75: =IF(AF75="","",SUMIF(Värendspokalen!U$4:U$400,AF75,Värendspokalen!P$4:P$400)) -> 0 | AD75: =IF(AF75="","",SUMIF('Tingsryd Open'!U$4:U$400,AF75,'Tingsryd Open'!P$4:P$400)) -> 0 | AF75: =IF(B75="","",SUMIF(Kastare!B$2:B$2999,B75,Kastare!A$2:A$2999)) -> 1211
A76: 73 | B76: Lisbeth Blihd | C76: Lanternan | D76: 804 | F76: 4 | G76: 100.5 | I76: =IF(AF76="","",SUMIF('Jämjö Open'!U$4:U$400,AF76,'Jämjö Open'!P$4:P$400)) -> 0 | J76: =IF(AF76="","",SUMIF('Viby Open'!U$4:U$400,AF76,'Viby Open'!P$4:P$400)) -> 0 | K76: =IF(AF76="","",SUMIF('Björkenäs Open'!U$4:U$400,AF76,'Björkenäs Open'!P$4:P$400)) -> 0 | L76: =IF(AF76="","",SUMIF('SM ute Lö'!U$4:U$400,AF76,'SM ute Lö'!P$4:P$400)) -> 0 | M76: =IF(AF76="","",SUMIF('SM ute Sö'!U$4:U$401,AF76,'SM ute Sö'!P$4:P$401)) -> 0 | N76: =IF(AF76="","",SUMIF('Roslagen Open'!U$4:U$400,AF76,'Roslagen Open'!P$4:P$400)) -> 0 | O76: =IF(AF76="","",SUMIF('Vaxholm Open'!U$4:U$400,AF76,'Vaxholm Open'!P$4:P$400)) -> 0 | P76: =IF(AF76="","",SUMIF('Dynapac Open'!U$4:U$400,AF76,'Dynapac Open'!P$4:P$400)) -> 0 | Q76: =IF(AF76="","",SUMIF('SmålandsDM ute'!U$4:U$400,AF76,'SmålandsDM ute'!P$4:P$400)) -> 0 | R76: =IF(AF76="","",SUMIF('BlekingeDM ute'!U$4:U$400,AF76,'BlekingeDM ute'!P$4:P$400)) -> 196 | S76: =IF(AF76="","",SUMIF('StockholmsDM ute'!U$4:U$400,AF76,'StockholmsDM ute'!P$4:P$400)) -> 0 | T76: =IF(AF76="","",SUMIF('Åseda Open'!U$4:U$406,AF76,'Åseda Open'!P$4:P$406)) -> 0 | U76: =IF(AF76="","",SUMIF(Höstskon!U$4:U$400,AF76,Höstskon!P$4:P$400)) -> 0 | V76: =IF(AF76="","",SUMIF('Carlskrona Cup'!U$4:U$400,AF76,'Carlskrona Cup'!P$4:P$400)) -> 226 | W76: =IF(AF76="","",SUMIF('Sibbamåla Open'!U$4:U$400,AF76,'Sibbamåla Open'!P$4:P$400)) -> 161 | X76: =IF(AF76="","",SUMIF('Vaxholm Indoor'!U$4:U$400,AF76,'Vaxholm Indoor'!P$4:P$400)) -> 0 | Y76: =IF(AF76="","",SUMIF('SM inne 2022'!U$4:U$400,AF76,'SM inne 2022'!P$4:P$400)) -> 0 | Z76: =IF(AF76="","",SUMIF('SmålandsDM inne'!U$4:U$400,AF76,'SmålandsDM inne'!P$4:P$400)) -> 0 | AA76: =IF(AF76="","",SUMIF('BlekingeDM inne'!U$4:U$400,AF76,'BlekingeDM inne'!P$4:P$400)) -> 221 | AB76: =IF(AF76="","",SUMIF('StockholmsDM inne'!U$4:U$400,AF76,'StockholmsDM inne'!P$4:P$400)) -> 0 | AC76: =IF(AF76="","",SUMIF(Värendspokalen!U$4:U$400,AF76,Värendspokalen!P$4:P$400)) -> 0 | AD76: =IF(AF76="","",SUMIF('Tingsryd Open'!U$4:U$400,AF76,'Tingsryd Open'!P$4:P$400)) -> 0 | AF76: =IF(B76="","",SUMIF(Kastare!B$2:B$2999,B76,Kastare!A$2:A$2999)) -> 1080
A77: 74 | B77: Lars Johannesson | C77: Jämjö Hsk | D77: 791 | F77: 5 | G77: 79.1 | I77: =IF(AF77="","",SUMIF('Jämjö Open'!U$4:U$400,AF77,'Jämjö Open'!P$4:P$400)) -> 0 | J77: =IF(AF77="","",SUMIF('Viby Open'!U$4:U$400,AF77,'Viby Open'!P$4:P$400)) -> 0 | K77: =IF(AF77="","",SUMIF('Björkenäs Open'!U$4:U$400,AF77,'Björkenäs Open'!P$4:P$400)) -> 0 | L77: =IF(AF77="","",SUMIF('SM ute Lö'!U$4:U$400,AF77,'SM ute Lö'!P$4:P$400)) -> 0 | M77: =IF(AF77="","",SUMIF('SM ute Sö'!U$4:U$401,AF77,'SM ute Sö'!P$4:P$401)) -> 0 | N77: =IF(AF77="","",SUMIF('Roslagen Open'!U$4:U$400,AF77,'Roslagen Open'!P$4:P$400)) -> 0 | O77: =IF(AF77="","",SUMIF('Vaxholm Open'!U$4:U$400,AF77,'Vaxholm Open'!P$4:P$400)) -> 0 | P77: =IF(AF77="","",SUMIF('Dynapac Open'!U$4:U$400,AF77,'Dynapac Open'!P$4:P$400)) -> 0 | Q77: =IF(AF77="","",SUMIF('SmålandsDM ute'!U$4:U$400,AF77,'SmålandsDM ute'!P$4:P$400)) -> 0 | R77: =IF(AF77="","",SUMIF('BlekingeDM ute'!U$4:U$400,AF77,'BlekingeDM ute'!P$4:P$400)) -> 160 | S77: =IF(AF77="","",SUMIF('StockholmsDM ute'!U$4:U$400,AF77,'StockholmsDM ute'!P$4:P$400)) -> 0 | T77: =IF(AF77="","",SUMIF('Åseda Open'!U$4:U$406,AF77,'Åseda Open'!P$4:P$406)) -> 184 | U77: =IF(AF77="","",SUMIF(Höstskon!U$4:U$400,AF77,Höstskon!P$4:P$400)) -> 168 | V77: =IF(AF77="","",SUMIF('Carlskrona Cup'!U$4:U$400,AF77,'Carlskrona Cup'!P$4:P$400)) -> 141 | W77: =IF(AF77="","",SUMIF('Sibbamåla Open'!U$4:U$400,AF77,'Sibbamåla Open'!P$4:P$400)) -> 138 | X77: =IF(AF77="","",SUMIF('Vaxholm Indoor'!U$4:U$400,AF77,'Vaxholm Indoor'!P$4:P$400)) -> 0 | Y77: =IF(AF77="","",SUMIF('SM inne 2022'!U$4:U$400,AF77,'SM inne 2022'!P$4:P$400)) -> 0 | Z77: =IF(AF77="","",SUMIF('SmålandsDM inne'!U$4:U$400,AF77,'SmålandsDM inne'!P$4:P$400)) -> 0 | AA77: =IF(AF77="","",SUMIF('BlekingeDM inne'!U$4:U$400,AF77,'BlekingeDM inne'!P$4:P$400)) -> 0 | AB77: =IF(AF77="","",SUMIF('StockholmsDM inne'!U$4:U$400,AF77,'StockholmsDM inne'!P$4:P$400)) -> 0 | AC77: =IF(AF77="","",SUMIF(Värendspokalen!U$4:U$400,AF77,Värendspokalen!P$4:P$400)) -> 0 | AD77: =IF(AF77="","",SUMIF('Tingsryd Open'!U$4:U$400,AF77,'Tingsryd Open'!P$4:P$400)) -> 0 | AF77: =IF(B77="","",SUMIF(Kastare!B$2:B$2999,B77,Kastare!A$2:A$2999)) -> 1060
A78: 75 | B78: Marianne Karlsson | C78: Jämjö Hsk | D78: 778 | F78: 5 | G78: 77.8 | I78: =IF(AF78="","",SUMIF('Jämjö Open'!U$4:U$400,AF78,'Jämjö Open'!P$4:P$400)) -> 0 | J78: =IF(AF78="","",SUMIF('Viby Open'!U$4:U$400,AF78,'Viby Open'!P$4:P$400)) -> 0 | K78: =IF(AF78="","",SUMIF('Björkenäs Open'!U$4:U$400,AF78,'Björkenäs Open'!P$4:P$400)) -> 0 | L78: =IF(AF78="","",SUMIF('SM ute Lö'!U$4:U$400,AF78,'SM ute Lö'!P$4:P$400)) -> 107 | M78: =IF(AF78="","",SUMIF('SM ute Sö'!U$4:U$401,AF78,'SM ute Sö'!P$4:P$401)) -> 196 | N78: =IF(AF78="","",SUMIF('Roslagen Open'!U$4:U$400,AF78,'Roslagen Open'!P$4:P$400)) -> 0 | O78: =IF(AF78="","",SUMIF('Vaxholm Open'!U$4:U$400,AF78,'Vaxholm Open'!P$4:P$400)) -> 0 | P78: =IF(AF78="","",SUMIF('Dynapac Open'!U$4:U$400,AF78,'Dynapac Open'!P$4:P$400)) -> 0 | Q78: =IF(AF78="","",SUMIF('SmålandsDM ute'!U$4:U$400,AF78,'SmålandsDM ute'!P$4:P$400)) -> 0 | R78: =IF(AF78="","",SUMIF('BlekingeDM ute'!U$4:U$400,AF78,'BlekingeDM ute'!P$4:P$400)) -> 0 | S78: =IF(AF78="","",SUMIF('StockholmsDM ute'!U$4:U$400,AF78,'StockholmsDM ute'!P$4:P$400)) -> 0 | T78: =IF(AF78="","",SUMIF('Åseda Open'!U$4:U$406,AF78,'Åseda Open'!P$4:P$406)) -> 240 | U78: =IF(AF78="","",SUMIF(Höstskon!U$4:U$400,AF78,Höstskon!P$4:P$400)) -> 0 | V78: =IF(AF78="","",SUMIF('Carlskrona Cup'!U$4:U$400,AF78,'Carlskrona Cup'!P$4:P$400)) -> 0 | W78: =IF(AF78="","",SUMIF('Sibbamåla Open'!U$4:U$400,AF78,'Sibbamåla Open'!P$4:P$400)) -> 0 | X78: =IF(AF78="","",SUMIF('Vaxholm Indoor'!U$4:U$400,AF78,'Vaxholm Indoor'!P$4:P$400)) -> 0 | Y78: =IF(AF78="","",SUMIF('SM inne 2022'!U$4:U$400,AF78,'SM inne 2022'!P$4:P$400)) -> 0 | Z78: =IF(AF78="","",SUMIF('SmålandsDM inne'!U$4:U$400,AF78,'SmålandsDM inne'!P$4:P$400)) -> 0 | AA78: =IF(AF78="","",SUMIF('BlekingeDM inne'!U$4:U$400,AF78,'BlekingeDM inne'!P$4:P$400)) -> 111 | AB78: =IF(AF78="","",SUMIF('StockholmsDM inne'!U$4:U$400,AF78,'StockholmsDM inne'!P$4:P$400)) -> 0 | AC78: =IF(AF78="","",SUMIF(Värendspokalen!U$4:U$400,AF78,Värendspokalen!P$4:P$400)) -> 124 | AD78: =IF(AF78="","",SUMIF('Tingsryd Open'!U$4:U$400,AF78,'Tingsryd Open'!P$4:P$400)) -> 0 | AF78: =IF(B78="","",SUMIF(Kastare!B$2:B$2999,B78,Kastare!A$2:A$2999)) -> 1086
A79: 76 | B79: Mats Mårtensson | C79: Jämjö Hsk | D79: 767 | F79: 5 | G79: 76.7 | I79: =IF(AF79="","",SUMIF('Jämjö Open'!U$4:U$400,AF79,'Jämjö Open'!P$4:P$400)) -> 0 | J79: =IF(AF79="","",SUMIF('Viby Open'!U$4:U$400,AF79,'Viby Open'!P$4:P$400)) -> 0 | K79: =IF(AF79="","",SUMIF('Björkenäs Open'!U$4:U$400,AF79,'Björkenäs Open'!P$4:P$400)) -> 0 | L79: =IF(AF79="","",SUMIF('SM ute Lö'!U$4:U$400,AF79,'SM ute Lö'!P$4:P$400)) -> 0 | M79: =IF(AF79="","",SUMIF('SM ute Sö'!U$4:U$401,AF79,'SM ute Sö'!P$4:P$401)) -> 0 | N79: =IF(AF79="","",SUMIF('Roslagen Open'!U$4:U$400,AF79,'Roslagen Open'!P$4:P$400)) -> 0 | O79: =IF(AF79="","",SUMIF('Vaxholm Open'!U$4:U$400,AF79,'Vaxholm Open'!P$4:P$400)) -> 0 | P79: =IF(AF79="","",SUMIF('Dynapac Open'!U$4:U$400,AF79,'Dynapac Open'!P$4:P$400)) -> 0 | Q79: =IF(AF79="","",SUMIF('SmålandsDM ute'!U$4:U$400,AF79,'SmålandsDM ute'!P$4:P$400)) -> 0 | R79: =IF(AF79="","",SUMIF('BlekingeDM ute'!U$4:U$400,AF79,'BlekingeDM ute'!P$4:P$400)) -> 149 | S79: =IF(AF79="","",SUMIF('StockholmsDM ute'!U$4:U$400,AF79,'StockholmsDM ute'!P$4:P$400)) -> 0 | T79: =IF(AF79="","",SUMIF('Åseda Open'!U$4:U$406,AF79,'Åseda Open'!P$4:P$406)) -> 0 | U79: =IF(AF79="","",SUMIF(Höstskon!U$4:U$400,AF79,Höstskon!P$4:P$400)) -> 0 | V79: =IF(AF79="","",SUMIF('Carlskrona Cup'!U$4:U$400,AF79,'Carlskrona Cup'!P$4:P$400)) -> 100 | W79: =IF(AF79="","",SUMIF('Sibbamåla Open'!U$4:U$400,AF79,'Sibbamåla Open'!P$4:P$400)) -> 122 | X79: =IF(AF79="","",SUMIF('Vaxholm Indoor'!U$4:U$400,AF79,'Vaxholm Indoor'!P$4:P$400)) -> 0 | Y79: =IF(AF79="","",SUMIF('SM inne 2022'!U$4:U$400,AF79,'SM inne 2022'!P$4:P$400)) -> 240 | Z79: =IF(AF79="","",SUMIF('SmålandsDM inne'!U$4:U$400,AF79,'SmålandsDM inne'!P$4:P$400)) -> 0 | AA79: =IF(AF79="","",SUMIF('BlekingeDM inne'!U$4:U$400,AF79,'BlekingeDM inne'!P$4:P$400)) -> 0 | AB79: =IF(AF79="","",SUMIF('StockholmsDM inne'!U$4:U$400,AF79,'StockholmsDM inne'!P$4:P$400)) -> 0 | AC79: =IF(AF79="","",SUMIF(Värendspokalen!U$4:U$400,AF79,Värendspokalen!P$4:P$400)) -> 156 | AD79: =IF(AF79="","",SUMIF('Tingsryd Open'!U$4:U$400,AF79,'Tingsryd Open'!P$4:P$400)) -> 0 | AF79: =IF(B79="","",SUMIF(Kastare!B$2:B$2999,B79,Kastare!A$2:A$2999)) -> 1070
A80: 77 | B80: Martin Antic | C80: Värends Hsk | D80: 759 | F80: 4 | G80: 94.875 | I80: =IF(AF80="","",SUMIF('Jämjö Open'!U$4:U$400,AF80,'Jämjö Open'!P$4:P$400)) -> 0 | J80: =IF(AF80="","",SUMIF('Viby Open'!U$4:U$400,AF80,'Viby Open'!P$4:P$400)) -> 0 | K80: =IF(AF80="","",SUMIF('Björkenäs Open'!U$4:U$400,AF80,'Björkenäs Open'!P$4:P$400)) -> 0 | L80: =IF(AF80="","",SUMIF('SM ute Lö'!U$4:U$400,AF80,'SM ute Lö'!P$4:P$400)) -> 173 | M80: =IF(AF80="","",SUMIF('SM ute Sö'!U$4:U$401,AF80,'SM ute Sö'!P$4:P$401)) -> 201 | N80: =IF(AF80="","",SUMIF('Roslagen Open'!U$4:U$400,AF80,'Roslagen Open'!P$4:P$400)) -> 0 | O80: =IF(AF80="","",SUMIF('Vaxholm Open'!U$4:U$400,AF80,'Vaxholm Open'!P$4:P$400)) -> 0 | P80: =IF(AF80="","",SUMIF('Dynapac Open'!U$4:U$400,AF80,'Dynapac Open'!P$4:P$400)) -> 0 | Q80: =IF(AF80="","",SUMIF('SmålandsDM ute'!U$4:U$400,AF80,'SmålandsDM ute'!P$4:P$400)) -> 0 | R80: =IF(AF80="","",SUMIF('BlekingeDM ute'!U$4:U$400,AF80,'BlekingeDM ute'!P$4:P$400)) -> 0 | S80: =IF(AF80="","",SUMIF('StockholmsDM ute'!U$4:U$400,AF80,'StockholmsDM ute'!P$4:P$400)) -> 0 | T80: =IF(AF80="","",SUMIF('Åseda Open'!U$4:U$406,AF80,'Åseda Open'!P$4:P$406)) -> 0 | U80: =IF(AF80="","",SUMIF(Höstskon!U$4:U$400,AF80,Höstskon!P$4:P$400)) -> 0 | V80: =IF(AF80="","",SUMIF('Carlskrona Cup'!U$4:U$400,AF80,'Carlskrona Cup'!P$4:P$400)) -> 0 | W80: =IF(AF80="","",SUMIF('Sibbamåla Open'!U$4:U$400,AF80,'Sibbamåla Open'!P$4:P$400)) -> 217 | X80: =IF(AF80="","",SUMIF('Vaxholm Indoor'!U$4:U$400,AF80,'Vaxholm Indoor'!P$4:P$400)) -> 0 | Y80: =IF(AF80="","",SUMIF('SM inne 2022'!U$4:U$400,AF80,'SM inne 2022'!P$4:P$400)) -> 168 | Z80: =IF(AF80="","",SUMIF('SmålandsDM inne'!U$4:U$400,AF80,'SmålandsDM inne'!P$4:P$400)) -> 0 | AA80: =IF(AF80="","",SUMIF('BlekingeDM inne'!U$4:U$400,AF80,'BlekingeDM inne'!P$4:P$400)) -> 0 | AB80: =IF(AF80="","",SUMIF('StockholmsDM inne'!U$4:U$400,AF80,'StockholmsDM inne'!P$4:P$400)) -> 0 | AC80: =IF(AF80="","",SUMIF(Värendspokalen!U$4:U$400,AF80,Värendspokalen!P$4:P$400)) -> 0 | AD80: =IF(AF80="","",SUMIF('Tingsryd Open'!U$4:U$400,AF80,'Tingsryd Open'!P$4:P$400)) -> 0 | AF80: =IF(B80="","",SUMIF(Kastare!B$2:B$2999,B80,Kastare!A$2:A$2999)) -> 1166
A81: 78 | B81: Göran Örjebo | C81: Vaxholm Hsk | D81: 743 | F81: 6 | G81: 61.91666667 | I81: =IF(AF81="","",SUMIF('Jämjö Open'!U$4:U$400,AF81,'Jämjö Open'!P$4:P$400)) -> 0 | J81: =IF(AF81="","",SUMIF('Viby Open'!U$4:U$400,AF81,'Viby Open'!P$4:P$400)) -> 0 | K81: =IF(AF81="","",SUMIF('Björkenäs Open'!U$4:U$400,AF81,'Björkenäs Open'!P$4:P$400)) -> 0 | L81: =IF(AF81="","",SUMIF('SM ute Lö'!U$4:U$400,AF81,'SM ute Lö'!P$4:P$400)) -> 135 | M81: =IF(AF81="","",SUMIF('SM ute Sö'!U$4:U$401,AF81,'SM ute Sö'!P$4:P$401)) -> 147 | N81: =IF(AF81="","",SUMIF('Roslagen Open'!U$4:U$400,AF81,'Roslagen Open'!P$4:P$400)) -> 0 | O81: =IF(AF81="","",SUMIF('Vaxholm Open'!U$4:U$400,AF81,'Vaxholm Open'!P$4:P$400)) -> 68 | P81: =IF(AF81="","",SUMIF('Dynapac Open'!U$4:U$400,AF81,'Dynapac Open'!P$4:P$400)) -> 0 | Q81: =IF(AF81="","",SUMIF('SmålandsDM ute'!U$4:U$400,AF81,'SmålandsDM ute'!P$4:P$400)) -> 0 | R81: =IF(AF81="","",SUMIF('BlekingeDM ute'!U$4:U$400,AF81,'BlekingeDM ute'!P$4:P$400)) -> 0 | S81: =IF(AF81="","",SUMIF('StockholmsDM ute'!U$4:U$400,AF81,'StockholmsDM ute'!P$4:P$400)) -> 100 | T81: =IF(AF81="","",SUMIF('Åseda Open'!U$4:U$406,AF81,'Åseda Open'!P$4:P$406)) -> 0 | U81: =IF(AF81="","",SUMIF(Höstskon!U$4:U$400,AF81,Höstskon!P$4:P$400)) -> 0 | V81: =IF(AF81="","",SUMIF('Carlskrona Cup'!U$4:U$400,AF81,'Carlskrona Cup'!P$4:P$400)) -> 0 | W81: =IF(AF81="","",SUMIF('Sibbamåla Open'!U$4:U$400,AF81,'Sibbamåla Open'!P$4:P$400)) -> 0 | X81: =IF(AF81="","",SUMIF('Vaxholm Indoor'!U$4:U$400,AF81,'Vaxholm Indoor'!P$4:P$400)) -> 162 | Y81: =IF(AF81="","",SUMIF('SM inne 2022'!U$4:U$400,AF81,'SM inne 2022'!P$4:P$400)) -> 0 | Z81: =IF(AF81="","",SUMIF('SmålandsDM inne'!U$4:U$400,AF81,'SmålandsDM inne'!P$4:P$400)) -> 0 | AA81: =IF(AF81="","",SUMIF('BlekingeDM inne'!U$4:U$400,AF81,'BlekingeDM inne'!P$4:P$400)) -> 0 | AB81: =IF(AF81="","",SUMIF('StockholmsDM inne'!U$4:U$400,AF81,'StockholmsDM inne'!P$4:P$400)) -> 131 | AC81: =IF(AF81="","",SUMIF(Värendspokalen!U$4:U$400,AF81,Värendspokalen!P$4:P$400)) -> 0 | AD81: =IF(AF81="","",SUMIF('Tingsryd Open'!U$4:U$400,AF81,'Tingsryd Open'!P$4:P$400)) -> 0 | AF81: =IF(B81="","",SUMIF(Kastare!B$2:B$2999,B81,Kastare!A$2:A$2999)) -> 1102
A82: 79 | B82: Malira Eriksson | C82: Balders HSK | D82: 715 | F82: 3 | G82: 119.1666667 | I82: =IF(AF82="","",SUMIF('Jämjö Open'!U$4:U$400,AF82,'Jämjö Open'!P$4:P$400)) -> 0 | J82: =IF(AF82="","",SUMIF('Viby Open'!U$4:U$400,AF82,'Viby Open'!P$4:P$400)) -> 0 | K82: =IF(AF82="","",SUMIF('Björkenäs Open'!U$4:U$400,AF82,'Björkenäs Open'!P$4:P$400)) -> 0 | L82: =IF(AF82="","",SUMIF('SM ute Lö'!U$4:U$400,AF82,'SM ute Lö'!P$4:P$400)) -> 0 | M82: =IF(AF82="","",SUMIF('SM ute Sö'!U$4:U$401,AF82,'SM ute Sö'!P$4:P$401)) -> 0 | N82: =IF(AF82="","",SUMIF('Roslagen Open'!U$4:U$400,AF82,'Roslagen Open'!P$4:P$400)) -> 241 | O82: =IF(AF82="","",SUMIF('Vaxholm Open'!U$4:U$400,AF82,'Vaxholm Open'!P$4:P$400)) -> 213 | P82: =IF(AF82="","",SUMIF('Dynapac Open'!U$4:U$400,AF82,'Dynapac Open'!P$4:P$400)) -> 0 | Q82: =IF(AF82="","",SUMIF('SmålandsDM ute'!U$4:U$400,AF82,'SmålandsDM ute'!P$4:P$400)) -> 0 | R82: =IF(AF82="","",SUMIF('BlekingeDM ute'!U$4:U$400,AF82,'BlekingeDM ute'!P$4:P$400)) -> 0 | S82: =IF(AF82="","",SUMIF('StockholmsDM ute'!U$4:U$400,AF82,'StockholmsDM ute'!P$4:P$400)) -> 261 | T82: =IF(AF82="","",SUMIF('Åseda Open'!U$4:U$406,AF82,'Åseda Open'!P$4:P$406)) -> 0 | U82: =IF(AF82="","",SUMIF(Höstskon!U$4:U$400,AF82,Höstskon!P$4:P$400)) -> 0 | V82: =IF(AF82="","",SUMIF('Carlskrona Cup'!U$4:U$400,AF82,'Carlskrona Cup'!P$4:P$400)) -> 0 | W82: =IF(AF82="","",SUMIF('Sibbamåla Open'!U$4:U$400,AF82,'Sibbamåla Open'!P$4:P$400)) -> 0 | X82: =IF(AF82="","",SUMIF('Vaxholm Indoor'!U$4:U$400,AF82,'Vaxholm Indoor'!P$4:P$400)) -> 0 | Y82: =IF(AF82="","",SUMIF('SM inne 2022'!U$4:U$400,AF82,'SM inne 2022'!P$4:P$400)) -> 0 | Z82: =IF(AF82="","",SUMIF('SmålandsDM inne'!U$4:U$400,AF82,'SmålandsDM inne'!P$4:P$400)) -> 0 | AA82: =IF(AF82="","",SUMIF('BlekingeDM inne'!U$4:U$400,AF82,'BlekingeDM inne'!P$4:P$400)) -> 0 | AB82: =IF(AF82="","",SUMIF('StockholmsDM inne'!U$4:U$400,AF82,'StockholmsDM inne'!P$4:P$400)) -> 0 | AC82: =IF(AF82="","",SUMIF(Värendspokalen!U$4:U$400,AF82,Värendspokalen!P$4:P$400)) -> 0 | AD82: =IF(AF82="","",SUMIF('Tingsryd Open'!U$4:U$400,AF82,'Tingsryd Open'!P$4:P$400)) -> 0 | AF82: =IF(B82="","",SUMIF(Kastare!B$2:B$2999,B82,Kastare!A$2:A$2999)) -> 1171
A83: 79 | B83: Anton Alexandersson | C83: Sibbamåla IF | D83: 715 | F83: 3 | G83: 119.1666667 | I83: =IF(AF83="","",SUMIF('Jämjö Open'!U$4:U$400,AF83,'Jämjö Open'!P$4:P$400)) -> 0 | J83: =IF(AF83="","",SUMIF('Viby Open'!U$4:U$400,AF83,'Viby Open'!P$4:P$400)) -> 0 | K83: =IF(AF83="","",SUMIF('Björkenäs Open'!U$4:U$400,AF83,'Björkenäs Open'!P$4:P$400)) -> 0 | L83: =IF(AF83="","",SUMIF('SM ute Lö'!U$4:U$400,AF83,'SM ute Lö'!P$4:P$400)) -> 247 | M83: =IF(AF83="","",SUMIF('SM ute Sö'!U$4:U$401,AF83,'SM ute Sö'!P$4:P$401)) -> 214 | N83: =IF(AF83="","",SUMIF('Roslagen Open'!U$4:U$400,AF83,'Roslagen Open'!P$4:P$400)) -> 0 | O83: =IF(AF83="","",SUMIF('Vaxholm Open'!U$4:U$400,AF83,'Vaxholm Open'!P$4:P$400)) -> 0 | P83: =IF(AF83="","",SUMIF('Dynapac Open'!U$4:U$400,AF83,'Dynapac Open'!P$4:P$400)) -> 0 | Q83: =IF(AF83="","",SUMIF('SmålandsDM ute'!U$4:U$400,AF83,'SmålandsDM ute'!P$4:P$400)) -> 0 | R83: =IF(AF83="","",SUMIF('BlekingeDM ute'!U$4:U$400,AF83,'BlekingeDM ute'!P$4:P$400)) -> 0 | S83: =IF(AF83="","",SUMIF('StockholmsDM ute'!U$4:U$400,AF83,'StockholmsDM ute'!P$4:P$400)) -> 0 | T83: =IF(AF83="","",SUMIF('Åseda Open'!U$4:U$406,AF83,'Åseda Open'!P$4:P$406)) -> 0 | U83: =IF(AF83="","",SUMIF(Höstskon!U$4:U$400,AF83,Höstskon!P$4:P$400)) -> 0 | V83: =IF(AF83="","",SUMIF('Carlskrona Cup'!U$4:U$400,AF83,'Carlskrona Cup'!P$4:P$400)) -> 254 | W83: =IF(AF83="","",SUMIF('Sibbamåla Open'!U$4:U$400,AF83,'Sibbamåla Open'!P$4:P$400)) -> 0 | X83: =IF(AF83="","",SUMIF('Vaxholm Indoor'!U$4:U$400,AF83,'Vaxholm Indoor'!P$4:P$400)) -> 0 | Y83: =IF(AF83="","",SUMIF('SM inne 2022'!U$4:U$400,AF83,'SM inne 2022'!P$4:P$400)) -> 0 | Z83: =IF(AF83="","",SUMIF('SmålandsDM inne'!U$4:U$400,AF83,'SmålandsDM inne'!P$4:P$400)) -> 0 | AA83: =IF(AF83="","",SUMIF('BlekingeDM inne'!U$4:U$400,AF83,'BlekingeDM inne'!P$4:P$400)) -> 0 | AB83: =IF(AF83="","",SUMIF('StockholmsDM inne'!U$4:U$400,AF83,'StockholmsDM inne'!P$4:P$400)) -> 0 | AC83: =IF(AF83="","",SUMIF(Värendspokalen!U$4:U$400,AF83,Värendspokalen!P$4:P$400)) -> 0 | AD83: =IF(AF83="","",SUMIF('Tingsryd Open'!U$4:U$400,AF83,'Tingsryd Open'!P$4:P$400)) -> 0 | AF83: =IF(B83="","",SUMIF(Kastare!B$2:B$2999,B83,Kastare!A$2:A$2999)) -> 1074
A84: 81 | B84: Andreas Gundersen | C84: Vaxholm Hsk | D84: 661 | F84: 4 | G84: 82.625 | I84: =IF(AF84="","",SUMIF('Jämjö Open'!U$4:U$400,AF84,'Jämjö Open'!P$4:P$400)) -> 0 | J84: =IF(AF84="","",SUMIF('Viby Open'!U$4:U$400,AF84,'Viby Open'!P$4:P$400)) -> 0 | K84: =IF(AF84="","",SUMIF('Björkenäs Open'!U$4:U$400,AF84,'Björkenäs Open'!P$4:P$400)) -> 0 | L84: =IF(AF84="","",SUMIF('SM ute Lö'!U$4:U$400,AF84,'SM ute Lö'!P$4:P$400)) -> 149 | M84: =IF(AF84="","",SUMIF('SM ute Sö'!U$4:U$401,AF84,'SM ute Sö'!P$4:P$401)) -> 159 | N84: =IF(AF84="","",SUMIF('Roslagen Open'!U$4:U$400,AF84,'Roslagen Open'!P$4:P$400)) -> 0 | O84: =IF(AF84="","",SUMIF('Vaxholm Open'!U$4:U$400,AF84,'Vaxholm Open'!P$4:P$400)) -> 249 | P84: =IF(AF84="","",SUMIF('Dynapac Open'!U$4:U$400,AF84,'Dynapac Open'!P$4:P$400)) -> 0 | Q84: =IF(AF84="","",SUMIF('SmålandsDM ute'!U$4:U$400,AF84,'SmålandsDM ute'!P$4:P$400)) -> 0 | R84: =IF(AF84="","",SUMIF('BlekingeDM ute'!U$4:U$400,AF84,'BlekingeDM ute'!P$4:P$400)) -> 0 | S84: =IF(AF84="","",SUMIF('StockholmsDM ute'!U$4:U$400,AF84,'StockholmsDM ute'!P$4:P$400)) -> 104 | T84: =IF(AF84="","",SUMIF('Åseda Open'!U$4:U$406,AF84,'Åseda Open'!P$4:P$406)) -> 0 | U84: =IF(AF84="","",SUMIF(Höstskon!U$4:U$400,AF84,Höstskon!P$4:P$400)) -> 0 | V84: =IF(AF84="","",SUMIF('Carlskrona Cup'!U$4:U$400,AF84,'Carlskrona Cup'!P$4:P$400)) -> 0 | W84: =IF(AF84="","",SUMIF('Sibbamåla Open'!U$4:U$400,AF84,'Sibbamåla Open'!P$4:P$400)) -> 0 | X84: =IF(AF84="","",SUMIF('Vaxholm Indoor'!U$4:U$400,AF84,'Vaxholm Indoor'!P$4:P$400)) -> 0 | Y84: =IF(AF84="","",SUMIF('SM inne 2022'!U$4:U$400,AF84,'SM inne 2022'!P$4:P$400)) -> 0 | Z84: =IF(AF84="","",SUMIF('SmålandsDM inne'!U$4:U$400,AF84,'SmålandsDM inne'!P$4:P$400)) -> 0 | AA84: =IF(AF84="","",SUMIF('BlekingeDM inne'!U$4:U$400,AF84,'BlekingeDM inne'!P$4:P$400)) -> 0 | AB84: =IF(AF84="","",SUMIF('StockholmsDM inne'!U$4:U$400,AF84,'StockholmsDM inne'!P$4:P$400)) -> 0 | AC84: =IF(AF84="","",SUMIF(Värendspokalen!U$4:U$400,AF84,Värendspokalen!P$4:P$400)) -> 0 | AD84: =IF(AF84="","",SUMIF('Tingsryd Open'!U$4:U$400,AF84,'Tingsryd Open'!P$4:P$400)) -> 0 | AF84: =IF(B84="","",SUMIF(Kastare!B$2:B$2999,B84,Kastare!A$2:A$2999)) -> 1091
A85: 82 | B85: Karin Gullbrand | C85: Värends Hsk | D85: 659 | F85: 5 | G85: 65.9 | I85: =IF(AF85="","",SUMIF('Jämjö Open'!U$4:U$400,AF85,'Jämjö Open'!P$4:P$400)) -> 0 | J85: =IF(AF85="","",SUMIF('Viby Open'!U$4:U$400,AF85,'Viby Open'!P$4:P$400)) -> 0 | K85: =IF(AF85="","",SUMIF('Björkenäs Open'!U$4:U$400,AF85,'Björkenäs Open'!P$4:P$400)) -> 0 | L85: =IF(AF85="","",SUMIF('SM ute Lö'!U$4:U$400,AF85,'SM ute Lö'!P$4:P$400)) -> 0 | M85: =IF(AF85="","",SUMIF('SM ute Sö'!U$4:U$401,AF85,'SM ute Sö'!P$4:P$401)) -> 0 | N85: =IF(AF85="","",SUMIF('Roslagen Open'!U$4:U$400,AF85,'Roslagen Open'!P$4:P$400)) -> 121 | O85: =IF(AF85="","",SUMIF('Vaxholm Open'!U$4:U$400,AF85,'Vaxholm Open'!P$4:P$400)) -> 0 | P85: =IF(AF85="","",SUMIF('Dynapac Open'!U$4:U$400,AF85,'Dynapac Open'!P$4:P$400)) -> 0 | Q85: =IF(AF85="","",SUMIF('SmålandsDM ute'!U$4:U$400,AF85,'SmålandsDM ute'!P$4:P$400)) -> 95 | R85: =IF(AF85="","",SUMIF('BlekingeDM ute'!U$4:U$400,AF85,'BlekingeDM ute'!P$4:P$400)) -> 0 | S85: =IF(AF85="","",SUMIF('StockholmsDM ute'!U$4:U$400,AF85,'StockholmsDM ute'!P$4:P$400)) -> 0 | T85: =IF(AF85="","",SUMIF('Åseda Open'!U$4:U$406,AF85,'Åseda Open'!P$4:P$406)) -> 0 | U85: =IF(AF85="","",SUMIF(Höstskon!U$4:U$400,AF85,Höstskon!P$4:P$400)) -> 0 | V85: =IF(AF85="","",SUMIF('Carlskrona Cup'!U$4:U$400,AF85,'Carlskrona Cup'!P$4:P$400)) -> 149 | W85: =IF(AF85="","",SUMIF('Sibbamåla Open'!U$4:U$400,AF85,'Sibbamåla Open'!P$4:P$400)) -> 146 | X85: =IF(AF85="","",SUMIF('Vaxholm Indoor'!U$4:U$400,AF85,'Vaxholm Indoor'!P$4:P$400)) -> 0 | Y85: =IF(AF85="","",SUMIF('SM inne 2022'!U$4:U$400,AF85,'SM inne 2022'!P$4:P$400)) -> 148 | Z85: =IF(AF85="","",SUMIF('SmålandsDM inne'!U$4:U$400,AF85,'SmålandsDM inne'!P$4:P$400)) -> 0 | AA85: =IF(AF85="","",SUMIF('BlekingeDM inne'!U$4:U$400,AF85,'BlekingeDM inne'!P$4:P$400)) -> 0 | AB85: =IF(AF85="","",SUMIF('StockholmsDM inne'!U$4:U$400,AF85,'StockholmsDM inne'!P$4:P$400)) -> 0 | AC85: =IF(AF85="","",SUMIF(Värendspokalen!U$4:U$400,AF85,Värendspokalen!P$4:P$400)) -> 0 | AD85: =IF(AF85="","",SUMIF('Tingsryd Open'!U$4:U$400,AF85,'Tingsryd Open'!P$4:P$400)) -> 0 | AF85: =IF(B85="","",SUMIF(Kastare!B$2:B$2999,B85,Kastare!A$2:A$2999)) -> 1079
A86: 83 | B86: Hasse Johansson | C86: Tingsryd Hsc | D86: 647 | F86: 3 | G86: 107.8333333 | I86: =IF(AF86="","",SUMIF('Jämjö Open'!U$4:U$400,AF86,'Jämjö Open'!P$4:P$400)) -> 0 | J86: =IF(AF86="","",SUMIF('Viby Open'!U$4:U$400,AF86,'Viby Open'!P$4:P$400)) -> 0 | K86: =IF(AF86="","",SUMIF('Björkenäs Open'!U$4:U$400,AF86,'Björkenäs Open'!P$4:P$400)) -> 0 | L86: =IF(AF86="","",SUMIF('SM ute Lö'!U$4:U$400,AF86,'SM ute Lö'!P$4:P$400)) -> 248 | M86: =IF(AF86="","",SUMIF('SM ute Sö'!U$4:U$401,AF86,'SM ute Sö'!P$4:P$401)) -> 229 | N86: =IF(AF86="","",SUMIF('Roslagen Open'!U$4:U$400,AF86,'Roslagen Open'!P$4:P$400)) -> 0 | O86: =IF(AF86="","",SUMIF('Vaxholm Open'!U$4:U$400,AF86,'Vaxholm Open'!P$4:P$400)) -> 0 | P86: =IF(AF86="","",SUMIF('Dynapac Open'!U$4:U$400,AF86,'Dynapac Open'!P$4:P$400)) -> 0 | Q86: =IF(AF86="","",SUMIF('SmålandsDM ute'!U$4:U$400,AF86,'SmålandsDM ute'!P$4:P$400)) -> 170 | R86: =IF(AF86="","",SUMIF('BlekingeDM ute'!U$4:U$400,AF86,'BlekingeDM ute'!P$4:P$400)) -> 0 | S86: =IF(AF86="","",SUMIF('StockholmsDM ute'!U$4:U$400,AF86,'StockholmsDM ute'!P$4:P$400)) -> 0 | T86: =IF(AF86="","",SUMIF('Åseda Open'!U$4:U$406,AF86,'Åseda Open'!P$4:P$406)) -> 0 | U86: =IF(AF86="","",SUMIF(Höstskon!U$4:U$400,AF86,Höstskon!P$4:P$400)) -> 0 | V86: =IF(AF86="","",SUMIF('Carlskrona Cup'!U$4:U$400,AF86,'Carlskrona Cup'!P$4:P$400)) -> 0 | W86: =IF(AF86="","",SUMIF('Sibbamåla Open'!U$4:U$400,AF86,'Sibbamåla Open'!P$4:P$400)) -> 0 | X86: =IF(AF86="","",SUMIF('Vaxholm Indoor'!U$4:U$400,AF86,'Vaxholm Indoor'!P$4:P$400)) -> 0 | Y86: =IF(AF86="","",SUMIF('SM inne 2022'!U$4:U$400,AF86,'SM inne 2022'!P$4:P$400)) -> 0 | Z86: =IF(AF86="","",SUMIF('SmålandsDM inne'!U$4:U$400,AF86,'SmålandsDM inne'!P$4:P$400)) -> 0 | AA86: =IF(AF86="","",SUMIF('BlekingeDM inne'!U$4:U$400,AF86,'BlekingeDM inne'!P$4:P$400)) -> 0 | AB86: =IF(AF86="","",SUMIF('StockholmsDM inne'!U$4:U$400,AF86,'StockholmsDM inne'!P$4:P$400)) -> 0 | AC86: =IF(AF86="","",SUMIF(Värendspokalen!U$4:U$400,AF86,Värendspokalen!P$4:P$400)) -> 0 | AD86: =IF(AF86="","",SUMIF('Tingsryd Open'!U$4:U$400,AF86,'Tingsryd Open'!P$4:P$400)) -> 0 | AF86: =IF(B86="","",SUMIF(Kastare!B$2:B$2999,B86,Kastare!A$2:A$2999)) -> 1077
A87: 84 | B87: Martin Anjou | C87: Balders HSK | D87: 643 | F87: 3 | G87: 107.1666667 | I87: =IF(AF87="","",SUMIF('Jämjö Open'!U$4:U$400,AF87,'Jämjö Open'!P$4:P$400)) -> 0 | J87: =IF(AF87="","",SUMIF('Viby Open'!U$4:U$400,AF87,'Viby Open'!P$4:P$400)) -> 0 | K87: =IF(AF87="","",SUMIF('Björkenäs Open'!U$4:U$400,AF87,'Björkenäs Open'!P$4:P$400)) -> 0 | L87: =IF(AF87="","",SUMIF('SM ute Lö'!U$4:U$400,AF87,'SM ute Lö'!P$4:P$400)) -> 0 | M87: =IF(AF87="","",SUMIF('SM ute Sö'!U$4:U$401,AF87,'SM ute Sö'!P$4:P$401)) -> 0 | N87: =IF(AF87="","",SUMIF('Roslagen Open'!U$4:U$400,AF87,'Roslagen Open'!P$4:P$400)) -> 219 | O87: =IF(AF87="","",SUMIF('Vaxholm Open'!U$4:U$400,AF87,'Vaxholm Open'!P$4:P$400)) -> 0 | P87: =IF(AF87="","",SUMIF('Dynapac Open'!U$4:U$400,AF87,'Dynapac Open'!P$4:P$400)) -> 0 | Q87: =IF(AF87="","",SUMIF('SmålandsDM ute'!U$4:U$400,AF87,'SmålandsDM ute'!P$4:P$400)) -> 0 | R87: =IF(AF87="","",SUMIF('BlekingeDM ute'!U$4:U$400,AF87,'BlekingeDM ute'!P$4:P$400)) -> 0 | S87: =IF(AF87="","",SUMIF('StockholmsDM ute'!U$4:U$400,AF87,'StockholmsDM ute'!P$4:P$400)) -> 142 | T87: =IF(AF87="","",SUMIF('Åseda Open'!U$4:U$406,AF87,'Åseda Open'!P$4:P$406)) -> 0 | U87: =IF(AF87="","",SUMIF(Höstskon!U$4:U$400,AF87,Höstskon!P$4:P$400)) -> 0 | V87: =IF(AF87="","",SUMIF('Carlskrona Cup'!U$4:U$400,AF87,'Carlskrona Cup'!P$4:P$400)) -> 0 | W87: =IF(AF87="","",SUMIF('Sibbamåla Open'!U$4:U$400,AF87,'Sibbamåla Open'!P$4:P$400)) -> 0 | X87: =IF(AF87="","",SUMIF('Vaxholm Indoor'!U$4:U$400,AF87,'Vaxholm Indoor'!P$4:P$400)) -> 0 | Y87: =IF(AF87="","",SUMIF('SM inne 2022'!U$4:U$400,AF87,'SM inne 2022'!P$4:P$400)) -> 282 | Z87: =IF(AF87="","",SUMIF('SmålandsDM inne'!U$4:U$400,AF87,'SmålandsDM inne'!P$4:P$400)) -> 0 | AA87: =IF(AF87="","",SUMIF('BlekingeDM inne'!U$4:U$400,AF87,'BlekingeDM inne'!P$4:P$400)) -> 0 | AB87: =IF(AF87="","",SUMIF('StockholmsDM inne'!U$4:U$400,AF87,'StockholmsDM inne'!P$4:P$400)) -> 0 | AC87: =IF(AF87="","",SUMIF(Värendspokalen!U$4:U$400,AF87,Värendspokalen!P$4:P$400)) -> 0 | AD87: =IF(AF87="","",SUMIF('Tingsryd Open'!U$4:U$400,AF87,'Tingsryd Open'!P$4:P$400)) -> 0 | AF87: =IF(B87="","",SUMIF(Kastare!B$2:B$2999,B87,Kastare!A$2:A$2999)) -> 1066
A88: 85 | B88: Sune Andersson | C88: Jämjö Hsk | D88: 638 | F88: 4 | G88: 79.75 | I88: =IF(AF88="","",SUMIF('Jämjö Open'!U$4:U$400,AF88,'Jämjö Open'!P$4:P$400)) -> 0 | J88: =IF(AF88="","",SUMIF('Viby Open'!U$4:U$400,AF88,'Viby Open'!P$4:P$400)) -> 0 | K88: =IF(AF88="","",SUMIF('Björkenäs Open'!U$4:U$400,AF88,'Björkenäs Open'!P$4:P$400)) -> 0 | L88: =IF(AF88="","",SUMIF('SM ute Lö'!U$4:U$400,AF88,'SM ute Lö'!P$4:P$400)) -> 151 | M88: =IF(AF88="","",SUMIF('SM ute Sö'!U$4:U$401,AF88,'SM ute Sö'!P$4:P$401)) -> 174 | N88: =IF(AF88="","",SUMIF('Roslagen Open'!U$4:U$400,AF88,'Roslagen Open'!P$4:P$400)) -> 0 | O88: =IF(AF88="","",SUMIF('Vaxholm Open'!U$4:U$400,AF88,'Vaxholm Open'!P$4:P$400)) -> 0 | P88: =IF(AF88="","",SUMIF('Dynapac Open'!U$4:U$400,AF88,'Dynapac Open'!P$4:P$400)) -> 0 | Q88: =IF(AF88="","",SUMIF('SmålandsDM ute'!U$4:U$400,AF88,'SmålandsDM ute'!P$4:P$400)) -> 0 | R88: =IF(AF88="","",SUMIF('BlekingeDM ute'!U$4:U$400,AF88,'BlekingeDM ute'!P$4:P$400)) -> 0 | S88: =IF(AF88="","",SUMIF('StockholmsDM ute'!U$4:U$400,AF88,'StockholmsDM ute'!P$4:P$400)) -> 0 | T88: =IF(AF88="","",SUMIF('Åseda Open'!U$4:U$406,AF88,'Åseda Open'!P$4:P$406)) -> 0 | U88: =IF(AF88="","",SUMIF(Höstskon!U$4:U$400,AF88,Höstskon!P$4:P$400)) -> 0 | V88: =IF(AF88="","",SUMIF('Carlskrona Cup'!U$4:U$400,AF88,'Carlskrona Cup'!P$4:P$400)) -> 0 | W88: =IF(AF88="","",SUMIF('Sibbamåla Open'!U$4:U$400,AF88,'Sibbamåla Open'!P$4:P$400)) -> 0 | X88: =IF(AF88="","",SUMIF('Vaxholm Indoor'!U$4:U$400,AF88,'Vaxholm Indoor'!P$4:P$400)) -> 0 | Y88: =IF(AF88="","",SUMIF('SM inne 2022'!U$4:U$400,AF88,'SM inne 2022'!P$4:P$400)) -> 0 | Z88: =IF(AF88="","",SUMIF('SmålandsDM inne'!U$4:U$400,AF88,'SmålandsDM inne'!P$4:P$400)) -> 0 | AA88: =IF(AF88="","",SUMIF('BlekingeDM inne'!U$4:U$400,AF88,'BlekingeDM inne'!P$4:P$400)) -> 173 | AB88: =IF(AF88="","",SUMIF('StockholmsDM inne'!U$4:U$400,AF88,'StockholmsDM inne'!P$4:P$400)) -> 0 | AC88: =IF(AF88="","",SUMIF(Värendspokalen!U$4:U$400,AF88,Värendspokalen!P$4:P$400)) -> 140 | AD88: =IF(AF88="","",SUMIF('Tingsryd Open'!U$4:U$400,AF88,'Tingsryd Open'!P$4:P$400)) -> 0 | AF88: =IF(B88="","",SUMIF(Kastare!B$2:B$2999,B88,Kastare!A$2:A$2999)) -> 1169
A89: 86 | B89: Christina Holmberg | C89: Tingsryd Hsc | D89: 635 | F89: 4 | G89: 79.375 | I89: =IF(AF89="","",SUMIF('Jämjö Open'!U$4:U$400,AF89,'Jämjö Open'!P$4:P$400)) -> 0 | J89: =IF(AF89="","",SUMIF('Viby Open'!U$4:U$400,AF89,'Viby Open'!P$4:P$400)) -> 0 | K89: =IF(AF89="","",SUMIF('Björkenäs Open'!U$4:U$400,AF89,'Björkenäs Open'!P$4:P$400)) -> 0 | L89: =IF(AF89="","",SUMIF('SM ute Lö'!U$4:U$400,AF89,'SM ute Lö'!P$4:P$400)) -> 206 | M89: =IF(AF89="","",SUMIF('SM ute Sö'!U$4:U$401,AF89,'SM ute Sö'!P$4:P$401)) -> 158 | N89: =IF(AF89="","",SUMIF('Roslagen Open'!U$4:U$400,AF89,'Roslagen Open'!P$4:P$400)) -> 0 | O89: =IF(AF89="","",SUMIF('Vaxholm Open'!U$4:U$400,AF89,'Vaxholm Open'!P$4:P$400)) -> 0 | P89: =IF(AF89="","",SUMIF('Dynapac Open'!U$4:U$400,AF89,'Dynapac Open'!P$4:P$400)) -> 0 | Q89: =IF(AF89="","",SUMIF('SmålandsDM ute'!U$4:U$400,AF89,'SmålandsDM ute'!P$4:P$400)) -> 74 | R89: =IF(AF89="","",SUMIF('BlekingeDM ute'!U$4:U$400,AF89,'BlekingeDM ute'!P$4:P$400)) -> 0 | S89: =IF(AF89="","",SUMIF('StockholmsDM ute'!U$4:U$400,AF89,'StockholmsDM ute'!P$4:P$400)) -> 0 | T89: =IF(AF89="","",SUMIF('Åseda Open'!U$4:U$406,AF89,'Åseda Open'!P$4:P$406)) -> 0 | U89: =IF(AF89="","",SUMIF(Höstskon!U$4:U$400,AF89,Höstskon!P$4:P$400)) -> 197 | V89: =IF(AF89="","",SUMIF('Carlskrona Cup'!U$4:U$400,AF89,'Carlskrona Cup'!P$4:P$400)) -> 0 | W89: =IF(AF89="","",SUMIF('Sibbamåla Open'!U$4:U$400,AF89,'Sibbamåla Open'!P$4:P$400)) -> 0 | X89: =IF(AF89="","",SUMIF('Vaxholm Indoor'!U$4:U$400,AF89,'Vaxholm Indoor'!P$4:P$400)) -> 0 | Y89: =IF(AF89="","",SUMIF('SM inne 2022'!U$4:U$400,AF89,'SM inne 2022'!P$4:P$400)) -> 0 | Z89: =IF(AF89="","",SUMIF('SmålandsDM inne'!U$4:U$400,AF89,'SmålandsDM inne'!P$4:P$400)) -> 0 | AA89: =IF(AF89="","",SUMIF('BlekingeDM inne'!U$4:U$400,AF89,'BlekingeDM inne'!P$4:P$400)) -> 0 | AB89: =IF(AF89="","",SUMIF('StockholmsDM inne'!U$4:U$400,AF89,'StockholmsDM inne'!P$4:P$400)) -> 0 | AC89: =IF(AF89="","",SUMIF(Värendspokalen!U$4:U$400,AF89,Värendspokalen!P$4:P$400)) -> 0 | AD89: =IF(AF89="","",SUMIF('Tingsryd Open'!U$4:U$400,AF89,'Tingsryd Open'!P$4:P$400)) -> 0 | AF89: =IF(B89="","",SUMIF(Kastare!B$2:B$2999,B89,Kastare!A$2:A$2999)) -> 1164
A90: 87 | B90: Victor Bengtsson | C90: Vaxholm Hsk | D90: 628 | F90: 6 | G90: 52.33333333 | I90: =IF(AF90="","",SUMIF('Jämjö Open'!U$4:U$400,AF90,'Jämjö Open'!P$4:P$400)) -> 0 | J90: =IF(AF90="","",SUMIF('Viby Open'!U$4:U$400,AF90,'Viby Open'!P$4:P$400)) -> 0 | K90: =IF(AF90="","",SUMIF('Björkenäs Open'!U$4:U$400,AF90,'Björkenäs Open'!P$4:P$400)) -> 0 | L90: =IF(AF90="","",SUMIF('SM ute Lö'!U$4:U$400,AF90,'SM ute Lö'!P$4:P$400)) -> 133 | M90: =IF(AF90="","",SUMIF('SM ute Sö'!U$4:U$401,AF90,'SM ute Sö'!P$4:P$401)) -> 123 | N90: =IF(AF90="","",SUMIF('Roslagen Open'!U$4:U$400,AF90,'Roslagen Open'!P$4:P$400)) -> 0 | O90: =IF(AF90="","",SUMIF('Vaxholm Open'!U$4:U$400,AF90,'Vaxholm Open'!P$4:P$400)) -> 156 | P90: =IF(AF90="","",SUMIF('Dynapac Open'!U$4:U$400,AF90,'Dynapac Open'!P$4:P$400)) -> 0 | Q90: =IF(AF90="","",SUMIF('SmålandsDM ute'!U$4:U$400,AF90,'SmålandsDM ute'!P$4:P$400)) -> 0 | R90: =IF(AF90="","",SUMIF('BlekingeDM ute'!U$4:U$400,AF90,'BlekingeDM ute'!P$4:P$400)) -> 0 | S90: =IF(AF90="","",SUMIF('StockholmsDM ute'!U$4:U$400,AF90,'StockholmsDM ute'!P$4:P$400)) -> 0 | T90: =IF(AF90="","",SUMIF('Åseda Open'!U$4:U$406,AF90,'Åseda Open'!P$4:P$406)) -> 0 | U90: =IF(AF90="","",SUMIF(Höstskon!U$4:U$400,AF90,Höstskon!P$4:P$400)) -> 0 | V90: =IF(AF90="","",SUMIF('Carlskrona Cup'!U$4:U$400,AF90,'Carlskrona Cup'!P$4:P$400)) -> 0 | W90: =IF(AF90="","",SUMIF('Sibbamåla Open'!U$4:U$400,AF90,'Sibbamåla Open'!P$4:P$400)) -> 0 | X90: =IF(AF90="","",SUMIF('Vaxholm Indoor'!U$4:U$400,AF90,'Vaxholm Indoor'!P$4:P$400)) -> 58 | Y90: =IF(AF90="","",SUMIF('SM inne 2022'!U$4:U$400,AF90,'SM inne 2022'!P$4:P$400)) -> 91 | Z90: =IF(AF90="","",SUMIF('SmålandsDM inne'!U$4:U$400,AF90,'SmålandsDM inne'!P$4:P$400)) -> 0 | AA90: =IF(AF90="","",SUMIF('BlekingeDM inne'!U$4:U$400,AF90,'BlekingeDM inne'!P$4:P$400)) -> 0 | AB90: =IF(AF90="","",SUMIF('StockholmsDM inne'!U$4:U$400,AF90,'StockholmsDM inne'!P$4:P$400)) -> 67 | AC90: =IF(AF90="","",SUMIF(Värendspokalen!U$4:U$400,AF90,Värendspokalen!P$4:P$400)) -> 0 | AD90: =IF(AF90="","",SUMIF('Tingsryd Open'!U$4:U$400,AF90,'Tingsryd Open'!P$4:P$400)) -> 0 | AF90: =IF(B90="","",SUMIF(Kastare!B$2:B$2999,B90,Kastare!A$2:A$2999)) -> 1117
A91: 88 | B91: Christoffer Lovén | C91: Balders Hsk | D91: 621 | F91: 4 | G91: 77.625 | I91: =IF(AF91="","",SUMIF('Jämjö Open'!U$4:U$400,AF91,'Jämjö Open'!P$4:P$400)) -> 0 | J91: =IF(AF91="","",SUMIF('Viby Open'!U$4:U$400,AF91,'Viby Open'!P$4:P$400)) -> 0 | K91: =IF(AF91="","",SUMIF('Björkenäs Open'!U$4:U$400,AF91,'Björkenäs Open'!P$4:P$400)) -> 0 | L91: =IF(AF91="","",SUMIF('SM ute Lö'!U$4:U$400,AF91,'SM ute Lö'!P$4:P$400)) -> 175 | M91: =IF(AF91="","",SUMIF('SM ute Sö'!U$4:U$401,AF91,'SM ute Sö'!P$4:P$401)) -> 156 | N91: =IF(AF91="","",SUMIF('Roslagen Open'!U$4:U$400,AF91,'Roslagen Open'!P$4:P$400)) -> 163 | O91: =IF(AF91="","",SUMIF('Vaxholm Open'!U$4:U$400,AF91,'Vaxholm Open'!P$4:P$400)) -> 127 | P91: =IF(AF91="","",SUMIF('Dynapac Open'!U$4:U$400,AF91,'Dynapac Open'!P$4:P$400)) -> 0 | Q91: =IF(AF91="","",SUMIF('SmålandsDM ute'!U$4:U$400,AF91,'SmålandsDM ute'!P$4:P$400)) -> 0 | R91: =IF(AF91="","",SUMIF('BlekingeDM ute'!U$4:U$400,AF91,'BlekingeDM ute'!P$4:P$400)) -> 0 | S91: =IF(AF91="","",SUMIF('StockholmsDM ute'!U$4:U$400,AF91,'StockholmsDM ute'!P$4:P$400)) -> 0 | T91: =IF(AF91="","",SUMIF('Åseda Open'!U$4:U$406,AF91,'Åseda Open'!P$4:P$406)) -> 0 | U91: =IF(AF91="","",SUMIF(Höstskon!U$4:U$400,AF91,Höstskon!P$4:P$400)) -> 0 | V91: =IF(AF91="","",SUMIF('Carlskrona Cup'!U$4:U$400,AF91,'Carlskrona Cup'!P$4:P$400)) -> 0 | W91: =IF(AF91="","",SUMIF('Sibbamåla Open'!U$4:U$400,AF91,'Sibbamåla Open'!P$4:P$400)) -> 0 | X91: =IF(AF91="","",SUMIF('Vaxholm Indoor'!U$4:U$400,AF91,'Vaxholm Indoor'!P$4:P$400)) -> 0 | Y91: =IF(AF91="","",SUMIF('SM inne 2022'!U$4:U$400,AF91,'SM inne 2022'!P$4:P$400)) -> 0 | Z91: =IF(AF91="","",SUMIF('SmålandsDM inne'!U$4:U$400,AF91,'SmålandsDM inne'!P$4:P$400)) -> 0 | AA91: =IF(AF91="","",SUMIF('BlekingeDM inne'!U$4:U$400,AF91,'BlekingeDM inne'!P$4:P$400)) -> 0 | AB91: =IF(AF91="","",SUMIF('StockholmsDM inne'!U$4:U$400,AF91,'StockholmsDM inne'!P$4:P$400)) -> 0 | AC91: =IF(AF91="","",SUMIF(Värendspokalen!U$4:U$400,AF91,Värendspokalen!P$4:P$400)) -> 0 | AD91: =IF(AF91="","",SUMIF('Tingsryd Open'!U$4:U$400,AF91,'Tingsryd Open'!P$4:P$400)) -> 0 | AF91: =IF(B91="","",SUMIF(Kastare!B$2:B$2999,B91,Kastare!A$2:A$2999)) -> 1145
A92: 89 | B92: Astrid Martinez | C92: Jämjö Hsk | D92: 609 | F92: 4 | G92: 76.125 | I92: =IF(AF92="","",SUMIF('Jämjö Open'!U$4:U$400,AF92,'Jämjö Open'!P$4:P$400)) -> 0 | J92: =IF(AF92="","",SUMIF('Viby Open'!U$4:U$400,AF92,'Viby Open'!P$4:P$400)) -> 0 | K92: =IF(AF92="","",SUMIF('Björkenäs Open'!U$4:U$400,AF92,'Björkenäs Open'!P$4:P$400)) -> 0 | L92: =IF(AF92="","",SUMIF('SM ute Lö'!U$4:U$400,AF92,'SM ute Lö'!P$4:P$400)) -> 186 | M92: =IF(AF92="","",SUMIF('SM ute Sö'!U$4:U$401,AF92,'SM ute Sö'!P$4:P$401)) -> 150 | N92: =IF(AF92="","",SUMIF('Roslagen Open'!U$4:U$400,AF92,'Roslagen Open'!P$4:P$400)) -> 0 | O92: =IF(AF92="","",SUMIF('Vaxholm Open'!U$4:U$400,AF92,'Vaxholm Open'!P$4:P$400)) -> 0 | P92: =IF(AF92="","",SUMIF('Dynapac Open'!U$4:U$400,AF92,'Dynapac Open'!P$4:P$400)) -> 0 | Q92: =IF(AF92="","",SUMIF('SmålandsDM ute'!U$4:U$400,AF92,'SmålandsDM ute'!P$4:P$400)) -> 0 | R92: =IF(AF92="","",SUMIF('BlekingeDM ute'!U$4:U$400,AF92,'BlekingeDM ute'!P$4:P$400)) -> 146 | S92: =IF(AF92="","",SUMIF('StockholmsDM ute'!U$4:U$400,AF92,'StockholmsDM ute'!P$4:P$400)) -> 0 | T92: =IF(AF92="","",SUMIF('Åseda Open'!U$4:U$406,AF92,'Åseda Open'!P$4:P$406)) -> 0 | U92: =IF(AF92="","",SUMIF(Höstskon!U$4:U$400,AF92,Höstskon!P$4:P$400)) -> 127 | V92: =IF(AF92="","",SUMIF('Carlskrona Cup'!U$4:U$400,AF92,'Carlskrona Cup'!P$4:P$400)) -> 0 | W92: =IF(AF92="","",SUMIF('Sibbamåla Open'!U$4:U$400,AF92,'Sibbamåla Open'!P$4:P$400)) -> 0 | X92: =IF(AF92="","",SUMIF('Vaxholm Indoor'!U$4:U$400,AF92,'Vaxholm Indoor'!P$4:P$400)) -> 0 | Y92: =IF(AF92="","",SUMIF('SM inne 2022'!U$4:U$400,AF92,'SM inne 2022'!P$4:P$400)) -> 0 | Z92: =IF(AF92="","",SUMIF('SmålandsDM inne'!U$4:U$400,AF92,'SmålandsDM inne'!P$4:P$400)) -> 0 | AA92: =IF(AF92="","",SUMIF('BlekingeDM inne'!U$4:U$400,AF92,'BlekingeDM inne'!P$4:P$400)) -> 0 | AB92: =IF(AF92="","",SUMIF('StockholmsDM inne'!U$4:U$400,AF92,'StockholmsDM inne'!P$4:P$400)) -> 0 | AC92: =IF(AF92="","",SUMIF(Värendspokalen!U$4:U$400,AF92,Värendspokalen!P$4:P$400)) -> 0 | AD92: =IF(AF92="","",SUMIF('Tingsryd Open'!U$4:U$400,AF92,'Tingsryd Open'!P$4:P$400)) -> 0 | AF92: =IF(B92="","",SUMIF(Kastare!B$2:B$2999,B92,Kastare!A$2:A$2999)) -> 1054
A93: 89 | B93: Jonas Klarström | C93: Team Småland Hsk | D93: 609 | F93: 6 | G93: 50.75 | I93: =IF(AF93="","",SUMIF('Jämjö Open'!U$4:U$400,AF93,'Jämjö Open'!P$4:P$400)) -> 0 | J93: =IF(AF93="","",SUMIF('Viby Open'!U$4:U$400,AF93,'Viby Open'!P$4:P$400)) -> 0 | K93: =IF(AF93="","",SUMIF('Björkenäs Open'!U$4:U$400,AF93,'Björkenäs Open'!P$4:P$400)) -> 0 | L93: =IF(AF93="","",SUMIF('SM ute Lö'!U$4:U$400,AF93,'SM ute Lö'!P$4:P$400)) -> 94 | M93: =IF(AF93="","",SUMIF('SM ute Sö'!U$4:U$401,AF93,'SM ute Sö'!P$4:P$401)) -> 70 | N93: =IF(AF93="","",SUMIF('Roslagen Open'!U$4:U$400,AF93,'Roslagen Open'!P$4:P$400)) -> 0 | O93: =IF(AF93="","",SUMIF('Vaxholm Open'!U$4:U$400,AF93,'Vaxholm Open'!P$4:P$400)) -> 0 | P93: =IF(AF93="","",SUMIF('Dynapac Open'!U$4:U$400,AF93,'Dynapac Open'!P$4:P$400)) -> 0 | Q93: =IF(AF93="","",SUMIF('SmålandsDM ute'!U$4:U$400,AF93,'SmålandsDM ute'!P$4:P$400)) -> 0 | R93: =IF(AF93="","",SUMIF('BlekingeDM ute'!U$4:U$400,AF93,'BlekingeDM ute'!P$4:P$400)) -> 0 | S93: =IF(AF93="","",SUMIF('StockholmsDM ute'!U$4:U$400,AF93,'StockholmsDM ute'!P$4:P$400)) -> 0 | T93: =IF(AF93="","",SUMIF('Åseda Open'!U$4:U$406,AF93,'Åseda Open'!P$4:P$406)) -> 99 | U93: =IF(AF93="","",SUMIF(Höstskon!U$4:U$400,AF93,Höstskon!P$4:P$400)) -> 137 | V93: =IF(AF93="","",SUMIF('Carlskrona Cup'!U$4:U$400,AF93,'Carlskrona Cup'!P$4:P$400)) -> 0 | W93: =IF(AF93="","",SUMIF('Sibbamåla Open'!U$4:U$400,AF93,'Sibbamåla Open'!P$4:P$400)) -> 0 | X93: =IF(AF93="","",SUMIF('Vaxholm Indoor'!U$4:U$400,AF93,'Vaxholm Indoor'!P$4:P$400)) -> 0 | Y93: =IF(AF93="","",SUMIF('SM inne 2022'!U$4:U$400,AF93,'SM inne 2022'!P$4:P$400)) -> 76 | Z93: =IF(AF93="","",SUMIF('SmålandsDM inne'!U$4:U$400,AF93,'SmålandsDM inne'!P$4:P$400)) -> 0 | AA93: =IF(AF93="","",SUMIF('BlekingeDM inne'!U$4:U$400,AF93,'BlekingeDM inne'!P$4:P$400)) -> 0 | AB93: =IF(AF93="","",SUMIF('StockholmsDM inne'!U$4:U$400,AF93,'StockholmsDM inne'!P$4:P$400)) -> 0 | AC93: =IF(AF93="","",SUMIF(Värendspokalen!U$4:U$400,AF93,Värendspokalen!P$4:P$400)) -> 133 | AD93: =IF(AF93="","",SUMIF('Tingsryd Open'!U$4:U$400,AF93,'Tingsryd Open'!P$4:P$400)) -> 0 | AF93: =IF(B93="","",SUMIF(Kastare!B$2:B$2999,B93,Kastare!A$2:A$2999)) -> 1053
A94: 91 | B94: Kjell Åkesson | C94: Lanternan | D94: 600 | F94: 3 | G94: 100 | I94: =IF(AF94="","",SUMIF('Jämjö Open'!U$4:U$400,AF94,'Jämjö Open'!P$4:P$400)) -> 0 | J94: =IF(AF94="","",SUMIF('Viby Open'!U$4:U$400,AF94,'Viby Open'!P$4:P$400)) -> 0 | K94: =IF(AF94="","",SUMIF('Björkenäs Open'!U$4:U$400,AF94,'Björkenäs Open'!P$4:P$400)) -> 0 | L94: =IF(AF94="","",SUMIF('SM ute Lö'!U$4:U$400,AF94,'SM ute Lö'!P$4:P$400)) -> 0 | M94: =IF(AF94="","",SUMIF('SM ute Sö'!U$4:U$401,AF94,'SM ute Sö'!P$4:P$401)) -> 0 | N94: =IF(AF94="","",SUMIF('Roslagen Open'!U$4:U$400,AF94,'Roslagen Open'!P$4:P$400)) -> 0 | O94: =IF(AF94="","",SUMIF('Vaxholm Open'!U$4:U$400,AF94,'Vaxholm Open'!P$4:P$400)) -> 0 | P94: =IF(AF94="","",SUMIF('Dynapac Open'!U$4:U$400,AF94,'Dynapac Open'!P$4:P$400)) -> 0 | Q94: =IF(AF94="","",SUMIF('SmålandsDM ute'!U$4:U$400,AF94,'SmålandsDM ute'!P$4:P$400)) -> 0 | R94: =IF(AF94="","",SUMIF('BlekingeDM ute'!U$4:U$400,AF94,'BlekingeDM ute'!P$4:P$400)) -> 202 | S94: =IF(AF94="","",SUMIF('StockholmsDM ute'!U$4:U$400,AF94,'StockholmsDM ute'!P$4:P$400)) -> 0 | T94: =IF(AF94="","",SUMIF('Åseda Open'!U$4:U$406,AF94,'Åseda Open'!P$4:P$406)) -> 0 | U94: =IF(AF94="","",SUMIF(Höstskon!U$4:U$400,AF94,Höstskon!P$4:P$400)) -> 0 | V94: =IF(AF94="","",SUMIF('Carlskrona Cup'!U$4:U$400,AF94,'Carlskrona Cup'!P$4:P$400)) -> 209 | W94: =IF(AF94="","",SUMIF('Sibbamåla Open'!U$4:U$400,AF94,'Sibbamåla Open'!P$4:P$400)) -> 0 | X94: =IF(AF94="","",SUMIF('Vaxholm Indoor'!U$4:U$400,AF94,'Vaxholm Indoor'!P$4:P$400)) -> 0 | Y94: =IF(AF94="","",SUMIF('SM inne 2022'!U$4:U$400,AF94,'SM inne 2022'!P$4:P$400)) -> 0 | Z94: =IF(AF94="","",SUMIF('SmålandsDM inne'!U$4:U$400,AF94,'SmålandsDM inne'!P$4:P$400)) -> 0 | AA94: =IF(AF94="","",SUMIF('BlekingeDM inne'!U$4:U$400,AF94,'BlekingeDM inne'!P$4:P$400)) -> 189 | AB94: =IF(AF94="","",SUMIF('StockholmsDM inne'!U$4:U$400,AF94,'StockholmsDM inne'!P$4:P$400)) -> 0 | AC94: =IF(AF94="","",SUMIF(Värendspokalen!U$4:U$400,AF94,Värendspokalen!P$4:P$400)) -> 0 | AD94: =IF(AF94="","",SUMIF('Tingsryd Open'!U$4:U$400,AF94,'Tingsryd Open'!P$4:P$400)) -> 0 | AF94: =IF(B94="","",SUMIF(Kastare!B$2:B$2999,B94,Kastare!A$2:A$2999)) -> 1096
A95: 92 | B95: Sandra Rydell | C95: Värends Hsk | D95: 584 | F95: 3 | G95: 97.33333333 | I95: =IF(AF95="","",SUMIF('Jämjö Open'!U$4:U$400,AF95,'Jämjö Open'!P$4:P$400)) -> 0 | J95: =IF(AF95="","",SUMIF('Viby Open'!U$4:U$400,AF95,'Viby Open'!P$4:P$400)) -> 0 | K95: =IF(AF95="","",SUMIF('Björkenäs Open'!U$4:U$400,AF95,'Björkenäs Open'!P$4:P$400)) -> 0 | L95: =IF(AF95="","",SUMIF('SM ute Lö'!U$4:U$400,AF95,'SM ute Lö'!P$4:P$400)) -> 0 | M95: =IF(AF95="","",SUMIF('SM ute Sö'!U$4:U$401,AF95,'SM ute Sö'!P$4:P$401)) -> 0 | N95: =IF(AF95="","",SUMIF('Roslagen Open'!U$4:U$400,AF95,'Roslagen Open'!P$4:P$400)) -> 0 | O95: =IF(AF95="","",SUMIF('Vaxholm Open'!U$4:U$400,AF95,'Vaxholm Open'!P$4:P$400)) -> 0 | P95: =IF(AF95="","",SUMIF('Dynapac Open'!U$4:U$400,AF95,'Dynapac Open'!P$4:P$400)) -> 0 | Q95: =IF(AF95="","",SUMIF('SmålandsDM ute'!U$4:U$400,AF95,'SmålandsDM ute'!P$4:P$400)) -> 0 | R95: =IF(AF95="","",SUMIF('BlekingeDM ute'!U$4:U$400,AF95,'BlekingeDM ute'!P$4:P$400)) -> 0 | S95: =IF(AF95="","",SUMIF('StockholmsDM ute'!U$4:U$400,AF95,'StockholmsDM ute'!P$4:P$400)) -> 0 | T95: =IF(AF95="","",SUMIF('Åseda Open'!U$4:U$406,AF95,'Åseda Open'!P$4:P$406)) -> 234 | U95: =IF(AF95="","",SUMIF(Höstskon!U$4:U$400,AF95,Höstskon!P$4:P$400)) -> 0 | V95: =IF(AF95="","",SUMIF('Carlskrona Cup'!U$4:U$400,AF95,'Carlskrona Cup'!P$4:P$400)) -> 0 | W95: =IF(AF95="","",SUMIF('Sibbamåla Open'!U$4:U$400,AF95,'Sibbamåla Open'!P$4:P$400)) -> 193 | X95: =IF(AF95="","",SUMIF('Vaxholm Indoor'!U$4:U$400,AF95,'Vaxholm Indoor'!P$4:P$400)) -> 0 | Y95: =IF(AF95="","",SUMIF('SM inne 2022'!U$4:U$400,AF95,'SM inne 2022'!P$4:P$400)) -> 0 | Z95: =IF(AF95="","",SUMIF('SmålandsDM inne'!U$4:U$400,AF95,'SmålandsDM inne'!P$4:P$400)) -> 0 | AA95: =IF(AF95="","",SUMIF('BlekingeDM inne'!U$4:U$400,AF95,'BlekingeDM inne'!P$4:P$400)) -> 0 | AB95: =IF(AF95="","",SUMIF('StockholmsDM inne'!U$4:U$400,AF95,'StockholmsDM inne'!P$4:P$400)) -> 0 | AC95: =IF(AF95="","",SUMIF(Värendspokalen!U$4:U$400,AF95,Värendspokalen!P$4:P$400)) -> 157 | AD95: =IF(AF95="","",SUMIF('Tingsryd Open'!U$4:U$400,AF95,'Tingsryd Open'!P$4:P$400)) -> 0 | AF95: =IF(B95="","",SUMIF(Kastare!B$2:B$2999,B95,Kastare!A$2:A$2999)) -> 1114
A96: 93 | B96: Anders Karlsson | C96: Värends Hsk | D96: 579 | F96: 4 | G96: 72.375 | I96: =IF(AF96="","",SUMIF('Jämjö Open'!U$4:U$400,AF96,'Jämjö Open'!P$4:P$400)) -> 0 | J96: =IF(AF96="","",SUMIF('Viby Open'!U$4:U$400,AF96,'Viby Open'!P$4:P$400)) -> 0 | K96: =IF(AF96="","",SUMIF('Björkenäs Open'!U$4:U$400,AF96,'Björkenäs Open'!P$4:P$400)) -> 0 | L96: =IF(AF96="","",SUMIF('SM ute Lö'!U$4:U$400,AF96,'SM ute Lö'!P$4:P$400)) -> 0 | M96: =IF(AF96="","",SUMIF('SM ute Sö'!U$4:U$401,AF96,'SM ute Sö'!P$4:P$401)) -> 0 | N96: =IF(AF96="","",SUMIF('Roslagen Open'!U$4:U$400,AF96,'Roslagen Open'!P$4:P$400)) -> 0 | O96: =IF(AF96="","",SUMIF('Vaxholm Open'!U$4:U$400,AF96,'Vaxholm Open'!P$4:P$400)) -> 0 | P96: =IF(AF96="","",SUMIF('Dynapac Open'!U$4:U$400,AF96,'Dynapac Open'!P$4:P$400)) -> 0 | Q96: =IF(AF96="","",SUMIF('SmålandsDM ute'!U$4:U$400,AF96,'SmålandsDM ute'!P$4:P$400)) -> 0 | R96: =IF(AF96="","",SUMIF('BlekingeDM ute'!U$4:U$400,AF96,'BlekingeDM ute'!P$4:P$400)) -> 0 | S96: =IF(AF96="","",SUMIF('StockholmsDM ute'!U$4:U$400,AF96,'StockholmsDM ute'!P$4:P$400)) -> 0 | T96: =IF(AF96="","",SUMIF('Åseda Open'!U$4:U$406,AF96,'Åseda Open'!P$4:P$406)) -> 0 | U96: =IF(AF96="","",SUMIF(Höstskon!U$4:U$400,AF96,Höstskon!P$4:P$400)) -> 131 | V96: =IF(AF96="","",SUMIF('Carlskrona Cup'!U$4:U$400,AF96,'Carlskrona Cup'!P$4:P$400)) -> 104 | W96: =IF(AF96="","",SUMIF('Sibbamåla Open'!U$4:U$400,AF96,'Sibbamåla Open'!P$4:P$400)) -> 0 | X96: =IF(AF96="","",SUMIF('Vaxholm Indoor'!U$4:U$400,AF96,'Vaxholm Indoor'!P$4:P$400)) -> 0 | Y96: =IF(AF96="","",SUMIF('SM inne 2022'!U$4:U$400,AF96,'SM inne 2022'!P$4:P$400)) -> 174 | Z96: =IF(AF96="","",SUMIF('SmålandsDM inne'!U$4:U$400,AF96,'SmålandsDM inne'!P$4:P$400)) -> 0 | AA96: =IF(AF96="","",SUMIF('BlekingeDM inne'!U$4:U$400,AF96,'BlekingeDM inne'!P$4:P$400)) -> 0 | AB96: =IF(AF96="","",SUMIF('StockholmsDM inne'!U$4:U$400,AF96,'StockholmsDM inne'!P$4:P$400)) -> 0 | AC96: =IF(AF96="","",SUMIF(Värendspokalen!U$4:U$400,AF96,Värendspokalen!P$4:P$400)) -> 170 | AD96: =IF(AF96="","",SUMIF('Tingsryd Open'!U$4:U$400,AF96,'Tingsryd Open'!P$4:P$400)) -> 0 | AF96: =IF(B96="","",SUMIF(Kastare!B$2:B$2999,B96,Kastare!A$2:A$2999)) -> 1068
A97: 94 | B97: Mathias Karlberg | C97: Jämjö Hsk | D97: 578 | F97: 2 | G97: 144.5 | I97: =IF(AF97="","",SUMIF('Jämjö Open'!U$4:U$400,AF97,'Jämjö Open'!P$4:P$400)) -> 0 | J97: =IF(AF97="","",SUMIF('Viby Open'!U$4:U$400,AF97,'Viby Open'!P$4:P$400)) -> 0 | K97: =IF(AF97="","",SUMIF('Björkenäs Open'!U$4:U$400,AF97,'Björkenäs Open'!P$4:P$400)) -> 0 | L97: =IF(AF97="","",SUMIF('SM ute Lö'!U$4:U$400,AF97,'SM ute Lö'!P$4:P$400)) -> 0 | M97: =IF(AF97="","",SUMIF('SM ute Sö'!U$4:U$401,AF97,'SM ute Sö'!P$4:P$401)) -> 0 | N97: =IF(AF97="","",SUMIF('Roslagen Open'!U$4:U$400,AF97,'Roslagen Open'!P$4:P$400)) -> 0 | O97: =IF(AF97="","",SUMIF('Vaxholm Open'!U$4:U$400,AF97,'Vaxholm Open'!P$4:P$400)) -> 0 | P97: =IF(AF97="","",SUMIF('Dynapac Open'!U$4:U$400,AF97,'Dynapac Open'!P$4:P$400)) -> 0 | Q97: =IF(AF97="","",SUMIF('SmålandsDM ute'!U$4:U$400,AF97,'SmålandsDM ute'!P$4:P$400)) -> 0 | R97: =IF(AF97="","",SUMIF('BlekingeDM ute'!U$4:U$400,AF97,'BlekingeDM ute'!P$4:P$400)) -> 238 | S97: =IF(AF97="","",SUMIF('StockholmsDM ute'!U$4:U$400,AF97,'StockholmsDM ute'!P$4:P$400)) -> 0 | T97: =IF(AF97="","",SUMIF('Åseda Open'!U$4:U$406,AF97,'Åseda Open'!P$4:P$406)) -> 0 | U97: =IF(AF97="","",SUMIF(Höstskon!U$4:U$400,AF97,Höstskon!P$4:P$400)) -> 0 | V97: =IF(AF97="","",SUMIF('Carlskrona Cup'!U$4:U$400,AF97,'Carlskrona Cup'!P$4:P$400)) -> 0 | W97: =IF(AF97="","",SUMIF('Sibbamåla Open'!U$4:U$400,AF97,'Sibbamåla Open'!P$4:P$400)) -> 0 | X97: =IF(AF97="","",SUMIF('Vaxholm Indoor'!U$4:U$400,AF97,'Vaxholm Indoor'!P$4:P$400)) -> 0 | Y97: =IF(AF97="","",SUMIF('SM inne 2022'!U$4:U$400,AF97,'SM inne 2022'!P$4:P$400)) -> 340 | Z97: =IF(AF97="","",SUMIF('SmålandsDM inne'!U$4:U$400,AF97,'SmålandsDM inne'!P$4:P$400)) -> 0 | AA97: =IF(AF97="","",SUMIF('BlekingeDM inne'!U$4:U$400,AF97,'BlekingeDM inne'!P$4:P$400)) -> 0 | AB97: =IF(AF97="","",SUMIF('StockholmsDM inne'!U$4:U$400,AF97,'StockholmsDM inne'!P$4:P$400)) -> 0 | AC97: =IF(AF97="","",SUMIF(Värendspokalen!U$4:U$400,AF97,Värendspokalen!P$4:P$400)) -> 0 | AD97: =IF(AF97="","",SUMIF('Tingsryd Open'!U$4:U$400,AF97,'Tingsryd Open'!P$4:P$400)) -> 0 | AF97: =IF(B97="","",SUMIF(Kastare!B$2:B$2999,B97,Kastare!A$2:A$2999)) -> 1030
A98: 95 | B98: Torgny Rågfeldt | C98: Balders HSK | D98: 559 | F98: 3 | G98: 93.16666667 | I98: =IF(AF98="","",SUMIF('Jämjö Open'!U$4:U$400,AF98,'Jämjö Open'!P$4:P$400)) -> 0 | J98: =IF(AF98="","",SUMIF('Viby Open'!U$4:U$400,AF98,'Viby Open'!P$4:P$400)) -> 0 | K98: =IF(AF98="","",SUMIF('Björkenäs Open'!U$4:U$400,AF98,'Björkenäs Open'!P$4:P$400)) -> 0 | L98: =IF(AF98="","",SUMIF('SM ute Lö'!U$4:U$400,AF98,'SM ute Lö'!P$4:P$400)) -> 0 | M98: =IF(AF98="","",SUMIF('SM ute Sö'!U$4:U$401,AF98,'SM ute Sö'!P$4:P$401)) -> 0 | N98: =IF(AF98="","",SUMIF('Roslagen Open'!U$4:U$400,AF98,'Roslagen Open'!P$4:P$400)) -> 212 | O98: =IF(AF98="","",SUMIF('Vaxholm Open'!U$4:U$400,AF98,'Vaxholm Open'!P$4:P$400)) -> 0 | P98: =IF(AF98="","",SUMIF('Dynapac Open'!U$4:U$400,AF98,'Dynapac Open'!P$4:P$400)) -> 0 | Q98: =IF(AF98="","",SUMIF('SmålandsDM ute'!U$4:U$400,AF98,'SmålandsDM ute'!P$4:P$400)) -> 0 | R98: =IF(AF98="","",SUMIF('BlekingeDM ute'!U$4:U$400,AF98,'BlekingeDM ute'!P$4:P$400)) -> 0 | S98: =IF(AF98="","",SUMIF('StockholmsDM ute'!U$4:U$400,AF98,'StockholmsDM ute'!P$4:P$400)) -> 0 | T98: =IF(AF98="","",SUMIF('Åseda Open'!U$4:U$406,AF98,'Åseda Open'!P$4:P$406)) -> 0 | U98: =IF(AF98="","",SUMIF(Höstskon!U$4:U$400,AF98,Höstskon!P$4:P$400)) -> 0 | V98: =IF(AF98="","",SUMIF('Carlskrona Cup'!U$4:U$400,AF98,'Carlskrona Cup'!P$4:P$400)) -> 0 | W98: =IF(AF98="","",SUMIF('Sibbamåla Open'!U$4:U$400,AF98,'Sibbamåla Open'!P$4:P$400)) -> 0 | X98: =IF(AF98="","",SUMIF('Vaxholm Indoor'!U$4:U$400,AF98,'Vaxholm Indoor'!P$4:P$400)) -> 149 | Y98: =IF(AF98="","",SUMIF('SM inne 2022'!U$4:U$400,AF98,'SM inne 2022'!P$4:P$400)) -> 0 | Z98: =IF(AF98="","",SUMIF('SmålandsDM inne'!U$4:U$400,AF98,'SmålandsDM inne'!P$4:P$400)) -> 0 | AA98: =IF(AF98="","",SUMIF('BlekingeDM inne'!U$4:U$400,AF98,'BlekingeDM inne'!P$4:P$400)) -> 0 | AB98: =IF(AF98="","",SUMIF('StockholmsDM inne'!U$4:U$400,AF98,'StockholmsDM inne'!P$4:P$400)) -> 198 | AC98: =IF(AF98="","",SUMIF(Värendspokalen!U$4:U$400,AF98,Värendspokalen!P$4:P$400)) -> 0 | AD98: =IF(AF98="","",SUMIF('Tingsryd Open'!U$4:U$400,AF98,'Tingsryd Open'!P$4:P$400)) -> 0 | AF98: =IF(B98="","",SUMIF(Kastare!B$2:B$2999,B98,Kastare!A$2:A$2999)) -> 1210
A99: 96 | B99: Nisse Hansson | C99: Korpen Nybro | D99: 555 | F99: 6 | G99: 46.25 | I99: =IF(AF99="","",SUMIF('Jämjö Open'!U$4:U$400,AF99,'Jämjö Open'!P$4:P$400)) -> 0 | J99: =IF(AF99="","",SUMIF('Viby Open'!U$4:U$400,AF99,'Viby Open'!P$4:P$400)) -> 0 | K99: =IF(AF99="","",SUMIF('Björkenäs Open'!U$4:U$400,AF99,'Björkenäs Open'!P$4:P$400)) -> 0 | L99: =IF(AF99="","",SUMIF('SM ute Lö'!U$4:U$400,AF99,'SM ute Lö'!P$4:P$400)) -> 52 | M99: =IF(AF99="","",SUMIF('SM ute Sö'!U$4:U$401,AF99,'SM ute Sö'!P$4:P$401)) -> 96 | N99: =IF(AF99="","",SUMIF('Roslagen Open'!U$4:U$400,AF99,'Roslagen Open'!P$4:P$400)) -> 0 | O99: =IF(AF99="","",SUMIF('Vaxholm Open'!U$4:U$400,AF99,'Vaxholm Open'!P$4:P$400)) -> 0 | P99: =IF(AF99="","",SUMIF('Dynapac Open'!U$4:U$400,AF99,'Dynapac Open'!P$4:P$400)) -> 0 | Q99: =IF(AF99="","",SUMIF('SmålandsDM ute'!U$4:U$400,AF99,'SmålandsDM ute'!P$4:P$400)) -> 85 | R99: =IF(AF99="","",SUMIF('BlekingeDM ute'!U$4:U$400,AF99,'BlekingeDM ute'!P$4:P$400)) -> 0 | S99: =IF(AF99="","",SUMIF('StockholmsDM ute'!U$4:U$400,AF99,'StockholmsDM ute'!P$4:P$400)) -> 0 | T99: =IF(AF99="","",SUMIF('Åseda Open'!U$4:U$406,AF99,'Åseda Open'!P$4:P$406)) -> 98 | U99: =IF(AF99="","",SUMIF(Höstskon!U$4:U$400,AF99,Höstskon!P$4:P$400)) -> 0 | V99: =IF(AF99="","",SUMIF('Carlskrona Cup'!U$4:U$400,AF99,'Carlskrona Cup'!P$4:P$400)) -> 0 | W99: =IF(AF99="","",SUMIF('Sibbamåla Open'!U$4:U$400,AF99,'Sibbamåla Open'!P$4:P$400)) -> 166 | X99: =IF(AF99="","",SUMIF('Vaxholm Indoor'!U$4:U$400,AF99,'Vaxholm Indoor'!P$4:P$400)) -> 0 | Y99: =IF(AF99="","",SUMIF('SM inne 2022'!U$4:U$400,AF99,'SM inne 2022'!P$4:P$400)) -> 58 | Z99: =IF(AF99="","",SUMIF('SmålandsDM inne'!U$4:U$400,AF99,'SmålandsDM inne'!P$4:P$400)) -> 0 | AA99: =IF(AF99="","",SUMIF('BlekingeDM inne'!U$4:U$400,AF99,'BlekingeDM inne'!P$4:P$400)) -> 0 | AB99: =IF(AF99="","",SUMIF('StockholmsDM inne'!U$4:U$400,AF99,'StockholmsDM inne'!P$4:P$400)) -> 0 | AC99: =IF(AF99="","",SUMIF(Värendspokalen!U$4:U$400,AF99,Värendspokalen!P$4:P$400)) -> 0 | AD99: =IF(AF99="","",SUMIF('Tingsryd Open'!U$4:U$400,AF99,'Tingsryd Open'!P$4:P$400)) -> 0 | AF99: =IF(B99="","",SUMIF(Kastare!B$2:B$2999,B99,Kastare!A$2:A$2999)) -> 1110
A100: 97 | B100: Bo Petersson | C100: Korpen Nybro | D100: 536 | F100: 4 | G100: 67 | I100: =IF(AF100="","",SUMIF('Jämjö Open'!U$4:U$400,AF100,'Jämjö Open'!P$4:P$400)) -> 0 | J100: =IF(AF100="","",SUMIF('Viby Open'!U$4:U$400,AF100,'Viby Open'!P$4:P$400)) -> 0 | K100: =IF(AF100="","",SUMIF('Björkenäs Open'!U$4:U$400,AF100,'Björkenäs Open'!P$4:P$400)) -> 0 | L100: =IF(AF100="","",SUMIF('SM ute Lö'!U$4:U$400,AF100,'SM ute Lö'!P$4:P$400)) -> 0 | M100: =IF(AF100="","",SUMIF('SM ute Sö'!U$4:U$401,AF100,'SM ute Sö'!P$4:P$401)) -> 0 | N100: =IF(AF100="","",SUMIF('Roslagen Open'!U$4:U$400,AF100,'Roslagen Open'!P$4:P$400)) -> 0 | O100: =IF(AF100="","",SUMIF('Vaxholm Open'!U$4:U$400,AF100,'Vaxholm Open'!P$4:P$400)) -> 0 | P100: =IF(AF100="","",SUMIF('Dynapac Open'!U$4:U$400,AF100,'Dynapac Open'!P$4:P$400)) -> 0 | Q100: =IF(AF100="","",SUMIF('SmålandsDM ute'!U$4:U$400,AF100,'SmålandsDM ute'!P$4:P$400)) -> 149 | R100: =IF(AF100="","",SUMIF('BlekingeDM ute'!U$4:U$400,AF100,'BlekingeDM ute'!P$4:P$400)) -> 0 | S100: =IF(AF100="","",SUMIF('StockholmsDM ute'!U$4:U$400,AF100,'StockholmsDM ute'!P$4:P$400)) -> 0 | T100: =IF(AF100="","",SUMIF('Åseda Open'!U$4:U$406,AF100,'Åseda Open'!P$4:P$406)) -> 105 | U100: =IF(AF100="","",SUMIF(Höstskon!U$4:U$400,AF100,Höstskon!P$4:P$400)) -> 170 | V100: =IF(AF100="","",SUMIF('Carlskrona Cup'!U$4:U$400,AF100,'Carlskrona Cup'!P$4:P$400)) -> 0 | W100: =IF(AF100="","",SUMIF('Sibbamåla Open'!U$4:U$400,AF100,'Sibbamåla Open'!P$4:P$400)) -> 0 | X100: =IF(AF100="","",SUMIF('Vaxholm Indoor'!U$4:U$400,AF100,'Vaxholm Indoor'!P$4:P$400)) -> 0 | Y100: =IF(AF100="","",SUMIF('SM inne 2022'!U$4:U$400,AF100,'SM inne 2022'!P$4:P$400)) -> 112 | Z100: =IF(AF100="","",SUMIF('SmålandsDM inne'!U$4:U$400,AF100,'SmålandsDM inne'!P$4:P$400)) -> 0 | AA100: =IF(AF100="","",SUMIF('BlekingeDM inne'!U$4:U$400,AF100,'BlekingeDM inne'!P$4:P$400)) -> 0 | AB100: =IF(AF100="","",SUMIF('StockholmsDM inne'!U$4:U$400,AF100,'StockholmsDM inne'!P$4:P$400)) -> 0 | AC100: =IF(AF100="","",SUMIF(Värendspokalen!U$4:U$400,AF100,Värendspokalen!P$4:P$400)) -> 0 | AD100: =IF(AF100="","",SUMIF('Tingsryd Open'!U$4:U$400,AF100,'Tingsryd Open'!P$4:P$400)) -> 0 | AF100: =IF(B100="","",SUMIF(Kastare!B$2:B$2999,B100,Kastare!A$2:A$2999)) -> 1048
A101: 98 | B101: Arne Blihd | C101: Lanternan | D101: 531 | F101: 4 | G101: 66.375 | I101: =IF(AF101="","",SUMIF('Jämjö Open'!U$4:U$400,AF101,'Jämjö Open'!P$4:P$400)) -> 0 | J101: =IF(AF101="","",SUMIF('Viby Open'!U$4:U$400,AF101,'Viby Open'!P$4:P$400)) -> 0 | K101: =IF(AF101="","",SUMIF('Björkenäs Open'!U$4:U$400,AF101,'Björkenäs Open'!P$4:P$400)) -> 0 | L101: =IF(AF101="","",SUMIF('SM ute Lö'!U$4:U$400,AF101,'SM ute Lö'!P$4:P$400)) -> 0 | M101: =IF(AF101="","",SUMIF('SM ute Sö'!U$4:U$401,AF101,'SM ute Sö'!P$4:P$401)) -> 0 | N101: =IF(AF101="","",SUMIF('Roslagen Open'!U$4:U$400,AF101,'Roslagen Open'!P$4:P$400)) -> 0 | O101: =IF(AF101="","",SUMIF('Vaxholm Open'!U$4:U$400,AF101,'Vaxholm Open'!P$4:P$400)) -> 0 | P101: =IF(AF101="","",SUMIF('Dynapac Open'!U$4:U$400,AF101,'Dynapac Open'!P$4:P$400)) -> 0 | Q101: =IF(AF101="","",SUMIF('SmålandsDM ute'!U$4:U$400,AF101,'SmålandsDM ute'!P$4:P$400)) -> 0 | R101: =IF(AF101="","",SUMIF('BlekingeDM ute'!U$4:U$400,AF101,'BlekingeDM ute'!P$4:P$400)) -> 126 | S101: =IF(AF101="","",SUMIF('StockholmsDM ute'!U$4:U$400,AF101,'StockholmsDM ute'!P$4:P$400)) -> 0 | T101: =IF(AF101="","",SUMIF('Åseda Open'!U$4:U$406,AF101,'Åseda Open'!P$4:P$406)) -> 0 | U101: =IF(AF101="","",SUMIF(Höstskon!U$4:U$400,AF101,Höstskon!P$4:P$400)) -> 0 | V101: =IF(AF101="","",SUMIF('Carlskrona Cup'!U$4:U$400,AF101,'Carlskrona Cup'!P$4:P$400)) -> 75 | W101: =IF(AF101="","",SUMIF('Sibbamåla Open'!U$4:U$400,AF101,'Sibbamåla Open'!P$4:P$400)) -> 178 | X101: =IF(AF101="","",SUMIF('Vaxholm Indoor'!U$4:U$400,AF101,'Vaxholm Indoor'!P$4:P$400)) -> 0 | Y101: =IF(AF101="","",SUMIF('SM inne 2022'!U$4:U$400,AF101,'SM inne 2022'!P$4:P$400)) -> 0 | Z101: =IF(AF101="","",SUMIF('SmålandsDM inne'!U$4:U$400,AF101,'SmålandsDM inne'!P$4:P$400)) -> 0 | AA101: =IF(AF101="","",SUMIF('BlekingeDM inne'!U$4:U$400,AF101,'BlekingeDM inne'!P$4:P$400)) -> 152 | AB101: =IF(AF101="","",SUMIF('StockholmsDM inne'!U$4:U$400,AF101,'StockholmsDM inne'!P$4:P$400)) -> 0 | AC101: =IF(AF101="","",SUMIF(Värendspokalen!U$4:U$400,AF101,Värendspokalen!P$4:P$400)) -> 0 | AD101: =IF(AF101="","",SUMIF('Tingsryd Open'!U$4:U$400,AF101,'Tingsryd Open'!P$4:P$400)) -> 0 | AF101: =IF(B101="","",SUMIF(Kastare!B$2:B$2999,B101,Kastare!A$2:A$2999)) -> 1085
A102: 99 | B102: Mikael Grönskog | C102: Sibbamåla IF | D102: 530 | F102: 3 | G102: 88.33333333 | I102: =IF(AF102="","",SUMIF('Jämjö Open'!U$4:U$400,AF102,'Jämjö Open'!P$4:P$400)) -> 0 | J102: =IF(AF102="","",SUMIF('Viby Open'!U$4:U$400,AF102,'Viby Open'!P$4:P$400)) -> 0 | K102: =IF(AF102="","",SUMIF('Björkenäs Open'!U$4:U$400,AF102,'Björkenäs Open'!P$4:P$400)) -> 0 | L102: =IF(AF102="","",SUMIF('SM ute Lö'!U$4:U$400,AF102,'SM ute Lö'!P$4:P$400)) -> 196 | M102: =IF(AF102="","",SUMIF('SM ute Sö'!U$4:U$401,AF102,'SM ute Sö'!P$4:P$401)) -> 0 | N102: =IF(AF102="","",SUMIF('Roslagen Open'!U$4:U$400,AF102,'Roslagen Open'!P$4:P$400)) -> 0 | O102: =IF(AF102="","",SUMIF('Vaxholm Open'!U$4:U$400,AF102,'Vaxholm Open'!P$4:P$400)) -> 0 | P102: =IF(AF102="","",SUMIF('Dynapac Open'!U$4:U$400,AF102,'Dynapac Open'!P$4:P$400)) -> 0 | Q102: =IF(AF102="","",SUMIF('SmålandsDM ute'!U$4:U$400,AF102,'SmålandsDM ute'!P$4:P$400)) -> 0 | R102: =IF(AF102="","",SUMIF('BlekingeDM ute'!U$4:U$400,AF102,'BlekingeDM ute'!P$4:P$400)) -> 0 | S102: =IF(AF102="","",SUMIF('StockholmsDM ute'!U$4:U$400,AF102,'StockholmsDM ute'!P$4:P$400)) -> 0 | T102: =IF(AF102="","",SUMIF('Åseda Open'!U$4:U$406,AF102,'Åseda Open'!P$4:P$406)) -> 0 | U102: =IF(AF102="","",SUMIF(Höstskon!U$4:U$400,AF102,Höstskon!P$4:P$400)) -> 0 | V102: =IF(AF102="","",SUMIF('Carlskrona Cup'!U$4:U$400,AF102,'Carlskrona Cup'!P$4:P$400)) -> 196 | W102: =IF(AF102="","",SUMIF('Sibbamåla Open'!U$4:U$400,AF102,'Sibbamåla Open'!P$4:P$400)) -> 0 | X102: =IF(AF102="","",SUMIF('Vaxholm Indoor'!U$4:U$400,AF102,'Vaxholm Indoor'!P$4:P$400)) -> 0 | Y102: =IF(AF102="","",SUMIF('SM inne 2022'!U$4:U$400,AF102,'SM inne 2022'!P$4:P$400)) -> 138 | Z102: =IF(AF102="","",SUMIF('SmålandsDM inne'!U$4:U$400,AF102,'SmålandsDM inne'!P$4:P$400)) -> 0 | AA102: =IF(AF102="","",SUMIF('BlekingeDM inne'!U$4:U$400,AF102,'BlekingeDM inne'!P$4:P$400)) -> 0 | AB102: =IF(AF102="","",SUMIF('StockholmsDM inne'!U$4:U$400,AF102,'StockholmsDM inne'!P$4:P$400)) -> 0 | AC102: =IF(AF102="","",SUMIF(Värendspokalen!U$4:U$400,AF102,Värendspokalen!P$4:P$400)) -> 0 | AD102: =IF(AF102="","",SUMIF('Tingsryd Open'!U$4:U$400,AF102,'Tingsryd Open'!P$4:P$400)) -> 0 | AF102: =IF(B102="","",SUMIF(Kastare!B$2:B$2999,B102,Kastare!A$2:A$2999)) -> 1112
A103: 100 | B103: Malin Löwberg | C103: Balders Hsk | D103: 505 | F103: 5 | G103: 50.5 | I103: =IF(AF103="","",SUMIF('Jämjö Open'!U$4:U$400,AF103,'Jämjö Open'!P$4:P$400)) -> 0 | J103: =IF(AF103="","",SUMIF('Viby Open'!U$4:U$400,AF103,'Viby Open'!P$4:P$400)) -> 0 | K103: =IF(AF103="","",SUMIF('Björkenäs Open'!U$4:U$400,AF103,'Björkenäs Open'!P$4:P$400)) -> 0 | L103: =IF(AF103="","",SUMIF('SM ute Lö'!U$4:U$400,AF103,'SM ute Lö'!P$4:P$400)) -> 123 | M103: =IF(AF103="","",SUMIF('SM ute Sö'!U$4:U$401,AF103,'SM ute Sö'!P$4:P$401)) -> 99 | N103: =IF(AF103="","",SUMIF('Roslagen Open'!U$4:U$400,AF103,'Roslagen Open'!P$4:P$400)) -> 0 | O103: =IF(AF103="","",SUMIF('Vaxholm Open'!U$4:U$400,AF103,'Vaxholm Open'!P$4:P$400)) -> 0 | P103: =IF(AF103="","",SUMIF('Dynapac Open'!U$4:U$400,AF103,'Dynapac Open'!P$4:P$400)) -> 0 | Q103: =IF(AF103="","",SUMIF('SmålandsDM ute'!U$4:U$400,AF103,'SmålandsDM ute'!P$4:P$400)) -> 0 | R103: =IF(AF103="","",SUMIF('BlekingeDM ute'!U$4:U$400,AF103,'BlekingeDM ute'!P$4:P$400)) -> 0 | S103: =IF(AF103="","",SUMIF('StockholmsDM ute'!U$4:U$400,AF103,'StockholmsDM ute'!P$4:P$400)) -> 71 | T103: =IF(AF103="","",SUMIF('Åseda Open'!U$4:U$406,AF103,'Åseda Open'!P$4:P$406)) -> 0 | U103: =IF(AF103="","",SUMIF(Höstskon!U$4:U$400,AF103,Höstskon!P$4:P$400)) -> 0 | V103: =IF(AF103="","",SUMIF('Carlskrona Cup'!U$4:U$400,AF103,'Carlskrona Cup'!P$4:P$400)) -> 0 | W103: =IF(AF103="","",SUMIF('Sibbamåla Open'!U$4:U$400,AF103,'Sibbamåla Open'!P$4:P$400)) -> 0 | X103: =IF(AF103="","",SUMIF('Vaxholm Indoor'!U$4:U$400,AF103,'Vaxholm Indoor'!P$4:P$400)) -> 54 | Y103: =IF(AF103="","",SUMIF('SM inne 2022'!U$4:U$400,AF103,'SM inne 2022'!P$4:P$400)) -> 0 | Z103: =IF(AF103="","",SUMIF('SmålandsDM inne'!U$4:U$400,AF103,'SmålandsDM inne'!P$4:P$400)) -> 0 | AA103: =IF(AF103="","",SUMIF('BlekingeDM inne'!U$4:U$400,AF103,'BlekingeDM inne'!P$4:P$400)) -> 0 | AB103: =IF(AF103="","",SUMIF('StockholmsDM inne'!U$4:U$400,AF103,'StockholmsDM inne'!P$4:P$400)) -> 158 | AC103: =IF(AF103="","",SUMIF(Värendspokalen!U$4:U$400,AF103,Värendspokalen!P$4:P$400)) -> 0 | AD103: =IF(AF103="","",SUMIF('Tingsryd Open'!U$4:U$400,AF103,'Tingsryd Open'!P$4:P$400)) -> 0 | AF103: =IF(B103="","",SUMIF(Kastare!B$2:B$2999,B103,Kastare!A$2:A$2999)) -> 1143
A104: 101 | B104: Tobias Vikström | C104: Växjö Hsk | D104: 503 | F104: 2 | G104: 125.75 | I104: =IF(AF104="","",SUMIF('Jämjö Open'!U$4:U$400,AF104,'Jämjö Open'!P$4:P$400)) -> 0 | J104: =IF(AF104="","",SUMIF('Viby Open'!U$4:U$400,AF104,'Viby Open'!P$4:P$400)) -> 0 | K104: =IF(AF104="","",SUMIF('Björkenäs Open'!U$4:U$400,AF104,'Björkenäs Open'!P$4:P$400)) -> 0 | L104: =IF(AF104="","",SUMIF('SM ute Lö'!U$4:U$400,AF104,'SM ute Lö'!P$4:P$400)) -> 218 | M104: =IF(AF104="","",SUMIF('SM ute Sö'!U$4:U$401,AF104,'SM ute Sö'!P$4:P$401)) -> 285 | N104: =IF(AF104="","",SUMIF('Roslagen Open'!U$4:U$400,AF104,'Roslagen Open'!P$4:P$400)) -> 0 | O104: =IF(AF104="","",SUMIF('Vaxholm Open'!U$4:U$400,AF104,'Vaxholm Open'!P$4:P$400)) -> 0 | P104: =IF(AF104="","",SUMIF('Dynapac Open'!U$4:U$400,AF104,'Dynapac Open'!P$4:P$400)) -> 0 | Q104: =IF(AF104="","",SUMIF('SmålandsDM ute'!U$4:U$400,AF104,'SmålandsDM ute'!P$4:P$400)) -> 0 | R104: =IF(AF104="","",SUMIF('BlekingeDM ute'!U$4:U$400,AF104,'BlekingeDM ute'!P$4:P$400)) -> 0 | S104: =IF(AF104="","",SUMIF('StockholmsDM ute'!U$4:U$400,AF104,'StockholmsDM ute'!P$4:P$400)) -> 0 | T104: =IF(AF104="","",SUMIF('Åseda Open'!U$4:U$406,AF104,'Åseda Open'!P$4:P$406)) -> 0 | U104: =IF(AF104="","",SUMIF(Höstskon!U$4:U$400,AF104,Höstskon!P$4:P$400)) -> 0 | V104: =IF(AF104="","",SUMIF('Carlskrona Cup'!U$4:U$400,AF104,'Carlskrona Cup'!P$4:P$400)) -> 0 | W104: =IF(AF104="","",SUMIF('Sibbamåla Open'!U$4:U$400,AF104,'Sibbamåla Open'!P$4:P$400)) -> 0 | X104: =IF(AF104="","",SUMIF('Vaxholm Indoor'!U$4:U$400,AF104,'Vaxholm Indoor'!P$4:P$400)) -> 0 | Y104: =IF(AF104="","",SUMIF('SM inne 2022'!U$4:U$400,AF104,'SM inne 2022'!P$4:P$400)) -> 0 | Z104: =IF(AF104="","",SUMIF('SmålandsDM inne'!U$4:U$400,AF104,'SmålandsDM inne'!P$4:P$400)) -> 0 | AA104: =IF(AF104="","",SUMIF('BlekingeDM inne'!U$4:U$400,AF104,'BlekingeDM inne'!P$4:P$400)) -> 0 | AB104: =IF(AF104="","",SUMIF('StockholmsDM inne'!U$4:U$400,AF104,'StockholmsDM inne'!P$4:P$400)) -> 0 | AC104: =IF(AF104="","",SUMIF(Värendspokalen!U$4:U$400,AF104,Värendspokalen!P$4:P$400)) -> 0 | AD104: =IF(AF104="","",SUMIF('Tingsryd Open'!U$4:U$400,AF104,'Tingsryd Open'!P$4:P$400)) -> 0 | AF104: =IF(B104="","",SUMIF(Kastare!B$2:B$2999,B104,Kastare!A$2:A$2999)) -> 1163
A105: 102 | B105: Billy Klarström | C105: Team Småland | D105: 488 | F105: 2 | G105: 122 | I105: =IF(AF105="","",SUMIF('Jämjö Open'!U$4:U$400,AF105,'Jämjö Open'!P$4:P$400)) -> 0 | J105: =IF(AF105="","",SUMIF('Viby Open'!U$4:U$400,AF105,'Viby Open'!P$4:P$400)) -> 0 | K105: =IF(AF105="","",SUMIF('Björkenäs Open'!U$4:U$400,AF105,'Björkenäs Open'!P$4:P$400)) -> 0 | L105: =IF(AF105="","",SUMIF('SM ute Lö'!U$4:U$400,AF105,'SM ute Lö'!P$4:P$400)) -> 0 | M105: =IF(AF105="","",SUMIF('SM ute Sö'!U$4:U$401,AF105,'SM ute Sö'!P$4:P$401)) -> 281 | N105: =IF(AF105="","",SUMIF('Roslagen Open'!U$4:U$400,AF105,'Roslagen Open'!P$4:P$400)) -> 0 | O105: =IF(AF105="","",SUMIF('Vaxholm Open'!U$4:U$400,AF105,'Vaxholm Open'!P$4:P$400)) -> 0 | P105: =IF(AF105="","",SUMIF('Dynapac Open'!U$4:U$400,AF105,'Dynapac Open'!P$4:P$400)) -> 0 | Q105: =IF(AF105="","",SUMIF('SmålandsDM ute'!U$4:U$400,AF105,'SmålandsDM ute'!P$4:P$400)) -> 0 | R105: =IF(AF105="","",SUMIF('BlekingeDM ute'!U$4:U$400,AF105,'BlekingeDM ute'!P$4:P$400)) -> 0 | S105: =IF(AF105="","",SUMIF('StockholmsDM ute'!U$4:U$400,AF105,'StockholmsDM ute'!P$4:P$400)) -> 0 | T105: =IF(AF105="","",SUMIF('Åseda Open'!U$4:U$406,AF105,'Åseda Open'!P$4:P$406)) -> 0 | U105: =IF(AF105="","",SUMIF(Höstskon!U$4:U$400,AF105,Höstskon!P$4:P$400)) -> 0 | V105: =IF(AF105="","",SUMIF('Carlskrona Cup'!U$4:U$400,AF105,'Carlskrona Cup'!P$4:P$400)) -> 0 | W105: =IF(AF105="","",SUMIF('Sibbamåla Open'!U$4:U$400,AF105,'Sibbamåla Open'!P$4:P$400)) -> 0 | X105: =IF(AF105="","",SUMIF('Vaxholm Indoor'!U$4:U$400,AF105,'Vaxholm Indoor'!P$4:P$400)) -> 0 | Y105: =IF(AF105="","",SUMIF('SM inne 2022'!U$4:U$400,AF105,'SM inne 2022'!P$4:P$400)) -> 0 | Z105: =IF(AF105="","",SUMIF('SmålandsDM inne'!U$4:U$400,AF105,'SmålandsDM inne'!P$4:P$400)) -> 0 | AA105: =IF(AF105="","",SUMIF('BlekingeDM inne'!U$4:U$400,AF105,'BlekingeDM inne'!P$4:P$400)) -> 0 | AB105: =IF(AF105="","",SUMIF('StockholmsDM inne'!U$4:U$400,AF105,'StockholmsDM inne'!P$4:P$400)) -> 0 | AC105: =IF(AF105="","",SUMIF(Värendspokalen!U$4:U$400,AF105,Värendspokalen!P$4:P$400)) -> 207 | AD105: =IF(AF105="","",SUMIF('Tingsryd Open'!U$4:U$400,AF105,'Tingsryd Open'!P$4:P$400)) -> 0 | AF105: =IF(B105="","",SUMIF(Kastare!B$2:B$2999,B105,Kastare!A$2:A$2999)) -> 1078
A106: 103 | B106: Roger Eriksson | C106: Balders HSK | D106: 481 | F106: 3 | G106: 80.16666667 | I106: =IF(AF106="","",SUMIF('Jämjö Open'!U$4:U$400,AF106,'Jämjö Open'!P$4:P$400)) -> 0 | J106: =IF(AF106="","",SUMIF('Viby Open'!U$4:U$400,AF106,'Viby Open'!P$4:P$400)) -> 0 | K106: =IF(AF106="","",SUMIF('Björkenäs Open'!U$4:U$400,AF106,'Björkenäs Open'!P$4:P$400)) -> 0 | L106: =IF(AF106="","",SUMIF('SM ute Lö'!U$4:U$400,AF106,'SM ute Lö'!P$4:P$400)) -> 0 | M106: =IF(AF106="","",SUMIF('SM ute Sö'!U$4:U$401,AF106,'SM ute Sö'!P$4:P$401)) -> 0 | N106: =IF(AF106="","",SUMIF('Roslagen Open'!U$4:U$400,AF106,'Roslagen Open'!P$4:P$400)) -> 167 | O106: =IF(AF106="","",SUMIF('Vaxholm Open'!U$4:U$400,AF106,'Vaxholm Open'!P$4:P$400)) -> 165 | P106: =IF(AF106="","",SUMIF('Dynapac Open'!U$4:U$400,AF106,'Dynapac Open'!P$4:P$400)) -> 0 | Q106: =IF(AF106="","",SUMIF('SmålandsDM ute'!U$4:U$400,AF106,'SmålandsDM ute'!P$4:P$400)) -> 0 | R106: =IF(AF106="","",SUMIF('BlekingeDM ute'!U$4:U$400,AF106,'BlekingeDM ute'!P$4:P$400)) -> 0 | S106: =IF(AF106="","",SUMIF('StockholmsDM ute'!U$4:U$400,AF106,'StockholmsDM ute'!P$4:P$400)) -> 149 | T106: =IF(AF106="","",SUMIF('Åseda Open'!U$4:U$406,AF106,'Åseda Open'!P$4:P$406)) -> 0 | U106: =IF(AF106="","",SUMIF(Höstskon!U$4:U$400,AF106,Höstskon!P$4:P$400)) -> 0 | V106: =IF(AF106="","",SUMIF('Carlskrona Cup'!U$4:U$400,AF106,'Carlskrona Cup'!P$4:P$400)) -> 0 | W106: =IF(AF106="","",SUMIF('Sibbamåla Open'!U$4:U$400,AF106,'Sibbamåla Open'!P$4:P$400)) -> 0 | X106: =IF(AF106="","",SUMIF('Vaxholm Indoor'!U$4:U$400,AF106,'Vaxholm Indoor'!P$4:P$400)) -> 0 | Y106: =IF(AF106="","",SUMIF('SM inne 2022'!U$4:U$400,AF106,'SM inne 2022'!P$4:P$400)) -> 0 | Z106: =IF(AF106="","",SUMIF('SmålandsDM inne'!U$4:U$400,AF106,'SmålandsDM inne'!P$4:P$400)) -> 0 | AA106: =IF(AF106="","",SUMIF('BlekingeDM inne'!U$4:U$400,AF106,'BlekingeDM inne'!P$4:P$400)) -> 0 | AB106: =IF(AF106="","",SUMIF('StockholmsDM inne'!U$4:U$400,AF106,'StockholmsDM inne'!P$4:P$400)) -> 0 | AC106: =IF(AF106="","",SUMIF(Värendspokalen!U$4:U$400,AF106,Värendspokalen!P$4:P$400)) -> 0 | AD106: =IF(AF106="","",SUMIF('Tingsryd Open'!U$4:U$400,AF106,'Tingsryd Open'!P$4:P$400)) -> 0 | AF106: =IF(B106="","",SUMIF(Kastare!B$2:B$2999,B106,Kastare!A$2:A$2999)) -> 1132
A107: 104 | B107: Tommy Svensson | C107: Värends Hsk | D107: 454 | F107: 3 | G107: 75.66666667 | I107: =IF(AF107="","",SUMIF('Jämjö Open'!U$4:U$400,AF107,'Jämjö Open'!P$4:P$400)) -> 0 | J107: =IF(AF107="","",SUMIF('Viby Open'!U$4:U$400,AF107,'Viby Open'!P$4:P$400)) -> 0 | K107: =IF(AF107="","",SUMIF('Björkenäs Open'!U$4:U$400,AF107,'Björkenäs Open'!P$4:P$400)) -> 0 | L107: =IF(AF107="","",SUMIF('SM ute Lö'!U$4:U$400,AF107,'SM ute Lö'!P$4:P$400)) -> 0 | M107: =IF(AF107="","",SUMIF('SM ute Sö'!U$4:U$401,AF107,'SM ute Sö'!P$4:P$401)) -> 0 | N107: =IF(AF107="","",SUMIF('Roslagen Open'!U$4:U$400,AF107,'Roslagen Open'!P$4:P$400)) -> 0 | O107: =IF(AF107="","",SUMIF('Vaxholm Open'!U$4:U$400,AF107,'Vaxholm Open'!P$4:P$400)) -> 0 | P107: =IF(AF107="","",SUMIF('Dynapac Open'!U$4:U$400,AF107,'Dynapac Open'!P$4:P$400)) -> 0 | Q107: =IF(AF107="","",SUMIF('SmålandsDM ute'!U$4:U$400,AF107,'SmålandsDM ute'!P$4:P$400)) -> 0 | R107: =IF(AF107="","",SUMIF('BlekingeDM ute'!U$4:U$400,AF107,'BlekingeDM ute'!P$4:P$400)) -> 0 | S107: =IF(AF107="","",SUMIF('StockholmsDM ute'!U$4:U$400,AF107,'StockholmsDM ute'!P$4:P$400)) -> 0 | T107: =IF(AF107="","",SUMIF('Åseda Open'!U$4:U$406,AF107,'Åseda Open'!P$4:P$406)) -> 185 | U107: =IF(AF107="","",SUMIF(Höstskon!U$4:U$400,AF107,Höstskon!P$4:P$400)) -> 151 | V107: =IF(AF107="","",SUMIF('Carlskrona Cup'!U$4:U$400,AF107,'Carlskrona Cup'!P$4:P$400)) -> 0 | W107: =IF(AF107="","",SUMIF('Sibbamåla Open'!U$4:U$400,AF107,'Sibbamåla Open'!P$4:P$400)) -> 118 | X107: =IF(AF107="","",SUMIF('Vaxholm Indoor'!U$4:U$400,AF107,'Vaxholm Indoor'!P$4:P$400)) -> 0 | Y107: =IF(AF107="","",SUMIF('SM inne 2022'!U$4:U$400,AF107,'SM inne 2022'!P$4:P$400)) -> 0 | Z107: =IF(AF107="","",SUMIF('SmålandsDM inne'!U$4:U$400,AF107,'SmålandsDM inne'!P$4:P$400)) -> 0 | AA107: =IF(AF107="","",SUMIF('BlekingeDM inne'!U$4:U$400,AF107,'BlekingeDM inne'!P$4:P$400)) -> 0 | AB107: =IF(AF107="","",SUMIF('StockholmsDM inne'!U$4:U$400,AF107,'StockholmsDM inne'!P$4:P$400)) -> 0 | AC107: =IF(AF107="","",SUMIF(Värendspokalen!U$4:U$400,AF107,Värendspokalen!P$4:P$400)) -> 0 | AD107: =IF(AF107="","",SUMIF('Tingsryd Open'!U$4:U$400,AF107,'Tingsryd Open'!P$4:P$400)) -> 0 | AF107: =IF(B107="","",SUMIF(Kastare!B$2:B$2999,B107,Kastare!A$2:A$2999)) -> 1139
A108: 105 | B108: Anne-Marie Larsson | C108: Tingsryd | D108: 446 | F108: 3 | G108: 74.33333333 | I108: =IF(AF108="","",SUMIF('Jämjö Open'!U$4:U$400,AF108,'Jämjö Open'!P$4:P$400)) -> 0 | J108: =IF(AF108="","",SUMIF('Viby Open'!U$4:U$400,AF108,'Viby Open'!P$4:P$400)) -> 0 | K108: =IF(AF108="","",SUMIF('Björkenäs Open'!U$4:U$400,AF108,'Björkenäs Open'!P$4:P$400)) -> 0 | L108: =IF(AF108="","",SUMIF('SM ute Lö'!U$4:U$400,AF108,'SM ute Lö'!P$4:P$400)) -> 0 | M108: =IF(AF108="","",SUMIF('SM ute Sö'!U$4:U$401,AF108,'SM ute Sö'!P$4:P$401)) -> 0 | N108: =IF(AF108="","",SUMIF('Roslagen Open'!U$4:U$400,AF108,'Roslagen Open'!P$4:P$400)) -> 0 | O108: =IF(AF108="","",SUMIF('Vaxholm Open'!U$4:U$400,AF108,'Vaxholm Open'!P$4:P$400)) -> 0 | P108: =IF(AF108="","",SUMIF('Dynapac Open'!U$4:U$400,AF108,'Dynapac Open'!P$4:P$400)) -> 0 | Q108: =IF(AF108="","",SUMIF('SmålandsDM ute'!U$4:U$400,AF108,'SmålandsDM ute'!P$4:P$400)) -> 98 | R108: =IF(AF108="","",SUMIF('BlekingeDM ute'!U$4:U$400,AF108,'BlekingeDM ute'!P$4:P$400)) -> 0 | S108: =IF(AF108="","",SUMIF('StockholmsDM ute'!U$4:U$400,AF108,'StockholmsDM ute'!P$4:P$400)) -> 0 | T108: =IF(AF108="","",SUMIF('Åseda Open'!U$4:U$406,AF108,'Åseda Open'!P$4:P$406)) -> 0 | U108: =IF(AF108="","",SUMIF(Höstskon!U$4:U$400,AF108,Höstskon!P$4:P$400)) -> 226 | V108: =IF(AF108="","",SUMIF('Carlskrona Cup'!U$4:U$400,AF108,'Carlskrona Cup'!P$4:P$400)) -> 0 | W108: =IF(AF108="","",SUMIF('Sibbamåla Open'!U$4:U$400,AF108,'Sibbamåla Open'!P$4:P$400)) -> 0 | X108: =IF(AF108="","",SUMIF('Vaxholm Indoor'!U$4:U$400,AF108,'Vaxholm Indoor'!P$4:P$400)) -> 0 | Y108: =IF(AF108="","",SUMIF('SM inne 2022'!U$4:U$400,AF108,'SM inne 2022'!P$4:P$400)) -> 0 | Z108: =IF(AF108="","",SUMIF('SmålandsDM inne'!U$4:U$400,AF108,'SmålandsDM inne'!P$4:P$400)) -> 0 | AA108: =IF(AF108="","",SUMIF('BlekingeDM inne'!U$4:U$400,AF108,'BlekingeDM inne'!P$4:P$400)) -> 0 | AB108: =IF(AF108="","",SUMIF('StockholmsDM inne'!U$4:U$400,AF108,'StockholmsDM inne'!P$4:P$400)) -> 0 | AC108: =IF(AF108="","",SUMIF(Värendspokalen!U$4:U$400,AF108,Värendspokalen!P$4:P$400)) -> 122 | AD108: =IF(AF108="","",SUMIF('Tingsryd Open'!U$4:U$400,AF108,'Tingsryd Open'!P$4:P$400)) -> 0 | AF108: =IF(B108="","",SUMIF(Kastare!B$2:B$2999,B108,Kastare!A$2:A$2999)) -> 1155
A109: 106 | B109: Karen Jältsäter | C109: Vaxholm | D109: 441 | F109: 2 | G109: 110.25 | I109: =IF(AF109="","",SUMIF('Jämjö Open'!U$4:U$400,AF109,'Jämjö Open'!P$4:P$400)) -> 0 | J109: =IF(AF109="","",SUMIF('Viby Open'!U$4:U$400,AF109,'Viby Open'!P$4:P$400)) -> 0 | K109: =IF(AF109="","",SUMIF('Björkenäs Open'!U$4:U$400,AF109,'Björkenäs Open'!P$4:P$400)) -> 0 | L109: =IF(AF109="","",SUMIF('SM ute Lö'!U$4:U$400,AF109,'SM ute Lö'!P$4:P$400)) -> 0 | M109: =IF(AF109="","",SUMIF('SM ute Sö'!U$4:U$401,AF109,'SM ute Sö'!P$4:P$401)) -> 0 | N109: =IF(AF109="","",SUMIF('Roslagen Open'!U$4:U$400,AF109,'Roslagen Open'!P$4:P$400)) -> 0 | O109: =IF(AF109="","",SUMIF('Vaxholm Open'!U$4:U$400,AF109,'Vaxholm Open'!P$4:P$400)) -> 170 | P109: =IF(AF109="","",SUMIF('Dynapac Open'!U$4:U$400,AF109,'Dynapac Open'!P$4:P$400)) -> 0 | Q109: =IF(AF109="","",SUMIF('SmålandsDM ute'!U$4:U$400,AF109,'SmålandsDM ute'!P$4:P$400)) -> 0 | R109: =IF(AF109="","",SUMIF('BlekingeDM ute'!U$4:U$400,AF109,'BlekingeDM ute'!P$4:P$400)) -> 0 | S109: =IF(AF109="","",SUMIF('StockholmsDM ute'!U$4:U$400,AF109,'StockholmsDM ute'!P$4:P$400)) -> 0 | T109: =IF(AF109="","",SUMIF('Åseda Open'!U$4:U$406,AF109,'Åseda Open'!P$4:P$406)) -> 0 | U109: =IF(AF109="","",SUMIF(Höstskon!U$4:U$400,AF109,Höstskon!P$4:P$400)) -> 0 | V109: =IF(AF109="","",SUMIF('Carlskrona Cup'!U$4:U$400,AF109,'Carlskrona Cup'!P$4:P$400)) -> 0 | W109: =IF(AF109="","",SUMIF('Sibbamåla Open'!U$4:U$400,AF109,'Sibbamåla Open'!P$4:P$400)) -> 0 | X109: =IF(AF109="","",SUMIF('Vaxholm Indoor'!U$4:U$400,AF109,'Vaxholm Indoor'!P$4:P$400)) -> 271 | Y109: =IF(AF109="","",SUMIF('SM inne 2022'!U$4:U$400,AF109,'SM inne 2022'!P$4:P$400)) -> 0 | Z109: =IF(AF109="","",SUMIF('SmålandsDM inne'!U$4:U$400,AF109,'SmålandsDM inne'!P$4:P$400)) -> 0 | AA109: =IF(AF109="","",SUMIF('BlekingeDM inne'!U$4:U$400,AF109,'BlekingeDM inne'!P$4:P$400)) -> 0 | AB109: =IF(AF109="","",SUMIF('StockholmsDM inne'!U$4:U$400,AF109,'StockholmsDM inne'!P$4:P$400)) -> 0 | AC109: =IF(AF109="","",SUMIF(Värendspokalen!U$4:U$400,AF109,Värendspokalen!P$4:P$400)) -> 0 | AD109: =IF(AF109="","",SUMIF('Tingsryd Open'!U$4:U$400,AF109,'Tingsryd Open'!P$4:P$400)) -> 0 | AF109: =IF(B109="","",SUMIF(Kastare!B$2:B$2999,B109,Kastare!A$2:A$2999)) -> 1196
A110: 107 | B110: Martin Smeds | C110: Balders Hsk | D110: 434 | F110: 3 | G110: 72.33333333 | I110: =IF(AF110="","",SUMIF('Jämjö Open'!U$4:U$400,AF110,'Jämjö Open'!P$4:P$400)) -> 0 | J110: =IF(AF110="","",SUMIF('Viby Open'!U$4:U$400,AF110,'Viby Open'!P$4:P$400)) -> 0 | K110: =IF(AF110="","",SUMIF('Björkenäs Open'!U$4:U$400,AF110,'Björkenäs Open'!P$4:P$400)) -> 0 | L110: =IF(AF110="","",SUMIF('SM ute Lö'!U$4:U$400,AF110,'SM ute Lö'!P$4:P$400)) -> 156 | M110: =IF(AF110="","",SUMIF('SM ute Sö'!U$4:U$401,AF110,'SM ute Sö'!P$4:P$401)) -> 77 | N110: =IF(AF110="","",SUMIF('Roslagen Open'!U$4:U$400,AF110,'Roslagen Open'!P$4:P$400)) -> 201 | O110: =IF(AF110="","",SUMIF('Vaxholm Open'!U$4:U$400,AF110,'Vaxholm Open'!P$4:P$400)) -> 0 | P110: =IF(AF110="","",SUMIF('Dynapac Open'!U$4:U$400,AF110,'Dynapac Open'!P$4:P$400)) -> 0 | Q110: =IF(AF110="","",SUMIF('SmålandsDM ute'!U$4:U$400,AF110,'SmålandsDM ute'!P$4:P$400)) -> 0 | R110: =IF(AF110="","",SUMIF('BlekingeDM ute'!U$4:U$400,AF110,'BlekingeDM ute'!P$4:P$400)) -> 0 | S110: =IF(AF110="","",SUMIF('StockholmsDM ute'!U$4:U$400,AF110,'StockholmsDM ute'!P$4:P$400)) -> 0 | T110: =IF(AF110="","",SUMIF('Åseda Open'!U$4:U$406,AF110,'Åseda Open'!P$4:P$406)) -> 0 | U110: =IF(AF110="","",SUMIF(Höstskon!U$4:U$400,AF110,Höstskon!P$4:P$400)) -> 0 | V110: =IF(AF110="","",SUMIF('Carlskrona Cup'!U$4:U$400,AF110,'Carlskrona Cup'!P$4:P$400)) -> 0 | W110: =IF(AF110="","",SUMIF('Sibbamåla Open'!U$4:U$400,AF110,'Sibbamåla Open'!P$4:P$400)) -> 0 | X110: =IF(AF110="","",SUMIF('Vaxholm Indoor'!U$4:U$400,AF110,'Vaxholm Indoor'!P$4:P$400)) -> 0 | Y110: =IF(AF110="","",SUMIF('SM inne 2022'!U$4:U$400,AF110,'SM inne 2022'!P$4:P$400)) -> 0 | Z110: =IF(AF110="","",SUMIF('SmålandsDM inne'!U$4:U$400,AF110,'SmålandsDM inne'!P$4:P$400)) -> 0 | AA110: =IF(AF110="","",SUMIF('BlekingeDM inne'!U$4:U$400,AF110,'BlekingeDM inne'!P$4:P$400)) -> 0 | AB110: =IF(AF110="","",SUMIF('StockholmsDM inne'!U$4:U$400,AF110,'StockholmsDM inne'!P$4:P$400)) -> 0 | AC110: =IF(AF110="","",SUMIF(Värendspokalen!U$4:U$400,AF110,Värendspokalen!P$4:P$400)) -> 0 | AD110: =IF(AF110="","",SUMIF('Tingsryd Open'!U$4:U$400,AF110,'Tingsryd Open'!P$4:P$400)) -> 0 | AF110: =IF(B110="","",SUMIF(Kastare!B$2:B$2999,B110,Kastare!A$2:A$2999)) -> 1190
A111: 108 | B111: Lisbeth Nygaard-Karlsson | C111: Tingsryd | D111: 388 | F111: 2 | G111: 97 | I111: =IF(AF111="","",SUMIF('Jämjö Open'!U$4:U$400,AF111,'Jämjö Open'!P$4:P$400)) -> 0 | J111: =IF(AF111="","",SUMIF('Viby Open'!U$4:U$400,AF111,'Viby Open'!P$4:P$400)) -> 0 | K111: =IF(AF111="","",SUMIF('Björkenäs Open'!U$4:U$400,AF111,'Björkenäs Open'!P$4:P$400)) -> 0 | L111: =IF(AF111="","",SUMIF('SM ute Lö'!U$4:U$400,AF111,'SM ute Lö'!P$4:P$400)) -> 0 | M111: =IF(AF111="","",SUMIF('SM ute Sö'!U$4:U$401,AF111,'SM ute Sö'!P$4:P$401)) -> 0 | N111: =IF(AF111="","",SUMIF('Roslagen Open'!U$4:U$400,AF111,'Roslagen Open'!P$4:P$400)) -> 0 | O111: =IF(AF111="","",SUMIF('Vaxholm Open'!U$4:U$400,AF111,'Vaxholm Open'!P$4:P$400)) -> 0 | P111: =IF(AF111="","",SUMIF('Dynapac Open'!U$4:U$400,AF111,'Dynapac Open'!P$4:P$400)) -> 0 | Q111: =IF(AF111="","",SUMIF('SmålandsDM ute'!U$4:U$400,AF111,'SmålandsDM ute'!P$4:P$400)) -> 0 | R111: =IF(AF111="","",SUMIF('BlekingeDM ute'!U$4:U$400,AF111,'BlekingeDM ute'!P$4:P$400)) -> 0 | S111: =IF(AF111="","",SUMIF('StockholmsDM ute'!U$4:U$400,AF111,'StockholmsDM ute'!P$4:P$400)) -> 0 | T111: =IF(AF111="","",SUMIF('Åseda Open'!U$4:U$406,AF111,'Åseda Open'!P$4:P$406)) -> 0 | U111: =IF(AF111="","",SUMIF(Höstskon!U$4:U$400,AF111,Höstskon!P$4:P$400)) -> 0 | V111: =IF(AF111="","",SUMIF('Carlskrona Cup'!U$4:U$400,AF111,'Carlskrona Cup'!P$4:P$400)) -> 0 | W111: =IF(AF111="","",SUMIF('Sibbamåla Open'!U$4:U$400,AF111,'Sibbamåla Open'!P$4:P$400)) -> 0 | X111: =IF(AF111="","",SUMIF('Vaxholm Indoor'!U$4:U$400,AF111,'Vaxholm Indoor'!P$4:P$400)) -> 0 | Y111: =IF(AF111="","",SUMIF('SM inne 2022'!U$4:U$400,AF111,'SM inne 2022'!P$4:P$400)) -> 232 | Z111: =IF(AF111="","",SUMIF('SmålandsDM inne'!U$4:U$400,AF111,'SmålandsDM inne'!P$4:P$400)) -> 0 | AA111: =IF(AF111="","",SUMIF('BlekingeDM inne'!U$4:U$400,AF111,'BlekingeDM inne'!P$4:P$400)) -> 0 | AB111: =IF(AF111="","",SUMIF('StockholmsDM inne'!U$4:U$400,AF111,'StockholmsDM inne'!P$4:P$400)) -> 0 | AC111: =IF(AF111="","",SUMIF(Värendspokalen!U$4:U$400,AF111,Värendspokalen!P$4:P$400)) -> 156 | AD111: =IF(AF111="","",SUMIF('Tingsryd Open'!U$4:U$400,AF111,'Tingsryd Open'!P$4:P$400)) -> 0 | AF111: =IF(B111="","",SUMIF(Kastare!B$2:B$2999,B111,Kastare!A$2:A$2999)) -> 1036
A112: 109 | B112: Julius Gneupel | C112: Sibbamåla IF | D112: 373 | F112: 3 | G112: 62.16666667 | I112: =IF(AF112="","",SUMIF('Jämjö Open'!U$4:U$400,AF112,'Jämjö Open'!P$4:P$400)) -> 0 | J112: =IF(AF112="","",SUMIF('Viby Open'!U$4:U$400,AF112,'Viby Open'!P$4:P$400)) -> 0 | K112: =IF(AF112="","",SUMIF('Björkenäs Open'!U$4:U$400,AF112,'Björkenäs Open'!P$4:P$400)) -> 0 | L112: =IF(AF112="","",SUMIF('SM ute Lö'!U$4:U$400,AF112,'SM ute Lö'!P$4:P$400)) -> 98 | M112: =IF(AF112="","",SUMIF('SM ute Sö'!U$4:U$401,AF112,'SM ute Sö'!P$4:P$401)) -> 142 | N112: =IF(AF112="","",SUMIF('Roslagen Open'!U$4:U$400,AF112,'Roslagen Open'!P$4:P$400)) -> 0 | O112: =IF(AF112="","",SUMIF('Vaxholm Open'!U$4:U$400,AF112,'Vaxholm Open'!P$4:P$400)) -> 0 | P112: =IF(AF112="","",SUMIF('Dynapac Open'!U$4:U$400,AF112,'Dynapac Open'!P$4:P$400)) -> 0 | Q112: =IF(AF112="","",SUMIF('SmålandsDM ute'!U$4:U$400,AF112,'SmålandsDM ute'!P$4:P$400)) -> 0 | R112: =IF(AF112="","",SUMIF('BlekingeDM ute'!U$4:U$400,AF112,'BlekingeDM ute'!P$4:P$400)) -> 0 | S112: =IF(AF112="","",SUMIF('StockholmsDM ute'!U$4:U$400,AF112,'StockholmsDM ute'!P$4:P$400)) -> 0 | T112: =IF(AF112="","",SUMIF('Åseda Open'!U$4:U$406,AF112,'Åseda Open'!P$4:P$406)) -> 0 | U112: =IF(AF112="","",SUMIF(Höstskon!U$4:U$400,AF112,Höstskon!P$4:P$400)) -> 0 | V112: =IF(AF112="","",SUMIF('Carlskrona Cup'!U$4:U$400,AF112,'Carlskrona Cup'!P$4:P$400)) -> 133 | W112: =IF(AF112="","",SUMIF('Sibbamåla Open'!U$4:U$400,AF112,'Sibbamåla Open'!P$4:P$400)) -> 0 | X112: =IF(AF112="","",SUMIF('Vaxholm Indoor'!U$4:U$400,AF112,'Vaxholm Indoor'!P$4:P$400)) -> 0 | Y112: =IF(AF112="","",SUMIF('SM inne 2022'!U$4:U$400,AF112,'SM inne 2022'!P$4:P$400)) -> 0 | Z112: =IF(AF112="","",SUMIF('SmålandsDM inne'!U$4:U$400,AF112,'SmålandsDM inne'!P$4:P$400)) -> 0 | AA112: =IF(AF112="","",SUMIF('BlekingeDM inne'!U$4:U$400,AF112,'BlekingeDM inne'!P$4:P$400)) -> 0 | AB112: =IF(AF112="","",SUMIF('StockholmsDM inne'!U$4:U$400,AF112,'StockholmsDM inne'!P$4:P$400)) -> 0 | AC112: =IF(AF112="","",SUMIF(Värendspokalen!U$4:U$400,AF112,Värendspokalen!P$4:P$400)) -> 0 | AD112: =IF(AF112="","",SUMIF('Tingsryd Open'!U$4:U$400,AF112,'Tingsryd Open'!P$4:P$400)) -> 0 | AF112: =IF(B112="","",SUMIF(Kastare!B$2:B$2999,B112,Kastare!A$2:A$2999)) -> 1075
A113: 110 | B113: Christoffer Lindh | C113: Vaxholm Hsk | D113: 365 | F113: 2 | G113: 91.25 | I113: =IF(AF113="","",SUMIF('Jämjö Open'!U$4:U$400,AF113,'Jämjö Open'!P$4:P$400)) -> 0 | J113: =IF(AF113="","",SUMIF('Viby Open'!U$4:U$400,AF113,'Viby Open'!P$4:P$400)) -> 0 | K113: =IF(AF113="","",SUMIF('Björkenäs Open'!U$4:U$400,AF113,'Björkenäs Open'!P$4:P$400)) -> 0 | L113: =IF(AF113="","",SUMIF('SM ute Lö'!U$4:U$400,AF113,'SM ute Lö'!P$4:P$400)) -> 0 | M113: =IF(AF113="","",SUMIF('SM ute Sö'!U$4:U$401,AF113,'SM ute Sö'!P$4:P$401)) -> 0 | N113: =IF(AF113="","",SUMIF('Roslagen Open'!U$4:U$400,AF113,'Roslagen Open'!P$4:P$400)) -> 183 | O113: =IF(AF113="","",SUMIF('Vaxholm Open'!U$4:U$400,AF113,'Vaxholm Open'!P$4:P$400)) -> 0 | P113: =IF(AF113="","",SUMIF('Dynapac Open'!U$4:U$400,AF113,'Dynapac Open'!P$4:P$400)) -> 0 | Q113: =IF(AF113="","",SUMIF('SmålandsDM ute'!U$4:U$400,AF113,'SmålandsDM ute'!P$4:P$400)) -> 0 | R113: =IF(AF113="","",SUMIF('BlekingeDM ute'!U$4:U$400,AF113,'BlekingeDM ute'!P$4:P$400)) -> 0 | S113: =IF(AF113="","",SUMIF('StockholmsDM ute'!U$4:U$400,AF113,'StockholmsDM ute'!P$4:P$400)) -> 182 | T113: =IF(AF113="","",SUMIF('Åseda Open'!U$4:U$406,AF113,'Åseda Open'!P$4:P$406)) -> 0 | U113: =IF(AF113="","",SUMIF(Höstskon!U$4:U$400,AF113,Höstskon!P$4:P$400)) -> 0 | V113: =IF(AF113="","",SUMIF('Carlskrona Cup'!U$4:U$400,AF113,'Carlskrona Cup'!P$4:P$400)) -> 0 | W113: =IF(AF113="","",SUMIF('Sibbamåla Open'!U$4:U$400,AF113,'Sibbamåla Open'!P$4:P$400)) -> 0 | X113: =IF(AF113="","",SUMIF('Vaxholm Indoor'!U$4:U$400,AF113,'Vaxholm Indoor'!P$4:P$400)) -> 0 | Y113: =IF(AF113="","",SUMIF('SM inne 2022'!U$4:U$400,AF113,'SM inne 2022'!P$4:P$400)) -> 0 | Z113: =IF(AF113="","",SUMIF('SmålandsDM inne'!U$4:U$400,AF113,'SmålandsDM inne'!P$4:P$400)) -> 0 | AA113: =IF(AF113="","",SUMIF('BlekingeDM inne'!U$4:U$400,AF113,'BlekingeDM inne'!P$4:P$400)) -> 0 | AB113: =IF(AF113="","",SUMIF('StockholmsDM inne'!U$4:U$400,AF113,'StockholmsDM inne'!P$4:P$400)) -> 0 | AC113: =IF(AF113="","",SUMIF(Värendspokalen!U$4:U$400,AF113,Värendspokalen!P$4:P$400)) -> 0 | AD113: =IF(AF113="","",SUMIF('Tingsryd Open'!U$4:U$400,AF113,'Tingsryd Open'!P$4:P$400)) -> 0 | AF113: =IF(B113="","",SUMIF(Kastare!B$2:B$2999,B113,Kastare!A$2:A$2999)) -> 1186
A114: 111 | B114: Günther Iraschko | C114: Växjö Hsk | D114: 355 | F114: 2 | G114: 88.75 | I114: =IF(AF114="","",SUMIF('Jämjö Open'!U$4:U$400,AF114,'Jämjö Open'!P$4:P$400)) -> 0 | J114: =IF(AF114="","",SUMIF('Viby Open'!U$4:U$400,AF114,'Viby Open'!P$4:P$400)) -> 0 | K114: =IF(AF114="","",SUMIF('Björkenäs Open'!U$4:U$400,AF114,'Björkenäs Open'!P$4:P$400)) -> 0 | L114: =IF(AF114="","",SUMIF('SM ute Lö'!U$4:U$400,AF114,'SM ute Lö'!P$4:P$400)) -> 0 | M114: =IF(AF114="","",SUMIF('SM ute Sö'!U$4:U$401,AF114,'SM ute Sö'!P$4:P$401)) -> 0 | N114: =IF(AF114="","",SUMIF('Roslagen Open'!U$4:U$400,AF114,'Roslagen Open'!P$4:P$400)) -> 0 | O114: =IF(AF114="","",SUMIF('Vaxholm Open'!U$4:U$400,AF114,'Vaxholm Open'!P$4:P$400)) -> 0 | P114: =IF(AF114="","",SUMIF('Dynapac Open'!U$4:U$400,AF114,'Dynapac Open'!P$4:P$400)) -> 0 | Q114: =IF(AF114="","",SUMIF('SmålandsDM ute'!U$4:U$400,AF114,'SmålandsDM ute'!P$4:P$400)) -> 165 | R114: =IF(AF114="","",SUMIF('BlekingeDM ute'!U$4:U$400,AF114,'BlekingeDM ute'!P$4:P$400)) -> 0 | S114: =IF(AF114="","",SUMIF('StockholmsDM ute'!U$4:U$400,AF114,'StockholmsDM ute'!P$4:P$400)) -> 0 | T114: =IF(AF114="","",SUMIF('Åseda Open'!U$4:U$406,AF114,'Åseda Open'!P$4:P$406)) -> 0 | U114: =IF(AF114="","",SUMIF(Höstskon!U$4:U$400,AF114,Höstskon!P$4:P$400)) -> 0 | V114: =IF(AF114="","",SUMIF('Carlskrona Cup'!U$4:U$400,AF114,'Carlskrona Cup'!P$4:P$400)) -> 0 | W114: =IF(AF114="","",SUMIF('Sibbamåla Open'!U$4:U$400,AF114,'Sibbamåla Open'!P$4:P$400)) -> 0 | X114: =IF(AF114="","",SUMIF('Vaxholm Indoor'!U$4:U$400,AF114,'Vaxholm Indoor'!P$4:P$400)) -> 0 | Y114: =IF(AF114="","",SUMIF('SM inne 2022'!U$4:U$400,AF114,'SM inne 2022'!P$4:P$400)) -> 0 | Z114: =IF(AF114="","",SUMIF('SmålandsDM inne'!U$4:U$400,AF114,'SmålandsDM inne'!P$4:P$400)) -> 0 | AA114: =IF(AF114="","",SUMIF('BlekingeDM inne'!U$4:U$400,AF114,'BlekingeDM inne'!P$4:P$400)) -> 0 | AB114: =IF(AF114="","",SUMIF('StockholmsDM inne'!U$4:U$400,AF114,'StockholmsDM inne'!P$4:P$400)) -> 0 | AC114: =IF(AF114="","",SUMIF(Värendspokalen!U$4:U$400,AF114,Värendspokalen!P$4:P$400)) -> 190 | AD114: =IF(AF114="","",SUMIF('Tingsryd Open'!U$4:U$400,AF114,'Tingsryd Open'!P$4:P$400)) -> 0 | AF114: =IF(B114="","",SUMIF(Kastare!B$2:B$2999,B114,Kastare!A$2:A$2999)) -> 1056
A115: 112 | B115: Sabina Rydberg | C115: Vaxholm Hsk | D115: 351 | F115: 3 | G115: 58.5 | I115: =IF(AF115="","",SUMIF('Jämjö Open'!U$4:U$400,AF115,'Jämjö Open'!P$4:P$400)) -> 0 | J115: =IF(AF115="","",SUMIF('Viby Open'!U$4:U$400,AF115,'Viby Open'!P$4:P$400)) -> 0 | K115: =IF(AF115="","",SUMIF('Björkenäs Open'!U$4:U$400,AF115,'Björkenäs Open'!P$4:P$400)) -> 0 | L115: =IF(AF115="","",SUMIF('SM ute Lö'!U$4:U$400,AF115,'SM ute Lö'!P$4:P$400)) -> 0 | M115: =IF(AF115="","",SUMIF('SM ute Sö'!U$4:U$401,AF115,'SM ute Sö'!P$4:P$401)) -> 0 | N115: =IF(AF115="","",SUMIF('Roslagen Open'!U$4:U$400,AF115,'Roslagen Open'!P$4:P$400)) -> 129 | O115: =IF(AF115="","",SUMIF('Vaxholm Open'!U$4:U$400,AF115,'Vaxholm Open'!P$4:P$400)) -> 110 | P115: =IF(AF115="","",SUMIF('Dynapac Open'!U$4:U$400,AF115,'Dynapac Open'!P$4:P$400)) -> 0 | Q115: =IF(AF115="","",SUMIF('SmålandsDM ute'!U$4:U$400,AF115,'SmålandsDM ute'!P$4:P$400)) -> 0 | R115: =IF(AF115="","",SUMIF('BlekingeDM ute'!U$4:U$400,AF115,'BlekingeDM ute'!P$4:P$400)) -> 0 | S115: =IF(AF115="","",SUMIF('StockholmsDM ute'!U$4:U$400,AF115,'StockholmsDM ute'!P$4:P$400)) -> 112 | T115: =IF(AF115="","",SUMIF('Åseda Open'!U$4:U$406,AF115,'Åseda Open'!P$4:P$406)) -> 0 | U115: =IF(AF115="","",SUMIF(Höstskon!U$4:U$400,AF115,Höstskon!P$4:P$400)) -> 0 | V115: =IF(AF115="","",SUMIF('Carlskrona Cup'!U$4:U$400,AF115,'Carlskrona Cup'!P$4:P$400)) -> 0 | W115: =IF(AF115="","",SUMIF('Sibbamåla Open'!U$4:U$400,AF115,'Sibbamåla Open'!P$4:P$400)) -> 0 | X115: =IF(AF115="","",SUMIF('Vaxholm Indoor'!U$4:U$400,AF115,'Vaxholm Indoor'!P$4:P$400)) -> 0 | Y115: =IF(AF115="","",SUMIF('SM inne 2022'!U$4:U$400,AF115,'SM inne 2022'!P$4:P$400)) -> 0 | Z115: =IF(AF115="","",SUMIF('SmålandsDM inne'!U$4:U$400,AF115,'SmålandsDM inne'!P$4:P$400)) -> 0 | AA115: =IF(AF115="","",SUMIF('BlekingeDM inne'!U$4:U$400,AF115,'BlekingeDM inne'!P$4:P$400)) -> 0 | AB115: =IF(AF115="","",SUMIF('StockholmsDM inne'!U$4:U$400,AF115,'StockholmsDM inne'!P$4:P$400)) -> 0 | AC115: =IF(AF115="","",SUMIF(Värendspokalen!U$4:U$400,AF115,Värendspokalen!P$4:P$400)) -> 0 | AD115: =IF(AF115="","",SUMIF('Tingsryd Open'!U$4:U$400,AF115,'Tingsryd Open'!P$4:P$400)) -> 0 | AF115: =IF(B115="","",SUMIF(Kastare!B$2:B$2999,B115,Kastare!A$2:A$2999)) -> 1189
A116: 113 | B116: Jan Petersson | C116: Lanternan B.c | D116: 346 | F116: 2 | G116: 86.5 | I116: =IF(AF116="","",SUMIF('Jämjö Open'!U$4:U$400,AF116,'Jämjö Open'!P$4:P$400)) -> 0 | J116: =IF(AF116="","",SUMIF('Viby Open'!U$4:U$400,AF116,'Viby Open'!P$4:P$400)) -> 0 | K116: =IF(AF116="","",SUMIF('Björkenäs Open'!U$4:U$400,AF116,'Björkenäs Open'!P$4:P$400)) -> 0 | L116: =IF(AF116="","",SUMIF('SM ute Lö'!U$4:U$400,AF116,'SM ute Lö'!P$4:P$400)) -> 155 | M116: =IF(AF116="","",SUMIF('SM ute Sö'!U$4:U$401,AF116,'SM ute Sö'!P$4:P$401)) -> 191 | N116: =IF(AF116="","",SUMIF('Roslagen Open'!U$4:U$400,AF116,'Roslagen Open'!P$4:P$400)) -> 0 | O116: =IF(AF116="","",SUMIF('Vaxholm Open'!U$4:U$400,AF116,'Vaxholm Open'!P$4:P$400)) -> 0 | P116: =IF(AF116="","",SUMIF('Dynapac Open'!U$4:U$400,AF116,'Dynapac Open'!P$4:P$400)) -> 0 | Q116: =IF(AF116="","",SUMIF('SmålandsDM ute'!U$4:U$400,AF116,'SmålandsDM ute'!P$4:P$400)) -> 0 | R116: =IF(AF116="","",SUMIF('BlekingeDM ute'!U$4:U$400,AF116,'BlekingeDM ute'!P$4:P$400)) -> 0 | S116: =IF(AF116="","",SUMIF('StockholmsDM ute'!U$4:U$400,AF116,'StockholmsDM ute'!P$4:P$400)) -> 0 | T116: =IF(AF116="","",SUMIF('Åseda Open'!U$4:U$406,AF116,'Åseda Open'!P$4:P$406)) -> 0 | U116: =IF(AF116="","",SUMIF(Höstskon!U$4:U$400,AF116,Höstskon!P$4:P$400)) -> 0 | V116: =IF(AF116="","",SUMIF('Carlskrona Cup'!U$4:U$400,AF116,'Carlskrona Cup'!P$4:P$400)) -> 0 | W116: =IF(AF116="","",SUMIF('Sibbamåla Open'!U$4:U$400,AF116,'Sibbamåla Open'!P$4:P$400)) -> 0 | X116: =IF(AF116="","",SUMIF('Vaxholm Indoor'!U$4:U$400,AF116,'Vaxholm Indoor'!P$4:P$400)) -> 0 | Y116: =IF(AF116="","",SUMIF('SM inne 2022'!U$4:U$400,AF116,'SM inne 2022'!P$4:P$400)) -> 0 | Z116: =IF(AF116="","",SUMIF('SmålandsDM inne'!U$4:U$400,AF116,'SmålandsDM inne'!P$4:P$400)) -> 0 | AA116: =IF(AF116="","",SUMIF('BlekingeDM inne'!U$4:U$400,AF116,'BlekingeDM inne'!P$4:P$400)) -> 0 | AB116: =IF(AF116="","",SUMIF('StockholmsDM inne'!U$4:U$400,AF116,'StockholmsDM inne'!P$4:P$400)) -> 0 | AC116: =IF(AF116="","",SUMIF(Värendspokalen!U$4:U$400,AF116,Värendspokalen!P$4:P$400)) -> 0 | AD116: =IF(AF116="","",SUMIF('Tingsryd Open'!U$4:U$400,AF116,'Tingsryd Open'!P$4:P$400)) -> 0 | AF116: =IF(B116="","",SUMIF(Kastare!B$2:B$2999,B116,Kastare!A$2:A$2999)) -> 1063
A117: 114 | B117: Emil Rehn | C117: Korpen Åseda | D117: 340 | F117: 2 | G117: 85 | I117: =IF(AF117="","",SUMIF('Jämjö Open'!U$4:U$400,AF117,'Jämjö Open'!P$4:P$400)) -> 0 | J117: =IF(AF117="","",SUMIF('Viby Open'!U$4:U$400,AF117,'Viby Open'!P$4:P$400)) -> 0 | K117: =IF(AF117="","",SUMIF('Björkenäs Open'!U$4:U$400,AF117,'Björkenäs Open'!P$4:P$400)) -> 0 | L117: =IF(AF117="","",SUMIF('SM ute Lö'!U$4:U$400,AF117,'SM ute Lö'!P$4:P$400)) -> 0 | M117: =IF(AF117="","",SUMIF('SM ute Sö'!U$4:U$401,AF117,'SM ute Sö'!P$4:P$401)) -> 0 | N117: =IF(AF117="","",SUMIF('Roslagen Open'!U$4:U$400,AF117,'Roslagen Open'!P$4:P$400)) -> 0 | O117: =IF(AF117="","",SUMIF('Vaxholm Open'!U$4:U$400,AF117,'Vaxholm Open'!P$4:P$400)) -> 0 | P117: =IF(AF117="","",SUMIF('Dynapac Open'!U$4:U$400,AF117,'Dynapac Open'!P$4:P$400)) -> 0 | Q117: =IF(AF117="","",SUMIF('SmålandsDM ute'!U$4:U$400,AF117,'SmålandsDM ute'!P$4:P$400)) -> 0 | R117: =IF(AF117="","",SUMIF('BlekingeDM ute'!U$4:U$400,AF117,'BlekingeDM ute'!P$4:P$400)) -> 0 | S117: =IF(AF117="","",SUMIF('StockholmsDM ute'!U$4:U$400,AF117,'StockholmsDM ute'!P$4:P$400)) -> 0 | T117: =IF(AF117="","",SUMIF('Åseda Open'!U$4:U$406,AF117,'Åseda Open'!P$4:P$406)) -> 143 | U117: =IF(AF117="","",SUMIF(Höstskon!U$4:U$400,AF117,Höstskon!P$4:P$400)) -> 197 | V117: =IF(AF117="","",SUMIF('Carlskrona Cup'!U$4:U$400,AF117,'Carlskrona Cup'!P$4:P$400)) -> 0 | W117: =IF(AF117="","",SUMIF('Sibbamåla Open'!U$4:U$400,AF117,'Sibbamåla Open'!P$4:P$400)) -> 0 | X117: =IF(AF117="","",SUMIF('Vaxholm Indoor'!U$4:U$400,AF117,'Vaxholm Indoor'!P$4:P$400)) -> 0 | Y117: =IF(AF117="","",SUMIF('SM inne 2022'!U$4:U$400,AF117,'SM inne 2022'!P$4:P$400)) -> 0 | Z117: =IF(AF117="","",SUMIF('SmålandsDM inne'!U$4:U$400,AF117,'SmålandsDM inne'!P$4:P$400)) -> 0 | AA117: =IF(AF117="","",SUMIF('BlekingeDM inne'!U$4:U$400,AF117,'BlekingeDM inne'!P$4:P$400)) -> 0 | AB117: =IF(AF117="","",SUMIF('StockholmsDM inne'!U$4:U$400,AF117,'StockholmsDM inne'!P$4:P$400)) -> 0 | AC117: =IF(AF117="","",SUMIF(Värendspokalen!U$4:U$400,AF117,Värendspokalen!P$4:P$400)) -> 0 | AD117: =IF(AF117="","",SUMIF('Tingsryd Open'!U$4:U$400,AF117,'Tingsryd Open'!P$4:P$400)) -> 0 | AF117: =IF(B117="","",SUMIF(Kastare!B$2:B$2999,B117,Kastare!A$2:A$2999)) -> 1082
A118: 115 | B118: Erik Isaksson | C118: Korpen Åseda | D118: 338 | F118: 2 | G118: 84.5 | I118: =IF(AF118="","",SUMIF('Jämjö Open'!U$4:U$400,AF118,'Jämjö Open'!P$4:P$400)) -> 0 | J118: =IF(AF118="","",SUMIF('Viby Open'!U$4:U$400,AF118,'Viby Open'!P$4:P$400)) -> 0 | K118: =IF(AF118="","",SUMIF('Björkenäs Open'!U$4:U$400,AF118,'Björkenäs Open'!P$4:P$400)) -> 0 | L118: =IF(AF118="","",SUMIF('SM ute Lö'!U$4:U$400,AF118,'SM ute Lö'!P$4:P$400)) -> 0 | M118: =IF(AF118="","",SUMIF('SM ute Sö'!U$4:U$401,AF118,'SM ute Sö'!P$4:P$401)) -> 0 | N118: =IF(AF118="","",SUMIF('Roslagen Open'!U$4:U$400,AF118,'Roslagen Open'!P$4:P$400)) -> 0 | O118: =IF(AF118="","",SUMIF('Vaxholm Open'!U$4:U$400,AF118,'Vaxholm Open'!P$4:P$400)) -> 0 | P118: =IF(AF118="","",SUMIF('Dynapac Open'!U$4:U$400,AF118,'Dynapac Open'!P$4:P$400)) -> 0 | Q118: =IF(AF118="","",SUMIF('SmålandsDM ute'!U$4:U$400,AF118,'SmålandsDM ute'!P$4:P$400)) -> 0 | R118: =IF(AF118="","",SUMIF('BlekingeDM ute'!U$4:U$400,AF118,'BlekingeDM ute'!P$4:P$400)) -> 0 | S118: =IF(AF118="","",SUMIF('StockholmsDM ute'!U$4:U$400,AF118,'StockholmsDM ute'!P$4:P$400)) -> 0 | T118: =IF(AF118="","",SUMIF('Åseda Open'!U$4:U$406,AF118,'Åseda Open'!P$4:P$406)) -> 114 | U118: =IF(AF118="","",SUMIF(Höstskon!U$4:U$400,AF118,Höstskon!P$4:P$400)) -> 224 | V118: =IF(AF118="","",SUMIF('Carlskrona Cup'!U$4:U$400,AF118,'Carlskrona Cup'!P$4:P$400)) -> 0 | W118: =IF(AF118="","",SUMIF('Sibbamåla Open'!U$4:U$400,AF118,'Sibbamåla Open'!P$4:P$400)) -> 0 | X118: =IF(AF118="","",SUMIF('Vaxholm Indoor'!U$4:U$400,AF118,'Vaxholm Indoor'!P$4:P$400)) -> 0 | Y118: =IF(AF118="","",SUMIF('SM inne 2022'!U$4:U$400,AF118,'SM inne 2022'!P$4:P$400)) -> 0 | Z118: =IF(AF118="","",SUMIF('SmålandsDM inne'!U$4:U$400,AF118,'SmålandsDM inne'!P$4:P$400)) -> 0 | AA118: =IF(AF118="","",SUMIF('BlekingeDM inne'!U$4:U$400,AF118,'BlekingeDM inne'!P$4:P$400)) -> 0 | AB118: =IF(AF118="","",SUMIF('StockholmsDM inne'!U$4:U$400,AF118,'StockholmsDM inne'!P$4:P$400)) -> 0 | AC118: =IF(AF118="","",SUMIF(Värendspokalen!U$4:U$400,AF118,Värendspokalen!P$4:P$400)) -> 0 | AD118: =IF(AF118="","",SUMIF('Tingsryd Open'!U$4:U$400,AF118,'Tingsryd Open'!P$4:P$400)) -> 0 | AF118: =IF(B118="","",SUMIF(Kastare!B$2:B$2999,B118,Kastare!A$2:A$2999)) -> 1131
A119: 116 | B119: Thomas Marklund | C119: Värends Hsk | D119: 327 | F119: 2 | G119: 81.75 | I119: =IF(AF119="","",SUMIF('Jämjö Open'!U$4:U$400,AF119,'Jämjö Open'!P$4:P$400)) -> 0 | J119: =IF(AF119="","",SUMIF('Viby Open'!U$4:U$400,AF119,'Viby Open'!P$4:P$400)) -> 0 | K119: =IF(AF119="","",SUMIF('Björkenäs Open'!U$4:U$400,AF119,'Björkenäs Open'!P$4:P$400)) -> 0 | L119: =IF(AF119="","",SUMIF('SM ute Lö'!U$4:U$400,AF119,'SM ute Lö'!P$4:P$400)) -> 0 | M119: =IF(AF119="","",SUMIF('SM ute Sö'!U$4:U$401,AF119,'SM ute Sö'!P$4:P$401)) -> 0 | N119: =IF(AF119="","",SUMIF('Roslagen Open'!U$4:U$400,AF119,'Roslagen Open'!P$4:P$400)) -> 0 | O119: =IF(AF119="","",SUMIF('Vaxholm Open'!U$4:U$400,AF119,'Vaxholm Open'!P$4:P$400)) -> 0 | P119: =IF(AF119="","",SUMIF('Dynapac Open'!U$4:U$400,AF119,'Dynapac Open'!P$4:P$400)) -> 0 | Q119: =IF(AF119="","",SUMIF('SmålandsDM ute'!U$4:U$400,AF119,'SmålandsDM ute'!P$4:P$400)) -> 0 | R119: =IF(AF119="","",SUMIF('BlekingeDM ute'!U$4:U$400,AF119,'BlekingeDM ute'!P$4:P$400)) -> 0 | S119: =IF(AF119="","",SUMIF('StockholmsDM ute'!U$4:U$400,AF119,'StockholmsDM ute'!P$4:P$400)) -> 0 | T119: =IF(AF119="","",SUMIF('Åseda Open'!U$4:U$406,AF119,'Åseda Open'!P$4:P$406)) -> 0 | U119: =IF(AF119="","",SUMIF(Höstskon!U$4:U$400,AF119,Höstskon!P$4:P$400)) -> 0 | V119: =IF(AF119="","",SUMIF('Carlskrona Cup'!U$4:U$400,AF119,'Carlskrona Cup'!P$4:P$400)) -> 0 | W119: =IF(AF119="","",SUMIF('Sibbamåla Open'!U$4:U$400,AF119,'Sibbamåla Open'!P$4:P$400)) -> 139 | X119: =IF(AF119="","",SUMIF('Vaxholm Indoor'!U$4:U$400,AF119,'Vaxholm Indoor'!P$4:P$400)) -> 0 | Y119: =IF(AF119="","",SUMIF('SM inne 2022'!U$4:U$400,AF119,'SM inne 2022'!P$4:P$400)) -> 188 | Z119: =IF(AF119="","",SUMIF('SmålandsDM inne'!U$4:U$400,AF119,'SmålandsDM inne'!P$4:P$400)) -> 0 | AA119: =IF(AF119="","",SUMIF('BlekingeDM inne'!U$4:U$400,AF119,'BlekingeDM inne'!P$4:P$400)) -> 0 | AB119: =IF(AF119="","",SUMIF('StockholmsDM inne'!U$4:U$400,AF119,'StockholmsDM inne'!P$4:P$400)) -> 0 | AC119: =IF(AF119="","",SUMIF(Värendspokalen!U$4:U$400,AF119,Värendspokalen!P$4:P$400)) -> 0 | AD119: =IF(AF119="","",SUMIF('Tingsryd Open'!U$4:U$400,AF119,'Tingsryd Open'!P$4:P$400)) -> 0 | AF119: =IF(B119="","",SUMIF(Kastare!B$2:B$2999,B119,Kastare!A$2:A$2999)) -> 1081
A120: 117 | B120: Armin Sisic | C120: Värends Hsk | D120: 326 | F120: 1 | G120: 163 | I120: =IF(AF120="","",SUMIF('Jämjö Open'!U$4:U$400,AF120,'Jämjö Open'!P$4:P$400)) -> 0 | J120: =IF(AF120="","",SUMIF('Viby Open'!U$4:U$400,AF120,'Viby Open'!P$4:P$400)) -> 0 | K120: =IF(AF120="","",SUMIF('Björkenäs Open'!U$4:U$400,AF120,'Björkenäs Open'!P$4:P$400)) -> 0 | L120: =IF(AF120="","",SUMIF('SM ute Lö'!U$4:U$400,AF120,'SM ute Lö'!P$4:P$400)) -> 0 | M120: =IF(AF120="","",SUMIF('SM ute Sö'!U$4:U$401,AF120,'SM ute Sö'!P$4:P$401)) -> 0 | N120: =IF(AF120="","",SUMIF('Roslagen Open'!U$4:U$400,AF120,'Roslagen Open'!P$4:P$400)) -> 0 | O120: =IF(AF120="","",SUMIF('Vaxholm Open'!U$4:U$400,AF120,'Vaxholm Open'!P$4:P$400)) -> 0 | P120: =IF(AF120="","",SUMIF('Dynapac Open'!U$4:U$400,AF120,'Dynapac Open'!P$4:P$400)) -> 0 | Q120: =IF(AF120="","",SUMIF('SmålandsDM ute'!U$4:U$400,AF120,'SmålandsDM ute'!P$4:P$400)) -> 0 | R120: =IF(AF120="","",SUMIF('BlekingeDM ute'!U$4:U$400,AF120,'BlekingeDM ute'!P$4:P$400)) -> 0 | S120: =IF(AF120="","",SUMIF('StockholmsDM ute'!U$4:U$400,AF120,'StockholmsDM ute'!P$4:P$400)) -> 0 | T120: =IF(AF120="","",SUMIF('Åseda Open'!U$4:U$406,AF120,'Åseda Open'!P$4:P$406)) -> 0 | U120: =IF(AF120="","",SUMIF(Höstskon!U$4:U$400,AF120,Höstskon!P$4:P$400)) -> 0 | V120: =IF(AF120="","",SUMIF('Carlskrona Cup'!U$4:U$400,AF120,'Carlskrona Cup'!P$4:P$400)) -> 0 | W120: =IF(AF120="","",SUMIF('Sibbamåla Open'!U$4:U$400,AF120,'Sibbamåla Open'!P$4:P$400)) -> 0 | X120: =IF(AF120="","",SUMIF('Vaxholm Indoor'!U$4:U$400,AF120,'Vaxholm Indoor'!P$4:P$400)) -> 0 | Y120: =IF(AF120="","",SUMIF('SM inne 2022'!U$4:U$400,AF120,'SM inne 2022'!P$4:P$400)) -> 0 | Z120: =IF(AF120="","",SUMIF('SmålandsDM inne'!U$4:U$400,AF120,'SmålandsDM inne'!P$4:P$400)) -> 0 | AA120: =IF(AF120="","",SUMIF('BlekingeDM inne'!U$4:U$400,AF120,'BlekingeDM inne'!P$4:P$400)) -> 0 | AB120: =IF(AF120="","",SUMIF('StockholmsDM inne'!U$4:U$400,AF120,'StockholmsDM inne'!P$4:P$400)) -> 0 | AC120: =IF(AF120="","",SUMIF(Värendspokalen!U$4:U$400,AF120,Värendspokalen!P$4:P$400)) -> 326 | AD120: =IF(AF120="","",SUMIF('Tingsryd Open'!U$4:U$400,AF120,'Tingsryd Open'!P$4:P$400)) -> 0 | AF120: =IF(B120="","",SUMIF(Kastare!B$2:B$2999,B120,Kastare!A$2:A$2999)) -> 1226
A121: 118 | B121: Anton Rågfeldt | C121: Balders HSK | D121: 318 | F121: 2 | G121: 79.5 | I121: =IF(AF121="","",SUMIF('Jämjö Open'!U$4:U$400,AF121,'Jämjö Open'!P$4:P$400)) -> 0 | J121: =IF(AF121="","",SUMIF('Viby Open'!U$4:U$400,AF121,'Viby Open'!P$4:P$400)) -> 0 | K121: =IF(AF121="","",SUMIF('Björkenäs Open'!U$4:U$400,AF121,'Björkenäs Open'!P$4:P$400)) -> 0 | L121: =IF(AF121="","",SUMIF('SM ute Lö'!U$4:U$400,AF121,'SM ute Lö'!P$4:P$400)) -> 0 | M121: =IF(AF121="","",SUMIF('SM ute Sö'!U$4:U$401,AF121,'SM ute Sö'!P$4:P$401)) -> 0 | N121: =IF(AF121="","",SUMIF('Roslagen Open'!U$4:U$400,AF121,'Roslagen Open'!P$4:P$400)) -> 0 | O121: =IF(AF121="","",SUMIF('Vaxholm Open'!U$4:U$400,AF121,'Vaxholm Open'!P$4:P$400)) -> 0 | P121: =IF(AF121="","",SUMIF('Dynapac Open'!U$4:U$400,AF121,'Dynapac Open'!P$4:P$400)) -> 0 | Q121: =IF(AF121="","",SUMIF('SmålandsDM ute'!U$4:U$400,AF121,'SmålandsDM ute'!P$4:P$400)) -> 0 | R121: =IF(AF121="","",SUMIF('BlekingeDM ute'!U$4:U$400,AF121,'BlekingeDM ute'!P$4:P$400)) -> 0 | S121: =IF(AF121="","",SUMIF('StockholmsDM ute'!U$4:U$400,AF121,'StockholmsDM ute'!P$4:P$400)) -> 0 | T121: =IF(AF121="","",SUMIF('Åseda Open'!U$4:U$406,AF121,'Åseda Open'!P$4:P$406)) -> 0 | U121: =IF(AF121="","",SUMIF(Höstskon!U$4:U$400,AF121,Höstskon!P$4:P$400)) -> 0 | V121: =IF(AF121="","",SUMIF('Carlskrona Cup'!U$4:U$400,AF121,'Carlskrona Cup'!P$4:P$400)) -> 0 | W121: =IF(AF121="","",SUMIF('Sibbamåla Open'!U$4:U$400,AF121,'Sibbamåla Open'!P$4:P$400)) -> 0 | X121: =IF(AF121="","",SUMIF('Vaxholm Indoor'!U$4:U$400,AF121,'Vaxholm Indoor'!P$4:P$400)) -> 135 | Y121: =IF(AF121="","",SUMIF('SM inne 2022'!U$4:U$400,AF121,'SM inne 2022'!P$4:P$400)) -> 0 | Z121: =IF(AF121="","",SUMIF('SmålandsDM inne'!U$4:U$400,AF121,'SmålandsDM inne'!P$4:P$400)) -> 0 | AA121: =IF(AF121="","",SUMIF('BlekingeDM inne'!U$4:U$400,AF121,'BlekingeDM inne'!P$4:P$400)) -> 0 | AB121: =IF(AF121="","",SUMIF('StockholmsDM inne'!U$4:U$400,AF121,'StockholmsDM inne'!P$4:P$400)) -> 183 | AC121: =IF(AF121="","",SUMIF(Värendspokalen!U$4:U$400,AF121,Värendspokalen!P$4:P$400)) -> 0 | AD121: =IF(AF121="","",SUMIF('Tingsryd Open'!U$4:U$400,AF121,'Tingsryd Open'!P$4:P$400)) -> 0 | AF121: =IF(B121="","",SUMIF(Kastare!B$2:B$2999,B121,Kastare!A$2:A$2999)) -> 1233
A122: 119 | B122: Björn Belfrage | C122: Vaxholm | D122: 304 | F122: 2 | G122: 76 | I122: =IF(AF122="","",SUMIF('Jämjö Open'!U$4:U$400,AF122,'Jämjö Open'!P$4:P$400)) -> 0 | J122: =IF(AF122="","",SUMIF('Viby Open'!U$4:U$400,AF122,'Viby Open'!P$4:P$400)) -> 0 | K122: =IF(AF122="","",SUMIF('Björkenäs Open'!U$4:U$400,AF122,'Björkenäs Open'!P$4:P$400)) -> 0 | L122: =IF(AF122="","",SUMIF('SM ute Lö'!U$4:U$400,AF122,'SM ute Lö'!P$4:P$400)) -> 0 | M122: =IF(AF122="","",SUMIF('SM ute Sö'!U$4:U$401,AF122,'SM ute Sö'!P$4:P$401)) -> 0 | N122: =IF(AF122="","",SUMIF('Roslagen Open'!U$4:U$400,AF122,'Roslagen Open'!P$4:P$400)) -> 0 | O122: =IF(AF122="","",SUMIF('Vaxholm Open'!U$4:U$400,AF122,'Vaxholm Open'!P$4:P$400)) -> 0 | P122: =IF(AF122="","",SUMIF('Dynapac Open'!U$4:U$400,AF122,'Dynapac Open'!P$4:P$400)) -> 0 | Q122: =IF(AF122="","",SUMIF('SmålandsDM ute'!U$4:U$400,AF122,'SmålandsDM ute'!P$4:P$400)) -> 0 | R122: =IF(AF122="","",SUMIF('BlekingeDM ute'!U$4:U$400,AF122,'BlekingeDM ute'!P$4:P$400)) -> 0 | S122: =IF(AF122="","",SUMIF('StockholmsDM ute'!U$4:U$400,AF122,'StockholmsDM ute'!P$4:P$400)) -> 0 | T122: =IF(AF122="","",SUMIF('Åseda Open'!U$4:U$406,AF122,'Åseda Open'!P$4:P$406)) -> 0 | U122: =IF(AF122="","",SUMIF(Höstskon!U$4:U$400,AF122,Höstskon!P$4:P$400)) -> 0 | V122: =IF(AF122="","",SUMIF('Carlskrona Cup'!U$4:U$400,AF122,'Carlskrona Cup'!P$4:P$400)) -> 0 | W122: =IF(AF122="","",SUMIF('Sibbamåla Open'!U$4:U$400,AF122,'Sibbamåla Open'!P$4:P$400)) -> 0 | X122: =IF(AF122="","",SUMIF('Vaxholm Indoor'!U$4:U$400,AF122,'Vaxholm Indoor'!P$4:P$400)) -> 189 | Y122: =IF(AF122="","",SUMIF('SM inne 2022'!U$4:U$400,AF122,'SM inne 2022'!P$4:P$400)) -> 0 | Z122: =IF(AF122="","",SUMIF('SmålandsDM inne'!U$4:U$400,AF122,'SmålandsDM inne'!P$4:P$400)) -> 0 | AA122: =IF(AF122="","",SUMIF('BlekingeDM inne'!U$4:U$400,AF122,'BlekingeDM inne'!P$4:P$400)) -> 0 | AB122: =IF(AF122="","",SUMIF('StockholmsDM inne'!U$4:U$400,AF122,'StockholmsDM inne'!P$4:P$400)) -> 115 | AC122: =IF(AF122="","",SUMIF(Värendspokalen!U$4:U$400,AF122,Värendspokalen!P$4:P$400)) -> 0 | AD122: =IF(AF122="","",SUMIF('Tingsryd Open'!U$4:U$400,AF122,'Tingsryd Open'!P$4:P$400)) -> 0 | AF122: =IF(B122="","",SUMIF(Kastare!B$2:B$2999,B122,Kastare!A$2:A$2999)) -> 1232
A123: 120 | B123: Torbjörn Svennberg | C123: Balders HSK | D123: 301 | F123: 2 | G123: 75.25 | I123: =IF(AF123="","",SUMIF('Jämjö Open'!U$4:U$400,AF123,'Jämjö Open'!P$4:P$400)) -> 0 | J123: =IF(AF123="","",SUMIF('Viby Open'!U$4:U$400,AF123,'Viby Open'!P$4:P$400)) -> 0 | K123: =IF(AF123="","",SUMIF('Björkenäs Open'!U$4:U$400,AF123,'Björkenäs Open'!P$4:P$400)) -> 0 | L123: =IF(AF123="","",SUMIF('SM ute Lö'!U$4:U$400,AF123,'SM ute Lö'!P$4:P$400)) -> 0 | M123: =IF(AF123="","",SUMIF('SM ute Sö'!U$4:U$401,AF123,'SM ute Sö'!P$4:P$401)) -> 0 | N123: =IF(AF123="","",SUMIF('Roslagen Open'!U$4:U$400,AF123,'Roslagen Open'!P$4:P$400)) -> 159 | O123: =IF(AF123="","",SUMIF('Vaxholm Open'!U$4:U$400,AF123,'Vaxholm Open'!P$4:P$400)) -> 0 | P123: =IF(AF123="","",SUMIF('Dynapac Open'!U$4:U$400,AF123,'Dynapac Open'!P$4:P$400)) -> 0 | Q123: =IF(AF123="","",SUMIF('SmålandsDM ute'!U$4:U$400,AF123,'SmålandsDM ute'!P$4:P$400)) -> 0 | R123: =IF(AF123="","",SUMIF('BlekingeDM ute'!U$4:U$400,AF123,'BlekingeDM ute'!P$4:P$400)) -> 0 | S123: =IF(AF123="","",SUMIF('StockholmsDM ute'!U$4:U$400,AF123,'StockholmsDM ute'!P$4:P$400)) -> 142 | T123: =IF(AF123="","",SUMIF('Åseda Open'!U$4:U$406,AF123,'Åseda Open'!P$4:P$406)) -> 0 | U123: =IF(AF123="","",SUMIF(Höstskon!U$4:U$400,AF123,Höstskon!P$4:P$400)) -> 0 | V123: =IF(AF123="","",SUMIF('Carlskrona Cup'!U$4:U$400,AF123,'Carlskrona Cup'!P$4:P$400)) -> 0 | W123: =IF(AF123="","",SUMIF('Sibbamåla Open'!U$4:U$400,AF123,'Sibbamåla Open'!P$4:P$400)) -> 0 | X123: =IF(AF123="","",SUMIF('Vaxholm Indoor'!U$4:U$400,AF123,'Vaxholm Indoor'!P$4:P$400)) -> 0 | Y123: =IF(AF123="","",SUMIF('SM inne 2022'!U$4:U$400,AF123,'SM inne 2022'!P$4:P$400)) -> 0 | Z123: =IF(AF123="","",SUMIF('SmålandsDM inne'!U$4:U$400,AF123,'SmålandsDM inne'!P$4:P$400)) -> 0 | AA123: =IF(AF123="","",SUMIF('BlekingeDM inne'!U$4:U$400,AF123,'BlekingeDM inne'!P$4:P$400)) -> 0 | AB123: =IF(AF123="","",SUMIF('StockholmsDM inne'!U$4:U$400,AF123,'StockholmsDM inne'!P$4:P$400)) -> 0 | AC123: =IF(AF123="","",SUMIF(Värendspokalen!U$4:U$400,AF123,Värendspokalen!P$4:P$400)) -> 0 | AD123: =IF(AF123="","",SUMIF('Tingsryd Open'!U$4:U$400,AF123,'Tingsryd Open'!P$4:P$400)) -> 0 | AF123: =IF(B123="","",SUMIF(Kastare!B$2:B$2999,B123,Kastare!A$2:A$2999)) -> 1188
A124: 121 | B124: Nick Gibbs | C124: Dynapac Hsc | D124: 298 | F124: 2 | G124: 74.5 | I124: =IF(AF124="","",SUMIF('Jämjö Open'!U$4:U$400,AF124,'Jämjö Open'!P$4:P$400)) -> 0 | J124: =IF(AF124="","",SUMIF('Viby Open'!U$4:U$400,AF124,'Viby Open'!P$4:P$400)) -> 0 | K124: =IF(AF124="","",SUMIF('Björkenäs Open'!U$4:U$400,AF124,'Björkenäs Open'!P$4:P$400)) -> 0 | L124: =IF(AF124="","",SUMIF('SM ute Lö'!U$4:U$400,AF124,'SM ute Lö'!P$4:P$400)) -> 0 | M124: =IF(AF124="","",SUMIF('SM ute Sö'!U$4:U$401,AF124,'SM ute Sö'!P$4:P$401)) -> 0 | N124: =IF(AF124="","",SUMIF('Roslagen Open'!U$4:U$400,AF124,'Roslagen Open'!P$4:P$400)) -> 0 | O124: =IF(AF124="","",SUMIF('Vaxholm Open'!U$4:U$400,AF124,'Vaxholm Open'!P$4:P$400)) -> 0 | P124: =IF(AF124="","",SUMIF('Dynapac Open'!U$4:U$400,AF124,'Dynapac Open'!P$4:P$400)) -> 0 | Q124: =IF(AF124="","",SUMIF('SmålandsDM ute'!U$4:U$400,AF124,'SmålandsDM ute'!P$4:P$400)) -> 0 | R124: =IF(AF124="","",SUMIF('BlekingeDM ute'!U$4:U$400,AF124,'BlekingeDM ute'!P$4:P$400)) -> 0 | S124: =IF(AF124="","",SUMIF('StockholmsDM ute'!U$4:U$400,AF124,'StockholmsDM ute'!P$4:P$400)) -> 0 | T124: =IF(AF124="","",SUMIF('Åseda Open'!U$4:U$406,AF124,'Åseda Open'!P$4:P$406)) -> 0 | U124: =IF(AF124="","",SUMIF(Höstskon!U$4:U$400,AF124,Höstskon!P$4:P$400)) -> 156 | V124: =IF(AF124="","",SUMIF('Carlskrona Cup'!U$4:U$400,AF124,'Carlskrona Cup'!P$4:P$400)) -> 142 | W124: =IF(AF124="","",SUMIF('Sibbamåla Open'!U$4:U$400,AF124,'Sibbamåla Open'!P$4:P$400)) -> 0 | X124: =IF(AF124="","",SUMIF('Vaxholm Indoor'!U$4:U$400,AF124,'Vaxholm Indoor'!P$4:P$400)) -> 0 | Y124: =IF(AF124="","",SUMIF('SM inne 2022'!U$4:U$400,AF124,'SM inne 2022'!P$4:P$400)) -> 0 | Z124: =IF(AF124="","",SUMIF('SmålandsDM inne'!U$4:U$400,AF124,'SmålandsDM inne'!P$4:P$400)) -> 0 | AA124: =IF(AF124="","",SUMIF('BlekingeDM inne'!U$4:U$400,AF124,'BlekingeDM inne'!P$4:P$400)) -> 0 | AB124: =IF(AF124="","",SUMIF('StockholmsDM inne'!U$4:U$400,AF124,'StockholmsDM inne'!P$4:P$400)) -> 0 | AC124: =IF(AF124="","",SUMIF(Värendspokalen!U$4:U$400,AF124,Värendspokalen!P$4:P$400)) -> 0 | AD124: =IF(AF124="","",SUMIF('Tingsryd Open'!U$4:U$400,AF124,'Tingsryd Open'!P$4:P$400)) -> 0 | AF124: =IF(B124="","",SUMIF(Kastare!B$2:B$2999,B124,Kastare!A$2:A$2999)) -> 1220
A125: 121 | B125: Christer Brincner | C125: Värends Hsk | D125: 298 | F125: 2 | G125: 74.5 | I125: =IF(AF125="","",SUMIF('Jämjö Open'!U$4:U$400,AF125,'Jämjö Open'!P$4:P$400)) -> 0 | J125: =IF(AF125="","",SUMIF('Viby Open'!U$4:U$400,AF125,'Viby Open'!P$4:P$400)) -> 0 | K125: =IF(AF125="","",SUMIF('Björkenäs Open'!U$4:U$400,AF125,'Björkenäs Open'!P$4:P$400)) -> 0 | L125: =IF(AF125="","",SUMIF('SM ute Lö'!U$4:U$400,AF125,'SM ute Lö'!P$4:P$400)) -> 0 | M125: =IF(AF125="","",SUMIF('SM ute Sö'!U$4:U$401,AF125,'SM ute Sö'!P$4:P$401)) -> 134 | N125: =IF(AF125="","",SUMIF('Roslagen Open'!U$4:U$400,AF125,'Roslagen Open'!P$4:P$400)) -> 0 | O125: =IF(AF125="","",SUMIF('Vaxholm Open'!U$4:U$400,AF125,'Vaxholm Open'!P$4:P$400)) -> 0 | P125: =IF(AF125="","",SUMIF('Dynapac Open'!U$4:U$400,AF125,'Dynapac Open'!P$4:P$400)) -> 0 | Q125: =IF(AF125="","",SUMIF('SmålandsDM ute'!U$4:U$400,AF125,'SmålandsDM ute'!P$4:P$400)) -> 0 | R125: =IF(AF125="","",SUMIF('BlekingeDM ute'!U$4:U$400,AF125,'BlekingeDM ute'!P$4:P$400)) -> 0 | S125: =IF(AF125="","",SUMIF('StockholmsDM ute'!U$4:U$400,AF125,'StockholmsDM ute'!P$4:P$400)) -> 0 | T125: =IF(AF125="","",SUMIF('Åseda Open'!U$4:U$406,AF125,'Åseda Open'!P$4:P$406)) -> 0 | U125: =IF(AF125="","",SUMIF(Höstskon!U$4:U$400,AF125,Höstskon!P$4:P$400)) -> 0 | V125: =IF(AF125="","",SUMIF('Carlskrona Cup'!U$4:U$400,AF125,'Carlskrona Cup'!P$4:P$400)) -> 0 | W125: =IF(AF125="","",SUMIF('Sibbamåla Open'!U$4:U$400,AF125,'Sibbamåla Open'!P$4:P$400)) -> 0 | X125: =IF(AF125="","",SUMIF('Vaxholm Indoor'!U$4:U$400,AF125,'Vaxholm Indoor'!P$4:P$400)) -> 0 | Y125: =IF(AF125="","",SUMIF('SM inne 2022'!U$4:U$400,AF125,'SM inne 2022'!P$4:P$400)) -> 0 | Z125: =IF(AF125="","",SUMIF('SmålandsDM inne'!U$4:U$400,AF125,'SmålandsDM inne'!P$4:P$400)) -> 0 | AA125: =IF(AF125="","",SUMIF('BlekingeDM inne'!U$4:U$400,AF125,'BlekingeDM inne'!P$4:P$400)) -> 0 | AB125: =IF(AF125="","",SUMIF('StockholmsDM inne'!U$4:U$400,AF125,'StockholmsDM inne'!P$4:P$400)) -> 0 | AC125: =IF(AF125="","",SUMIF(Värendspokalen!U$4:U$400,AF125,Värendspokalen!P$4:P$400)) -> 164 | AD125: =IF(AF125="","",SUMIF('Tingsryd Open'!U$4:U$400,AF125,'Tingsryd Open'!P$4:P$400)) -> 0 | AF125: =IF(B125="","",SUMIF(Kastare!B$2:B$2999,B125,Kastare!A$2:A$2999)) -> 1122
A126: 123 | B126: Christian Balsiger | C126: Värends Hsk | D126: 292 | F126: 1 | G126: 146 | I126: =IF(AF126="","",SUMIF('Jämjö Open'!U$4:U$400,AF126,'Jämjö Open'!P$4:P$400)) -> 0 | J126: =IF(AF126="","",SUMIF('Viby Open'!U$4:U$400,AF126,'Viby Open'!P$4:P$400)) -> 0 | K126: =IF(AF126="","",SUMIF('Björkenäs Open'!U$4:U$400,AF126,'Björkenäs Open'!P$4:P$400)) -> 0 | L126: =IF(AF126="","",SUMIF('SM ute Lö'!U$4:U$400,AF126,'SM ute Lö'!P$4:P$400)) -> 0 | M126: =IF(AF126="","",SUMIF('SM ute Sö'!U$4:U$401,AF126,'SM ute Sö'!P$4:P$401)) -> 0 | N126: =IF(AF126="","",SUMIF('Roslagen Open'!U$4:U$400,AF126,'Roslagen Open'!P$4:P$400)) -> 0 | O126: =IF(AF126="","",SUMIF('Vaxholm Open'!U$4:U$400,AF126,'Vaxholm Open'!P$4:P$400)) -> 0 | P126: =IF(AF126="","",SUMIF('Dynapac Open'!U$4:U$400,AF126,'Dynapac Open'!P$4:P$400)) -> 0 | Q126: =IF(AF126="","",SUMIF('SmålandsDM ute'!U$4:U$400,AF126,'SmålandsDM ute'!P$4:P$400)) -> 0 | R126: =IF(AF126="","",SUMIF('BlekingeDM ute'!U$4:U$400,AF126,'BlekingeDM ute'!P$4:P$400)) -> 0 | S126: =IF(AF126="","",SUMIF('StockholmsDM ute'!U$4:U$400,AF126,'StockholmsDM ute'!P$4:P$400)) -> 0 | T126: =IF(AF126="","",SUMIF('Åseda Open'!U$4:U$406,AF126,'Åseda Open'!P$4:P$406)) -> 0 | U126: =IF(AF126="","",SUMIF(Höstskon!U$4:U$400,AF126,Höstskon!P$4:P$400)) -> 0 | V126: =IF(AF126="","",SUMIF('Carlskrona Cup'!U$4:U$400,AF126,'Carlskrona Cup'!P$4:P$400)) -> 0 | W126: =IF(AF126="","",SUMIF('Sibbamåla Open'!U$4:U$400,AF126,'Sibbamåla Open'!P$4:P$400)) -> 0 | X126: =IF(AF126="","",SUMIF('Vaxholm Indoor'!U$4:U$400,AF126,'Vaxholm Indoor'!P$4:P$400)) -> 0 | Y126: =IF(AF126="","",SUMIF('SM inne 2022'!U$4:U$400,AF126,'SM inne 2022'!P$4:P$400)) -> 0 | Z126: =IF(AF126="","",SUMIF('SmålandsDM inne'!U$4:U$400,AF126,'SmålandsDM inne'!P$4:P$400)) -> 0 | AA126: =IF(AF126="","",SUMIF('BlekingeDM inne'!U$4:U$400,AF126,'BlekingeDM inne'!P$4:P$400)) -> 0 | AB126: =IF(AF126="","",SUMIF('StockholmsDM inne'!U$4:U$400,AF126,'StockholmsDM inne'!P$4:P$400)) -> 0 | AC126: =IF(AF126="","",SUMIF(Värendspokalen!U$4:U$400,AF126,Värendspokalen!P$4:P$400)) -> 292 | AD126: =IF(AF126="","",SUMIF('Tingsryd Open'!U$4:U$400,AF126,'Tingsryd Open'!P$4:P$400)) -> 0 | AF126: =IF(B126="","",SUMIF(Kastare!B$2:B$2999,B126,Kastare!A$2:A$2999)) -> 1227
A127: 124 | B127: Tony Borgström | C127: Carlskrona Hsc | D127: 282 | F127: 2 | G127: 70.5 | I127: =IF(AF127="","",SUMIF('Jämjö Open'!U$4:U$400,AF127,'Jämjö Open'!P$4:P$400)) -> 0 | J127: =IF(AF127="","",SUMIF('Viby Open'!U$4:U$400,AF127,'Viby Open'!P$4:P$400)) -> 0 | K127: =IF(AF127="","",SUMIF('Björkenäs Open'!U$4:U$400,AF127,'Björkenäs Open'!P$4:P$400)) -> 0 | L127: =IF(AF127="","",SUMIF('SM ute Lö'!U$4:U$400,AF127,'SM ute Lö'!P$4:P$400)) -> 195 | M127: =IF(AF127="","",SUMIF('SM ute Sö'!U$4:U$401,AF127,'SM ute Sö'!P$4:P$401)) -> 87 | N127: =IF(AF127="","",SUMIF('Roslagen Open'!U$4:U$400,AF127,'Roslagen Open'!P$4:P$400)) -> 0 | O127: =IF(AF127="","",SUMIF('Vaxholm Open'!U$4:U$400,AF127,'Vaxholm Open'!P$4:P$400)) -> 0 | P127: =IF(AF127="","",SUMIF('Dynapac Open'!U$4:U$400,AF127,'Dynapac Open'!P$4:P$400)) -> 0 | Q127: =IF(AF127="","",SUMIF('SmålandsDM ute'!U$4:U$400,AF127,'SmålandsDM ute'!P$4:P$400)) -> 0 | R127: =IF(AF127="","",SUMIF('BlekingeDM ute'!U$4:U$400,AF127,'BlekingeDM ute'!P$4:P$400)) -> 0 | S127: =IF(AF127="","",SUMIF('StockholmsDM ute'!U$4:U$400,AF127,'StockholmsDM ute'!P$4:P$400)) -> 0 | T127: =IF(AF127="","",SUMIF('Åseda Open'!U$4:U$406,AF127,'Åseda Open'!P$4:P$406)) -> 0 | U127: =IF(AF127="","",SUMIF(Höstskon!U$4:U$400,AF127,Höstskon!P$4:P$400)) -> 0 | V127: =IF(AF127="","",SUMIF('Carlskrona Cup'!U$4:U$400,AF127,'Carlskrona Cup'!P$4:P$400)) -> 0 | W127: =IF(AF127="","",SUMIF('Sibbamåla Open'!U$4:U$400,AF127,'Sibbamåla Open'!P$4:P$400)) -> 0 | X127: =IF(AF127="","",SUMIF('Vaxholm Indoor'!U$4:U$400,AF127,'Vaxholm Indoor'!P$4:P$400)) -> 0 | Y127: =IF(AF127="","",SUMIF('SM inne 2022'!U$4:U$400,AF127,'SM inne 2022'!P$4:P$400)) -> 0 | Z127: =IF(AF127="","",SUMIF('SmålandsDM inne'!U$4:U$400,AF127,'SmålandsDM inne'!P$4:P$400)) -> 0 | AA127: =IF(AF127="","",SUMIF('BlekingeDM inne'!U$4:U$400,AF127,'BlekingeDM inne'!P$4:P$400)) -> 0 | AB127: =IF(AF127="","",SUMIF('StockholmsDM inne'!U$4:U$400,AF127,'StockholmsDM inne'!P$4:P$400)) -> 0 | AC127: =IF(AF127="","",SUMIF(Värendspokalen!U$4:U$400,AF127,Värendspokalen!P$4:P$400)) -> 0 | AD127: =IF(AF127="","",SUMIF('Tingsryd Open'!U$4:U$400,AF127,'Tingsryd Open'!P$4:P$400)) -> 0 | AF127: =IF(B127="","",SUMIF(Kastare!B$2:B$2999,B127,Kastare!A$2:A$2999)) -> 1107
A128: 124 | B128: Michael Karlsson | C128: Värends HSK | D128: 282 | F128: 2 | G128: 70.5 | I128: =IF(AF128="","",SUMIF('Jämjö Open'!U$4:U$400,AF128,'Jämjö Open'!P$4:P$400)) -> 0 | J128: =IF(AF128="","",SUMIF('Viby Open'!U$4:U$400,AF128,'Viby Open'!P$4:P$400)) -> 0 | K128: =IF(AF128="","",SUMIF('Björkenäs Open'!U$4:U$400,AF128,'Björkenäs Open'!P$4:P$400)) -> 0 | L128: =IF(AF128="","",SUMIF('SM ute Lö'!U$4:U$400,AF128,'SM ute Lö'!P$4:P$400)) -> 0 | M128: =IF(AF128="","",SUMIF('SM ute Sö'!U$4:U$401,AF128,'SM ute Sö'!P$4:P$401)) -> 0 | N128: =IF(AF128="","",SUMIF('Roslagen Open'!U$4:U$400,AF128,'Roslagen Open'!P$4:P$400)) -> 0 | O128: =IF(AF128="","",SUMIF('Vaxholm Open'!U$4:U$400,AF128,'Vaxholm Open'!P$4:P$400)) -> 0 | P128: =IF(AF128="","",SUMIF('Dynapac Open'!U$4:U$400,AF128,'Dynapac Open'!P$4:P$400)) -> 0 | Q128: =IF(AF128="","",SUMIF('SmålandsDM ute'!U$4:U$400,AF128,'SmålandsDM ute'!P$4:P$400)) -> 0 | R128: =IF(AF128="","",SUMIF('BlekingeDM ute'!U$4:U$400,AF128,'BlekingeDM ute'!P$4:P$400)) -> 0 | S128: =IF(AF128="","",SUMIF('StockholmsDM ute'!U$4:U$400,AF128,'StockholmsDM ute'!P$4:P$400)) -> 0 | T128: =IF(AF128="","",SUMIF('Åseda Open'!U$4:U$406,AF128,'Åseda Open'!P$4:P$406)) -> 0 | U128: =IF(AF128="","",SUMIF(Höstskon!U$4:U$400,AF128,Höstskon!P$4:P$400)) -> 0 | V128: =IF(AF128="","",SUMIF('Carlskrona Cup'!U$4:U$400,AF128,'Carlskrona Cup'!P$4:P$400)) -> 0 | W128: =IF(AF128="","",SUMIF('Sibbamåla Open'!U$4:U$400,AF128,'Sibbamåla Open'!P$4:P$400)) -> 0 | X128: =IF(AF128="","",SUMIF('Vaxholm Indoor'!U$4:U$400,AF128,'Vaxholm Indoor'!P$4:P$400)) -> 0 | Y128: =IF(AF128="","",SUMIF('SM inne 2022'!U$4:U$400,AF128,'SM inne 2022'!P$4:P$400)) -> 156 | Z128: =IF(AF128="","",SUMIF('SmålandsDM inne'!U$4:U$400,AF128,'SmålandsDM inne'!P$4:P$400)) -> 0 | AA128: =IF(AF128="","",SUMIF('BlekingeDM inne'!U$4:U$400,AF128,'BlekingeDM inne'!P$4:P$400)) -> 0 | AB128: =IF(AF128="","",SUMIF('StockholmsDM inne'!U$4:U$400,AF128,'StockholmsDM inne'!P$4:P$400)) -> 0 | AC128: =IF(AF128="","",SUMIF(Värendspokalen!U$4:U$400,AF128,Värendspokalen!P$4:P$400)) -> 126 | AD128: =IF(AF128="","",SUMIF('Tingsryd Open'!U$4:U$400,AF128,'Tingsryd Open'!P$4:P$400)) -> 0 | AF128: =IF(B128="","",SUMIF(Kastare!B$2:B$2999,B128,Kastare!A$2:A$2999)) -> 1222
A129: 126 | B129: Maria Gernandt | C129: Vaxholm | D129: 278 | F129: 2 | G129: 69.5 | I129: =IF(AF129="","",SUMIF('Jämjö Open'!U$4:U$400,AF129,'Jämjö Open'!P$4:P$400)) -> 0 | J129: =IF(AF129="","",SUMIF('Viby Open'!U$4:U$400,AF129,'Viby Open'!P$4:P$400)) -> 0 | K129: =IF(AF129="","",SUMIF('Björkenäs Open'!U$4:U$400,AF129,'Björkenäs Open'!P$4:P$400)) -> 0 | L129: =IF(AF129="","",SUMIF('SM ute Lö'!U$4:U$400,AF129,'SM ute Lö'!P$4:P$400)) -> 0 | M129: =IF(AF129="","",SUMIF('SM ute Sö'!U$4:U$401,AF129,'SM ute Sö'!P$4:P$401)) -> 0 | N129: =IF(AF129="","",SUMIF('Roslagen Open'!U$4:U$400,AF129,'Roslagen Open'!P$4:P$400)) -> 0 | O129: =IF(AF129="","",SUMIF('Vaxholm Open'!U$4:U$400,AF129,'Vaxholm Open'!P$4:P$400)) -> 0 | P129: =IF(AF129="","",SUMIF('Dynapac Open'!U$4:U$400,AF129,'Dynapac Open'!P$4:P$400)) -> 0 | Q129: =IF(AF129="","",SUMIF('SmålandsDM ute'!U$4:U$400,AF129,'SmålandsDM ute'!P$4:P$400)) -> 0 | R129: =IF(AF129="","",SUMIF('BlekingeDM ute'!U$4:U$400,AF129,'BlekingeDM ute'!P$4:P$400)) -> 0 | S129: =IF(AF129="","",SUMIF('StockholmsDM ute'!U$4:U$400,AF129,'StockholmsDM ute'!P$4:P$400)) -> 0 | T129: =IF(AF129="","",SUMIF('Åseda Open'!U$4:U$406,AF129,'Åseda Open'!P$4:P$406)) -> 0 | U129: =IF(AF129="","",SUMIF(Höstskon!U$4:U$400,AF129,Höstskon!P$4:P$400)) -> 0 | V129: =IF(AF129="","",SUMIF('Carlskrona Cup'!U$4:U$400,AF129,'Carlskrona Cup'!P$4:P$400)) -> 0 | W129: =IF(AF129="","",SUMIF('Sibbamåla Open'!U$4:U$400,AF129,'Sibbamåla Open'!P$4:P$400)) -> 0 | X129: =IF(AF129="","",SUMIF('Vaxholm Indoor'!U$4:U$400,AF129,'Vaxholm Indoor'!P$4:P$400)) -> 131 | Y129: =IF(AF129="","",SUMIF('SM inne 2022'!U$4:U$400,AF129,'SM inne 2022'!P$4:P$400)) -> 0 | Z129: =IF(AF129="","",SUMIF('SmålandsDM inne'!U$4:U$400,AF129,'SmålandsDM inne'!P$4:P$400)) -> 0 | AA129: =IF(AF129="","",SUMIF('BlekingeDM inne'!U$4:U$400,AF129,'BlekingeDM inne'!P$4:P$400)) -> 0 | AB129: =IF(AF129="","",SUMIF('StockholmsDM inne'!U$4:U$400,AF129,'StockholmsDM inne'!P$4:P$400)) -> 147 | AC129: =IF(AF129="","",SUMIF(Värendspokalen!U$4:U$400,AF129,Värendspokalen!P$4:P$400)) -> 0 | AD129: =IF(AF129="","",SUMIF('Tingsryd Open'!U$4:U$400,AF129,'Tingsryd Open'!P$4:P$400)) -> 0 | AF129: =IF(B129="","",SUMIF(Kastare!B$2:B$2999,B129,Kastare!A$2:A$2999)) -> 1234
A130: 127 | B130: Robert Johansson | C130: Tingsryd Hsc | D130: 266 | F130: 1 | G130: 133 | I130: =IF(AF130="","",SUMIF('Jämjö Open'!U$4:U$400,AF130,'Jämjö Open'!P$4:P$400)) -> 0 | J130: =IF(AF130="","",SUMIF('Viby Open'!U$4:U$400,AF130,'Viby Open'!P$4:P$400)) -> 0 | K130: =IF(AF130="","",SUMIF('Björkenäs Open'!U$4:U$400,AF130,'Björkenäs Open'!P$4:P$400)) -> 0 | L130: =IF(AF130="","",SUMIF('SM ute Lö'!U$4:U$400,AF130,'SM ute Lö'!P$4:P$400)) -> 266 | M130: =IF(AF130="","",SUMIF('SM ute Sö'!U$4:U$401,AF130,'SM ute Sö'!P$4:P$401)) -> 0 | N130: =IF(AF130="","",SUMIF('Roslagen Open'!U$4:U$400,AF130,'Roslagen Open'!P$4:P$400)) -> 0 | O130: =IF(AF130="","",SUMIF('Vaxholm Open'!U$4:U$400,AF130,'Vaxholm Open'!P$4:P$400)) -> 0 | P130: =IF(AF130="","",SUMIF('Dynapac Open'!U$4:U$400,AF130,'Dynapac Open'!P$4:P$400)) -> 0 | Q130: =IF(AF130="","",SUMIF('SmålandsDM ute'!U$4:U$400,AF130,'SmålandsDM ute'!P$4:P$400)) -> 0 | R130: =IF(AF130="","",SUMIF('BlekingeDM ute'!U$4:U$400,AF130,'BlekingeDM ute'!P$4:P$400)) -> 0 | S130: =IF(AF130="","",SUMIF('StockholmsDM ute'!U$4:U$400,AF130,'StockholmsDM ute'!P$4:P$400)) -> 0 | T130: =IF(AF130="","",SUMIF('Åseda Open'!U$4:U$406,AF130,'Åseda Open'!P$4:P$406)) -> 0 | U130: =IF(AF130="","",SUMIF(Höstskon!U$4:U$400,AF130,Höstskon!P$4:P$400)) -> 0 | V130: =IF(AF130="","",SUMIF('Carlskrona Cup'!U$4:U$400,AF130,'Carlskrona Cup'!P$4:P$400)) -> 0 | W130: =IF(AF130="","",SUMIF('Sibbamåla Open'!U$4:U$400,AF130,'Sibbamåla Open'!P$4:P$400)) -> 0 | X130: =IF(AF130="","",SUMIF('Vaxholm Indoor'!U$4:U$400,AF130,'Vaxholm Indoor'!P$4:P$400)) -> 0 | Y130: =IF(AF130="","",SUMIF('SM inne 2022'!U$4:U$400,AF130,'SM inne 2022'!P$4:P$400)) -> 0 | Z130: =IF(AF130="","",SUMIF('SmålandsDM inne'!U$4:U$400,AF130,'SmålandsDM inne'!P$4:P$400)) -> 0 | AA130: =IF(AF130="","",SUMIF('BlekingeDM inne'!U$4:U$400,AF130,'BlekingeDM inne'!P$4:P$400)) -> 0 | AB130: =IF(AF130="","",SUMIF('StockholmsDM inne'!U$4:U$400,AF130,'StockholmsDM inne'!P$4:P$400)) -> 0 | AC130: =IF(AF130="","",SUMIF(Värendspokalen!U$4:U$400,AF130,Värendspokalen!P$4:P$400)) -> 0 | AD130: =IF(AF130="","",SUMIF('Tingsryd Open'!U$4:U$400,AF130,'Tingsryd Open'!P$4:P$400)) -> 0 | AF130: =IF(B130="","",SUMIF(Kastare!B$2:B$2999,B130,Kastare!A$2:A$2999)) -> 1161
A131: 128 | B131: Maj-Britt Jarl | C131: Växjö Hsk | D131: 262 | F131: 1 | G131: 131 | I131: =IF(AF131="","",SUMIF('Jämjö Open'!U$4:U$400,AF131,'Jämjö Open'!P$4:P$400)) -> 0 | J131: =IF(AF131="","",SUMIF('Viby Open'!U$4:U$400,AF131,'Viby Open'!P$4:P$400)) -> 0 | K131: =IF(AF131="","",SUMIF('Björkenäs Open'!U$4:U$400,AF131,'Björkenäs Open'!P$4:P$400)) -> 0 | L131: =IF(AF131="","",SUMIF('SM ute Lö'!U$4:U$400,AF131,'SM ute Lö'!P$4:P$400)) -> 0 | M131: =IF(AF131="","",SUMIF('SM ute Sö'!U$4:U$401,AF131,'SM ute Sö'!P$4:P$401)) -> 0 | N131: =IF(AF131="","",SUMIF('Roslagen Open'!U$4:U$400,AF131,'Roslagen Open'!P$4:P$400)) -> 0 | O131: =IF(AF131="","",SUMIF('Vaxholm Open'!U$4:U$400,AF131,'Vaxholm Open'!P$4:P$400)) -> 0 | P131: =IF(AF131="","",SUMIF('Dynapac Open'!U$4:U$400,AF131,'Dynapac Open'!P$4:P$400)) -> 0 | Q131: =IF(AF131="","",SUMIF('SmålandsDM ute'!U$4:U$400,AF131,'SmålandsDM ute'!P$4:P$400)) -> 0 | R131: =IF(AF131="","",SUMIF('BlekingeDM ute'!U$4:U$400,AF131,'BlekingeDM ute'!P$4:P$400)) -> 0 | S131: =IF(AF131="","",SUMIF('StockholmsDM ute'!U$4:U$400,AF131,'StockholmsDM ute'!P$4:P$400)) -> 0 | T131: =IF(AF131="","",SUMIF('Åseda Open'!U$4:U$406,AF131,'Åseda Open'!P$4:P$406)) -> 262 | U131: =IF(AF131="","",SUMIF(Höstskon!U$4:U$400,AF131,Höstskon!P$4:P$400)) -> 0 | V131: =IF(AF131="","",SUMIF('Carlskrona Cup'!U$4:U$400,AF131,'Carlskrona Cup'!P$4:P$400)) -> 0 | W131: =IF(AF131="","",SUMIF('Sibbamåla Open'!U$4:U$400,AF131,'Sibbamåla Open'!P$4:P$400)) -> 0 | X131: =IF(AF131="","",SUMIF('Vaxholm Indoor'!U$4:U$400,AF131,'Vaxholm Indoor'!P$4:P$400)) -> 0 | Y131: =IF(AF131="","",SUMIF('SM inne 2022'!U$4:U$400,AF131,'SM inne 2022'!P$4:P$400)) -> 0 | Z131: =IF(AF131="","",SUMIF('SmålandsDM inne'!U$4:U$400,AF131,'SmålandsDM inne'!P$4:P$400)) -> 0 | AA131: =IF(AF131="","",SUMIF('BlekingeDM inne'!U$4:U$400,AF131,'BlekingeDM inne'!P$4:P$400)) -> 0 | AB131: =IF(AF131="","",SUMIF('StockholmsDM inne'!U$4:U$400,AF131,'StockholmsDM inne'!P$4:P$400)) -> 0 | AC131: =IF(AF131="","",SUMIF(Värendspokalen!U$4:U$400,AF131,Värendspokalen!P$4:P$400)) -> 0 | AD131: =IF(AF131="","",SUMIF('Tingsryd Open'!U$4:U$400,AF131,'Tingsryd Open'!P$4:P$400)) -> 0 | AF131: =IF(B131="","",SUMIF(Kastare!B$2:B$2999,B131,Kastare!A$2:A$2999)) -> 1182
